Workbook

Sheet Resumo
A1: Ministério da Integração e do Desenvolvimento Regional
A2: Companhia de Desenvolvimento dos Vales do São Francisco e do Parnaíba
A4: PLANILHA RESUMO
A5: OBRA: | B5: Execução de manutenção e obras civis nas barragens de Sitio Lambedor, Poço da Onça, Brejo, Boqueirão e Paus Grandes localizadas no estado de Pernambuco. | E5: BDI (serv.): | F5: ='BDI serv'!D23 -> 0.2321 | G5: Bancos de dados:
A6: LOCAL: | B6: BARRAGENS DE PERNAMBUCO | E6: BDI (forn.): | F6: ='BDI forn'!D23 -> 0.1415 | G6: JUN/25 - SINAPI
A7: DATA BASE: | B7: 2025-07-01 | C7: Encargos sociais - Horistas: | F7: ='Encargos Sociais'!E48 -> 1.1384 | G7: JAN/25 - EMBASA
A8: PRAZO: | B8: 240 dias | C8: Encargos sociais - Mensalista: | F8: ='Encargos Sociais'!F48 -> 0.7011 | G8: ABR/2025 - SICRO
E9: Desconto: | F9: 0
A10: ITEM | B10: DESCRIÇÃO | C10: UNID. | D10: QUANT. | E10: CUSTO UNITÁRIO | F10: PREÇO UNITÁRIO | G10: PREÇO TOTAL
A12: 1 | B12: BARRAGENS PERNAMBUCO | G12: =SUM(G13:G17) -> 1394058.26
A13: 1.1 | B13: Sítio Lambedor | C13: unid. | D13: 1 | E13: ='Sítio Lambedor'!I61 -> 198352.87 | F13: ='Sítio Lambedor'!I63 -> 244359.89 | G13: =TRUNC(D13*F13,2) -> 244359.89
A14: 1.2 | B14: Poço da Onça | C14: unid. | D14: 1 | E14: ='Poço da Onça'!I66 -> 233457.94 | F14: ='Poço da Onça'!I68 -> 287608.52 | G14: =TRUNC(D14*F14,2) -> 287608.52
A15: 1.3 | B15: Brejo | C15: unid. | D15: 1 | E15: =Brejo!I78 -> 327504.36 | F15: =Brejo!I80 -> 403473.8 | G15: =TRUNC(D15*F15,2) -> 403473.8
A16: 1.4 | B16: Boqueirão | C16: unid. | D16: 1 | E16: =Boqueirão!I65 -> 234984.54 | F16: =Boqueirão!I67 -> 289468.97 | G16: =TRUNC(D16*F16,2) -> 289468.97
A17: 1.5 | B17: Paus Grandes | C17: unid. | D17: 1 | E17: ='Paus Grandes'!I68 -> 137292.15 | F17: ='Paus Grandes'!I70 -> 169147.08 | G17: =TRUNC(D17*F17,2) -> 169147.08
B19: TOTAL (Custo): | G19: =SUMPRODUCT(D12:D18,E12:E18) -> 1131591.86
B20: BDI e Encargos Sociais: | G20: =G21-G19 -> 262466.4
B21: TOTAL GERAL COM BDI: | G21: =SUMPRODUCT(D12:D18,F12:F18) -> 1394058.26

Sheet Sítio Lambedor
A1: Ministério da Integração e do Desenvolvimento Regional
A2: Companhia de Desenvolvimento dos Vales do São Francisco e do Parnaíba
A4: PLANILHA ORÇAMENTÁRIA - ORÇAMENTO NÃO DESONERADO
A5: OBRA: | B5: =Resumo!B5 -> Execução de manutenção e obras civis nas barragens de Sitio Lambedor, Poço da Onça, Brejo, Boqueirão e Paus Grandes localizadas no estado de Pernambuco. | G5: BDI (serv.): | H5: ='BDI serv'!D23 -> 0.2321 | I5: Bancos de dados:
A6: LOCAL: | B6: =Resumo!B6 -> BARRAGENS DE PERNAMBUCO | G6: BDI (forn.): | H6: ='BDI forn'!D23 -> 0.1415 | I6: =Resumo!G6 -> JUN/25 - SINAPI
A7: DATA BASE: | B7: =Resumo!B7 -> 2025-07-01 | E7: Encargos sociais - Horistas: | H7: ='Encargos Sociais'!E48 -> 1.1384 | I7: =Resumo!G7 -> JAN/25 - EMBASA
A8: PRAZO: | B8: 60 dias | E8: Encargos sociais - Mensalista: | H8: ='Encargos Sociais'!F48 -> 0.7011 | I8: =Resumo!G8 -> ABR/2025 - SICRO
B9: =Resumo!B13 -> Sítio Lambedor | G9: Desconto: | H9: 0
A10: ITEM | B10: REFERÊNCIA | D10: DESCRIÇÃO | E10: UNID. | F10: QUANT. | G10: CUSTO UNITÁRIO | H10: PREÇO UNITÁRIO | I10: PREÇO TOTAL
B11: FONTE | C11: CÓDIGO
A12: 1 | D12: ADMINISTRAÇÃO DA OBRA | I12: =SUM(I13) -> 71611.82
A13: 1.1 | D13: Administração da Obra | I13: =SUM(I14:I14) -> 71611.82
A14: 1.1.1 | B14: PRÓPRIA | C14: CPU.01 | D14: Administração Local | E14: mês | F14: 2 | G14: =TRUNC((1-$H$9)*(SUMIFS(CPU!$G:$G,CPU!$A:$A,'Sítio Lambedor'!$C14,CPU!$H:$H,"ss")+SUMIFS(CPU!$G:$G,CPU!$A:$A,'Sítio Lambedor'!$C14,CPU!$H:$H,"mdo")+SUMIF('Comp SINAPI PE 06-2025 Onerado'!B:B,'Sítio Lambedor'!C14,'Comp SINAPI PE 06-2025 Onerado'!E:E)+SUMIF('Ins SINAPI PE 06-2025 Onerado'!B:B,'Sítio Lambedor'!C14,'Ins SINAPI PE 06-2025 Onerado'!F:F)),2) -> 29060.88 | H14: =TRUNC(G14*(1+$H$5),2) -> 35805.91 | I14: =TRUNC(F14*H14,2) -> 71611.82
A16: 2 | D16: SERVIÇOS PRELIMINARES | I16: =SUM(I17,I19,I21) -> 30081.1
A17: 2.1 | D17: Mobilização e desmobilização | I17: =SUM(I18) -> 2987.59
A18: 2.1.1 | B18: PRÓPRIA | C18: CPU.02 | D18: Mobilização e desmobilização de instalação do canteiro | E18: un | F18: 1 | G18: =TRUNC((1-$H$9)*(SUMIFS(CPU!$G:$G,CPU!$A:$A,'Sítio Lambedor'!$C18,CPU!$H:$H,"ss")+SUMIFS(CPU!$G:$G,CPU!$A:$A,'Sítio Lambedor'!$C18,CPU!$H:$H,"mdo")+SUMIF('Comp SINAPI PE 06-2025 Onerado'!B:B,'Sítio Lambedor'!C18,'Comp SINAPI PE 06-2025 Onerado'!E:E)+SUMIF('Ins SINAPI PE 06-2025 Onerado'!B:B,'Sítio Lambedor'!C18,'Ins SINAPI PE 06-2025 Onerado'!F:F)),2) -> 2424.8 | H18: =TRUNC(G18*(1+$H$5),2) -> 2987.59 | I18: =TRUNC(F18*H18,2) -> 2987.59
A19: 2.2 | D19: Canteiro de obras | I19: =SUM(I20) -> 25940.13
A20: 2.2.1 | B20: PRÓPRIA | C20: CPU.03 | D20: Execução de canteiro de obras, inclusive, limpeza, refeitório, sanitários e central de formas | E20: m2 | F20: 28.5 | G20: =TRUNC((1-$H$9)*(SUMIFS(CPU!$G:$G,CPU!$A:$A,'Sítio Lambedor'!$C20,CPU!$H:$H,"ss")+SUMIFS(CPU!$G:$G,CPU!$A:$A,'Sítio Lambedor'!$C20,CPU!$H:$H,"mdo")+SUMIF('Comp SINAPI PE 06-2025 Onerado'!B:B,'Sítio Lambedor'!C20,'Comp SINAPI PE 06-2025 Onerado'!E:E)+SUMIF('Ins SINAPI PE 06-2025 Onerado'!B:B,'Sítio Lambedor'!C20,'Ins SINAPI PE 06-2025 Onerado'!F:F)),2) -> 738.73 | H20: =TRUNC(G20*(1+$H$5),2) -> 910.18 | I20: =TRUNC(F20*H20,2) -> 25940.13
A21: 2.3 | D21: Sinalização | I21: =SUM(I22:I22) -> 1153.38
A22: 2.3.1 | B22: SINAPI | C22: 103689 | D22: =IF(J22="ca",VLOOKUP(C22,'Comp SINAPI PE 06-2025 Onerado'!$B$11:$C$9004,2,0),VLOOKUP(C22,'Ins SINAPI PE 06-2025 Onerado'!$B$10:$C$9004,2,0)) -> FORNECIMENTO E INSTALAÇÃO DE PLACA DE OBRA COM CHAPA GALVANIZADA E ESTRUTURA DE MADEIRA. AF_03/2022_PS | E22: =IF(J22="ca",VLOOKUP(C22,'Comp SINAPI PE 06-2025 Onerado'!$B$11:$D$9004,3,0),VLOOKUP(C22,'Ins SINAPI PE 06-2025 Onerado'!$B$11:$D$9004,3,0)) -> M2 | F22: 2 | G22: =TRUNC((1-$H$9)*(SUMIFS(CPU!$G:$G,CPU!$A:$A,'Sítio Lambedor'!$C22,CPU!$H:$H,"ss")+SUMIFS(CPU!$G:$G,CPU!$A:$A,'Sítio Lambedor'!$C22,CPU!$H:$H,"mdo")+SUMIF('Comp SINAPI PE 06-2025 Onerado'!B:B,'Sítio Lambedor'!C22,'Comp SINAPI PE 06-2025 Onerado'!E:E)+SUMIF('Ins SINAPI PE 06-2025 Onerado'!B:B,'Sítio Lambedor'!C22,'Ins SINAPI PE 06-2025 Onerado'!F:F)),2) -> 468.06 | H22: =TRUNC(G22*(1+$H$5),2) -> 576.69 | I22: =TRUNC(F22*H22,2) -> 1153.38 | J22: ca
A24: 3 | D24: CORTE DA VEGETAÇÃO E REMOÇÃO DAS RAIZES | I24: =SUM(I25) -> 43496.1
A25: 3.1 | D25: Remoção da vegetação | I25: =SUM(I26:I27) -> 43496.1
A26: 3.1.1 | B26: PRÓPRIA | C26: CPU.04 | D26: Limpeza de vegetação | E26: =(VLOOKUP(C26,CPU!B2:D$306,3,0)) -> m2 | F26: 3720 | G26: =TRUNC((1-$H$9)*(SUMIFS(CPU!$G:$G,CPU!$A:$A,'Sítio Lambedor'!$C26,CPU!$H:$H,"ss")+SUMIFS(CPU!$G:$G,CPU!$A:$A,'Sítio Lambedor'!$C26,CPU!$H:$H,"mdo")+SUMIF('Comp SINAPI PE 06-2025 Onerado'!B:B,'Sítio Lambedor'!C26,'Comp SINAPI PE 06-2025 Onerado'!E:E)+SUMIF('Ins SINAPI PE 06-2025 Onerado'!B:B,'Sítio Lambedor'!C26,'Ins SINAPI PE 06-2025 Onerado'!F:F)),2) -> 7.87 | H26: =TRUNC(G26*(1+$H$5),2) -> 9.69 | I26: =TRUNC(F26*H26,2) -> 36046.8
A27: 3.1.2 | B27: PRÓPRIA | C27: CPU.05 | D27: Corte de tronco e remoção de raiz | E27: =(VLOOKUP(C27,CPU!B3:D$306,3,0)) -> un | F27: 15 | G27: =TRUNC((1-$H$9)*(SUMIFS(CPU!$G:$G,CPU!$A:$A,'Sítio Lambedor'!$C27,CPU!$H:$H,"ss")+SUMIFS(CPU!$G:$G,CPU!$A:$A,'Sítio Lambedor'!$C27,CPU!$H:$H,"mdo")+SUMIF('Comp SINAPI PE 06-2025 Onerado'!B:B,'Sítio Lambedor'!C27,'Comp SINAPI PE 06-2025 Onerado'!E:E)+SUMIF('Ins SINAPI PE 06-2025 Onerado'!B:B,'Sítio Lambedor'!C27,'Ins SINAPI PE 06-2025 Onerado'!F:F)),2) -> 403.07 | H27: =TRUNC(G27*(1+$H$5),2) -> 496.62 | I27: =TRUNC(F27*H27,2) -> 7449.3
A29: 4 | D29: RECUPERAÇÃO DA CRISTA | I29: =SUM(I30,I33) -> 55180.64
A30: 4.1 | D30: Crista | I30: =SUM(I31:I32) -> 43780.23
A31: 4.1.1 | B31: PRÓPRIA | C31: CPU.10 | D31: =(VLOOKUP(C31,CPU!B10:C200,2,0)) -> Limpeza da superfície | E31: =(VLOOKUP(C31,CPU!B10:D200,3,0)) -> m2 | F31: 650 | G31: =TRUNC((1-$H$9)*(SUMIFS(CPU!$G:$G,CPU!$A:$A,'Sítio Lambedor'!$C31,CPU!$H:$H,"ss")+SUMIFS(CPU!$G:$G,CPU!$A:$A,'Sítio Lambedor'!$C31,CPU!$H:$H,"mdo")+SUMIF('Comp SINAPI PE 06-2025 Onerado'!B:B,'Sítio Lambedor'!C31,'Comp SINAPI PE 06-2025 Onerado'!E:E)+SUMIF('Ins SINAPI PE 06-2025 Onerado'!B:B,'Sítio Lambedor'!C31,'Ins SINAPI PE 06-2025 Onerado'!F:F)),2) -> 5.99 | H31: =TRUNC(G31*(1+$H$5),2) -> 7.38 | I31: =TRUNC(F31*H31,2) -> 4797
A32: 4.1.2 | B32: PRÓPRIA | C32: CPU.07 | D32: =(VLOOKUP(C32,CPU!B11:C201,2,0)) -> Restauração com uso de concreto | E32: =(VLOOKUP(C32,CPU!B11:D201,3,0)) -> m3 | F32: 19.5 | G32: =TRUNC((1-$H$9)*(SUMIFS(CPU!$G:$G,CPU!$A:$A,'Sítio Lambedor'!$C32,CPU!$H:$H,"ss")+SUMIFS(CPU!$G:$G,CPU!$A:$A,'Sítio Lambedor'!$C32,CPU!$H:$H,"mdo")+SUMIF('Comp SINAPI PE 06-2025 Onerado'!B:B,'Sítio Lambedor'!C32,'Comp SINAPI PE 06-2025 Onerado'!E:E)+SUMIF('Ins SINAPI PE 06-2025 Onerado'!B:B,'Sítio Lambedor'!C32,'Ins SINAPI PE 06-2025 Onerado'!F:F)),2) -> 1622.55 | H32: =TRUNC(G32*(1+$H$5),2) -> 1999.14 | I32: =TRUNC(F32*H32,2) -> 38983.23
A33: 4.2 | D33: Recuperação de guarda corpo | I33: =SUM(I34) -> 11400.41
A34: 4.2.1 | B34: PRÓPRIA | C34: CPU.17 | D34: =(VLOOKUP(C34,CPU!B12:C202,2,0)) -> Pintura esmalte, incl. base anticorrosiva e lixamento, em duas demãos | E34: =(VLOOKUP(C34,CPU!B12:D202,3,0)) -> m2 | F34: 81.7 | G34: =TRUNC((1-$H$9)*(SUMIFS(CPU!$G:$G,CPU!$A:$A,'Sítio Lambedor'!$C34,CPU!$H:$H,"ss")+SUMIFS(CPU!$G:$G,CPU!$A:$A,'Sítio Lambedor'!$C34,CPU!$H:$H,"mdo")+SUMIF('Comp SINAPI PE 06-2025 Onerado'!B:B,'Sítio Lambedor'!C34,'Comp SINAPI PE 06-2025 Onerado'!E:E)+SUMIF('Ins SINAPI PE 06-2025 Onerado'!B:B,'Sítio Lambedor'!C34,'Ins SINAPI PE 06-2025 Onerado'!F:F)),2) -> 113.26 | H34: =TRUNC(G34*(1+$H$5),2) -> 139.54 | I34: =TRUNC(F34*H34,2) -> 11400.41
A36: 5 | D36: MANUTENÇÃO NO PARAMENTO DE MONTANTE | I36: =SUM(I37) -> 21945.3
A37: 5.1 | D37: Paramento de Montante | I37: =SUM(I38:I39) -> 21945.3
A38: 5.1.1 | B38: PRÓPRIA | C38: CPU.10 | D38: =(VLOOKUP(C38,CPU!B19:C209,2,0)) -> Limpeza da superfície | E38: =(VLOOKUP(C38,CPU!B19:D209,3,0)) -> m2 | F38: 195 | G38: =TRUNC((1-$H$9)*(SUMIFS(CPU!$G:$G,CPU!$A:$A,'Sítio Lambedor'!$C38,CPU!$H:$H,"ss")+SUMIFS(CPU!$G:$G,CPU!$A:$A,'Sítio Lambedor'!$C38,CPU!$H:$H,"mdo")+SUMIF('Comp SINAPI PE 06-2025 Onerado'!B:B,'Sítio Lambedor'!C38,'Comp SINAPI PE 06-2025 Onerado'!E:E)+SUMIF('Ins SINAPI PE 06-2025 Onerado'!B:B,'Sítio Lambedor'!C38,'Ins SINAPI PE 06-2025 Onerado'!F:F)),2) -> 5.99 | H38: =TRUNC(G38*(1+$H$5),2) -> 7.38 | I38: =TRUNC(F38*H38,2) -> 1439.1
A39: 5.1.2 | B39: PRÓPRIA | C39: CPU.14 | D39: =(VLOOKUP(C39,CPU!B20:C210,2,0)) -> Concreto projetado c/ aditivo impermeabilizante | E39: =(VLOOKUP(C39,CPU!B20:D210,3,0)) -> m3 | F39: 9.8 | G39: =TRUNC((1-$H$9)*(SUMIFS(CPU!$G:$G,CPU!$A:$A,'Sítio Lambedor'!$C39,CPU!$H:$H,"ss")+SUMIFS(CPU!$G:$G,CPU!$A:$A,'Sítio Lambedor'!$C39,CPU!$H:$H,"mdo")+SUMIF('Comp SINAPI PE 06-2025 Onerado'!B:B,'Sítio Lambedor'!C39,'Comp SINAPI PE 06-2025 Onerado'!E:E)+SUMIF('Ins SINAPI PE 06-2025 Onerado'!B:B,'Sítio Lambedor'!C39,'Ins SINAPI PE 06-2025 Onerado'!F:F)),2) -> 1698.3 | H39: =TRUNC(G39*(1+$H$5),2) -> 2092.47 | I39: =TRUNC(F39*H39,2) -> 20506.2
A41: 6 | D41: MANUTENÇÃO DO PARAMENTO DE JUSANTE | I41: =SUM(I42) -> 5209.7
A42: 6.1 | D42: Paramento de Jusante | I42: =SUM(I43:I44) -> 5209.7
A43: 6.1.1 | B43: PRÓPRIA | C43: CPU.10 | D43: =(VLOOKUP(C43,CPU!B26:C216,2,0)) -> Limpeza da superfície | E43: =(VLOOKUP(C43,CPU!B26:D304,3,0)) -> m2 | F43: 195 | G43: =TRUNC((1-$H$9)*(SUMIFS(CPU!$G:$G,CPU!$A:$A,'Sítio Lambedor'!$C43,CPU!$H:$H,"ss")+SUMIFS(CPU!$G:$G,CPU!$A:$A,'Sítio Lambedor'!$C43,CPU!$H:$H,"mdo")+SUMIF('Comp SINAPI PE 06-2025 Onerado'!B:B,'Sítio Lambedor'!C43,'Comp SINAPI PE 06-2025 Onerado'!E:E)+SUMIF('Ins SINAPI PE 06-2025 Onerado'!B:B,'Sítio Lambedor'!C43,'Ins SINAPI PE 06-2025 Onerado'!F:F)),2) -> 5.99 | H43: =TRUNC(G43*(1+$H$5),2) -> 7.38 | I43: =TRUNC(F43*H43,2) -> 1439.1
A44: 6.1.2 | B44: PRÓPRIA | C44: CPU.15 | D44: =(VLOOKUP(C44,CPU!B27:C217,2,0)) -> Preenchimento de espaços vazios com argamassa traço 1:3 | E44: =(VLOOKUP(C44,CPU!B27:D305,3,0)) -> m3 | F44: 2.9 | G44: =TRUNC((1-$H$9)*(SUMIFS(CPU!$G:$G,CPU!$A:$A,'Sítio Lambedor'!$C44,CPU!$H:$H,"ss")+SUMIFS(CPU!$G:$G,CPU!$A:$A,'Sítio Lambedor'!$C44,CPU!$H:$H,"mdo")+SUMIF('Comp SINAPI PE 06-2025 Onerado'!B:B,'Sítio Lambedor'!C44,'Comp SINAPI PE 06-2025 Onerado'!E:E)+SUMIF('Ins SINAPI PE 06-2025 Onerado'!B:B,'Sítio Lambedor'!C44,'Ins SINAPI PE 06-2025 Onerado'!F:F)),2) -> 1055.28 | H44: =TRUNC(G44*(1+$H$5),2) -> 1300.21 | I44: =TRUNC(F44*H44,2) -> 3770.6
A46: 7 | D46: SERVIÇOS COMPLEMENTARES | I46: =SUM(I47,I49) -> 3780.84
A47: 7.1 | D47: Instalação de placas de aviso | I47: =SUM(I48:I48) -> 2306.76
A48: 7.1.1 | B48: SINAPI | C48: 103689 | D48: =IF(J48="ca",VLOOKUP(C48,'Comp SINAPI PE 06-2025 Onerado'!$B$11:$C$9004,2,0),VLOOKUP(C48,'Ins SINAPI PE 06-2025 Onerado'!$B$10:$C$9004,2,0)) -> FORNECIMENTO E INSTALAÇÃO DE PLACA DE OBRA COM CHAPA GALVANIZADA E ESTRUTURA DE MADEIRA. AF_03/2022_PS | E48: =IF(J48="ca",VLOOKUP(C48,'Comp SINAPI PE 06-2025 Onerado'!$B$11:$D$9004,3,0),VLOOKUP(C48,'Ins SINAPI PE 06-2025 Onerado'!$B$11:$D$9004,3,0)) -> M2 | F48: 4 | G48: =TRUNC((1-$H$9)*(SUMIFS(CPU!$G:$G,CPU!$A:$A,'Sítio Lambedor'!$C48,CPU!$H:$H,"ss")+SUMIFS(CPU!$G:$G,CPU!$A:$A,'Sítio Lambedor'!$C48,CPU!$H:$H,"mdo")+SUMIF('Comp SINAPI PE 06-2025 Onerado'!B:B,'Sítio Lambedor'!C48,'Comp SINAPI PE 06-2025 Onerado'!E:E)+SUMIF('Ins SINAPI PE 06-2025 Onerado'!B:B,'Sítio Lambedor'!C48,'Ins SINAPI PE 06-2025 Onerado'!F:F)),2) -> 468.06 | H48: =TRUNC(G48*(1+$H$5),2) -> 576.69 | I48: =TRUNC(F48*H48,2) -> 2306.76 | J48: ca
A49: 7.2 | D49: Régua Linimétrica Padrão “ANA”, Aço Carbono - 2 X 70 X 1000 mm (Fornecimento e Instalação) | I49: =SUM(I50:I50) -> 1474.08
A50: 7.2.1 | B50: PRÓPRIA | C50: CPU.08 | D50: =(VLOOKUP(C50,CPU!B45:C235,2,0)) -> Régua Linimétrica Padrão “ANA”, Aço Carbono - 2 X 70 X 1000 mm (Fornecimento e Instalação) | E50: un | F50: 3 | G50: =TRUNC((1-$H$9)*(SUMIFS(CPU!$G:$G,CPU!$A:$A,'Sítio Lambedor'!$C50,CPU!$H:$H,"ss")+SUMIFS(CPU!$G:$G,CPU!$A:$A,'Sítio Lambedor'!$C50,CPU!$H:$H,"mdo")+SUMIF('Comp SINAPI PE 06-2025 Onerado'!B:B,'Sítio Lambedor'!C50,'Comp SINAPI PE 06-2025 Onerado'!E:E)+SUMIF('Ins SINAPI PE 06-2025 Onerado'!B:B,'Sítio Lambedor'!C50,'Ins SINAPI PE 06-2025 Onerado'!F:F)),2) -> 398.8 | H50: =TRUNC(G50*(1+$H$5),2) -> 491.36 | I50: =TRUNC(F50*H50,2) -> 1474.08
A52: 8 | D52: PROJETO "AS IS" | I52: =SUM(I53) -> 12194.55
A53: 8.1 | D53: Levantamento topógrafico e "AS IS" | I53: =SUM(I54:I55) -> 12194.55
A54: 8.1.1 | B54: ORSE | C54: 9346 | D54: Levantamento topográfico planimétrico cadastral | E54: m2 | F54: =F26 -> 3720 | G54: =TRUNC(0.35*(1-$H$9),2) -> 0.35 | H54: =TRUNC(G54*(1+$H$5),2) -> 0.43 | I54: =TRUNC(F54*H54,2) -> 1599.6
A55: 8.1.2 | B55: PRÓPRIA | C55: CPU.11 | D55: =(VLOOKUP(C55,CPU!B50:C240,2,0)) -> Projeto geométrico | E55: un | F55: 1 | G55: =TRUNC((1-$H$9)*(SUMIFS(CPU!$G:$G,CPU!$A:$A,'Sítio Lambedor'!$C55,CPU!$H:$H,"ss")+SUMIFS(CPU!$G:$G,CPU!$A:$A,'Sítio Lambedor'!$C55,CPU!$H:$H,"mdo")+SUMIF('Comp SINAPI PE 06-2025 Onerado'!B:B,'Sítio Lambedor'!C55,'Comp SINAPI PE 06-2025 Onerado'!E:E)+SUMIF('Ins SINAPI PE 06-2025 Onerado'!B:B,'Sítio Lambedor'!C55,'Ins SINAPI PE 06-2025 Onerado'!F:F)),2) -> 8599.1 | H55: =TRUNC(G55*(1+$H$5),2) -> 10594.95 | I55: =TRUNC(F55*H55,2) -> 10594.95
A57: 9 | D57: FISCALIZAÇÃO E ACOMPANHAMENTO | I57: =SUM(I58) -> 859.84
A58: 9.1 | D58: Disponibilidade de velículo para apoio a fiscalização | I58: =SUM(I59:I60) -> 859.84
A59: 9.1.1 | B59: PRÓPRIA | C59: CPU.12 | D59: =(VLOOKUP(C59,CPU!B54:C244,2,0)) -> Disponibilidade de veículo para apoio a fiscalização, inclusive combustível | E59: un | F59: =F14+2 -> 4 | G59: =TRUNC((1-$H$9)*(SUMIFS(CPU!$G:$G,CPU!$A:$A,'Sítio Lambedor'!$C59,CPU!$H:$H,"ss")+SUMIFS(CPU!$G:$G,CPU!$A:$A,'Sítio Lambedor'!$C59,CPU!$H:$H,"mdo")+SUMIF('Comp SINAPI PE 06-2025 Onerado'!B:B,'Sítio Lambedor'!C59,'Comp SINAPI PE 06-2025 Onerado'!E:E)+SUMIF('Ins SINAPI PE 06-2025 Onerado'!B:B,'Sítio Lambedor'!C59,'Ins SINAPI PE 06-2025 Onerado'!F:F)),2) -> 174.47 | H59: =TRUNC(G59*(1+$H$5),2) -> 214.96 | I59: =TRUNC(F59*H59,2) -> 859.84
D61: TOTAL (Custo): | I61: =TRUNC(SUMPRODUCT(F13:F60,G13:G60),2) -> 198352.87
D62: BDI e Encargos Sociais: | I62: =I63-I61 -> 46007.02
D63: TOTAL GERAL COM BDI: | I63: =SUM(I12,I16,I24,I29,I36,I41,I46,I52,I57) -> 244359.89 | J63: =TRUNC(SUMPRODUCT(F13:F60,H13:H60),2) -> 244359.91 | K63: verificação

Sheet Poço da Onça
A1: Ministério da Integração e do Desenvolvimento Regional
A2: Companhia de Desenvolvimento dos Vales do São Francisco e do Parnaíba
A4: PLANILHA ORÇAMENTÁRIA - ORÇAMENTO NÃO DESONERADO
A5: OBRA: | B5: =Resumo!B5 -> Execução de manutenção e obras civis nas barragens de Sitio Lambedor, Poço da Onça, Brejo, Boqueirão e Paus Grandes localizadas no estado de Pernambuco. | G5: BDI (serv.): | H5: ='BDI serv'!D23 -> 0.2321 | I5: Bancos de dados:
A6: LOCAL: | B6: =Resumo!B6 -> BARRAGENS DE PERNAMBUCO | G6: BDI (forn.): | H6: ='BDI forn'!D23 -> 0.1415 | I6: =Resumo!G6 -> JUN/25 - SINAPI
A7: DATA BASE: | B7: =Resumo!B7 -> 2025-07-01 | E7: Encargos sociais - Horistas: | H7: ='Encargos Sociais'!E48 -> 1.1384 | I7: =Resumo!G7 -> JAN/25 - EMBASA
A8: PRAZO: | B8: 90 dias | E8: Encargos sociais - Mensalista: | H8: ='Encargos Sociais'!F48 -> 0.7011 | I8: =Resumo!G8 -> ABR/2025 - SICRO
B9: =Resumo!B14 -> Poço da Onça | G9: Desconto: | H9: 0
A10: ITEM | B10: REFERÊNCIA | D10: DESCRIÇÃO | E10: UNID. | F10: QUANT. | G10: CUSTO UNITÁRIO | H10: PREÇO UNITÁRIO | I10: PREÇO TOTAL
B11: FONTE | C11: CÓDIGO
A12: 1 | D12: ADMINISTRAÇÃO DA OBRA | I12: =SUM(I13) -> 107417.73
A13: 1.1 | D13: Administração da Obra | I13: =SUM(I14:I14) -> 107417.73
A14: 1.1.1 | B14: PRÓPRIA | C14: CPU.01 | D14: Administração Local | E14: mês | F14: 3 | G14: =TRUNC((1-$H$9)*(SUMIFS(CPU!$G:$G,CPU!$A:$A,'Poço da Onça'!$C14,CPU!$H:$H,"ss")+SUMIFS(CPU!$G:$G,CPU!$A:$A,'Poço da Onça'!$C14,CPU!$H:$H,"mdo")+SUMIF('Comp SINAPI PE 06-2025 Onerado'!B:B,'Poço da Onça'!C14,'Comp SINAPI PE 06-2025 Onerado'!E:E)+SUMIF('Ins SINAPI PE 06-2025 Onerado'!B:B,'Poço da Onça'!C14,'Ins SINAPI PE 06-2025 Onerado'!F:F)),2) -> 29060.88 | H14: =TRUNC(G14*(1+$H$5),2) -> 35805.91 | I14: =TRUNC(F14*H14,2) -> 107417.73
A16: 2 | D16: SERVIÇOS PRELIMINARES | I16: =SUM(I17,I19,I21) -> 30081.1
A17: 2.1 | D17: Mobilização e desmobilização | I17: =SUM(I18) -> 2987.59
A18: 2.1.1 | B18: PRÓPRIA | C18: CPU.02 | D18: Mobilização e desmobilização de instalação do canteiro | E18: un | F18: 1 | G18: =TRUNC((1-$H$9)*(SUMIFS(CPU!$G:$G,CPU!$A:$A,'Poço da Onça'!$C18,CPU!$H:$H,"ss")+SUMIFS(CPU!$G:$G,CPU!$A:$A,'Poço da Onça'!$C18,CPU!$H:$H,"mdo")+SUMIF('Comp SINAPI PE 06-2025 Onerado'!B:B,'Poço da Onça'!C18,'Comp SINAPI PE 06-2025 Onerado'!E:E)+SUMIF('Ins SINAPI PE 06-2025 Onerado'!B:B,'Poço da Onça'!C18,'Ins SINAPI PE 06-2025 Onerado'!F:F)),2) -> 2424.8 | H18: =TRUNC(G18*(1+$H$5),2) -> 2987.59 | I18: =TRUNC(F18*H18,2) -> 2987.59
A19: 2.2 | D19: Canteiro de obras | I19: =SUM(I20) -> 25940.13
A20: 2.2.1 | B20: PRÓPRIA | C20: CPU.03 | D20: Execução de canteiro de obras, inclusive, limpeza, refeitório, sanitários e central de formas | E20: m2 | F20: 28.5 | G20: =TRUNC((1-$H$9)*(SUMIFS(CPU!$G:$G,CPU!$A:$A,'Poço da Onça'!$C20,CPU!$H:$H,"ss")+SUMIFS(CPU!$G:$G,CPU!$A:$A,'Poço da Onça'!$C20,CPU!$H:$H,"mdo")+SUMIF('Comp SINAPI PE 06-2025 Onerado'!B:B,'Poço da Onça'!C20,'Comp SINAPI PE 06-2025 Onerado'!E:E)+SUMIF('Ins SINAPI PE 06-2025 Onerado'!B:B,'Poço da Onça'!C20,'Ins SINAPI PE 06-2025 Onerado'!F:F)),2) -> 738.73 | H20: =TRUNC(G20*(1+$H$5),2) -> 910.18 | I20: =TRUNC(F20*H20,2) -> 25940.13
A21: 2.3 | D21: Sinalização | I21: =SUM(I22:I22) -> 1153.38
A22: 2.3.1 | B22: SINAPI | C22: 103689 | D22: =IF(J22="ca",VLOOKUP(C22,'Comp SINAPI PE 06-2025 Onerado'!$B$11:$C$9004,2,0),VLOOKUP(C22,'Ins SINAPI PE 06-2025 Onerado'!$B$10:$C$9004,2,0)) -> FORNECIMENTO E INSTALAÇÃO DE PLACA DE OBRA COM CHAPA GALVANIZADA E ESTRUTURA DE MADEIRA. AF_03/2022_PS | E22: =IF(J22="ca",VLOOKUP(C22,'Comp SINAPI PE 06-2025 Onerado'!$B$11:$D$9004,3,0),VLOOKUP(C22,'Ins SINAPI PE 06-2025 Onerado'!$B$11:$D$9004,3,0)) -> M2 | F22: 2 | G22: =TRUNC((1-$H$9)*(SUMIFS(CPU!$G:$G,CPU!$A:$A,'Poço da Onça'!$C22,CPU!$H:$H,"ss")+SUMIFS(CPU!$G:$G,CPU!$A:$A,'Poço da Onça'!$C22,CPU!$H:$H,"mdo")+SUMIF('Comp SINAPI PE 06-2025 Onerado'!B:B,'Poço da Onça'!C22,'Comp SINAPI PE 06-2025 Onerado'!E:E)+SUMIF('Ins SINAPI PE 06-2025 Onerado'!B:B,'Poço da Onça'!C22,'Ins SINAPI PE 06-2025 Onerado'!F:F)),2) -> 468.06 | H22: =TRUNC(G22*(1+$H$5),2) -> 576.69 | I22: =TRUNC(F22*H22,2) -> 1153.38 | J22: ca
A24: 3 | D24: CORTE DA VEGETAÇÃO E REMOÇÃO DAS RAIZES | I24: =SUM(I25) -> 47023.26
A25: 3.1 | D25: Remoção da vegetação | I25: =SUM(I26:I27) -> 47023.26
A26: 3.1.1 | B26: PRÓPRIA | C26: CPU.04 | D26: Limpeza de vegetação | E26: =(VLOOKUP(C26,CPU!B2:D$306,3,0)) -> m2 | F26: 4084 | G26: =TRUNC((1-$H$9)*(SUMIFS(CPU!$G:$G,CPU!$A:$A,'Poço da Onça'!$C26,CPU!$H:$H,"ss")+SUMIFS(CPU!$G:$G,CPU!$A:$A,'Poço da Onça'!$C26,CPU!$H:$H,"mdo")+SUMIF('Comp SINAPI PE 06-2025 Onerado'!B:B,'Poço da Onça'!C26,'Comp SINAPI PE 06-2025 Onerado'!E:E)+SUMIF('Ins SINAPI PE 06-2025 Onerado'!B:B,'Poço da Onça'!C26,'Ins SINAPI PE 06-2025 Onerado'!F:F)),2) -> 7.87 | H26: =TRUNC(G26*(1+$H$5),2) -> 9.69 | I26: =TRUNC(F26*H26,2) -> 39573.96
A27: 3.1.2 | B27: PRÓPRIA | C27: CPU.05 | D27: Corte de tronco e remoção de raiz | E27: =(VLOOKUP(C27,CPU!B3:D$306,3,0)) -> un | F27: 15 | G27: =TRUNC((1-$H$9)*(SUMIFS(CPU!$G:$G,CPU!$A:$A,'Poço da Onça'!$C27,CPU!$H:$H,"ss")+SUMIFS(CPU!$G:$G,CPU!$A:$A,'Poço da Onça'!$C27,CPU!$H:$H,"mdo")+SUMIF('Comp SINAPI PE 06-2025 Onerado'!B:B,'Poço da Onça'!C27,'Comp SINAPI PE 06-2025 Onerado'!E:E)+SUMIF('Ins SINAPI PE 06-2025 Onerado'!B:B,'Poço da Onça'!C27,'Ins SINAPI PE 06-2025 Onerado'!F:F)),2) -> 403.07 | H27: =TRUNC(G27*(1+$H$5),2) -> 496.62 | I27: =TRUNC(F27*H27,2) -> 7449.3
A29: 4 | D29: RECUPERAÇÃO DA CRISTA | I29: =SUM(I30) -> 13246.1
A30: 4.1 | D30: Crista | I30: =SUM(I31:I34) -> 13246.1
A31: 4.1.1 | B31: PRÓPRIA | C31: CPU.06 | D31: =(VLOOKUP(C31,CPU!B10:C200,2,0)) -> Apicoamento da superfície | E31: =(VLOOKUP(C31,CPU!B10:D200,3,0)) -> m2 | F31: 20 | G31: =TRUNC((1-$H$9)*(SUMIFS(CPU!$G:$G,CPU!$A:$A,'Poço da Onça'!$C31,CPU!$H:$H,"ss")+SUMIFS(CPU!$G:$G,CPU!$A:$A,'Poço da Onça'!$C31,CPU!$H:$H,"mdo")+SUMIF('Comp SINAPI PE 06-2025 Onerado'!B:B,'Poço da Onça'!C31,'Comp SINAPI PE 06-2025 Onerado'!E:E)+SUMIF('Ins SINAPI PE 06-2025 Onerado'!B:B,'Poço da Onça'!C31,'Ins SINAPI PE 06-2025 Onerado'!F:F)),2) -> 33.97 | H31: =TRUNC(G31*(1+$H$5),2) -> 41.85 | I31: =TRUNC(F31*H31,2) -> 837
A32: 4.1.2 | B32: PRÓPRIA | C32: CPU.10 | D32: =(VLOOKUP(C32,CPU!B11:C201,2,0)) -> Limpeza da superfície | E32: =(VLOOKUP(C32,CPU!B11:D201,3,0)) -> m2 | F32: 185 | G32: =TRUNC((1-$H$9)*(SUMIFS(CPU!$G:$G,CPU!$A:$A,'Poço da Onça'!$C32,CPU!$H:$H,"ss")+SUMIFS(CPU!$G:$G,CPU!$A:$A,'Poço da Onça'!$C32,CPU!$H:$H,"mdo")+SUMIF('Comp SINAPI PE 06-2025 Onerado'!B:B,'Poço da Onça'!C32,'Comp SINAPI PE 06-2025 Onerado'!E:E)+SUMIF('Ins SINAPI PE 06-2025 Onerado'!B:B,'Poço da Onça'!C32,'Ins SINAPI PE 06-2025 Onerado'!F:F)),2) -> 5.99 | H32: =TRUNC(G32*(1+$H$5),2) -> 7.38 | I32: =TRUNC(F32*H32,2) -> 1365.3
A33: 4.1.3 | B33: PRÓPRIA | C33: CPU.13 | D33: =(VLOOKUP(C33,CPU!B12:C202,2,0)) -> Selagem de fissuras com resina epóxi | E33: =(VLOOKUP(C33,CPU!B12:D202,3,0)) -> m | F33: 150 | G33: =TRUNC((1-$H$9)*(SUMIFS(CPU!$G:$G,CPU!$A:$A,'Poço da Onça'!$C33,CPU!$H:$H,"ss")+SUMIFS(CPU!$G:$G,CPU!$A:$A,'Poço da Onça'!$C33,CPU!$H:$H,"mdo")+SUMIF('Comp SINAPI PE 06-2025 Onerado'!B:B,'Poço da Onça'!C33,'Comp SINAPI PE 06-2025 Onerado'!E:E)+SUMIF('Ins SINAPI PE 06-2025 Onerado'!B:B,'Poço da Onça'!C33,'Ins SINAPI PE 06-2025 Onerado'!F:F)),2) -> 45.49 | H33: =TRUNC(G33*(1+$H$5),2) -> 56.04 | I33: =TRUNC(F33*H33,2) -> 8406
A34: 4.1.4 | B34: PRÓPRIA | C34: CPU.09 | D34: =(VLOOKUP(C34,CPU!B13:C203,2,0)) -> Emboço ou massa única em argamassa | E34: =(VLOOKUP(C34,CPU!B12:D202,3,0)) -> m2 | F34: 20 | G34: =TRUNC((1-$H$9)*(SUMIFS(CPU!$G:$G,CPU!$A:$A,'Poço da Onça'!$C34,CPU!$H:$H,"ss")+SUMIFS(CPU!$G:$G,CPU!$A:$A,'Poço da Onça'!$C34,CPU!$H:$H,"mdo")+SUMIF('Comp SINAPI PE 06-2025 Onerado'!B:B,'Poço da Onça'!C34,'Comp SINAPI PE 06-2025 Onerado'!E:E)+SUMIF('Ins SINAPI PE 06-2025 Onerado'!B:B,'Poço da Onça'!C34,'Ins SINAPI PE 06-2025 Onerado'!F:F)),2) -> 107.05 | H34: =TRUNC(G34*(1+$H$5),2) -> 131.89 | I34: =TRUNC(F34*H34,2) -> 2637.8
A36: 5 | D36: MANUTENÇÃO NO PARAMENTO DE MONTANTE | I36: =SUM(I37) -> 51749.3
A37: 5.1 | D37: Paramento de Montante | I37: =SUM(I38:I39) -> 51749.3
A38: 5.1.1 | B38: PRÓPRIA | C38: CPU.10 | D38: =(VLOOKUP(C38,CPU!B19:C209,2,0)) -> Limpeza da superfície | E38: =(VLOOKUP(C38,CPU!B19:D209,3,0)) -> m2 | F38: 462.5 | G38: =TRUNC((1-$H$9)*(SUMIFS(CPU!$G:$G,CPU!$A:$A,'Poço da Onça'!$C38,CPU!$H:$H,"ss")+SUMIFS(CPU!$G:$G,CPU!$A:$A,'Poço da Onça'!$C38,CPU!$H:$H,"mdo")+SUMIF('Comp SINAPI PE 06-2025 Onerado'!B:B,'Poço da Onça'!C38,'Comp SINAPI PE 06-2025 Onerado'!E:E)+SUMIF('Ins SINAPI PE 06-2025 Onerado'!B:B,'Poço da Onça'!C38,'Ins SINAPI PE 06-2025 Onerado'!F:F)),2) -> 5.99 | H38: =TRUNC(G38*(1+$H$5),2) -> 7.38 | I38: =TRUNC(F38*H38,2) -> 3413.25
A39: 5.1.2 | B39: PRÓPRIA | C39: CPU.14 | D39: =(VLOOKUP(C39,CPU!B20:C210,2,0)) -> Concreto projetado c/ aditivo impermeabilizante | E39: =(VLOOKUP(C39,CPU!B20:D210,3,0)) -> m3 | F39: 23.1 | G39: =TRUNC((1-$H$9)*(SUMIFS(CPU!$G:$G,CPU!$A:$A,'Poço da Onça'!$C39,CPU!$H:$H,"ss")+SUMIFS(CPU!$G:$G,CPU!$A:$A,'Poço da Onça'!$C39,CPU!$H:$H,"mdo")+SUMIF('Comp SINAPI PE 06-2025 Onerado'!B:B,'Poço da Onça'!C39,'Comp SINAPI PE 06-2025 Onerado'!E:E)+SUMIF('Ins SINAPI PE 06-2025 Onerado'!B:B,'Poço da Onça'!C39,'Ins SINAPI PE 06-2025 Onerado'!F:F)),2) -> 1698.3 | H39: =TRUNC(G39*(1+$H$5),2) -> 2092.47 | I39: =TRUNC(F39*H39,2) -> 48336.05
A41: 6 | D41: MANUTENÇÃO DO PARAMENTO DE JUSANTE | I41: =SUM(I42) -> 17902.46
A42: 6.1 | D42: Paramento de Jusante | I42: =SUM(I43:I45) -> 17902.46
A43: 6.1.1 | B43: PRÓPRIA | C43: CPU.10 | D43: =(VLOOKUP(C43,CPU!B26:C216,2,0)) -> Limpeza da superfície | E43: =(VLOOKUP(C43,CPU!B26:D304,3,0)) -> m2 | F43: 462.5 | G43: =TRUNC((1-$H$9)*(SUMIFS(CPU!$G:$G,CPU!$A:$A,'Poço da Onça'!$C43,CPU!$H:$H,"ss")+SUMIFS(CPU!$G:$G,CPU!$A:$A,'Poço da Onça'!$C43,CPU!$H:$H,"mdo")+SUMIF('Comp SINAPI PE 06-2025 Onerado'!B:B,'Poço da Onça'!C43,'Comp SINAPI PE 06-2025 Onerado'!E:E)+SUMIF('Ins SINAPI PE 06-2025 Onerado'!B:B,'Poço da Onça'!C43,'Ins SINAPI PE 06-2025 Onerado'!F:F)),2) -> 5.99 | H43: =TRUNC(G43*(1+$H$5),2) -> 7.38 | I43: =TRUNC(F43*H43,2) -> 3413.25
A44: 6.1.2 | B44: PRÓPRIA | C44: CPU.15 | D44: =(VLOOKUP(C44,CPU!B27:C217,2,0)) -> Preenchimento de espaços vazios com argamassa traço 1:3 | E44: =(VLOOKUP(C44,CPU!B27:D305,3,0)) -> m3 | F44: 1 | G44: =TRUNC((1-$H$9)*(SUMIFS(CPU!$G:$G,CPU!$A:$A,'Poço da Onça'!$C44,CPU!$H:$H,"ss")+SUMIFS(CPU!$G:$G,CPU!$A:$A,'Poço da Onça'!$C44,CPU!$H:$H,"mdo")+SUMIF('Comp SINAPI PE 06-2025 Onerado'!B:B,'Poço da Onça'!C44,'Comp SINAPI PE 06-2025 Onerado'!E:E)+SUMIF('Ins SINAPI PE 06-2025 Onerado'!B:B,'Poço da Onça'!C44,'Ins SINAPI PE 06-2025 Onerado'!F:F)),2) -> 1055.28 | H44: =TRUNC(G44*(1+$H$5),2) -> 1300.21 | I44: =TRUNC(F44*H44,2) -> 1300.21
A45: 6.1.3 | B45: PRÓPRIA | C45: CPU.09 | D45: =(VLOOKUP(C45,CPU!B28:C218,2,0)) -> Emboço ou massa única em argamassa | E45: =(VLOOKUP(C45,CPU!B28:D306,3,0)) -> m2 | F45: 100 | G45: =TRUNC((1-$H$9)*(SUMIFS(CPU!$G:$G,CPU!$A:$A,'Poço da Onça'!$C45,CPU!$H:$H,"ss")+SUMIFS(CPU!$G:$G,CPU!$A:$A,'Poço da Onça'!$C45,CPU!$H:$H,"mdo")+SUMIF('Comp SINAPI PE 06-2025 Onerado'!B:B,'Poço da Onça'!C45,'Comp SINAPI PE 06-2025 Onerado'!E:E)+SUMIF('Ins SINAPI PE 06-2025 Onerado'!B:B,'Poço da Onça'!C45,'Ins SINAPI PE 06-2025 Onerado'!F:F)),2) -> 107.05 | H45: =TRUNC(G45*(1+$H$5),2) -> 131.89 | I45: =TRUNC(F45*H45,2) -> 13189
A47: 7 | D47: RESTAURAÇÃO DO VERTEDOURO | I47: =SUM(I48) -> 1999.14
A48: 7.1 | D48: Proteção de descalçamento do pé do vertedouro | I48: =SUM(I49:I49) -> 1999.14
A49: 7.1.1 | B49: PRÓPRIA | C49: CPU.07 | D49: =(VLOOKUP(C49,CPU!B32:C222,2,0)) -> Restauração com uso de concreto | E49: =(VLOOKUP(C49,CPU!B32:D318,3,0)) -> m3 | F49: 1 | G49: =TRUNC((1-$H$9)*(SUMIFS(CPU!$G:$G,CPU!$A:$A,'Poço da Onça'!$C49,CPU!$H:$H,"ss")+SUMIFS(CPU!$G:$G,CPU!$A:$A,'Poço da Onça'!$C49,CPU!$H:$H,"mdo")+SUMIF('Comp SINAPI PE 06-2025 Onerado'!B:B,'Poço da Onça'!C49,'Comp SINAPI PE 06-2025 Onerado'!E:E)+SUMIF('Ins SINAPI PE 06-2025 Onerado'!B:B,'Poço da Onça'!C49,'Ins SINAPI PE 06-2025 Onerado'!F:F)),2) -> 1622.55 | H49: =TRUNC(G49*(1+$H$5),2) -> 1999.14 | I49: =TRUNC(F49*H49,2) -> 1999.14
A51: 8 | D51: SERVIÇOS COMPLEMENTARES | I51: =SUM(I52,I54) -> 4763.56
A52: 8.1 | D52: Instalação de placas de aviso | I52: =SUM(I53:I53) -> 2306.76
A53: 8.1.1 | B53: SINAPI | C53: 103689 | D53: =IF(J53="ca",VLOOKUP(C53,'Comp SINAPI PE 06-2025 Onerado'!$B$11:$C$9004,2,0),VLOOKUP(C53,'Ins SINAPI PE 06-2025 Onerado'!$B$10:$C$9004,2,0)) -> FORNECIMENTO E INSTALAÇÃO DE PLACA DE OBRA COM CHAPA GALVANIZADA E ESTRUTURA DE MADEIRA. AF_03/2022_PS | E53: =IF(J53="ca",VLOOKUP(C53,'Comp SINAPI PE 06-2025 Onerado'!$B$11:$D$9004,3,0),VLOOKUP(C53,'Ins SINAPI PE 06-2025 Onerado'!$B$11:$D$9004,3,0)) -> M2 | F53: 4 | G53: =TRUNC((1-$H$9)*(SUMIFS(CPU!$G:$G,CPU!$A:$A,'Poço da Onça'!$C53,CPU!$H:$H,"ss")+SUMIFS(CPU!$G:$G,CPU!$A:$A,'Poço da Onça'!$C53,CPU!$H:$H,"mdo")+SUMIF('Comp SINAPI PE 06-2025 Onerado'!B:B,'Poço da Onça'!C53,'Comp SINAPI PE 06-2025 Onerado'!E:E)+SUMIF('Ins SINAPI PE 06-2025 Onerado'!B:B,'Poço da Onça'!C53,'Ins SINAPI PE 06-2025 Onerado'!F:F)),2) -> 468.06 | H53: =TRUNC(G53*(1+$H$5),2) -> 576.69 | I53: =TRUNC(F53*H53,2) -> 2306.76 | J53: ca
A54: 8.2 | D54: Régua Linimétrica Padrão “ANA”, Aço Carbono - 2 X 70 X 1000 mm (Fornecimento e Instalação) | I54: =SUM(I55:I55) -> 2456.8
A55: 8.2.1 | B55: PRÓPRIA | C55: CPU.08 | D55: =(VLOOKUP(C55,CPU!B45:C235,2,0)) -> Régua Linimétrica Padrão “ANA”, Aço Carbono - 2 X 70 X 1000 mm (Fornecimento e Instalação) | E55: un | F55: 5 | G55: =TRUNC((1-$H$9)*(SUMIFS(CPU!$G:$G,CPU!$A:$A,'Poço da Onça'!$C55,CPU!$H:$H,"ss")+SUMIFS(CPU!$G:$G,CPU!$A:$A,'Poço da Onça'!$C55,CPU!$H:$H,"mdo")+SUMIF('Comp SINAPI PE 06-2025 Onerado'!B:B,'Poço da Onça'!C55,'Comp SINAPI PE 06-2025 Onerado'!E:E)+SUMIF('Ins SINAPI PE 06-2025 Onerado'!B:B,'Poço da Onça'!C55,'Ins SINAPI PE 06-2025 Onerado'!F:F)),2) -> 398.8 | H55: =TRUNC(G55*(1+$H$5),2) -> 491.36 | I55: =TRUNC(F55*H55,2) -> 2456.8
A57: 9 | D57: PROJETO "AS IS" | I57: =SUM(I58) -> 12351.07
A58: 9.1 | D58: Levantamento topógrafico e "AS IS" | I58: =SUM(I59:I60) -> 12351.07
A59: 9.1.1 | B59: ORSE | C59: 9346 | D59: Levantamento topográfico planimétrico cadastral | E59: m2 | F59: =F26 -> 4084 | G59: =TRUNC(0.35*(1-$H$9),2) -> 0.35 | H59: =TRUNC(G59*(1+$H$5),2) -> 0.43 | I59: =TRUNC(F59*H59,2) -> 1756.12
A60: 9.1.2 | B60: PRÓPRIA | C60: CPU.11 | D60: =(VLOOKUP(C60,CPU!B50:C240,2,0)) -> Projeto geométrico | E60: un | F60: 1 | G60: =TRUNC((1-$H$9)*(SUMIFS(CPU!$G:$G,CPU!$A:$A,'Poço da Onça'!$C60,CPU!$H:$H,"ss")+SUMIFS(CPU!$G:$G,CPU!$A:$A,'Poço da Onça'!$C60,CPU!$H:$H,"mdo")+SUMIF('Comp SINAPI PE 06-2025 Onerado'!B:B,'Poço da Onça'!C60,'Comp SINAPI PE 06-2025 Onerado'!E:E)+SUMIF('Ins SINAPI PE 06-2025 Onerado'!B:B,'Poço da Onça'!C60,'Ins SINAPI PE 06-2025 Onerado'!F:F)),2) -> 8599.1 | H60: =TRUNC(G60*(1+$H$5),2) -> 10594.95 | I60: =TRUNC(F60*H60,2) -> 10594.95
A62: 10 | D62: FISCALIZAÇÃO E ACOMPANHAMENTO | I62: =SUM(I63) -> 1074.8
A63: 10.1 | D63: Disponibilidade de velículo para apoio a fiscalização | I63: =SUM(I64:I65) -> 1074.8
A64: 10.1.1 | B64: PRÓPRIA | C64: CPU.12 | D64: =(VLOOKUP(C64,CPU!B54:C244,2,0)) -> Disponibilidade de veículo para apoio a fiscalização, inclusive combustível | E64: un | F64: =F14+2 -> 5 | G64: =TRUNC((1-$H$9)*(SUMIFS(CPU!$G:$G,CPU!$A:$A,'Poço da Onça'!$C64,CPU!$H:$H,"ss")+SUMIFS(CPU!$G:$G,CPU!$A:$A,'Poço da Onça'!$C64,CPU!$H:$H,"mdo")+SUMIF('Comp SINAPI PE 06-2025 Onerado'!B:B,'Poço da Onça'!C64,'Comp SINAPI PE 06-2025 Onerado'!E:E)+SUMIF('Ins SINAPI PE 06-2025 Onerado'!B:B,'Poço da Onça'!C64,'Ins SINAPI PE 06-2025 Onerado'!F:F)),2) -> 174.47 | H64: =TRUNC(G64*(1+$H$5),2) -> 214.96 | I64: =TRUNC(F64*H64,2) -> 1074.8
D66: TOTAL (Custo): | I66: =TRUNC(SUMPRODUCT(F13:F65,G13:G65),2) -> 233457.94
D67: BDI e Encargos Sociais: | I67: =I68-I66 -> 54150.58
D68: TOTAL GERAL COM BDI: | I68: =SUM(I12,I16,I24,I29,I36,I41,I47,I51,I57,I62) -> 287608.52 | J68: =TRUNC(SUMPRODUCT(F13:F65,H13:H65),2) -> 287608.52 | K68: verificação

Sheet Brejo
A1: Ministério da Integração e do Desenvolvimento Regional
A2: Companhia de Desenvolvimento dos Vales do São Francisco e do Parnaíba
A4: PLANILHA ORÇAMENTÁRIA - ORÇAMENTO NÃO DESONERADO
A5: OBRA: | B5: =Resumo!B5 -> Execução de manutenção e obras civis nas barragens de Sitio Lambedor, Poço da Onça, Brejo, Boqueirão e Paus Grandes localizadas no estado de Pernambuco. | G5: BDI (serv.): | H5: ='BDI serv'!D23 -> 0.2321 | I5: Bancos de dados:
A6: LOCAL: | B6: =Resumo!B6 -> BARRAGENS DE PERNAMBUCO | G6: BDI (forn.): | H6: ='BDI forn'!D23 -> 0.1415 | I6: =Resumo!G6 -> JUN/25 - SINAPI
A7: DATA BASE: | B7: =Resumo!B7 -> 2025-07-01 | E7: Encargos sociais - Horistas: | H7: ='Encargos Sociais'!E48 -> 1.1384 | I7: =Resumo!G7 -> JAN/25 - EMBASA
A8: PRAZO: | B8: 90 dias | E8: Encargos sociais - Mensalista: | H8: ='Encargos Sociais'!F48 -> 0.7011 | I8: =Resumo!G8 -> ABR/2025 - SICRO
B9: =Resumo!B15 -> Brejo | G9: Desconto: | H9: 0
A10: ITEM | B10: REFERÊNCIA | D10: DESCRIÇÃO | E10: UNID. | F10: QUANT. | G10: CUSTO UNITÁRIO | H10: PREÇO UNITÁRIO | I10: PREÇO TOTAL
B11: FONTE | C11: CÓDIGO
A12: 1 | D12: ADMINISTRAÇÃO DA OBRA | I12: =SUM(I13) -> 107417.73
A13: 1.1 | D13: Administração da Obra | I13: =SUM(I14:I14) -> 107417.73
A14: 1.1.1 | B14: PRÓPRIA | C14: CPU.01 | D14: Administração Local | E14: mês | F14: 3 | G14: =TRUNC((1-$H$9)*(SUMIFS(CPU!$G:$G,CPU!$A:$A,Brejo!$C14,CPU!$H:$H,"ss")+SUMIFS(CPU!$G:$G,CPU!$A:$A,Brejo!$C14,CPU!$H:$H,"mdo")+SUMIF('Comp SINAPI PE 06-2025 Onerado'!B:B,Brejo!C14,'Comp SINAPI PE 06-2025 Onerado'!E:E)+SUMIF('Ins SINAPI PE 06-2025 Onerado'!B:B,Brejo!C14,'Ins SINAPI PE 06-2025 Onerado'!F:F)),2) -> 29060.88 | H14: =TRUNC(G14*(1+$H$5),2) -> 35805.91 | I14: =TRUNC(F14*H14,2) -> 107417.73
A16: 2 | D16: SERVIÇOS PRELIMINARES | I16: =SUM(I17,I19,I21) -> 30081.1
A17: 2.1 | D17: Mobilização e desmobilização | I17: =SUM(I18) -> 2987.59
A18: 2.1.1 | B18: PRÓPRIA | C18: CPU.02 | D18: Mobilização e desmobilização de instalação do canteiro | E18: un | F18: 1 | G18: =TRUNC((1-$H$9)*(SUMIFS(CPU!$G:$G,CPU!$A:$A,Brejo!$C18,CPU!$H:$H,"ss")+SUMIFS(CPU!$G:$G,CPU!$A:$A,Brejo!$C18,CPU!$H:$H,"mdo")+SUMIF('Comp SINAPI PE 06-2025 Onerado'!B:B,Brejo!C18,'Comp SINAPI PE 06-2025 Onerado'!E:E)+SUMIF('Ins SINAPI PE 06-2025 Onerado'!B:B,Brejo!C18,'Ins SINAPI PE 06-2025 Onerado'!F:F)),2) -> 2424.8 | H18: =TRUNC(G18*(1+$H$5),2) -> 2987.59 | I18: =TRUNC(F18*H18,2) -> 2987.59
A19: 2.2 | D19: Canteiro de obras | I19: =SUM(I20) -> 25940.13
A20: 2.2.1 | B20: PRÓPRIA | C20: CPU.03 | D20: Execução de canteiro de obras, inclusive, limpeza, refeitório, sanitários e central de formas | E20: m2 | F20: 28.5 | G20: =TRUNC((1-$H$9)*(SUMIFS(CPU!$G:$G,CPU!$A:$A,Brejo!$C20,CPU!$H:$H,"ss")+SUMIFS(CPU!$G:$G,CPU!$A:$A,Brejo!$C20,CPU!$H:$H,"mdo")+SUMIF('Comp SINAPI PE 06-2025 Onerado'!B:B,Brejo!C20,'Comp SINAPI PE 06-2025 Onerado'!E:E)+SUMIF('Ins SINAPI PE 06-2025 Onerado'!B:B,Brejo!C20,'Ins SINAPI PE 06-2025 Onerado'!F:F)),2) -> 738.73 | H20: =TRUNC(G20*(1+$H$5),2) -> 910.18 | I20: =TRUNC(F20*H20,2) -> 25940.13
A21: 2.3 | D21: Sinalização | I21: =SUM(I22:I22) -> 1153.38
A22: 2.3.1 | B22: SINAPI | C22: 103689 | D22: =IF(J22="ca",VLOOKUP(C22,'Comp SINAPI PE 06-2025 Onerado'!$B$11:$C$9004,2,0),VLOOKUP(C22,'Ins SINAPI PE 06-2025 Onerado'!$B$10:$C$9004,2,0)) -> FORNECIMENTO E INSTALAÇÃO DE PLACA DE OBRA COM CHAPA GALVANIZADA E ESTRUTURA DE MADEIRA. AF_03/2022_PS | E22: =IF(J22="ca",VLOOKUP(C22,'Comp SINAPI PE 06-2025 Onerado'!$B$11:$D$9004,3,0),VLOOKUP(C22,'Ins SINAPI PE 06-2025 Onerado'!$B$11:$D$9004,3,0)) -> M2 | F22: 2 | G22: =TRUNC((1-$H$9)*(SUMIFS(CPU!$G:$G,CPU!$A:$A,Brejo!$C22,CPU!$H:$H,"ss")+SUMIFS(CPU!$G:$G,CPU!$A:$A,Brejo!$C22,CPU!$H:$H,"mdo")+SUMIF('Comp SINAPI PE 06-2025 Onerado'!B:B,Brejo!C22,'Comp SINAPI PE 06-2025 Onerado'!E:E)+SUMIF('Ins SINAPI PE 06-2025 Onerado'!B:B,Brejo!C22,'Ins SINAPI PE 06-2025 Onerado'!F:F)),2) -> 468.06 | H22: =TRUNC(G22*(1+$H$5),2) -> 576.69 | I22: =TRUNC(F22*H22,2) -> 1153.38 | J22: ca
A24: 3 | D24: CORTE DA VEGETAÇÃO E REMOÇÃO DAS RAIZES | I24: =SUM(I25) -> 71619.09
A25: 3.1 | D25: Remoção da vegetação | I25: =SUM(I26:I27) -> 71619.09
A26: 3.1.1 | B26: PRÓPRIA | C26: CPU.04 | D26: Limpeza de vegetação | E26: =(VLOOKUP(C26,CPU!B2:D$306,3,0)) -> m2 | F26: 5341 | G26: =TRUNC((1-$H$9)*(SUMIFS(CPU!$G:$G,CPU!$A:$A,Brejo!$C26,CPU!$H:$H,"ss")+SUMIFS(CPU!$G:$G,CPU!$A:$A,Brejo!$C26,CPU!$H:$H,"mdo")+SUMIF('Comp SINAPI PE 06-2025 Onerado'!B:B,Brejo!C26,'Comp SINAPI PE 06-2025 Onerado'!E:E)+SUMIF('Ins SINAPI PE 06-2025 Onerado'!B:B,Brejo!C26,'Ins SINAPI PE 06-2025 Onerado'!F:F)),2) -> 7.87 | H26: =TRUNC(G26*(1+$H$5),2) -> 9.69 | I26: =TRUNC(F26*H26,2) -> 51754.29
A27: 3.1.2 | B27: PRÓPRIA | C27: CPU.05 | D27: Corte de tronco e remoção de raiz | E27: =(VLOOKUP(C27,CPU!B3:D$306,3,0)) -> un | F27: 40 | G27: =TRUNC((1-$H$9)*(SUMIFS(CPU!$G:$G,CPU!$A:$A,Brejo!$C27,CPU!$H:$H,"ss")+SUMIFS(CPU!$G:$G,CPU!$A:$A,Brejo!$C27,CPU!$H:$H,"mdo")+SUMIF('Comp SINAPI PE 06-2025 Onerado'!B:B,Brejo!C27,'Comp SINAPI PE 06-2025 Onerado'!E:E)+SUMIF('Ins SINAPI PE 06-2025 Onerado'!B:B,Brejo!C27,'Ins SINAPI PE 06-2025 Onerado'!F:F)),2) -> 403.07 | H27: =TRUNC(G27*(1+$H$5),2) -> 496.62 | I27: =TRUNC(F27*H27,2) -> 19864.8
A29: 4 | D29: RECUPERAÇÃO DA CRISTA | I29: =SUM(I30) -> 9226.4
A30: 4.1 | D30: Crista | I30: =SUM(I31:I34) -> 9226.4
A31: 4.1.1 | B31: PRÓPRIA | C31: CPU.06 | D31: =(VLOOKUP(C31,CPU!B10:C200,2,0)) -> Apicoamento da superfície | E31: =(VLOOKUP(C31,CPU!B10:D200,3,0)) -> m2 | F31: 20 | G31: =TRUNC((1-$H$9)*(SUMIFS(CPU!$G:$G,CPU!$A:$A,Brejo!$C31,CPU!$H:$H,"ss")+SUMIFS(CPU!$G:$G,CPU!$A:$A,Brejo!$C31,CPU!$H:$H,"mdo")+SUMIF('Comp SINAPI PE 06-2025 Onerado'!B:B,Brejo!C31,'Comp SINAPI PE 06-2025 Onerado'!E:E)+SUMIF('Ins SINAPI PE 06-2025 Onerado'!B:B,Brejo!C31,'Ins SINAPI PE 06-2025 Onerado'!F:F)),2) -> 33.97 | H31: =TRUNC(G31*(1+$H$5),2) -> 41.85 | I31: =TRUNC(F31*H31,2) -> 837
A32: 4.1.2 | B32: PRÓPRIA | C32: CPU.10 | D32: =(VLOOKUP(C32,CPU!B11:C201,2,0)) -> Limpeza da superfície | E32: =(VLOOKUP(C32,CPU!B11:D201,3,0)) -> m2 | F32: 20 | G32: =TRUNC((1-$H$9)*(SUMIFS(CPU!$G:$G,CPU!$A:$A,Brejo!$C32,CPU!$H:$H,"ss")+SUMIFS(CPU!$G:$G,CPU!$A:$A,Brejo!$C32,CPU!$H:$H,"mdo")+SUMIF('Comp SINAPI PE 06-2025 Onerado'!B:B,Brejo!C32,'Comp SINAPI PE 06-2025 Onerado'!E:E)+SUMIF('Ins SINAPI PE 06-2025 Onerado'!B:B,Brejo!C32,'Ins SINAPI PE 06-2025 Onerado'!F:F)),2) -> 5.99 | H32: =TRUNC(G32*(1+$H$5),2) -> 7.38 | I32: =TRUNC(F32*H32,2) -> 147.6
A33: 4.1.3 | B33: PRÓPRIA | C33: CPU.13 | D33: =(VLOOKUP(C33,CPU!B12:C202,2,0)) -> Selagem de fissuras com resina epóxi | E33: =(VLOOKUP(C33,CPU!B12:D202,3,0)) -> m | F33: 100 | G33: =TRUNC((1-$H$9)*(SUMIFS(CPU!$G:$G,CPU!$A:$A,Brejo!$C33,CPU!$H:$H,"ss")+SUMIFS(CPU!$G:$G,CPU!$A:$A,Brejo!$C33,CPU!$H:$H,"mdo")+SUMIF('Comp SINAPI PE 06-2025 Onerado'!B:B,Brejo!C33,'Comp SINAPI PE 06-2025 Onerado'!E:E)+SUMIF('Ins SINAPI PE 06-2025 Onerado'!B:B,Brejo!C33,'Ins SINAPI PE 06-2025 Onerado'!F:F)),2) -> 45.49 | H33: =TRUNC(G33*(1+$H$5),2) -> 56.04 | I33: =TRUNC(F33*H33,2) -> 5604
A34: 4.1.4 | B34: PRÓPRIA | C34: CPU.09 | D34: =(VLOOKUP(C34,CPU!B13:C203,2,0)) -> Emboço ou massa única em argamassa | E34: =(VLOOKUP(C34,CPU!B12:D202,3,0)) -> m2 | F34: 20 | G34: =TRUNC((1-$H$9)*(SUMIFS(CPU!$G:$G,CPU!$A:$A,Brejo!$C34,CPU!$H:$H,"ss")+SUMIFS(CPU!$G:$G,CPU!$A:$A,Brejo!$C34,CPU!$H:$H,"mdo")+SUMIF('Comp SINAPI PE 06-2025 Onerado'!B:B,Brejo!C34,'Comp SINAPI PE 06-2025 Onerado'!E:E)+SUMIF('Ins SINAPI PE 06-2025 Onerado'!B:B,Brejo!C34,'Ins SINAPI PE 06-2025 Onerado'!F:F)),2) -> 107.05 | H34: =TRUNC(G34*(1+$H$5),2) -> 131.89 | I34: =TRUNC(F34*H34,2) -> 2637.8
A36: 5 | D36: MANUTENÇÃO NO PARAMENTO DE MONTANTE | I36: =SUM(I37) -> 151204.72
A37: 5.1 | D37: Paramento de Montante | I37: =SUM(I38:I39) -> 151204.72
A38: 5.1.1 | B38: PRÓPRIA | C38: CPU.10 | D38: =(VLOOKUP(C38,CPU!B19:C209,2,0)) -> Limpeza da superfície | E38: =(VLOOKUP(C38,CPU!B19:D209,3,0)) -> m2 | F38: 1350 | G38: =TRUNC((1-$H$9)*(SUMIFS(CPU!$G:$G,CPU!$A:$A,Brejo!$C38,CPU!$H:$H,"ss")+SUMIFS(CPU!$G:$G,CPU!$A:$A,Brejo!$C38,CPU!$H:$H,"mdo")+SUMIF('Comp SINAPI PE 06-2025 Onerado'!B:B,Brejo!C38,'Comp SINAPI PE 06-2025 Onerado'!E:E)+SUMIF('Ins SINAPI PE 06-2025 Onerado'!B:B,Brejo!C38,'Ins SINAPI PE 06-2025 Onerado'!F:F)),2) -> 5.99 | H38: =TRUNC(G38*(1+$H$5),2) -> 7.38 | I38: =TRUNC(F38*H38,2) -> 9963
A39: 5.1.2 | B39: PRÓPRIA | C39: CPU.14 | D39: =(VLOOKUP(C39,CPU!B20:C210,2,0)) -> Concreto projetado c/ aditivo impermeabilizante | E39: =(VLOOKUP(C39,CPU!B20:D210,3,0)) -> m3 | F39: 67.5 | G39: =TRUNC((1-$H$9)*(SUMIFS(CPU!$G:$G,CPU!$A:$A,Brejo!$C39,CPU!$H:$H,"ss")+SUMIFS(CPU!$G:$G,CPU!$A:$A,Brejo!$C39,CPU!$H:$H,"mdo")+SUMIF('Comp SINAPI PE 06-2025 Onerado'!B:B,Brejo!C39,'Comp SINAPI PE 06-2025 Onerado'!E:E)+SUMIF('Ins SINAPI PE 06-2025 Onerado'!B:B,Brejo!C39,'Ins SINAPI PE 06-2025 Onerado'!F:F)),2) -> 1698.3 | H39: =TRUNC(G39*(1+$H$5),2) -> 2092.47 | I39: =TRUNC(F39*H39,2) -> 141241.72
A41: 6 | D41: MANUTENÇÃO DO PARAMENTO DE JUSANTE | I41: =SUM(I42) -> 5667.49
A42: 6.1 | D42: Paramento de Jusante | I42: =SUM(I43:I45) -> 5667.49
A43: 6.1.1 | B43: PRÓPRIA | C43: CPU.10 | D43: =(VLOOKUP(C43,CPU!B26:C216,2,0)) -> Limpeza da superfície | E43: =(VLOOKUP(C43,CPU!B26:D304,3,0)) -> m2 | F43: 50 | G43: =TRUNC((1-$H$9)*(SUMIFS(CPU!$G:$G,CPU!$A:$A,Brejo!$C43,CPU!$H:$H,"ss")+SUMIFS(CPU!$G:$G,CPU!$A:$A,Brejo!$C43,CPU!$H:$H,"mdo")+SUMIF('Comp SINAPI PE 06-2025 Onerado'!B:B,Brejo!C43,'Comp SINAPI PE 06-2025 Onerado'!E:E)+SUMIF('Ins SINAPI PE 06-2025 Onerado'!B:B,Brejo!C43,'Ins SINAPI PE 06-2025 Onerado'!F:F)),2) -> 5.99 | H43: =TRUNC(G43*(1+$H$5),2) -> 7.38 | I43: =TRUNC(F43*H43,2) -> 369
A44: 6.1.2 | B44: PRÓPRIA | C44: CPU.15 | D44: =(VLOOKUP(C44,CPU!B27:C217,2,0)) -> Preenchimento de espaços vazios com argamassa traço 1:3 | E44: =(VLOOKUP(C44,CPU!B27:D305,3,0)) -> m3 | F44: 1 | G44: =TRUNC((1-$H$9)*(SUMIFS(CPU!$G:$G,CPU!$A:$A,Brejo!$C44,CPU!$H:$H,"ss")+SUMIFS(CPU!$G:$G,CPU!$A:$A,Brejo!$C44,CPU!$H:$H,"mdo")+SUMIF('Comp SINAPI PE 06-2025 Onerado'!B:B,Brejo!C44,'Comp SINAPI PE 06-2025 Onerado'!E:E)+SUMIF('Ins SINAPI PE 06-2025 Onerado'!B:B,Brejo!C44,'Ins SINAPI PE 06-2025 Onerado'!F:F)),2) -> 1055.28 | H44: =TRUNC(G44*(1+$H$5),2) -> 1300.21 | I44: =TRUNC(F44*H44,2) -> 1300.21
A45: 6.1.3 | B45: PRÓPRIA | C45: CPU.07 | D45: =(VLOOKUP(C45,CPU!B28:C218,2,0)) -> Restauração com uso de concreto | E45: =(VLOOKUP(C45,CPU!B28:D306,3,0)) -> m3 | F45: 2 | G45: =TRUNC((1-$H$9)*(SUMIFS(CPU!$G:$G,CPU!$A:$A,Brejo!$C45,CPU!$H:$H,"ss")+SUMIFS(CPU!$G:$G,CPU!$A:$A,Brejo!$C45,CPU!$H:$H,"mdo")+SUMIF('Comp SINAPI PE 06-2025 Onerado'!B:B,Brejo!C45,'Comp SINAPI PE 06-2025 Onerado'!E:E)+SUMIF('Ins SINAPI PE 06-2025 Onerado'!B:B,Brejo!C45,'Ins SINAPI PE 06-2025 Onerado'!F:F)),2) -> 1622.55 | H45: =TRUNC(G45*(1+$H$5),2) -> 1999.14 | I45: =TRUNC(F45*H45,2) -> 3998.28
A47: 7 | D47: RESTAURAÇÃO DOS MUROS LATERAIS | I47: =SUM(I48) -> 4110.36
A48: 7.1 | D48: Muros laterais | I48: =SUM(I49:I50) -> 4110.36
A49: 7.1.1 | B49: PRÓPRIA | C49: CPU.07 | D49: =(VLOOKUP(C49,CPU!B31:C221,2,0)) -> Restauração com uso de concreto | E49: =(VLOOKUP(C49,CPU!B31:D317,3,0)) -> m3 | F49: 2 | G49: =TRUNC((1-$H$9)*(SUMIFS(CPU!$G:$G,CPU!$A:$A,Brejo!$C49,CPU!$H:$H,"ss")+SUMIFS(CPU!$G:$G,CPU!$A:$A,Brejo!$C49,CPU!$H:$H,"mdo")+SUMIF('Comp SINAPI PE 06-2025 Onerado'!B:B,Brejo!C49,'Comp SINAPI PE 06-2025 Onerado'!E:E)+SUMIF('Ins SINAPI PE 06-2025 Onerado'!B:B,Brejo!C49,'Ins SINAPI PE 06-2025 Onerado'!F:F)),2) -> 1622.55 | H49: =TRUNC(G49*(1+$H$5),2) -> 1999.14 | I49: =TRUNC(F49*H49,2) -> 3998.28
A50: 7.1.2 | B50: PRÓPRIA | C50: CPU.13 | D50: =(VLOOKUP(C50,CPU!B32:C222,2,0)) -> Selagem de fissuras com resina epóxi | E50: =(VLOOKUP(C50,CPU!B32:D318,3,0)) -> m | F50: 2 | G50: =TRUNC((1-$H$9)*(SUMIFS(CPU!$G:$G,CPU!$A:$A,Brejo!$C50,CPU!$H:$H,"ss")+SUMIFS(CPU!$G:$G,CPU!$A:$A,Brejo!$C50,CPU!$H:$H,"mdo")+SUMIF('Comp SINAPI PE 06-2025 Onerado'!B:B,Brejo!C50,'Comp SINAPI PE 06-2025 Onerado'!E:E)+SUMIF('Ins SINAPI PE 06-2025 Onerado'!B:B,Brejo!C50,'Ins SINAPI PE 06-2025 Onerado'!F:F)),2) -> 45.49 | H50: =TRUNC(G50*(1+$H$5),2) -> 56.04 | I50: =TRUNC(F50*H50,2) -> 112.08
A52: 8 | D52: MANUTENÇÃO DOS EQUIPAMENTOS HIDROMECÂNICOS | I52: =SUM(I53,I55) -> 631.19
A53: 8.1 | D53: Troca do registro de gaveta, incluso registro DN 150 mm | I53: =SUM(I54) -> 105.13
A54: 8.1.1 | B54: PRÓPRIA | C54: CPU.16 | D54: =(VLOOKUP(C54,CPU!B36:C226,2,0)) -> Troca do registro de gaveta, incluso registro DN 150 mm | E54: =(VLOOKUP(C54,CPU!B36:D322,3,0)) -> un | F54: 1 | G54: =TRUNC((1-$H$9)*(SUMIFS(CPU!$G:$G,CPU!$A:$A,Brejo!$C54,CPU!$H:$H,"ss")+SUMIFS(CPU!$G:$G,CPU!$A:$A,Brejo!$C54,CPU!$H:$H,"mdo")+SUMIF('Comp SINAPI PE 06-2025 Onerado'!B:B,Brejo!C54,'Comp SINAPI PE 06-2025 Onerado'!E:E)+SUMIF('Ins SINAPI PE 06-2025 Onerado'!B:B,Brejo!C54,'Ins SINAPI PE 06-2025 Onerado'!F:F)),2) -> 85.33 | H54: =TRUNC(G54*(1+$H$5),2) -> 105.13 | I54: =TRUNC(F54*H54,2) -> 105.13
A55: 8.2 | D55: Restauração da tubulação | I55: =SUM(I56) -> 526.06
A56: 8.2.1 | B56: PRÓPRIA | C56: CPU.17 | D56: =(VLOOKUP(C56,CPU!B37:C227,2,0)) -> Pintura esmalte, incl. base anticorrosiva e lixamento, em duas demãos | E56: =(VLOOKUP(C56,CPU!B37:D323,3,0)) -> m2 | F56: 3.77 | G56: =TRUNC((1-$H$9)*(SUMIFS(CPU!$G:$G,CPU!$A:$A,Brejo!$C56,CPU!$H:$H,"ss")+SUMIFS(CPU!$G:$G,CPU!$A:$A,Brejo!$C56,CPU!$H:$H,"mdo")+SUMIF('Comp SINAPI PE 06-2025 Onerado'!B:B,Brejo!C56,'Comp SINAPI PE 06-2025 Onerado'!E:E)+SUMIF('Ins SINAPI PE 06-2025 Onerado'!B:B,Brejo!C56,'Ins SINAPI PE 06-2025 Onerado'!F:F)),2) -> 113.26 | H56: =TRUNC(G56*(1+$H$5),2) -> 139.54 | I56: =TRUNC(F56*H56,2) -> 526.06
A58: 9 | D58: CONSTRUÇÃO DE CAIXA DE CONCRETO PARA IMPLANTAÇÃO DA GRADE DE PROTEÇÃO DE PROTEÇÃO DO CONDUTO | I58: =SUM(I59) -> 2328.98
A59: 9.1 | D59: Construção de caixa de concreto para implantação da grande proteção do conduto | I59: =SUM(I60:I61) -> 2328.98
A60: 9.1.1 | B60: PRÓPRIA | C60: CPU.18 | D60: =(VLOOKUP(C60,CPU!B41:C231,2,0)) -> Caixa em concreto armado | E60: =(VLOOKUP(C60,CPU!B41:D327,3,0)) -> m3 | F60: 1 | G60: =TRUNC((1-$H$9)*(SUMIFS(CPU!$G:$G,CPU!$A:$A,Brejo!$C60,CPU!$H:$H,"ss")+SUMIFS(CPU!$G:$G,CPU!$A:$A,Brejo!$C60,CPU!$H:$H,"mdo")+SUMIF('Comp SINAPI PE 06-2025 Onerado'!B:B,Brejo!C60,'Comp SINAPI PE 06-2025 Onerado'!E:E)+SUMIF('Ins SINAPI PE 06-2025 Onerado'!B:B,Brejo!C60,'Ins SINAPI PE 06-2025 Onerado'!F:F)),2) -> 1433.47 | H60: =TRUNC(G60*(1+$H$5),2) -> 1766.17 | I60: =TRUNC(F60*H60,2) -> 1766.17
A61: 9.1.2 | B61: EMBASA | C61: 22.07.07 | D61: CONFECÇÃO E INSTALAÇÃO DE GRADE PARA RETENÇÃO DE SÓLIDOS GROSSEIROS EM AÇO GALVANIZADO A QUENTE, COM ESPAÇAMENTO ENTRE AS BARRAS DE 25 MM, BARRAS COM SECÇÃO DE 1.1/2 X 5/16 E BANDEJA COM RALO PARA RESÍDUOS. | E61: m2 | F61: 0.3 | G61: 1522.64 | H61: =TRUNC(G61*(1+$H$5),2) -> 1876.04 | I61: =TRUNC(F61*H61,2) -> 562.81
A63: 10 | D63: SERVIÇOS COMPLEMENTARES | I63: =SUM(I64,I66) -> 7220.36
A64: 10.1 | D64: Instalação de placas de aviso | I64: =SUM(I65:I65) -> 2306.76
A65: 10.1.1 | B65: SINAPI | C65: 103689 | D65: =IF(J65="ca",VLOOKUP(C65,'Comp SINAPI PE 06-2025 Onerado'!$B$11:$C$9004,2,0),VLOOKUP(C65,'Ins SINAPI PE 06-2025 Onerado'!$B$10:$C$9004,2,0)) -> FORNECIMENTO E INSTALAÇÃO DE PLACA DE OBRA COM CHAPA GALVANIZADA E ESTRUTURA DE MADEIRA. AF_03/2022_PS | E65: =IF(J65="ca",VLOOKUP(C65,'Comp SINAPI PE 06-2025 Onerado'!$B$11:$D$9004,3,0),VLOOKUP(C65,'Ins SINAPI PE 06-2025 Onerado'!$B$11:$D$9004,3,0)) -> M2 | F65: 4 | G65: =TRUNC((1-$H$9)*(SUMIFS(CPU!$G:$G,CPU!$A:$A,Brejo!$C65,CPU!$H:$H,"ss")+SUMIFS(CPU!$G:$G,CPU!$A:$A,Brejo!$C65,CPU!$H:$H,"mdo")+SUMIF('Comp SINAPI PE 06-2025 Onerado'!B:B,Brejo!C65,'Comp SINAPI PE 06-2025 Onerado'!E:E)+SUMIF('Ins SINAPI PE 06-2025 Onerado'!B:B,Brejo!C65,'Ins SINAPI PE 06-2025 Onerado'!F:F)),2) -> 468.06 | H65: =TRUNC(G65*(1+$H$5),2) -> 576.69 | I65: =TRUNC(F65*H65,2) -> 2306.76 | J65: ca
A66: 10.2 | D66: Régua Linimétrica Padrão “ANA”, Aço Carbono - 2 X 70 X 1000 mm (Fornecimento e Instalação) | I66: =SUM(I67:I67) -> 4913.6
A67: 10.2.1 | B67: PRÓPRIA | C67: CPU.08 | D67: =(VLOOKUP(C67,CPU!B45:C235,2,0)) -> Régua Linimétrica Padrão “ANA”, Aço Carbono - 2 X 70 X 1000 mm (Fornecimento e Instalação) | E67: un | F67: 10 | G67: =TRUNC((1-$H$9)*(SUMIFS(CPU!$G:$G,CPU!$A:$A,Brejo!$C67,CPU!$H:$H,"ss")+SUMIFS(CPU!$G:$G,CPU!$A:$A,Brejo!$C67,CPU!$H:$H,"mdo")+SUMIF('Comp SINAPI PE 06-2025 Onerado'!B:B,Brejo!C67,'Comp SINAPI PE 06-2025 Onerado'!E:E)+SUMIF('Ins SINAPI PE 06-2025 Onerado'!B:B,Brejo!C67,'Ins SINAPI PE 06-2025 Onerado'!F:F)),2) -> 398.8 | H67: =TRUNC(G67*(1+$H$5),2) -> 491.36 | I67: =TRUNC(F67*H67,2) -> 4913.6
A69: 11 | D69: PROJETO "AS IS" | I69: =SUM(I70) -> 12891.58
A70: 11.1 | D70: Levantamento topógrafico e "AS IS" | I70: =SUM(I71:I72) -> 12891.58
A71: 11.1.1 | B71: ORSE | C71: 9346 | D71: Levantamento topográfico planimétrico cadastral | E71: m2 | F71: =F26 -> 5341 | G71: =TRUNC(0.35*(1-$H$9),2) -> 0.35 | H71: =TRUNC(G71*(1+$H$5),2) -> 0.43 | I71: =TRUNC(F71*H71,2) -> 2296.63
A72: 11.1.2 | B72: PRÓPRIA | C72: CPU.11 | D72: =(VLOOKUP(C72,CPU!B50:C240,2,0)) -> Projeto geométrico | E72: un | F72: 1 | G72: =TRUNC((1-$H$9)*(SUMIFS(CPU!$G:$G,CPU!$A:$A,Brejo!$C72,CPU!$H:$H,"ss")+SUMIFS(CPU!$G:$G,CPU!$A:$A,Brejo!$C72,CPU!$H:$H,"mdo")+SUMIF('Comp SINAPI PE 06-2025 Onerado'!B:B,Brejo!C72,'Comp SINAPI PE 06-2025 Onerado'!E:E)+SUMIF('Ins SINAPI PE 06-2025 Onerado'!B:B,Brejo!C72,'Ins SINAPI PE 06-2025 Onerado'!F:F)),2) -> 8599.1 | H72: =TRUNC(G72*(1+$H$5),2) -> 10594.95 | I72: =TRUNC(F72*H72,2) -> 10594.95
A74: 12 | D74: FISCALIZAÇÃO E ACOMPANHAMENTO | I74: =SUM(I75) -> 1074.8
A75: 12.1 | D75: Disponibilidade de velículo para apoio a fiscalização | I75: =SUM(I76:I77) -> 1074.8
A76: 12.1.1 | B76: PRÓPRIA | C76: CPU.12 | D76: =(VLOOKUP(C76,CPU!B54:C244,2,0)) -> Disponibilidade de veículo para apoio a fiscalização, inclusive combustível | E76: un | F76: =F14+2 -> 5 | G76: =TRUNC((1-$H$9)*(SUMIFS(CPU!$G:$G,CPU!$A:$A,Brejo!$C76,CPU!$H:$H,"ss")+SUMIFS(CPU!$G:$G,CPU!$A:$A,Brejo!$C76,CPU!$H:$H,"mdo")+SUMIF('Comp SINAPI PE 06-2025 Onerado'!B:B,Brejo!C76,'Comp SINAPI PE 06-2025 Onerado'!E:E)+SUMIF('Ins SINAPI PE 06-2025 Onerado'!B:B,Brejo!C76,'Ins SINAPI PE 06-2025 Onerado'!F:F)),2) -> 174.47 | H76: =TRUNC(G76*(1+$H$5),2) -> 214.96 | I76: =TRUNC(F76*H76,2) -> 1074.8
D78: TOTAL (Custo): | I78: =TRUNC(SUMPRODUCT(F13:F77,G13:G77),2) -> 327504.36
D79: BDI e Encargos Sociais: | I79: =I80-I78 -> 75969.44
D80: TOTAL GERAL COM BDI: | I80: =SUM(I12,I16,I24,I29,I36,I41,I47,I52,I58,I63,I69,I74) -> 403473.8 | J80: =TRUNC(SUMPRODUCT(F13:F77,H13:H77),2) -> 403473.81 | K80: verificação

Sheet Boqueirão
A1: Ministério da Integração e do Desenvolvimento Regional
A2: Companhia de Desenvolvimento dos Vales do São Francisco e do Parnaíba
A4: PLANILHA ORÇAMENTÁRIA - ORÇAMENTO NÃO DESONERADO
A5: OBRA: | B5: =Resumo!B5 -> Execução de manutenção e obras civis nas barragens de Sitio Lambedor, Poço da Onça, Brejo, Boqueirão e Paus Grandes localizadas no estado de Pernambuco. | G5: BDI (serv.): | H5: ='BDI serv'!D23 -> 0.2321 | I5: Bancos de dados:
A6: LOCAL: | B6: =Resumo!B6 -> BARRAGENS DE PERNAMBUCO | G6: BDI (forn.): | H6: ='BDI forn'!D23 -> 0.1415 | I6: =Resumo!G6 -> JUN/25 - SINAPI
A7: DATA BASE: | B7: =Resumo!B7 -> 2025-07-01 | E7: Encargos sociais - Horistas: | H7: ='Encargos Sociais'!E48 -> 1.1384 | I7: =Resumo!G7 -> JAN/25 - EMBASA
A8: PRAZO: | B8: 90 dias | E8: Encargos sociais - Mensalista: | H8: ='Encargos Sociais'!F48 -> 0.7011 | I8: =Resumo!G8 -> ABR/2025 - SICRO
B9: =Resumo!B16 -> Boqueirão | G9: Desconto: | H9: 0
A10: ITEM | B10: REFERÊNCIA | D10: DESCRIÇÃO | E10: UNID. | F10: QUANT. | G10: CUSTO UNITÁRIO | H10: PREÇO UNITÁRIO | I10: PREÇO TOTAL
B11: FONTE | C11: CÓDIGO
A12: 1 | D12: ADMINISTRAÇÃO DA OBRA | I12: =SUM(I13) -> 107417.73
A13: 1.1 | D13: Administração da Obra | I13: =SUM(I14:I14) -> 107417.73
A14: 1.1.1 | B14: PRÓPRIA | C14: CPU.01 | D14: Administração Local | E14: mês | F14: 3 | G14: =TRUNC((1-$H$9)*(SUMIFS(CPU!$G:$G,CPU!$A:$A,Boqueirão!$C14,CPU!$H:$H,"ss")+SUMIFS(CPU!$G:$G,CPU!$A:$A,Boqueirão!$C14,CPU!$H:$H,"mdo")+SUMIF('Comp SINAPI PE 06-2025 Onerado'!B:B,Boqueirão!C14,'Comp SINAPI PE 06-2025 Onerado'!E:E)+SUMIF('Ins SINAPI PE 06-2025 Onerado'!B:B,Boqueirão!C14,'Ins SINAPI PE 06-2025 Onerado'!F:F)),2) -> 29060.88 | H14: =TRUNC(G14*(1+$H$5),2) -> 35805.91 | I14: =TRUNC(F14*H14,2) -> 107417.73
A16: 2 | D16: SERVIÇOS PRELIMINARES | I16: =SUM(I17,I19,I21) -> 30081.1
A17: 2.1 | D17: Mobilização e desmobilização | I17: =SUM(I18) -> 2987.59
A18: 2.1.1 | B18: PRÓPRIA | C18: CPU.02 | D18: Mobilização e desmobilização de instalação do canteiro | E18: un | F18: 1 | G18: =TRUNC((1-$H$9)*(SUMIFS(CPU!$G:$G,CPU!$A:$A,Boqueirão!$C18,CPU!$H:$H,"ss")+SUMIFS(CPU!$G:$G,CPU!$A:$A,Boqueirão!$C18,CPU!$H:$H,"mdo")+SUMIF('Comp SINAPI PE 06-2025 Onerado'!B:B,Boqueirão!C18,'Comp SINAPI PE 06-2025 Onerado'!E:E)+SUMIF('Ins SINAPI PE 06-2025 Onerado'!B:B,Boqueirão!C18,'Ins SINAPI PE 06-2025 Onerado'!F:F)),2) -> 2424.8 | H18: =TRUNC(G18*(1+$H$5),2) -> 2987.59 | I18: =TRUNC(F18*H18,2) -> 2987.59
A19: 2.2 | D19: Canteiro de obras | I19: =SUM(I20) -> 25940.13
A20: 2.2.1 | B20: PRÓPRIA | C20: CPU.03 | D20: Execução de canteiro de obras, inclusive, limpeza, refeitório, sanitários e central de formas | E20: m2 | F20: 28.5 | G20: =TRUNC((1-$H$9)*(SUMIFS(CPU!$G:$G,CPU!$A:$A,Boqueirão!$C20,CPU!$H:$H,"ss")+SUMIFS(CPU!$G:$G,CPU!$A:$A,Boqueirão!$C20,CPU!$H:$H,"mdo")+SUMIF('Comp SINAPI PE 06-2025 Onerado'!B:B,Boqueirão!C20,'Comp SINAPI PE 06-2025 Onerado'!E:E)+SUMIF('Ins SINAPI PE 06-2025 Onerado'!B:B,Boqueirão!C20,'Ins SINAPI PE 06-2025 Onerado'!F:F)),2) -> 738.73 | H20: =TRUNC(G20*(1+$H$5),2) -> 910.18 | I20: =TRUNC(F20*H20,2) -> 25940.13
A21: 2.3 | D21: Sinalização | I21: =SUM(I22:I22) -> 1153.38
A22: 2.3.1 | B22: SINAPI | C22: 103689 | D22: =IF(J22="ca",VLOOKUP(C22,'Comp SINAPI PE 06-2025 Onerado'!$B$11:$C$9004,2,0),VLOOKUP(C22,'Ins SINAPI PE 06-2025 Onerado'!$B$10:$C$9004,2,0)) -> FORNECIMENTO E INSTALAÇÃO DE PLACA DE OBRA COM CHAPA GALVANIZADA E ESTRUTURA DE MADEIRA. AF_03/2022_PS | E22: =IF(J22="ca",VLOOKUP(C22,'Comp SINAPI PE 06-2025 Onerado'!$B$11:$D$9004,3,0),VLOOKUP(C22,'Ins SINAPI PE 06-2025 Onerado'!$B$11:$D$9004,3,0)) -> M2 | F22: 2 | G22: =TRUNC((1-$H$9)*(SUMIFS(CPU!$G:$G,CPU!$A:$A,Boqueirão!$C22,CPU!$H:$H,"ss")+SUMIFS(CPU!$G:$G,CPU!$A:$A,Boqueirão!$C22,CPU!$H:$H,"mdo")+SUMIF('Comp SINAPI PE 06-2025 Onerado'!B:B,Boqueirão!C22,'Comp SINAPI PE 06-2025 Onerado'!E:E)+SUMIF('Ins SINAPI PE 06-2025 Onerado'!B:B,Boqueirão!C22,'Ins SINAPI PE 06-2025 Onerado'!F:F)),2) -> 468.06 | H22: =TRUNC(G22*(1+$H$5),2) -> 576.69 | I22: =TRUNC(F22*H22,2) -> 1153.38 | J22: ca
A24: 3 | D24: CORTE DA VEGETAÇÃO E REMOÇÃO DAS RAIZES | I24: =SUM(I25) -> 85059.12
A25: 3.1 | D25: Remoção da vegetação | I25: =SUM(I26:I27) -> 85059.12
A26: 3.1.1 | B26: PRÓPRIA | C26: CPU.04 | D26: Limpeza de vegetação | E26: =(VLOOKUP(C26,CPU!B2:D$306,3,0)) -> m2 | F26: 6728 | G26: =TRUNC((1-$H$9)*(SUMIFS(CPU!$G:$G,CPU!$A:$A,Boqueirão!$C26,CPU!$H:$H,"ss")+SUMIFS(CPU!$G:$G,CPU!$A:$A,Boqueirão!$C26,CPU!$H:$H,"mdo")+SUMIF('Comp SINAPI PE 06-2025 Onerado'!B:B,Boqueirão!C26,'Comp SINAPI PE 06-2025 Onerado'!E:E)+SUMIF('Ins SINAPI PE 06-2025 Onerado'!B:B,Boqueirão!C26,'Ins SINAPI PE 06-2025 Onerado'!F:F)),2) -> 7.87 | H26: =TRUNC(G26*(1+$H$5),2) -> 9.69 | I26: =TRUNC(F26*H26,2) -> 65194.32
A27: 3.1.2 | B27: PRÓPRIA | C27: CPU.05 | D27: Corte de tronco e remoção de raiz | E27: =(VLOOKUP(C27,CPU!B3:D$306,3,0)) -> un | F27: 40 | G27: =TRUNC((1-$H$9)*(SUMIFS(CPU!$G:$G,CPU!$A:$A,Boqueirão!$C27,CPU!$H:$H,"ss")+SUMIFS(CPU!$G:$G,CPU!$A:$A,Boqueirão!$C27,CPU!$H:$H,"mdo")+SUMIF('Comp SINAPI PE 06-2025 Onerado'!B:B,Boqueirão!C27,'Comp SINAPI PE 06-2025 Onerado'!E:E)+SUMIF('Ins SINAPI PE 06-2025 Onerado'!B:B,Boqueirão!C27,'Ins SINAPI PE 06-2025 Onerado'!F:F)),2) -> 403.07 | H27: =TRUNC(G27*(1+$H$5),2) -> 496.62 | I27: =TRUNC(F27*H27,2) -> 19864.8
A29: 4 | D29: RECUPERAÇÃO DA CRISTA | I29: =SUM(I30) -> 1977.36
A30: 4.1 | D30: Crista | I30: =SUM(I31:I32) -> 1977.36
A31: 4.1.1 | B31: PRÓPRIA | C31: CPU.10 | D31: =(VLOOKUP(C31,CPU!B11:C201,2,0)) -> Limpeza da superfície | E31: =(VLOOKUP(C31,CPU!B11:D201,3,0)) -> m2 | F31: 192 | G31: =TRUNC((1-$H$9)*(SUMIFS(CPU!$G:$G,CPU!$A:$A,Boqueirão!$C31,CPU!$H:$H,"ss")+SUMIFS(CPU!$G:$G,CPU!$A:$A,Boqueirão!$C31,CPU!$H:$H,"mdo")+SUMIF('Comp SINAPI PE 06-2025 Onerado'!B:B,Boqueirão!C31,'Comp SINAPI PE 06-2025 Onerado'!E:E)+SUMIF('Ins SINAPI PE 06-2025 Onerado'!B:B,Boqueirão!C31,'Ins SINAPI PE 06-2025 Onerado'!F:F)),2) -> 5.99 | H31: =TRUNC(G31*(1+$H$5),2) -> 7.38 | I31: =TRUNC(F31*H31,2) -> 1416.96
A32: 4.1.2 | B32: PRÓPRIA | C32: CPU.13 | D32: =(VLOOKUP(C32,CPU!B12:C202,2,0)) -> Selagem de fissuras com resina epóxi | E32: =(VLOOKUP(C32,CPU!B12:D202,3,0)) -> m | F32: 10 | G32: =TRUNC((1-$H$9)*(SUMIFS(CPU!$G:$G,CPU!$A:$A,Boqueirão!$C32,CPU!$H:$H,"ss")+SUMIFS(CPU!$G:$G,CPU!$A:$A,Boqueirão!$C32,CPU!$H:$H,"mdo")+SUMIF('Comp SINAPI PE 06-2025 Onerado'!B:B,Boqueirão!C32,'Comp SINAPI PE 06-2025 Onerado'!E:E)+SUMIF('Ins SINAPI PE 06-2025 Onerado'!B:B,Boqueirão!C32,'Ins SINAPI PE 06-2025 Onerado'!F:F)),2) -> 45.49 | H32: =TRUNC(G32*(1+$H$5),2) -> 56.04 | I32: =TRUNC(F32*H32,2) -> 560.4
A34: 5 | D34: MANUTENÇÃO NO PARAMENTO DE MONTANTE | I34: =SUM(I35) -> 2461.47
A35: 5.1 | D35: Paramento de Montante | I35: =SUM(I36:I37) -> 2461.47
A36: 5.1.1 | B36: PRÓPRIA | C36: CPU.10 | D36: =(VLOOKUP(C36,CPU!B19:C209,2,0)) -> Limpeza da superfície | E36: =(VLOOKUP(C36,CPU!B19:D209,3,0)) -> m2 | F36: 50 | G36: =TRUNC((1-$H$9)*(SUMIFS(CPU!$G:$G,CPU!$A:$A,Boqueirão!$C36,CPU!$H:$H,"ss")+SUMIFS(CPU!$G:$G,CPU!$A:$A,Boqueirão!$C36,CPU!$H:$H,"mdo")+SUMIF('Comp SINAPI PE 06-2025 Onerado'!B:B,Boqueirão!C36,'Comp SINAPI PE 06-2025 Onerado'!E:E)+SUMIF('Ins SINAPI PE 06-2025 Onerado'!B:B,Boqueirão!C36,'Ins SINAPI PE 06-2025 Onerado'!F:F)),2) -> 5.99 | H36: =TRUNC(G36*(1+$H$5),2) -> 7.38 | I36: =TRUNC(F36*H36,2) -> 369
A37: 5.1.2 | B37: PRÓPRIA | C37: CPU.14 | D37: =(VLOOKUP(C37,CPU!B20:C210,2,0)) -> Concreto projetado c/ aditivo impermeabilizante | E37: =(VLOOKUP(C37,CPU!B20:D210,3,0)) -> m3 | F37: 1 | G37: =TRUNC((1-$H$9)*(SUMIFS(CPU!$G:$G,CPU!$A:$A,Boqueirão!$C37,CPU!$H:$H,"ss")+SUMIFS(CPU!$G:$G,CPU!$A:$A,Boqueirão!$C37,CPU!$H:$H,"mdo")+SUMIF('Comp SINAPI PE 06-2025 Onerado'!B:B,Boqueirão!C37,'Comp SINAPI PE 06-2025 Onerado'!E:E)+SUMIF('Ins SINAPI PE 06-2025 Onerado'!B:B,Boqueirão!C37,'Ins SINAPI PE 06-2025 Onerado'!F:F)),2) -> 1698.3 | H37: =TRUNC(G37*(1+$H$5),2) -> 2092.47 | I37: =TRUNC(F37*H37,2) -> 2092.47
A39: 6 | D39: MANUTENÇÃO DO PARAMENTO DE JUSANTE | I39: =SUM(I40) -> 6935.64
A40: 6.1 | D40: Paramento de Jusante | I40: =SUM(I41:I43) -> 6935.64
A41: 6.1.1 | B41: PRÓPRIA | C41: CPU.10 | D41: =(VLOOKUP(C41,CPU!B26:C216,2,0)) -> Limpeza da superfície | E41: =(VLOOKUP(C41,CPU!B26:D304,3,0)) -> m2 | F41: 555 | G41: =TRUNC((1-$H$9)*(SUMIFS(CPU!$G:$G,CPU!$A:$A,Boqueirão!$C41,CPU!$H:$H,"ss")+SUMIFS(CPU!$G:$G,CPU!$A:$A,Boqueirão!$C41,CPU!$H:$H,"mdo")+SUMIF('Comp SINAPI PE 06-2025 Onerado'!B:B,Boqueirão!C41,'Comp SINAPI PE 06-2025 Onerado'!E:E)+SUMIF('Ins SINAPI PE 06-2025 Onerado'!B:B,Boqueirão!C41,'Ins SINAPI PE 06-2025 Onerado'!F:F)),2) -> 5.99 | H41: =TRUNC(G41*(1+$H$5),2) -> 7.38 | I41: =TRUNC(F41*H41,2) -> 4095.9
A42: 6.1.2 | B42: PRÓPRIA | C42: CPU.13 | D42: =(VLOOKUP(C42,CPU!B27:C217,2,0)) -> Selagem de fissuras com resina epóxi | E42: =(VLOOKUP(C42,CPU!B27:D305,3,0)) -> m | F42: 15 | G42: =TRUNC((1-$H$9)*(SUMIFS(CPU!$G:$G,CPU!$A:$A,Boqueirão!$C42,CPU!$H:$H,"ss")+SUMIFS(CPU!$G:$G,CPU!$A:$A,Boqueirão!$C42,CPU!$H:$H,"mdo")+SUMIF('Comp SINAPI PE 06-2025 Onerado'!B:B,Boqueirão!C42,'Comp SINAPI PE 06-2025 Onerado'!E:E)+SUMIF('Ins SINAPI PE 06-2025 Onerado'!B:B,Boqueirão!C42,'Ins SINAPI PE 06-2025 Onerado'!F:F)),2) -> 45.49 | H42: =TRUNC(G42*(1+$H$5),2) -> 56.04 | I42: =TRUNC(F42*H42,2) -> 840.6
A43: 6.1.3 | B43: PRÓPRIA | C43: CPU.07 | D43: =(VLOOKUP(C43,CPU!B28:C218,2,0)) -> Restauração com uso de concreto | E43: =(VLOOKUP(C43,CPU!B28:D306,3,0)) -> m3 | F43: 1 | G43: =TRUNC((1-$H$9)*(SUMIFS(CPU!$G:$G,CPU!$A:$A,Boqueirão!$C43,CPU!$H:$H,"ss")+SUMIFS(CPU!$G:$G,CPU!$A:$A,Boqueirão!$C43,CPU!$H:$H,"mdo")+SUMIF('Comp SINAPI PE 06-2025 Onerado'!B:B,Boqueirão!C43,'Comp SINAPI PE 06-2025 Onerado'!E:E)+SUMIF('Ins SINAPI PE 06-2025 Onerado'!B:B,Boqueirão!C43,'Ins SINAPI PE 06-2025 Onerado'!F:F)),2) -> 1622.55 | H43: =TRUNC(G43*(1+$H$5),2) -> 1999.14 | I43: =TRUNC(F43*H43,2) -> 1999.14
A45: 7 | D45: RESTAURAÇÃO DOS MUROS LATERAIS | I45: =SUM(I46) -> 36210.2
A46: 7.1 | D46: Muros laterais | I46: =SUM(I47:I48) -> 36210.2
A47: 7.1.1 | B47: PRÓPRIA | C47: CPU.10 | D47: =(VLOOKUP(C47,CPU!B31:C221,2,0)) -> Limpeza da superfície | E47: =(VLOOKUP(C47,CPU!B31:D317,3,0)) -> m2 | F47: 260 | G47: =TRUNC((1-$H$9)*(SUMIFS(CPU!$G:$G,CPU!$A:$A,Boqueirão!$C47,CPU!$H:$H,"ss")+SUMIFS(CPU!$G:$G,CPU!$A:$A,Boqueirão!$C47,CPU!$H:$H,"mdo")+SUMIF('Comp SINAPI PE 06-2025 Onerado'!B:B,Boqueirão!C47,'Comp SINAPI PE 06-2025 Onerado'!E:E)+SUMIF('Ins SINAPI PE 06-2025 Onerado'!B:B,Boqueirão!C47,'Ins SINAPI PE 06-2025 Onerado'!F:F)),2) -> 5.99 | H47: =TRUNC(G47*(1+$H$5),2) -> 7.38 | I47: =TRUNC(F47*H47,2) -> 1918.8
A48: 7.1.2 | B48: PRÓPRIA | C48: CPU.09 | D48: =(VLOOKUP(C48,CPU!B32:C222,2,0)) -> Emboço ou massa única em argamassa | E48: =(VLOOKUP(C48,CPU!B32:D318,3,0)) -> m2 | F48: 260 | G48: =TRUNC((1-$H$9)*(SUMIFS(CPU!$G:$G,CPU!$A:$A,Boqueirão!$C48,CPU!$H:$H,"ss")+SUMIFS(CPU!$G:$G,CPU!$A:$A,Boqueirão!$C48,CPU!$H:$H,"mdo")+SUMIF('Comp SINAPI PE 06-2025 Onerado'!B:B,Boqueirão!C48,'Comp SINAPI PE 06-2025 Onerado'!E:E)+SUMIF('Ins SINAPI PE 06-2025 Onerado'!B:B,Boqueirão!C48,'Ins SINAPI PE 06-2025 Onerado'!F:F)),2) -> 107.05 | H48: =TRUNC(G48*(1+$H$5),2) -> 131.89 | I48: =TRUNC(F48*H48,2) -> 34291.4
A50: 8 | D50: SERVIÇOS COMPLEMENTARES | I50: =SUM(I51,I53) -> 4763.56
A51: 8.1 | D51: Instalação de placas de aviso | I51: =SUM(I52:I52) -> 2306.76
A52: 8.1.1 | B52: SINAPI | C52: 103689 | D52: =IF(J52="ca",VLOOKUP(C52,'Comp SINAPI PE 06-2025 Onerado'!$B$11:$C$9004,2,0),VLOOKUP(C52,'Ins SINAPI PE 06-2025 Onerado'!$B$10:$C$9004,2,0)) -> FORNECIMENTO E INSTALAÇÃO DE PLACA DE OBRA COM CHAPA GALVANIZADA E ESTRUTURA DE MADEIRA. AF_03/2022_PS | E52: =IF(J52="ca",VLOOKUP(C52,'Comp SINAPI PE 06-2025 Onerado'!$B$11:$D$9004,3,0),VLOOKUP(C52,'Ins SINAPI PE 06-2025 Onerado'!$B$11:$D$9004,3,0)) -> M2 | F52: 4 | G52: =TRUNC((1-$H$9)*(SUMIFS(CPU!$G:$G,CPU!$A:$A,Boqueirão!$C52,CPU!$H:$H,"ss")+SUMIFS(CPU!$G:$G,CPU!$A:$A,Boqueirão!$C52,CPU!$H:$H,"mdo")+SUMIF('Comp SINAPI PE 06-2025 Onerado'!B:B,Boqueirão!C52,'Comp SINAPI PE 06-2025 Onerado'!E:E)+SUMIF('Ins SINAPI PE 06-2025 Onerado'!B:B,Boqueirão!C52,'Ins SINAPI PE 06-2025 Onerado'!F:F)),2) -> 468.06 | H52: =TRUNC(G52*(1+$H$5),2) -> 576.69 | I52: =TRUNC(F52*H52,2) -> 2306.76 | J52: ca
A53: 8.2 | D53: Régua Linimétrica Padrão “ANA”, Aço Carbono - 2 X 70 X 1000 mm (Fornecimento e Instalação) | I53: =SUM(I54:I54) -> 2456.8
A54: 8.2.1 | B54: PRÓPRIA | C54: CPU.08 | D54: =(VLOOKUP(C54,CPU!B45:C235,2,0)) -> Régua Linimétrica Padrão “ANA”, Aço Carbono - 2 X 70 X 1000 mm (Fornecimento e Instalação) | E54: un | F54: 5 | G54: =TRUNC((1-$H$9)*(SUMIFS(CPU!$G:$G,CPU!$A:$A,Boqueirão!$C54,CPU!$H:$H,"ss")+SUMIFS(CPU!$G:$G,CPU!$A:$A,Boqueirão!$C54,CPU!$H:$H,"mdo")+SUMIF('Comp SINAPI PE 06-2025 Onerado'!B:B,Boqueirão!C54,'Comp SINAPI PE 06-2025 Onerado'!E:E)+SUMIF('Ins SINAPI PE 06-2025 Onerado'!B:B,Boqueirão!C54,'Ins SINAPI PE 06-2025 Onerado'!F:F)),2) -> 398.8 | H54: =TRUNC(G54*(1+$H$5),2) -> 491.36 | I54: =TRUNC(F54*H54,2) -> 2456.8
A56: 9 | D56: PROJETO "AS IS" | I56: =SUM(I57) -> 13487.99
A57: 9.1 | D57: Levantamento topógrafico e "AS IS" | I57: =SUM(I58:I59) -> 13487.99
A58: 9.1.1 | B58: ORSE | C58: 9346 | D58: Levantamento topográfico planimétrico cadastral | E58: m2 | F58: =F26 -> 6728 | G58: =TRUNC(0.35*(1-$H$9),2) -> 0.35 | H58: =TRUNC(G58*(1+$H$5),2) -> 0.43 | I58: =TRUNC(F58*H58,2) -> 2893.04
A59: 9.1.2 | B59: PRÓPRIA | C59: CPU.11 | D59: =(VLOOKUP(C59,CPU!B50:C240,2,0)) -> Projeto geométrico | E59: un | F59: 1 | G59: =TRUNC((1-$H$9)*(SUMIFS(CPU!$G:$G,CPU!$A:$A,Boqueirão!$C59,CPU!$H:$H,"ss")+SUMIFS(CPU!$G:$G,CPU!$A:$A,Boqueirão!$C59,CPU!$H:$H,"mdo")+SUMIF('Comp SINAPI PE 06-2025 Onerado'!B:B,Boqueirão!C59,'Comp SINAPI PE 06-2025 Onerado'!E:E)+SUMIF('Ins SINAPI PE 06-2025 Onerado'!B:B,Boqueirão!C59,'Ins SINAPI PE 06-2025 Onerado'!F:F)),2) -> 8599.1 | H59: =TRUNC(G59*(1+$H$5),2) -> 10594.95 | I59: =TRUNC(F59*H59,2) -> 10594.95
A61: 10 | D61: FISCALIZAÇÃO E ACOMPANHAMENTO | I61: =SUM(I62) -> 1074.8
A62: 10.1 | D62: Disponibilidade de velículo para apoio a fiscalização | I62: =SUM(I63:I64) -> 1074.8
A63: 10.1.1 | B63: PRÓPRIA | C63: CPU.12 | D63: =(VLOOKUP(C63,CPU!B54:C244,2,0)) -> Disponibilidade de veículo para apoio a fiscalização, inclusive combustível | E63: un | F63: =F14+2 -> 5 | G63: =TRUNC((1-$H$9)*(SUMIFS(CPU!$G:$G,CPU!$A:$A,Boqueirão!$C63,CPU!$H:$H,"ss")+SUMIFS(CPU!$G:$G,CPU!$A:$A,Boqueirão!$C63,CPU!$H:$H,"mdo")+SUMIF('Comp SINAPI PE 06-2025 Onerado'!B:B,Boqueirão!C63,'Comp SINAPI PE 06-2025 Onerado'!E:E)+SUMIF('Ins SINAPI PE 06-2025 Onerado'!B:B,Boqueirão!C63,'Ins SINAPI PE 06-2025 Onerado'!F:F)),2) -> 174.47 | H63: =TRUNC(G63*(1+$H$5),2) -> 214.96 | I63: =TRUNC(F63*H63,2) -> 1074.8
D65: TOTAL (Custo): | I65: =TRUNC(SUMPRODUCT(F13:F64,G13:G64),2) -> 234984.54
D66: BDI e Encargos Sociais: | I66: =I67-I65 -> 54484.43
D67: TOTAL GERAL COM BDI: | I67: =SUM(I12,I16,I24,I29,I34,I39,I45,I50,I56,I61) -> 289468.97 | J67: =TRUNC(SUMPRODUCT(F13:F64,H13:H64),2) -> 289468.97 | K67: verificação

Sheet Paus Grandes
A1: Ministério da Integração e do Desenvolvimento Regional
A2: Companhia de Desenvolvimento dos Vales do São Francisco e do Parnaíba
A4: PLANILHA ORÇAMENTÁRIA - ORÇAMENTO NÃO DESONERADO
A5: OBRA: | B5: =Resumo!B5 -> Execução de manutenção e obras civis nas barragens de Sitio Lambedor, Poço da Onça, Brejo, Boqueirão e Paus Grandes localizadas no estado de Pernambuco. | G5: BDI (serv.): | H5: ='BDI serv'!D23 -> 0.2321 | I5: Bancos de dados:
A6: LOCAL: | B6: =Resumo!B6 -> BARRAGENS DE PERNAMBUCO | G6: BDI (forn.): | H6: ='BDI forn'!D23 -> 0.1415 | I6: =Resumo!G6 -> JUN/25 - SINAPI
A7: DATA BASE: | B7: =Resumo!B7 -> 2025-07-01 | E7: Encargos sociais - Horistas: | H7: ='Encargos Sociais'!E48 -> 1.1384 | I7: =Resumo!G7 -> JAN/25 - EMBASA
A8: PRAZO: | B8: 60 dias | E8: Encargos sociais - Mensalista: | H8: ='Encargos Sociais'!F48 -> 0.7011 | I8: =Resumo!G8 -> ABR/2025 - SICRO
B9: =Resumo!B17 -> Paus Grandes | G9: Desconto: | H9: 0
A10: ITEM | B10: REFERÊNCIA | D10: DESCRIÇÃO | E10: UNID. | F10: QUANT. | G10: CUSTO UNITÁRIO | H10: PREÇO UNITÁRIO | I10: PREÇO TOTAL
B11: FONTE | C11: CÓDIGO
A12: 1 | D12: ADMINISTRAÇÃO DA OBRA | I12: =SUM(I13) -> 71611.82
A13: 1.1 | D13: Administração da Obra | I13: =SUM(I14:I14) -> 71611.82
A14: 1.1.1 | B14: PRÓPRIA | C14: CPU.01 | D14: Administração Local | E14: mês | F14: 2 | G14: =TRUNC((1-$H$9)*(SUMIFS(CPU!$G:$G,CPU!$A:$A,'Paus Grandes'!$C14,CPU!$H:$H,"ss")+SUMIFS(CPU!$G:$G,CPU!$A:$A,'Paus Grandes'!$C14,CPU!$H:$H,"mdo")+SUMIF('Comp SINAPI PE 06-2025 Onerado'!B:B,'Paus Grandes'!C14,'Comp SINAPI PE 06-2025 Onerado'!E:E)+SUMIF('Ins SINAPI PE 06-2025 Onerado'!B:B,'Paus Grandes'!C14,'Ins SINAPI PE 06-2025 Onerado'!F:F)),2) -> 29060.88 | H14: =TRUNC(G14*(1+$H$5),2) -> 35805.91 | I14: =TRUNC(F14*H14,2) -> 71611.82
A16: 2 | D16: SERVIÇOS PRELIMINARES | I16: =SUM(I17,I19,I21) -> 30081.1
A17: 2.1 | D17: Mobilização e desmobilização | I17: =SUM(I18) -> 2987.59
A18: 2.1.1 | B18: PRÓPRIA | C18: CPU.02 | D18: Mobilização e desmobilização de instalação do canteiro | E18: un | F18: 1 | G18: =TRUNC((1-$H$9)*(SUMIFS(CPU!$G:$G,CPU!$A:$A,'Paus Grandes'!$C18,CPU!$H:$H,"ss")+SUMIFS(CPU!$G:$G,CPU!$A:$A,'Paus Grandes'!$C18,CPU!$H:$H,"mdo")+SUMIF('Comp SINAPI PE 06-2025 Onerado'!B:B,'Paus Grandes'!C18,'Comp SINAPI PE 06-2025 Onerado'!E:E)+SUMIF('Ins SINAPI PE 06-2025 Onerado'!B:B,'Paus Grandes'!C18,'Ins SINAPI PE 06-2025 Onerado'!F:F)),2) -> 2424.8 | H18: =TRUNC(G18*(1+$H$5),2) -> 2987.59 | I18: =TRUNC(F18*H18,2) -> 2987.59
A19: 2.2 | D19: Canteiro de obras | I19: =SUM(I20) -> 25940.13
A20: 2.2.1 | B20: PRÓPRIA | C20: CPU.03 | D20: Execução de canteiro de obras, inclusive, limpeza, refeitório, sanitários e central de formas | E20: m2 | F20: 28.5 | G20: =TRUNC((1-$H$9)*(SUMIFS(CPU!$G:$G,CPU!$A:$A,'Paus Grandes'!$C20,CPU!$H:$H,"ss")+SUMIFS(CPU!$G:$G,CPU!$A:$A,'Paus Grandes'!$C20,CPU!$H:$H,"mdo")+SUMIF('Comp SINAPI PE 06-2025 Onerado'!B:B,'Paus Grandes'!C20,'Comp SINAPI PE 06-2025 Onerado'!E:E)+SUMIF('Ins SINAPI PE 06-2025 Onerado'!B:B,'Paus Grandes'!C20,'Ins SINAPI PE 06-2025 Onerado'!F:F)),2) -> 738.73 | H20: =TRUNC(G20*(1+$H$5),2) -> 910.18 | I20: =TRUNC(F20*H20,2) -> 25940.13
A21: 2.3 | D21: Sinalização | I21: =SUM(I22:I22) -> 1153.38
A22: 2.3.1 | B22: SINAPI | C22: 103689 | D22: =IF(J22="ca",VLOOKUP(C22,'Comp SINAPI PE 06-2025 Onerado'!$B$11:$C$9004,2,0),VLOOKUP(C22,'Ins SINAPI PE 06-2025 Onerado'!$B$10:$C$9004,2,0)) -> FORNECIMENTO E INSTALAÇÃO DE PLACA DE OBRA COM CHAPA GALVANIZADA E ESTRUTURA DE MADEIRA. AF_03/2022_PS | E22: =IF(J22="ca",VLOOKUP(C22,'Comp SINAPI PE 06-2025 Onerado'!$B$11:$D$9004,3,0),VLOOKUP(C22,'Ins SINAPI PE 06-2025 Onerado'!$B$11:$D$9004,3,0)) -> M2 | F22: 2 | G22: =TRUNC((1-$H$9)*(SUMIFS(CPU!$G:$G,CPU!$A:$A,'Paus Grandes'!$C22,CPU!$H:$H,"ss")+SUMIFS(CPU!$G:$G,CPU!$A:$A,'Paus Grandes'!$C22,CPU!$H:$H,"mdo")+SUMIF('Comp SINAPI PE 06-2025 Onerado'!B:B,'Paus Grandes'!C22,'Comp SINAPI PE 06-2025 Onerado'!E:E)+SUMIF('Ins SINAPI PE 06-2025 Onerado'!B:B,'Paus Grandes'!C22,'Ins SINAPI PE 06-2025 Onerado'!F:F)),2) -> 468.06 | H22: =TRUNC(G22*(1+$H$5),2) -> 576.69 | I22: =TRUNC(F22*H22,2) -> 1153.38 | J22: ca
A24: 3 | D24: CORTE DA VEGETAÇÃO E REMOÇÃO DAS RAIZES | I24: =SUM(I25) -> 21308.46
A25: 3.1 | D25: Remoção da vegetação | I25: =SUM(I26:I27) -> 21308.46
A26: 3.1.1 | B26: PRÓPRIA | C26: CPU.04 | D26: Limpeza de vegetação | E26: =(VLOOKUP(C26,CPU!B2:D$306,3,0)) -> m2 | F26: 1174 | G26: =TRUNC((1-$H$9)*(SUMIFS(CPU!$G:$G,CPU!$A:$A,'Paus Grandes'!$C26,CPU!$H:$H,"ss")+SUMIFS(CPU!$G:$G,CPU!$A:$A,'Paus Grandes'!$C26,CPU!$H:$H,"mdo")+SUMIF('Comp SINAPI PE 06-2025 Onerado'!B:B,'Paus Grandes'!C26,'Comp SINAPI PE 06-2025 Onerado'!E:E)+SUMIF('Ins SINAPI PE 06-2025 Onerado'!B:B,'Paus Grandes'!C26,'Ins SINAPI PE 06-2025 Onerado'!F:F)),2) -> 7.87 | H26: =TRUNC(G26*(1+$H$5),2) -> 9.69 | I26: =TRUNC(F26*H26,2) -> 11376.06
A27: 3.1.2 | B27: PRÓPRIA | C27: CPU.05 | D27: Corte de tronco e remoção de raiz | E27: =(VLOOKUP(C27,CPU!B3:D$306,3,0)) -> un | F27: 20 | G27: =TRUNC((1-$H$9)*(SUMIFS(CPU!$G:$G,CPU!$A:$A,'Paus Grandes'!$C27,CPU!$H:$H,"ss")+SUMIFS(CPU!$G:$G,CPU!$A:$A,'Paus Grandes'!$C27,CPU!$H:$H,"mdo")+SUMIF('Comp SINAPI PE 06-2025 Onerado'!B:B,'Paus Grandes'!C27,'Comp SINAPI PE 06-2025 Onerado'!E:E)+SUMIF('Ins SINAPI PE 06-2025 Onerado'!B:B,'Paus Grandes'!C27,'Ins SINAPI PE 06-2025 Onerado'!F:F)),2) -> 403.07 | H27: =TRUNC(G27*(1+$H$5),2) -> 496.62 | I27: =TRUNC(F27*H27,2) -> 9932.4
A29: 4 | D29: RECUPERAÇÃO DA CRISTA | I29: =SUM(I30) -> 1090.94
A30: 4.1 | D30: Crista | I30: =SUM(I31:I33) -> 1090.94
A31: 4.1.1 | B31: PRÓPRIA | C31: CPU.10 | D31: =(VLOOKUP(C31,CPU!B11:C201,2,0)) -> Limpeza da superfície | E31: =(VLOOKUP(C31,CPU!B11:D201,3,0)) -> m2 | F31: 20.5 | G31: =TRUNC((1-$H$9)*(SUMIFS(CPU!$G:$G,CPU!$A:$A,'Paus Grandes'!$C31,CPU!$H:$H,"ss")+SUMIFS(CPU!$G:$G,CPU!$A:$A,'Paus Grandes'!$C31,CPU!$H:$H,"mdo")+SUMIF('Comp SINAPI PE 06-2025 Onerado'!B:B,'Paus Grandes'!C31,'Comp SINAPI PE 06-2025 Onerado'!E:E)+SUMIF('Ins SINAPI PE 06-2025 Onerado'!B:B,'Paus Grandes'!C31,'Ins SINAPI PE 06-2025 Onerado'!F:F)),2) -> 5.99 | H31: =TRUNC(G31*(1+$H$5),2) -> 7.38 | I31: =TRUNC(F31*H31,2) -> 151.29
A32: 4.1.2 | B32: PRÓPRIA | C32: CPU.13 | D32: =(VLOOKUP(C32,CPU!B12:C202,2,0)) -> Selagem de fissuras com resina epóxi | E32: =(VLOOKUP(C32,CPU!B12:D202,3,0)) -> m | F32: 5 | G32: =TRUNC((1-$H$9)*(SUMIFS(CPU!$G:$G,CPU!$A:$A,'Paus Grandes'!$C32,CPU!$H:$H,"ss")+SUMIFS(CPU!$G:$G,CPU!$A:$A,'Paus Grandes'!$C32,CPU!$H:$H,"mdo")+SUMIF('Comp SINAPI PE 06-2025 Onerado'!B:B,'Paus Grandes'!C32,'Comp SINAPI PE 06-2025 Onerado'!E:E)+SUMIF('Ins SINAPI PE 06-2025 Onerado'!B:B,'Paus Grandes'!C32,'Ins SINAPI PE 06-2025 Onerado'!F:F)),2) -> 45.49 | H32: =TRUNC(G32*(1+$H$5),2) -> 56.04 | I32: =TRUNC(F32*H32,2) -> 280.2
A33: 4.1.3 | B33: PRÓPRIA | C33: CPU.09 | D33: =(VLOOKUP(C33,CPU!B13:C203,2,0)) -> Emboço ou massa única em argamassa | E33: =(VLOOKUP(C33,CPU!B12:D202,3,0)) -> m2 | F33: 5 | G33: =TRUNC((1-$H$9)*(SUMIFS(CPU!$G:$G,CPU!$A:$A,'Paus Grandes'!$C33,CPU!$H:$H,"ss")+SUMIFS(CPU!$G:$G,CPU!$A:$A,'Paus Grandes'!$C33,CPU!$H:$H,"mdo")+SUMIF('Comp SINAPI PE 06-2025 Onerado'!B:B,'Paus Grandes'!C33,'Comp SINAPI PE 06-2025 Onerado'!E:E)+SUMIF('Ins SINAPI PE 06-2025 Onerado'!B:B,'Paus Grandes'!C33,'Ins SINAPI PE 06-2025 Onerado'!F:F)),2) -> 107.05 | H33: =TRUNC(G33*(1+$H$5),2) -> 131.89 | I33: =TRUNC(F33*H33,2) -> 659.45
A35: 5 | D35: MANUTENÇÃO NO PARAMENTO DE MONTANTE | I35: =SUM(I36) -> 22130.28
A36: 5.1 | D36: Paramento de Montante | I36: =SUM(I37:I39) -> 22130.28
A37: 5.1.1 | B37: PRÓPRIA | C37: CPU.06 | D37: =(VLOOKUP(C37,CPU!B19:C209,2,0)) -> Apicoamento da superfície | E37: =(VLOOKUP(C37,CPU!B19:D209,3,0)) -> m2 | F37: 143.5 | G37: =TRUNC((1-$H$9)*(SUMIFS(CPU!$G:$G,CPU!$A:$A,'Paus Grandes'!$C37,CPU!$H:$H,"ss")+SUMIFS(CPU!$G:$G,CPU!$A:$A,'Paus Grandes'!$C37,CPU!$H:$H,"mdo")+SUMIF('Comp SINAPI PE 06-2025 Onerado'!B:B,'Paus Grandes'!C37,'Comp SINAPI PE 06-2025 Onerado'!E:E)+SUMIF('Ins SINAPI PE 06-2025 Onerado'!B:B,'Paus Grandes'!C37,'Ins SINAPI PE 06-2025 Onerado'!F:F)),2) -> 33.97 | H37: =TRUNC(G37*(1+$H$5),2) -> 41.85 | I37: =TRUNC(F37*H37,2) -> 6005.47
A38: 5.1.2 | B38: PRÓPRIA | C38: CPU.10 | D38: =(VLOOKUP(C38,CPU!B20:C210,2,0)) -> Limpeza da superfície | E38: =(VLOOKUP(C38,CPU!B20:D210,3,0)) -> m2 | F38: 143.5 | G38: =TRUNC((1-$H$9)*(SUMIFS(CPU!$G:$G,CPU!$A:$A,'Paus Grandes'!$C38,CPU!$H:$H,"ss")+SUMIFS(CPU!$G:$G,CPU!$A:$A,'Paus Grandes'!$C38,CPU!$H:$H,"mdo")+SUMIF('Comp SINAPI PE 06-2025 Onerado'!B:B,'Paus Grandes'!C38,'Comp SINAPI PE 06-2025 Onerado'!E:E)+SUMIF('Ins SINAPI PE 06-2025 Onerado'!B:B,'Paus Grandes'!C38,'Ins SINAPI PE 06-2025 Onerado'!F:F)),2) -> 5.99 | H38: =TRUNC(G38*(1+$H$5),2) -> 7.38 | I38: =TRUNC(F38*H38,2) -> 1059.03
A39: 5.1.3 | B39: PRÓPRIA | C39: CPU.14 | D39: =(VLOOKUP(C39,CPU!B20:C210,2,0)) -> Concreto projetado c/ aditivo impermeabilizante | E39: =(VLOOKUP(C39,CPU!B20:D210,3,0)) -> m3 | F39: 7.2 | G39: =TRUNC((1-$H$9)*(SUMIFS(CPU!$G:$G,CPU!$A:$A,'Paus Grandes'!$C39,CPU!$H:$H,"ss")+SUMIFS(CPU!$G:$G,CPU!$A:$A,'Paus Grandes'!$C39,CPU!$H:$H,"mdo")+SUMIF('Comp SINAPI PE 06-2025 Onerado'!B:B,'Paus Grandes'!C39,'Comp SINAPI PE 06-2025 Onerado'!E:E)+SUMIF('Ins SINAPI PE 06-2025 Onerado'!B:B,'Paus Grandes'!C39,'Ins SINAPI PE 06-2025 Onerado'!F:F)),2) -> 1698.3 | H39: =TRUNC(G39*(1+$H$5),2) -> 2092.47 | I39: =TRUNC(F39*H39,2) -> 15065.78
A41: 6 | D41: MANUTENÇÃO DO PARAMENTO DE JUSANTE | I41: =SUM(I42) -> 4543.95
A42: 6.1 | D42: Paramento de Jusante | I42: =SUM(I43:I46) -> 4543.95
A43: 6.1.1 | B43: PRÓPRIA | C43: CPU.06 | D43: =(VLOOKUP(C43,CPU!B26:C216,2,0)) -> Apicoamento da superfície | E43: =(VLOOKUP(C43,CPU!B26:D304,3,0)) -> m2 | F43: 24.6 | G43: =TRUNC((1-$H$9)*(SUMIFS(CPU!$G:$G,CPU!$A:$A,'Paus Grandes'!$C43,CPU!$H:$H,"ss")+SUMIFS(CPU!$G:$G,CPU!$A:$A,'Paus Grandes'!$C43,CPU!$H:$H,"mdo")+SUMIF('Comp SINAPI PE 06-2025 Onerado'!B:B,'Paus Grandes'!C43,'Comp SINAPI PE 06-2025 Onerado'!E:E)+SUMIF('Ins SINAPI PE 06-2025 Onerado'!B:B,'Paus Grandes'!C43,'Ins SINAPI PE 06-2025 Onerado'!F:F)),2) -> 33.97 | H43: =TRUNC(G43*(1+$H$5),2) -> 41.85 | I43: =TRUNC(F43*H43,2) -> 1029.51
A44: 6.1.2 | B44: PRÓPRIA | C44: CPU.10 | D44: =(VLOOKUP(C44,CPU!B27:C217,2,0)) -> Limpeza da superfície | E44: =(VLOOKUP(C44,CPU!B27:D305,3,0)) -> m2 | F44: 82 | G44: =TRUNC((1-$H$9)*(SUMIFS(CPU!$G:$G,CPU!$A:$A,'Paus Grandes'!$C44,CPU!$H:$H,"ss")+SUMIFS(CPU!$G:$G,CPU!$A:$A,'Paus Grandes'!$C44,CPU!$H:$H,"mdo")+SUMIF('Comp SINAPI PE 06-2025 Onerado'!B:B,'Paus Grandes'!C44,'Comp SINAPI PE 06-2025 Onerado'!E:E)+SUMIF('Ins SINAPI PE 06-2025 Onerado'!B:B,'Paus Grandes'!C44,'Ins SINAPI PE 06-2025 Onerado'!F:F)),2) -> 5.99 | H44: =TRUNC(G44*(1+$H$5),2) -> 7.38 | I44: =TRUNC(F44*H44,2) -> 605.16
A45: 6.1.3 | B45: PRÓPRIA | C45: CPU.15 | D45: =(VLOOKUP(C45,CPU!B27:C217,2,0)) -> Preenchimento de espaços vazios com argamassa traço 1:3 | E45: =(VLOOKUP(C45,CPU!B27:D305,3,0)) -> m3 | F45: 0.7 | G45: =TRUNC((1-$H$9)*(SUMIFS(CPU!$G:$G,CPU!$A:$A,'Paus Grandes'!$C45,CPU!$H:$H,"ss")+SUMIFS(CPU!$G:$G,CPU!$A:$A,'Paus Grandes'!$C45,CPU!$H:$H,"mdo")+SUMIF('Comp SINAPI PE 06-2025 Onerado'!B:B,'Paus Grandes'!C45,'Comp SINAPI PE 06-2025 Onerado'!E:E)+SUMIF('Ins SINAPI PE 06-2025 Onerado'!B:B,'Paus Grandes'!C45,'Ins SINAPI PE 06-2025 Onerado'!F:F)),2) -> 1055.28 | H45: =TRUNC(G45*(1+$H$5),2) -> 1300.21 | I45: =TRUNC(F45*H45,2) -> 910.14
A46: 6.1.4 | B46: PRÓPRIA | C46: CPU.07 | D46: =(VLOOKUP(C46,CPU!B28:C218,2,0)) -> Restauração com uso de concreto | E46: =(VLOOKUP(C46,CPU!B28:D306,3,0)) -> m3 | F46: 1 | G46: =TRUNC((1-$H$9)*(SUMIFS(CPU!$G:$G,CPU!$A:$A,'Paus Grandes'!$C46,CPU!$H:$H,"ss")+SUMIFS(CPU!$G:$G,CPU!$A:$A,'Paus Grandes'!$C46,CPU!$H:$H,"mdo")+SUMIF('Comp SINAPI PE 06-2025 Onerado'!B:B,'Paus Grandes'!C46,'Comp SINAPI PE 06-2025 Onerado'!E:E)+SUMIF('Ins SINAPI PE 06-2025 Onerado'!B:B,'Paus Grandes'!C46,'Ins SINAPI PE 06-2025 Onerado'!F:F)),2) -> 1622.55 | H46: =TRUNC(G46*(1+$H$5),2) -> 1999.14 | I46: =TRUNC(F46*H46,2) -> 1999.14
A48: 7 | D48: MANUTENÇÃO NAS OMBREIRAS | I48: =SUM(I49) -> 1657.36
A49: 7.1 | D49: Tratamento de erosão na ombreira c/ concreto | I49: =SUM(I50:I51) -> 1657.36
A50: 7.1.1 | B50: SINAPI | C50: 93358 | D50: =IF(J50="ca",VLOOKUP(C50,'Comp SINAPI PE 06-2025 Onerado'!$B$11:$C$9004,2,0),VLOOKUP(C50,'Ins SINAPI PE 06-2025 Onerado'!$B$10:$C$9004,2,0)) -> ESCAVAÇÃO MANUAL DE VALA. AF_09/2024 | E50: =IF(J50="ca",VLOOKUP(C50,'Comp SINAPI PE 06-2025 Onerado'!$B$11:$D$9004,3,0),VLOOKUP(C50,'Ins SINAPI PE 06-2025 Onerado'!$B$11:$D$9004,3,0)) -> M3 | F50: 0.75 | G50: =TRUNC((1-$H$9)*(SUMIFS(CPU!$G:$G,CPU!$A:$A,'Paus Grandes'!$C50,CPU!$H:$H,"ss")+SUMIFS(CPU!$G:$G,CPU!$A:$A,'Paus Grandes'!$C50,CPU!$H:$H,"mdo")+SUMIF('Comp SINAPI PE 06-2025 Onerado'!B:B,'Paus Grandes'!C50,'Comp SINAPI PE 06-2025 Onerado'!E:E)+SUMIF('Ins SINAPI PE 06-2025 Onerado'!B:B,'Paus Grandes'!C50,'Ins SINAPI PE 06-2025 Onerado'!F:F)),2) -> 95.25 | H50: =TRUNC(G50*(1+$H$5),2) -> 117.35 | I50: =TRUNC(F50*H50,2) -> 88.01 | J50: ca
A51: 7.1.2 | B51: PRÓPRIA | C51: CPU.14 | D51: =(VLOOKUP(C51,CPU!B32:C222,2,0)) -> Concreto projetado c/ aditivo impermeabilizante | E51: =(VLOOKUP(C51,CPU!B32:D318,3,0)) -> m3 | F51: 0.75 | G51: =TRUNC((1-$H$9)*(SUMIFS(CPU!$G:$G,CPU!$A:$A,'Paus Grandes'!$C51,CPU!$H:$H,"ss")+SUMIFS(CPU!$G:$G,CPU!$A:$A,'Paus Grandes'!$C51,CPU!$H:$H,"mdo")+SUMIF('Comp SINAPI PE 06-2025 Onerado'!B:B,'Paus Grandes'!C51,'Comp SINAPI PE 06-2025 Onerado'!E:E)+SUMIF('Ins SINAPI PE 06-2025 Onerado'!B:B,'Paus Grandes'!C51,'Ins SINAPI PE 06-2025 Onerado'!F:F)),2) -> 1698.3 | H51: =TRUNC(G51*(1+$H$5),2) -> 2092.47 | I51: =TRUNC(F51*H51,2) -> 1569.35
A53: 8 | D53: SERVIÇOS COMPLEMENTARES | I53: =SUM(I54,I56) -> 4763.56
A54: 8.1 | D54: Instalação de placas de aviso | I54: =SUM(I55:I55) -> 2306.76
A55: 8.1.1 | B55: SINAPI | C55: 103689 | D55: =IF(J55="ca",VLOOKUP(C55,'Comp SINAPI PE 06-2025 Onerado'!$B$11:$C$9004,2,0),VLOOKUP(C55,'Ins SINAPI PE 06-2025 Onerado'!$B$10:$C$9004,2,0)) -> FORNECIMENTO E INSTALAÇÃO DE PLACA DE OBRA COM CHAPA GALVANIZADA E ESTRUTURA DE MADEIRA. AF_03/2022_PS | E55: =IF(J55="ca",VLOOKUP(C55,'Comp SINAPI PE 06-2025 Onerado'!$B$11:$D$9004,3,0),VLOOKUP(C55,'Ins SINAPI PE 06-2025 Onerado'!$B$11:$D$9004,3,0)) -> M2 | F55: 4 | G55: =TRUNC((1-$H$9)*(SUMIFS(CPU!$G:$G,CPU!$A:$A,'Paus Grandes'!$C55,CPU!$H:$H,"ss")+SUMIFS(CPU!$G:$G,CPU!$A:$A,'Paus Grandes'!$C55,CPU!$H:$H,"mdo")+SUMIF('Comp SINAPI PE 06-2025 Onerado'!B:B,'Paus Grandes'!C55,'Comp SINAPI PE 06-2025 Onerado'!E:E)+SUMIF('Ins SINAPI PE 06-2025 Onerado'!B:B,'Paus Grandes'!C55,'Ins SINAPI PE 06-2025 Onerado'!F:F)),2) -> 468.06 | H55: =TRUNC(G55*(1+$H$5),2) -> 576.69 | I55: =TRUNC(F55*H55,2) -> 2306.76 | J55: ca
A56: 8.2 | D56: Régua Linimétrica Padrão “ANA”, Aço Carbono - 2 X 70 X 1000 mm (Fornecimento e Instalação) | I56: =SUM(I57:I57) -> 2456.8
A57: 8.2.1 | B57: PRÓPRIA | C57: CPU.08 | D57: =(VLOOKUP(C57,CPU!B45:C235,2,0)) -> Régua Linimétrica Padrão “ANA”, Aço Carbono - 2 X 70 X 1000 mm (Fornecimento e Instalação) | E57: un | F57: 5 | G57: =TRUNC((1-$H$9)*(SUMIFS(CPU!$G:$G,CPU!$A:$A,'Paus Grandes'!$C57,CPU!$H:$H,"ss")+SUMIFS(CPU!$G:$G,CPU!$A:$A,'Paus Grandes'!$C57,CPU!$H:$H,"mdo")+SUMIF('Comp SINAPI PE 06-2025 Onerado'!B:B,'Paus Grandes'!C57,'Comp SINAPI PE 06-2025 Onerado'!E:E)+SUMIF('Ins SINAPI PE 06-2025 Onerado'!B:B,'Paus Grandes'!C57,'Ins SINAPI PE 06-2025 Onerado'!F:F)),2) -> 398.8 | H57: =TRUNC(G57*(1+$H$5),2) -> 491.36 | I57: =TRUNC(F57*H57,2) -> 2456.8
A59: 9 | D59: PROJETO "AS IS" | I59: =SUM(I60) -> 11099.77
A60: 9.1 | D60: Levantamento topógrafico e "AS IS" | I60: =SUM(I61:I62) -> 11099.77
A61: 9.1.1 | B61: ORSE | C61: 9346 | D61: Levantamento topográfico planimétrico cadastral | E61: m2 | F61: =F26 -> 1174 | G61: =TRUNC(0.35*(1-$H$9),2) -> 0.35 | H61: =TRUNC(G61*(1+$H$5),2) -> 0.43 | I61: =TRUNC(F61*H61,2) -> 504.82
A62: 9.1.2 | B62: PRÓPRIA | C62: CPU.11 | D62: =(VLOOKUP(C62,CPU!B50:C240,2,0)) -> Projeto geométrico | E62: un | F62: 1 | G62: =TRUNC((1-$H$9)*(SUMIFS(CPU!$G:$G,CPU!$A:$A,'Paus Grandes'!$C62,CPU!$H:$H,"ss")+SUMIFS(CPU!$G:$G,CPU!$A:$A,'Paus Grandes'!$C62,CPU!$H:$H,"mdo")+SUMIF('Comp SINAPI PE 06-2025 Onerado'!B:B,'Paus Grandes'!C62,'Comp SINAPI PE 06-2025 Onerado'!E:E)+SUMIF('Ins SINAPI PE 06-2025 Onerado'!B:B,'Paus Grandes'!C62,'Ins SINAPI PE 06-2025 Onerado'!F:F)),2) -> 8599.1 | H62: =TRUNC(G62*(1+$H$5),2) -> 10594.95 | I62: =TRUNC(F62*H62,2) -> 10594.95
A64: 10 | D64: FISCALIZAÇÃO E ACOMPANHAMENTO | I64: =SUM(I65) -> 859.84
A65: 10.1 | D65: Disponibilidade de velículo para apoio a fiscalização | I65: =SUM(I66:I67) -> 859.84
A66: 10.1.1 | B66: PRÓPRIA | C66: CPU.12 | D66: =(VLOOKUP(C66,CPU!B54:C244,2,0)) -> Disponibilidade de veículo para apoio a fiscalização, inclusive combustível | E66: un | F66: =F14+2 -> 4 | G66: =TRUNC((1-$H$9)*(SUMIFS(CPU!$G:$G,CPU!$A:$A,'Paus Grandes'!$C66,CPU!$H:$H,"ss")+SUMIFS(CPU!$G:$G,CPU!$A:$A,'Paus Grandes'!$C66,CPU!$H:$H,"mdo")+SUMIF('Comp SINAPI PE 06-2025 Onerado'!B:B,'Paus Grandes'!C66,'Comp SINAPI PE 06-2025 Onerado'!E:E)+SUMIF('Ins SINAPI PE 06-2025 Onerado'!B:B,'Paus Grandes'!C66,'Ins SINAPI PE 06-2025 Onerado'!F:F)),2) -> 174.47 | H66: =TRUNC(G66*(1+$H$5),2) -> 214.96 | I66: =TRUNC(F66*H66,2) -> 859.84
D68: TOTAL (Custo): | I68: =TRUNC(SUMPRODUCT(F13:F67,G13:G67),2) -> 137292.15
D69: BDI e Encargos Sociais: | I69: =I70-I68 -> 31854.93
D70: TOTAL GERAL COM BDI: | I70: =SUM(I12,I16,I24,I29,I35,I41,I48,I53,I59,I64) -> 169147.08 | J70: =TRUNC(SUMPRODUCT(F13:F67,H13:H67),2) -> 169147.1 | K70: verificação

Sheet CPU
A1: Ministério da Integração e do Desenvolvimento Regional
A2: Companhia de Desenvolvimento dos Vales do São Francisco e do Parnaíba
A4: COMPOSIÇÕES DE PREÇOS UNITÁRIOS - ORÇAMENTO NÃO DESONERADO
A5: =Resumo!A5 -> OBRA: | B5: =Resumo!B5 -> Execução de manutenção e obras civis nas barragens de Sitio Lambedor, Poço da Onça, Brejo, Boqueirão e Paus Grandes localizadas no estado de Pernambuco.
A6: =Resumo!A6 -> LOCAL: | B6: =Resumo!B6 -> BARRAGENS DE PERNAMBUCO
A7: =Resumo!A7 -> DATA BASE: | B7: =Resumo!B7 -> 2025-07-01
A9: REFERÊNCIA | B9: CÓDIGO | C9: DESCRIÇÃO | D9: UNIDADE | E9: ÍNDICE | F9: CUSTO UNITÁRIO | G9: CUSTO TOTAL
B10: CPU.01 | C10: Administração Local | D10: mês | E10: 1 | G10: =SUM(G14,G13,G12,G11) -> 29060.88 | H10: S | I10: COMENTÁRIOS
A11: =B10 -> CPU.01 | C11: MATERIAL | G11: 0 | H11: ss
A12: =B10 -> CPU.01 | G12: 0 | H12: ss
A13: =B10 -> CPU.01 | C13: SERVIÇOS | G13: 0 | H13: ss
A14: =B10 -> CPU.01 | C14: MÃO DE OBRA | G14: =SUM(G15:G17) -> 29060.88 | H14: mdo
A15: SINAPI | B15: 90778 | C15: =PROPER(IF(H15="i",VLOOKUP(B15,'Ins SINAPI PE 06-2025 Onerado'!$B$11:$F$50003,2,0),VLOOKUP(B15,'Comp SINAPI PE 06-2025 Onerado'!$B$11:$C$50004,2,0))) -> Engenheiro Civil De Obra Pleno Com Encargos Complementares | D15: =IF(H15="i",VLOOKUP(B15,'Ins SINAPI PE 06-2025 Onerado'!$B$11:$F$50003,2,0),VLOOKUP(B15,'Comp SINAPI PE 06-2025 Onerado'!$B$11:$H$50004,3,0)) -> H | E15: =1.5*5*4 -> 30 | F15: =IF(H15="i",VLOOKUP(B15,'Ins SINAPI PE 06-2025 Onerado'!$B$11:$F$50003,5,0),VLOOKUP(B15,'Comp SINAPI PE 06-2025 Onerado'!$B$11:$E$50004,4,0)) -> 135.86 | G15: =TRUNC(E15*F15,2) -> 4075.8 | H15: ca
A16: SINAPI | B16: 93572 | C16: =PROPER(IF(H16="i",VLOOKUP(B16,'Ins SINAPI PE 06-2025 Onerado'!$B$11:$F$50003,2,0),VLOOKUP(B16,'Comp SINAPI PE 06-2025 Onerado'!$B$11:$C$50004,2,0))) -> Encarregado Geral De Obras Com Encargos Complementares | D16: =IF(H16="i",VLOOKUP(B16,'Ins SINAPI PE 06-2025 Onerado'!$B$11:$F$50003,2,0),VLOOKUP(B16,'Comp SINAPI PE 06-2025 Onerado'!$B$11:$H$50004,3,0)) -> MES | E16: 0.8 | F16: =IF(H16="i",VLOOKUP(B16,'Ins SINAPI PE 06-2025 Onerado'!$B$11:$F$50003,5,0),VLOOKUP(B16,'Comp SINAPI PE 06-2025 Onerado'!$B$11:$E$50004,4,0)) -> 7847.41 | G16: =TRUNC(E16*F16,2) -> 6277.92 | H16: ca
A17: EMBASA | B17: 74.13.43 | C17: VIGIA - NA | D17: MES | E17: 4 | F17: 4676.79 | G17: =TRUNC(E17*F17,2) -> 18707.16 | H17: ca | I17: considerando 4 vigias intercalando em dupla na jornada de 12/36
B19: CPU.02 | C19: Mobilização e desmobilização de instalação do canteiro | D19: un | E19: 1 | G19: =SUM(G27,G26,G21,G20) -> 2424.8 | H19: S | I19: mobilização e desmobilização de Petrolina a barragem | M19: 2 dias
A20: =B19 -> CPU.02 | C20: MATERIAL | G20: 0 | H20: ss
A21: =B19 -> CPU.02 | C21: EQUIPAMENTOS | G21: =SUM(G22:G25) -> 2424.8 | H21: ss
A22: PRÓPRIA | B22: CODE | C22: Veículo tipo pick-up, cabine dupla - 2.0 16V 4x4 diesel Aut. | D22: dia | E22: 2 | F22: ='CPU-VEICULO_PickUp (2)'!C11 -> 174.4736185 | G22: =TRUNC(E22*F22,2) -> 348.94 | H22: ca
A23: SINAPI | B23: 100946 | C23: =PROPER(IF(H23="i",VLOOKUP(B23,'Ins SINAPI PE 06-2025 Onerado'!$B$11:$F$50003,2,0),VLOOKUP(B23,'Comp SINAPI PE 06-2025 Onerado'!$B$11:$C$50004,2,0))) -> Transporte Com Caminhão Carroceria 9T, Em Via Urbana Em Revestimento Primário (Unidade: Txkm). Af_07/2020 | D23: =IF(H23="i",VLOOKUP(B23,'Ins SINAPI PE 06-2025 Onerado'!$B$11:$F$50003,2,0),VLOOKUP(B23,'Comp SINAPI PE 06-2025 Onerado'!$B$11:$H$50004,3,0)) -> TXKM | E23: ='Memorial de cálculo'!H18 -> 106 | F23: =IF(H23="i",VLOOKUP(B23,'Ins SINAPI PE 06-2025 Onerado'!$B$11:$F$50003,5,0),VLOOKUP(B23,'Comp SINAPI PE 06-2025 Onerado'!$B$11:$E$50004,4,0)) -> 2.43 | G23: =TRUNC(E23*F23,2) -> 257.58 | H23: ca | I23: considerando 5 toneladas de carga
A24: SINAPI | B24: 100947 | C24: =PROPER(IF(H24="i",VLOOKUP(B24,'Ins SINAPI PE 06-2025 Onerado'!$B$11:$F$50003,2,0),VLOOKUP(B24,'Comp SINAPI PE 06-2025 Onerado'!$B$11:$C$50004,2,0))) -> Transporte Com Caminhão Carroceria 9T, Em Via Urbana Pavimentada, Dmt Até 30Km (Unidade: Txkm). Af_07/2020 | D24: =IF(H24="i",VLOOKUP(B24,'Ins SINAPI PE 06-2025 Onerado'!$B$11:$F$50003,2,0),VLOOKUP(B24,'Comp SINAPI PE 06-2025 Onerado'!$B$11:$H$50004,3,0)) -> TXKM | E24: ='Memorial de cálculo'!H21 -> 300 | F24: =IF(H24="i",VLOOKUP(B24,'Ins SINAPI PE 06-2025 Onerado'!$B$11:$F$50003,5,0),VLOOKUP(B24,'Comp SINAPI PE 06-2025 Onerado'!$B$11:$E$50004,4,0)) -> 2.23 | G24: =TRUNC(E24*F24,2) -> 669 | H24: ca
A25: SINAPI | B25: 100948 | C25: =PROPER(IF(H25="i",VLOOKUP(B25,'Ins SINAPI PE 06-2025 Onerado'!$B$11:$F$50003,2,0),VLOOKUP(B25,'Comp SINAPI PE 06-2025 Onerado'!$B$11:$C$50004,2,0))) -> Transporte Com Caminhão Carroceria 9T, Em Via Urbana Pavimentada, Adicional Para Dmt Excedente A 30 Km (Unidade: Txkm). Af_07/2020 | D25: =IF(H25="i",VLOOKUP(B25,'Ins SINAPI PE 06-2025 Onerado'!$B$11:$F$50003,2,0),VLOOKUP(B25,'Comp SINAPI PE 06-2025 Onerado'!$B$11:$H$50004,3,0)) -> TXKM | E25: ='Memorial de cálculo'!H24 -> 1306 | F25: =IF(H25="i",VLOOKUP(B25,'Ins SINAPI PE 06-2025 Onerado'!$B$11:$F$50003,5,0),VLOOKUP(B25,'Comp SINAPI PE 06-2025 Onerado'!$B$11:$E$50004,4,0)) -> 0.88 | G25: =TRUNC(E25*F25,2) -> 1149.28 | H25: ca
A26: =B19 -> CPU.02 | C26: SERVIÇOS | G26: 0 | H26: ss
A27: =B19 -> CPU.02 | C27: MÃO DE OBRA | G27: 0 | H27: mdo
B29: CPU.03 | C29: Execução de canteiro de obras, inclusive, limpeza, refeitório, sanitários e central de formas | D29: m2 | E29: 1 | G29: =SUM(G38,G32,G31,G30) -> 738.73 | H29: S
A30: =B29 -> CPU.03 | C30: MATERIAL | G30: 0 | H30: ss
A31: =B29 -> CPU.03 | C31: EQUIPAMENTOS | G31: 0 | H31: ss
A32: =B29 -> CPU.03 | C32: SERVIÇOS | G32: =SUM(G33:G37) -> 738.73 | H32: ss
A33: SINAPI | B33: 98524 | C33: =PROPER(IF(H33="i",VLOOKUP(B33,'Ins SINAPI PE 06-2025 Onerado'!$B$11:$F$50003,2,0),VLOOKUP(B33,'Comp SINAPI PE 06-2025 Onerado'!$B$11:$C$50004,2,0))) -> Limpeza Manual De Vegetação Em Terreno Com Enxada. Af_03/2024 | D33: =IF(H33="i",VLOOKUP(B33,'Ins SINAPI PE 06-2025 Onerado'!$B$11:$F$50003,2,0),VLOOKUP(B33,'Comp SINAPI PE 06-2025 Onerado'!$B$11:$H$50004,3,0)) -> M2 | E33: 1 | F33: =IF(H33="i",VLOOKUP(B33,'Ins SINAPI PE 06-2025 Onerado'!$B$11:$F$50003,5,0),VLOOKUP(B33,'Comp SINAPI PE 06-2025 Onerado'!$B$11:$E$50004,4,0)) -> 5.13 | G33: =TRUNC(E33*F33,2) -> 5.13 | H33: ca
A34: PRÓPRIA | B34: 93210-ADAPTADA | C34: EXECUÇÃO DE REFEITÓRIO EM CANTEIRO DE OBRA EM CHAPA DE MADEIRA COMPENSADA, NÃO INCLUSO MOBILIÁRIO E EQUIPAMENTOS. AF_02/2016 | D34: m2 | E34: ='Memorial de cálculo'!H29/'Memorial de cálculo'!H28 -> 0.2631578947 | F34: 599.5 | G34: =TRUNC(E34*F34,2) -> 157.76 | H34: ca
A35: PRÓPRIA | B35: 93212-ADAPTADA | C35: EXECUÇÃO DE SANITÁRIO E VESTIÁRIO EM CANTEIRO DE OBRA EM CHAPA DE MADEIRA COMPENSADA, NÃO INCLUSO MOBILIÁRIO. AF_02/2016 | D35: m2 | E35: ='Memorial de cálculo'!H30/'Memorial de cálculo'!H28 -> 0.3157894737 | F35: 974.76 | G35: =TRUNC(E35*F35,2) -> 307.81 | H35: ca
A36: PRÓPRIA | B36: 93583-ADAPTADA | C36: EXECUÇÃO DE CENTRAL DE FÔRMAS, PRODUÇÃO DE ARGAMASSA OU CONCRETO EM CANTEIRO DE OBRA, NÃO INCLUSO MOBILIÁRIO E EQUIPAMENTOS. AF_04/2016 | D36: m2 | E36: ='Memorial de cálculo'!H31/'Memorial de cálculo'!H28 -> 0.4210526316 | F36: 571.86 | G36: =TRUNC(E36*F36,2) -> 240.78 | H36: ca
A37: PRÓPRIA | B37: CODE | C37: Hospedagem | D37: un | E37: ='Memorial de cálculo'!D33*'Memorial de cálculo'!H33 -> 0.1394375 | F37: 195.43 | G37: =TRUNC(E37*F37,2) -> 27.25 | H37: ca
A38: =B29 -> CPU.03 | C38: MÃO DE OBRA | G38: 0 | H38: mdo
B40: CPU.04 | C40: Limpeza de vegetação | D40: m2 | E40: 1 | G40: =SUM(G48,G43,G42,G41) -> 7.87 | H40: S | J40: =G40*14000 -> 110180
A41: =B40 -> CPU.04 | C41: MATERIAL | G41: 0 | H41: ss
A42: =B40 -> CPU.04 | C42: EQUIPAMENTOS | G42: 0 | H42: ss
A43: =B40 -> CPU.04 | C43: SERVIÇOS | G43: =SUM(G44:G47) -> 7.87 | H43: ss
A44: SINAPI | B44: 98524 | C44: =PROPER(IF(H44="i",VLOOKUP(B44,'Ins SINAPI PE 06-2025 Onerado'!$B$11:$F$50003,2,0),VLOOKUP(B44,'Comp SINAPI PE 06-2025 Onerado'!$B$11:$C$50004,2,0))) -> Limpeza Manual De Vegetação Em Terreno Com Enxada. Af_03/2024 | D44: =IF(H44="i",VLOOKUP(B44,'Ins SINAPI PE 06-2025 Onerado'!$B$11:$F$50003,2,0),VLOOKUP(B44,'Comp SINAPI PE 06-2025 Onerado'!$B$11:$H$50004,3,0)) -> M2 | E44: 1 | F44: =IF(H44="i",VLOOKUP(B44,'Ins SINAPI PE 06-2025 Onerado'!$B$11:$F$50003,5,0),VLOOKUP(B44,'Comp SINAPI PE 06-2025 Onerado'!$B$11:$E$50004,4,0)) -> 5.13 | G44: =TRUNC(E44*F44,2) -> 5.13 | H44: ca
A45: PRÓPRIA | B45: CODE | C45: Hospedagem | D45: un | E45: ='Memorial de cálculo'!D37*'Memorial de cálculo'!H37 -> 0.0025 | F45: 252.8 | G45: =TRUNC(E45*F45,2) -> 0.63 | H45: ca
A46: PRÓPRIA | B46: CODE | C46: Veículo tipo pick-up, cabine dupla - 2.0 16V 4x4 diesel Aut. | D46: dia | E46: ='Memorial de cálculo'!H37 -> 0.000625 | F46: ='CPU-VEICULO_PickUp (2)'!C11 -> 174.4736185 | G46: =TRUNC(E46*F46,2) -> 0.1 | H46: ca
A47: SINAPI | B47: 93589 | C47: =PROPER(IF(H47="i",VLOOKUP(B47,'Ins SINAPI PE 06-2025 Onerado'!$B$11:$F$50003,2,0),VLOOKUP(B47,'Comp SINAPI PE 06-2025 Onerado'!$B$11:$C$50004,2,0))) -> Transporte Com Caminhão Basculante De 10 M³, Em Via Urbana Em Revestimento Primário (Unidade: M3Xkm). Af_07/2020 | D47: =IF(H47="i",VLOOKUP(B47,'Ins SINAPI PE 06-2025 Onerado'!$B$11:$F$50003,2,0),VLOOKUP(B47,'Comp SINAPI PE 06-2025 Onerado'!$B$11:$H$50004,3,0)) -> M3XKM | E47: =15*0.05 -> 0.75 | F47: =IF(H47="i",VLOOKUP(B47,'Ins SINAPI PE 06-2025 Onerado'!$B$11:$F$50003,5,0),VLOOKUP(B47,'Comp SINAPI PE 06-2025 Onerado'!$B$11:$E$50004,4,0)) -> 2.69 | G47: =TRUNC(E47*F47,2) -> 2.01 | H47: ca | I47: considerando 5 cm de altura da vegetação e 15 km para bota-fora
A48: =B40 -> CPU.04 | C48: MÃO DE OBRA | G48: 0 | H48: mdo
B50: CPU.05 | C50: Corte de tronco e remoção de raiz | D50: un | E50: 1 | G50: =SUM(G61,G53,G52,G51) -> 403.07 | H50: S
A51: =B50 -> CPU.05 | C51: MATERIAL | G51: 0 | H51: ss
A52: =B50 -> CPU.05 | C52: EQUIPAMENTOS | G52: 0 | H52: ss
A53: =B50 -> CPU.05 | C53: SERVIÇOS | G53: =SUM(G54:G60) -> 403.07 | H53: ss
A54: SINAPI | B54: 98529 | C54: =PROPER(IF(H54="i",VLOOKUP(B54,'Ins SINAPI PE 06-2025 Onerado'!$B$11:$F$50003,2,0),VLOOKUP(B54,'Comp SINAPI PE 06-2025 Onerado'!$B$11:$C$50004,2,0))) -> Corte Raso E Recorte De Árvore Com Diâmetro De Tronco Maior Ou Igual A 0,20 M E Menor Que 0,40 M. Af_03/2024 | D54: =IF(H54="i",VLOOKUP(B54,'Ins SINAPI PE 06-2025 Onerado'!$B$11:$F$50003,2,0),VLOOKUP(B54,'Comp SINAPI PE 06-2025 Onerado'!$B$11:$H$50004,3,0)) -> UN | E54: 1 | F54: =IF(H54="i",VLOOKUP(B54,'Ins SINAPI PE 06-2025 Onerado'!$B$11:$F$50003,5,0),VLOOKUP(B54,'Comp SINAPI PE 06-2025 Onerado'!$B$11:$E$50004,4,0)) -> 81.17 | G54: =TRUNC(E54*F54,2) -> 81.17 | H54: ca
A55: SINAPI | B55: 98526 | C55: =PROPER(IF(H55="i",VLOOKUP(B55,'Ins SINAPI PE 06-2025 Onerado'!$B$11:$F$50003,2,0),VLOOKUP(B55,'Comp SINAPI PE 06-2025 Onerado'!$B$11:$C$50004,2,0))) -> Remoção De Raízes Remanescentes De Tronco De Árvore Com Diâmetro Maior Ou Igual A 0,20 M E Menor Que 0,40 M. Af_03/2024 | D55: =IF(H55="i",VLOOKUP(B55,'Ins SINAPI PE 06-2025 Onerado'!$B$11:$F$50003,2,0),VLOOKUP(B55,'Comp SINAPI PE 06-2025 Onerado'!$B$11:$H$50004,3,0)) -> UN | E55: 1 | F55: =IF(H55="i",VLOOKUP(B55,'Ins SINAPI PE 06-2025 Onerado'!$B$11:$F$50003,5,0),VLOOKUP(B55,'Comp SINAPI PE 06-2025 Onerado'!$B$11:$E$50004,4,0)) -> 130.79 | G55: 130.79 | H55: ca
A56: SINAPI | B56: 6081 | C56: =PROPER(IF(H56="i",VLOOKUP(B56,'Ins SINAPI PE 06-2025 Onerado'!$B$11:$F$50003,2,0),VLOOKUP(B56,'Comp SINAPI PE 06-2025 Onerado'!$G$11:$H$50004,2,0))) -> Argila Ou Barro Para Aterro/Reaterro (Com Transporte Ate 10 Km) | D56: =IF(H56="i",VLOOKUP(B56,'Ins SINAPI PE 06-2025 Onerado'!$B$11:$F$50003,3,0),VLOOKUP(B56,'Comp SINAPI PE 06-2025 Onerado'!$G$11:$H$50004,3,0)) -> M3 | E56: 0.5 | F56: 54.26 | G56: 27.13 | H56: i | I56: considerando 0,5 m3 por árvore
A57: SINAPI | B57: 93382 | C57: =PROPER(IF(H57="i",VLOOKUP(B57,'Ins SINAPI PE 06-2025 Onerado'!$B$11:$F$50003,2,0),VLOOKUP(B57,'Comp SINAPI PE 06-2025 Onerado'!$B$11:$C$50004,2,0))) -> Reaterro Manual De Valas, Com Compactador De Solos De Percussão. Af_08/2023 | D57: =IF(H57="i",VLOOKUP(B57,'Ins SINAPI PE 06-2025 Onerado'!$B$11:$F$50003,2,0),VLOOKUP(B57,'Comp SINAPI PE 06-2025 Onerado'!$B$11:$H$50004,3,0)) -> M3 | E57: 0.5 | F57: =IF(H57="i",VLOOKUP(B57,'Ins SINAPI PE 06-2025 Onerado'!$B$11:$F$50003,5,0),VLOOKUP(B57,'Comp SINAPI PE 06-2025 Onerado'!$B$11:$E$50004,4,0)) -> 27.38 | G57: 13.69 | H57: ca
A58: PRÓPRIA | B58: CODE | C58: Hospedagem | D58: un | E58: ='Memorial de cálculo'!D41*'Memorial de cálculo'!H41+'Memorial de cálculo'!D42*'Memorial de cálculo'!H42 -> 0.41525 | F58: 252.8 | G58: 104.97 | H58: ca
A59: PRÓPRIA | B59: CODE | C59: Veículo tipo pick-up, cabine dupla - 2.0 16V 4x4 diesel Aut. | D59: dia | E59: =LARGE('Memorial de cálculo'!H41:H42,1) -> 0.1441875 | F59: ='CPU-VEICULO_PickUp (2)'!C11 -> 174.4736185 | G59: 25.15 | H59: ca
A60: SINAPI | B60: 93589 | C60: =PROPER(IF(H60="i",VLOOKUP(B60,'Ins SINAPI PE 06-2025 Onerado'!$B$11:$F$50003,2,0),VLOOKUP(B60,'Comp SINAPI PE 06-2025 Onerado'!$B$11:$C$50004,2,0))) -> Transporte Com Caminhão Basculante De 10 M³, Em Via Urbana Em Revestimento Primário (Unidade: M3Xkm). Af_07/2020 | D60: =IF(H60="i",VLOOKUP(B60,'Ins SINAPI PE 06-2025 Onerado'!$B$11:$F$50003,2,0),VLOOKUP(B60,'Comp SINAPI PE 06-2025 Onerado'!$B$11:$H$50004,3,0)) -> M3XKM | E60: =15*0.5 -> 7.5 | F60: =IF(H60="i",VLOOKUP(B60,'Ins SINAPI PE 06-2025 Onerado'!$B$11:$F$50003,5,0),VLOOKUP(B60,'Comp SINAPI PE 06-2025 Onerado'!$B$11:$E$50004,4,0)) -> 2.69 | G60: 20.17 | H60: ca | I60: considerando 0,5 m3 por árvore e 15 km para bota-fora
A61: =B50 -> CPU.05 | C61: MÃO DE OBRA | G61: 0 | H61: mdo
B63: CPU.06 | C63: Apicoamento da superfície | D63: m2 | E63: 1 | G63: =SUM(G73,G66,G65,G64) -> 33.97 | H63: S
A64: =B133 | C64: MATERIAL | G64: 0 | H64: ss
A65: =B63 -> CPU.06 | C65: EQUIPAMENTOS | G65: 0 | H65: ss
A66: =B63 -> CPU.06 | C66: SERVIÇOS | G66: =SUM(G67:G72) -> 33.97 | H66: ss
A67: SINAPI | B67: 97631 | C67: =PROPER(IF(H67="i",VLOOKUP(B67,'Ins SINAPI PE 06-2025 Onerado'!$B$11:$F$50003,2,0),VLOOKUP(B67,'Comp SINAPI PE 06-2025 Onerado'!$B$11:$C$50004,2,0))) -> Demolição De Argamassas, De Forma Manual, Sem Reaproveitamento. Af_09/2023 | D67: =IF(H67="i",VLOOKUP(B67,'Ins SINAPI PE 06-2025 Onerado'!$B$11:$F$50003,2,0),VLOOKUP(B67,'Comp SINAPI PE 06-2025 Onerado'!$B$11:$H$50004,3,0)) -> M2 | E67: =0.05*15 -> 0.75 | F67: =IF(H67="i",VLOOKUP(B67,'Ins SINAPI PE 06-2025 Onerado'!$B$11:$F$50003,5,0),VLOOKUP(B67,'Comp SINAPI PE 06-2025 Onerado'!$B$11:$E$50004,4,0)) -> 12.75 | G67: =TRUNC(E67*F67,2) -> 9.56 | H67: ca
A68: SINAPI | B68: 93589 | C68: =PROPER(IF(H68="i",VLOOKUP(B68,'Ins SINAPI PE 06-2025 Onerado'!$B$11:$F$50003,2,0),VLOOKUP(B68,'Comp SINAPI PE 06-2025 Onerado'!$B$11:$C$50004,2,0))) -> Transporte Com Caminhão Basculante De 10 M³, Em Via Urbana Em Revestimento Primário (Unidade: M3Xkm). Af_07/2020 | D68: =IF(H68="i",VLOOKUP(B68,'Ins SINAPI PE 06-2025 Onerado'!$B$11:$F$50003,2,0),VLOOKUP(B68,'Comp SINAPI PE 06-2025 Onerado'!$B$11:$H$50004,3,0)) -> M3XKM | E68: =0.05*15 -> 0.75 | F68: =IF(H68="i",VLOOKUP(B68,'Ins SINAPI PE 06-2025 Onerado'!$B$11:$F$50003,5,0),VLOOKUP(B68,'Comp SINAPI PE 06-2025 Onerado'!$B$11:$E$50004,4,0)) -> 2.69 | G68: 2.01 | H68: ca | I68: considerando 5 cm de entulho e 15 km para bota-fora
A69: SINAPI | B69: 95875 | C69: =PROPER(IF(H69="i",VLOOKUP(B69,'Ins SINAPI PE 06-2025 Onerado'!$B$11:$F$50003,2,0),VLOOKUP(B69,'Comp SINAPI PE 06-2025 Onerado'!$B$11:$C$50004,2,0))) -> Transporte Com Caminhão Basculante De 10 M³, Em Via Urbana Pavimentada, Dmt Até 30 Km (Unidade: M3Xkm). Af_07/2020 | D69: =IF(H69="i",VLOOKUP(B69,'Ins SINAPI PE 06-2025 Onerado'!$B$11:$F$50003,2,0),VLOOKUP(B69,'Comp SINAPI PE 06-2025 Onerado'!$B$11:$H$50004,3,0)) -> M3XKM | E69: =0.05*15 -> 0.75 | F69: =IF(H69="i",VLOOKUP(B69,'Ins SINAPI PE 06-2025 Onerado'!$B$11:$F$50003,5,0),VLOOKUP(B69,'Comp SINAPI PE 06-2025 Onerado'!$B$11:$E$50004,4,0)) -> 2.48 | G69: 1.86 | H69: ca | I69: considerando 5 cm de entulho e 15 km para bota-fora
A70: SINAPI | B70: 95875 | C70: =PROPER(IF(H70="i",VLOOKUP(B70,'Ins SINAPI PE 06-2025 Onerado'!$B$11:$F$50003,2,0),VLOOKUP(B70,'Comp SINAPI PE 06-2025 Onerado'!$B$11:$C$50004,2,0))) -> Transporte Com Caminhão Basculante De 10 M³, Em Via Urbana Pavimentada, Dmt Até 30 Km (Unidade: M3Xkm). Af_07/2020 | D70: =IF(H70="i",VLOOKUP(B70,'Ins SINAPI PE 06-2025 Onerado'!$B$11:$F$50003,2,0),VLOOKUP(B70,'Comp SINAPI PE 06-2025 Onerado'!$B$11:$H$50004,3,0)) -> M3XKM | E70: =0.05*15 -> 0.75 | F70: =IF(H70="i",VLOOKUP(B70,'Ins SINAPI PE 06-2025 Onerado'!$B$11:$F$50003,5,0),VLOOKUP(B70,'Comp SINAPI PE 06-2025 Onerado'!$B$11:$E$50004,4,0)) -> 2.48 | G70: 1.86 | H70: ca | I70: considerando 5 cm de entulho e 15 km para bota-fora
A71: PRÓPRIA | B71: CODE | C71: Hospedagem | D71: un | E71: ='Memorial de cálculo'!D46*'Memorial de cálculo'!H46+'Memorial de cálculo'!D47*'Memorial de cálculo'!H47 -> 0.0627875 | F71: 252.8 | G71: 15.87 | H71: ca
A72: PRÓPRIA | B72: CODE | C72: Veículo tipo pick-up, cabine dupla - 2.0 16V 4x4 diesel Aut. | D72: dia | E72: =LARGE('Memorial de cálculo'!H46:H47,1) -> 0.01613333333 | F72: ='CPU-VEICULO_PickUp (2)'!C11 -> 174.4736185 | G72: 2.81 | H72: ca
A73: =B63 -> CPU.06 | C73: MÃO DE OBRA | G73: 0 | H73: mdo
B75: CPU.07 | C75: Restauração com uso de concreto | D75: m3 | E75: 1 | G75: =SUM(G86,G78,G77,G76) -> 1622.55 | H75: S
A76: =B75 -> CPU.07 | C76: MATERIAL | G76: 0 | H76: ss
A77: =B75 -> CPU.07 | C77: EQUIPAMENTOS | G77: 0 | H77: ss
A78: =B75 -> CPU.07 | C78: SERVIÇOS | G78: =SUM(G79:G85) -> 1622.55 | H78: ss
A79: SINAPI | B79: 94975 | C79: =PROPER(IF(H79="i",VLOOKUP(B79,'Ins SINAPI PE 06-2025 Onerado'!$B$11:$F$50003,2,0),VLOOKUP(B79,'Comp SINAPI PE 06-2025 Onerado'!$B$11:$C$50004,2,0))) -> Concreto Fck = 15Mpa, Traço 1:3,4:3,5 (Em Massa Seca De Cimento/ Areia Média/ Brita 1) - Preparo Manual. Af_05/2021 | D79: =IF(H79="i",VLOOKUP(B79,'Ins SINAPI PE 06-2025 Onerado'!$B$11:$F$50003,2,0),VLOOKUP(B79,'Comp SINAPI PE 06-2025 Onerado'!$B$11:$H$50004,3,0)) -> M3 | E79: 1 | F79: =IF(H79="i",VLOOKUP(B79,'Ins SINAPI PE 06-2025 Onerado'!$B$11:$F$50003,5,0),VLOOKUP(B79,'Comp SINAPI PE 06-2025 Onerado'!$B$11:$E$50004,4,0)) -> 515.38 | G79: =TRUNC(E79*F79,2) -> 515.38 | H79: ca
A80: SINAPI | B80: 93589 | C80: =PROPER(IF(H80="i",VLOOKUP(B80,'Ins SINAPI PE 06-2025 Onerado'!$B$11:$F$50003,2,0),VLOOKUP(B80,'Comp SINAPI PE 06-2025 Onerado'!$B$11:$C$50004,2,0))) -> Transporte Com Caminhão Basculante De 10 M³, Em Via Urbana Em Revestimento Primário (Unidade: M3Xkm). Af_07/2020 | D80: =IF(H80="i",VLOOKUP(B80,'Ins SINAPI PE 06-2025 Onerado'!$B$11:$F$50003,2,0),VLOOKUP(B80,'Comp SINAPI PE 06-2025 Onerado'!$B$11:$H$50004,3,0)) -> M3XKM | E80: ='Memorial de cálculo'!$H$8 -> 10.6 | F80: =IF(H80="i",VLOOKUP(B80,'Ins SINAPI PE 06-2025 Onerado'!$B$11:$F$50003,5,0),VLOOKUP(B80,'Comp SINAPI PE 06-2025 Onerado'!$B$11:$E$50004,4,0)) -> 2.69 | G80: 28.51 | H80: ca
A81: SINAPI | B81: 95875 | C81: =PROPER(IF(H81="i",VLOOKUP(B81,'Ins SINAPI PE 06-2025 Onerado'!$B$11:$F$50003,2,0),VLOOKUP(B81,'Comp SINAPI PE 06-2025 Onerado'!$B$11:$C$50004,2,0))) -> Transporte Com Caminhão Basculante De 10 M³, Em Via Urbana Pavimentada, Dmt Até 30 Km (Unidade: M3Xkm). Af_07/2020 | D81: =IF(H81="i",VLOOKUP(B81,'Ins SINAPI PE 06-2025 Onerado'!$B$11:$F$50003,2,0),VLOOKUP(B81,'Comp SINAPI PE 06-2025 Onerado'!$B$11:$H$50004,3,0)) -> M3XKM | E81: =30 -> 30 | F81: =IF(H81="i",VLOOKUP(B81,'Ins SINAPI PE 06-2025 Onerado'!$B$11:$F$50003,5,0),VLOOKUP(B81,'Comp SINAPI PE 06-2025 Onerado'!$B$11:$E$50004,4,0)) -> 2.48 | G81: 74.4 | H81: ca
A82: SINAPI | B82: 95875 | C82: =PROPER(IF(H82="i",VLOOKUP(B82,'Ins SINAPI PE 06-2025 Onerado'!$B$11:$F$50003,2,0),VLOOKUP(B82,'Comp SINAPI PE 06-2025 Onerado'!$B$11:$C$50004,2,0))) -> Transporte Com Caminhão Basculante De 10 M³, Em Via Urbana Pavimentada, Dmt Até 30 Km (Unidade: M3Xkm). Af_07/2020 | D82: =IF(H82="i",VLOOKUP(B82,'Ins SINAPI PE 06-2025 Onerado'!$B$11:$F$50003,2,0),VLOOKUP(B82,'Comp SINAPI PE 06-2025 Onerado'!$B$11:$H$50004,3,0)) -> M3XKM | E82: ='Memorial de cálculo'!$H$7-30 -> 130.6 | F82: =IF(H82="i",VLOOKUP(B82,'Ins SINAPI PE 06-2025 Onerado'!$B$11:$F$50003,5,0),VLOOKUP(B82,'Comp SINAPI PE 06-2025 Onerado'!$B$11:$E$50004,4,0)) -> 2.48 | G82: 323.88 | H82: ca
A83: SINAPI | B83: 92268 | C83: =PROPER(IF(H83="i",VLOOKUP(B83,'Ins SINAPI PE 06-2025 Onerado'!$B$11:$F$50003,2,0),VLOOKUP(B83,'Comp SINAPI PE 06-2025 Onerado'!$B$11:$C$50004,2,0))) -> Fabricação De Fôrma Para Lajes, Em Chapa De Madeira Compensada Plastificada, E = 18 Mm. Af_09/2020 | D83: =IF(H83="i",VLOOKUP(B83,'Ins SINAPI PE 06-2025 Onerado'!$B$11:$F$50003,2,0),VLOOKUP(B83,'Comp SINAPI PE 06-2025 Onerado'!$B$11:$H$50004,3,0)) -> M2 | E83: 5.5 | F83: =IF(H83="i",VLOOKUP(B83,'Ins SINAPI PE 06-2025 Onerado'!$B$11:$F$50003,5,0),VLOOKUP(B83,'Comp SINAPI PE 06-2025 Onerado'!$B$11:$E$50004,4,0)) -> 75.74 | G83: 416.57 | H83: ca
A84: PRÓPRIA | B84: CODE | C84: Hospedagem | D84: un | E84: ='Memorial de cálculo'!D51*'Memorial de cálculo'!H51 -> 0.7758375 | F84: 252.8 | G84: 196.13 | H84: ca
A85: PRÓPRIA | B85: CODE | C85: Veículo tipo pick-up, cabine dupla - 2.0 16V 4x4 diesel Aut. | D85: dia | E85: =LARGE('Memorial de cálculo'!H51,1) -> 0.38791875 | F85: ='CPU-VEICULO_PickUp (2)'!C11 -> 174.4736185 | G85: 67.68 | H85: ca
A86: =B75 -> CPU.07 | C86: MÃO DE OBRA | G86: 0 | H86: mdo
B88: CPU.08 | C88: Régua Linimétrica Padrão “ANA”, Aço Carbono - 2 X 70 X 1000 mm (Fornecimento e Instalação) | D88: un | E88: 1 | G88: =SUM(G97,G93,G92,G89) -> 398.8 | H88: S
A89: =B88 -> CPU.08 | C89: MATERIAL | G89: =SUM(G90:G91) -> 218.63 | H89: ss
A90: 2025-04-09 | B90: cotação | C90: RÉGUA LINIMÉTRICA PADRÃO “ANA”, AÇO CARBONO - 2 X 70 X 1000MM | D90: un | E90: 1 | F90: =Cotação!O10 -> 184.9666667 | G90: =TRUNC(E90*F90,2) -> 184.96 | H90: ca
A91: SINAPI | B91: 2747 | C91: =PROPER(IF(H91="i",VLOOKUP(B91,'Ins SINAPI PE 06-2025 Onerado'!$B$11:$F$50003,2,0),VLOOKUP(B91,'Comp SINAPI PE 06-2025 Onerado'!$G$11:$H$50004,2,0))) -> Mourao Rolico De Madeira Tratada, D = 16 A 20 Cm, H = 2,20 M, Em Eucalipto Ou Equivalente Da Regiao (Para Cerca) | D91: =IF(H91="i",VLOOKUP(B91,'Ins SINAPI PE 06-2025 Onerado'!$B$11:$F$50003,3,0),VLOOKUP(B91,'Comp SINAPI PE 06-2025 Onerado'!$G$11:$H$50004,3,0)) -> M | E91: 1.5 | F91: =IF(H91="i",VLOOKUP(B91,'Ins SINAPI PE 06-2025 Onerado'!$B$11:$F$50003,5,0),VLOOKUP(B91,'Comp SINAPI PE 06-2025 Onerado'!$G$11:$H$50004,5,0)) -> 22.45 | G91: =TRUNC(E91*F91,2) -> 33.67 | H91: i
A92: =B88 -> CPU.08 | C92: EQUIPAMENTOS | G92: 0 | H92: ss
A93: =B88 -> CPU.08 | C93: SERVIÇOS | G93: =SUM(G94:G96) -> 115.88 | H93: ss
A94: SINAPI | B94: 94975 | C94: =PROPER(IF(H94="i",VLOOKUP(B94,'Ins SINAPI PE 06-2025 Onerado'!$B$11:$F$50003,2,0),VLOOKUP(B94,'Comp SINAPI PE 06-2025 Onerado'!$B$11:$C$50004,2,0))) -> Concreto Fck = 15Mpa, Traço 1:3,4:3,5 (Em Massa Seca De Cimento/ Areia Média/ Brita 1) - Preparo Manual. Af_05/2021 | D94: =IF(H94="i",VLOOKUP(B94,'Ins SINAPI PE 06-2025 Onerado'!$B$11:$F$50003,2,0),VLOOKUP(B94,'Comp SINAPI PE 06-2025 Onerado'!$B$11:$H$50004,3,0)) -> M3 | E94: 0.01 | F94: =IF(H94="i",VLOOKUP(B94,'Ins SINAPI PE 06-2025 Onerado'!$B$11:$F$50003,5,0),VLOOKUP(B94,'Comp SINAPI PE 06-2025 Onerado'!$B$11:$E$50004,4,0)) -> 515.38 | G94: =TRUNC(E94*F94,2) -> 5.15 | H94: ca
A95: PRÓPRIA | B95: CODE | C95: Hospedagem | D95: un | E95: ='Memorial de cálculo'!D55*'Memorial de cálculo'!H55+'Memorial de cálculo'!D56*'Memorial de cálculo'!H56 -> 0.3 | F95: 252.8 | G95: 75.84 | H95: ca
A96: PRÓPRIA | B96: CODE | C96: Veículo tipo pick-up, cabine dupla - 2.0 16V 4x4 diesel Aut. | D96: dia | E96: =LARGE('Memorial de cálculo'!H55:H56,1) -> 0.2 | F96: ='CPU-VEICULO_PickUp (2)'!C11 -> 174.4736185 | G96: 34.89 | H96: ca
A97: =B88 -> CPU.08 | C97: MÃO DE OBRA | G97: =SUM(G98:G99) -> 64.29 | H97: mdo
A98: SINAPI | B98: 90781 | C98: =PROPER(IF(H98="i",VLOOKUP(B98,'Ins SINAPI PE 06-2025 Onerado'!$B$11:$F$50003,2,0),VLOOKUP(B98,'Comp SINAPI PE 06-2025 Onerado'!$B$11:$C$50004,2,0))) -> Topografo Com Encargos Complementares | D98: =IF(H98="i",VLOOKUP(B98,'Ins SINAPI PE 06-2025 Onerado'!$B$11:$F$50003,2,0),VLOOKUP(B98,'Comp SINAPI PE 06-2025 Onerado'!$B$11:$H$50004,3,0)) -> H | E98: 0.8 | F98: =IF(H98="i",VLOOKUP(B98,'Ins SINAPI PE 06-2025 Onerado'!$B$11:$F$50003,5,0),VLOOKUP(B98,'Comp SINAPI PE 06-2025 Onerado'!$B$11:$E$50004,4,0)) -> 32.22 | G98: 25.77 | H98: ca
A99: SINAPI | B99: 88316 | C99: =PROPER(IF(H99="i",VLOOKUP(B99,'Ins SINAPI PE 06-2025 Onerado'!$B$11:$F$50003,2,0),VLOOKUP(B99,'Comp SINAPI PE 06-2025 Onerado'!$B$11:$C$50004,2,0))) -> Servente Com Encargos Complementares | D99: =IF(H99="i",VLOOKUP(B99,'Ins SINAPI PE 06-2025 Onerado'!$B$11:$F$50003,2,0),VLOOKUP(B99,'Comp SINAPI PE 06-2025 Onerado'!$B$11:$H$50004,3,0)) -> H | E99: 1.6 | F99: =IF(H99="i",VLOOKUP(B99,'Ins SINAPI PE 06-2025 Onerado'!$B$11:$F$50003,5,0),VLOOKUP(B99,'Comp SINAPI PE 06-2025 Onerado'!$B$11:$E$50004,4,0)) -> 24.08 | G99: 38.52 | H99: ca
B101: CPU.09 | C101: Emboço ou massa única em argamassa | D101: m2 | E101: 1 | G101: =SUM(G108,G104,G103,G102) -> 107.05 | H101: S
A102: =B101 -> CPU.09 | C102: MATERIAL | G102: 0 | H102: ss
A103: =B101 -> CPU.09 | C103: EQUIPAMENTOS | G103: 0 | H103: ss
A104: =B101 -> CPU.09 | C104: SERVIÇOS | G104: =SUM(G105:G107) -> 107.05 | H104: ss
A105: SINAPI | B105: 104208 | C105: =PROPER(IF(H105="i",VLOOKUP(B105,'Ins SINAPI PE 06-2025 Onerado'!$B$11:$F$50003,2,0),VLOOKUP(B105,'Comp SINAPI PE 06-2025 Onerado'!$B$11:$C$50004,2,0))) -> Emboço Ou Massa Única Em Argamassa Traço 1:2:8, Preparo Mecânica Com Betoneira 400 L, Aplicada Com Projetor Tipo Canequinha Em Panos De Fachada Sem Presença De Vãos, Espessura De 35 Mm, Acesso Por Balancim Manual. Af_08/2022 | D105: =IF(H105="i",VLOOKUP(B105,'Ins SINAPI PE 06-2025 Onerado'!$B$11:$F$50003,2,0),VLOOKUP(B105,'Comp SINAPI PE 06-2025 Onerado'!$B$11:$H$50004,3,0)) -> M2 | E105: 1 | F105: =IF(H105="i",VLOOKUP(B105,'Ins SINAPI PE 06-2025 Onerado'!$B$11:$F$50003,5,0),VLOOKUP(B105,'Comp SINAPI PE 06-2025 Onerado'!$B$11:$E$50004,4,0)) -> 66.67 | G105: =TRUNC(E105*F105,2) -> 66.67 | H105: ca
A106: PRÓPRIA | B106: CODE | C106: Hospedagem | D106: un | E106: ='Memorial de cálculo'!D60*'Memorial de cálculo'!H60+'Memorial de cálculo'!D61*'Memorial de cálculo'!H61 -> 0.13625 | F106: 252.8 | G106: =TRUNC(E106*F106,2) -> 34.44 | H106: ca
A107: PRÓPRIA | B107: CODE | C107: Veículo tipo pick-up, cabine dupla - 2.0 16V 4x4 diesel Aut. | D107: dia | E107: =LARGE('Memorial de cálculo'!H60:H61,1) -> 0.0340625 | F107: ='CPU-VEICULO_PickUp (2)'!C11 -> 174.4736185 | G107: =TRUNC(E107*F107,2) -> 5.94 | H107: ca
A108: =B101 -> CPU.09 | C108: MÃO DE OBRA | G108: 0 | H108: mdo
B110: CPU.10 | C110: Limpeza da superfície | D110: m2 | E110: 1 | G110: =SUM(G117,G113,G112,G111) -> 5.99 | H110: S
A111: =B110 -> CPU.10 | C111: MATERIAL | G111: 0 | H111: ss
A112: =B110 -> CPU.10 | C112: EQUIPAMENTOS | G112: 0 | H112: ss
A113: =B110 -> CPU.10 | C113: SERVIÇOS | G113: =SUM(G114:G116) -> 5.99 | H113: ss
A114: SINAPI | B114: 99814 | C114: =PROPER(IF(H114="i",VLOOKUP(B114,'Ins SINAPI PE 06-2025 Onerado'!$B$11:$F$50003,2,0),VLOOKUP(B114,'Comp SINAPI PE 06-2025 Onerado'!$B$11:$C$50004,2,0))) -> Limpeza De Superfície Com Jato De Alta Pressão. Af_04/2019 | D114: =IF(H114="i",VLOOKUP(B114,'Ins SINAPI PE 06-2025 Onerado'!$B$11:$F$50003,2,0),VLOOKUP(B114,'Comp SINAPI PE 06-2025 Onerado'!$B$11:$H$50004,3,0)) -> M2 | E114: 1 | F114: =IF(H114="i",VLOOKUP(B114,'Ins SINAPI PE 06-2025 Onerado'!$B$11:$F$50003,5,0),VLOOKUP(B114,'Comp SINAPI PE 06-2025 Onerado'!$B$11:$E$50004,4,0)) -> 2.21 | G114: =TRUNC(E114*F114,2) -> 2.21 | H114: ca
A115: PRÓPRIA | B115: CODE | C115: Hospedagem | D115: un | E115: ='Memorial de cálculo'!D65*'Memorial de cálculo'!H65 -> 0.011125 | F115: 252.8 | G115: =TRUNC(E115*F115,2) -> 2.81 | H115: ca
A116: PRÓPRIA | B116: CODE | C116: Veículo tipo pick-up, cabine dupla - 2.0 16V 4x4 diesel Aut. | D116: dia | E116: =LARGE('Memorial de cálculo'!H65,1) -> 0.0055625 | F116: ='CPU-VEICULO_PickUp (2)'!C11 -> 174.4736185 | G116: =TRUNC(E116*F116,2) -> 0.97 | H116: ca
A117: =B110 -> CPU.10 | C117: MÃO DE OBRA | G117: 0 | H117: mdo
B119: CPU.11 | C119: Projeto geométrico | D119: un | E119: 1 | G119: =SUM(G123,G122,G121,G120) -> 8599.1 | H119: S
A120: =B119 -> CPU.11 | C120: MATERIAL | G120: 0 | H120: ss
A121: =B119 -> CPU.11 | C121: EQUIPAMENTOS | G121: 0 | H121: ss
A122: =B119 -> CPU.11 | C122: SERVIÇOS | G122: 0 | H122: ss
A123: =B119 -> CPU.11 | C123: MÃO DE OBRA | G123: =SUM(G124:G126) -> 8599.1 | H123: mdo
A124: SINAPI | B124: 90777 | C124: =PROPER(IF(H124="i",VLOOKUP(B124,'Ins SINAPI PE 06-2025 Onerado'!$B$11:$F$50003,2,0),VLOOKUP(B124,'Comp SINAPI PE 06-2025 Onerado'!$B$11:$C$50004,2,0))) -> Engenheiro Civil De Obra Junior Com Encargos Complementares | D124: =IF(H124="i",VLOOKUP(B124,'Ins SINAPI PE 06-2025 Onerado'!$B$11:$F$50003,2,0),VLOOKUP(B124,'Comp SINAPI PE 06-2025 Onerado'!$B$11:$H$50004,3,0)) -> H | E124: 30 | F124: =IF(H124="i",VLOOKUP(B124,'Ins SINAPI PE 06-2025 Onerado'!$B$11:$F$50003,5,0),VLOOKUP(B124,'Comp SINAPI PE 06-2025 Onerado'!$B$11:$E$50004,4,0)) -> 129.55 | G124: =TRUNC(E124*F124,2) -> 3886.5 | H124: ca
A125: SINAPI | B125: 90779 | C125: =PROPER(IF(H125="i",VLOOKUP(B125,'Ins SINAPI PE 06-2025 Onerado'!$B$11:$F$50003,2,0),VLOOKUP(B125,'Comp SINAPI PE 06-2025 Onerado'!$B$11:$C$50004,2,0))) -> Engenheiro Civil De Obra Senior Com Encargos Complementares | D125: =IF(H125="i",VLOOKUP(B125,'Ins SINAPI PE 06-2025 Onerado'!$B$11:$F$50003,2,0),VLOOKUP(B125,'Comp SINAPI PE 06-2025 Onerado'!$B$11:$H$50004,3,0)) -> H | E125: 20 | F125: =IF(H125="i",VLOOKUP(B125,'Ins SINAPI PE 06-2025 Onerado'!$B$11:$F$50003,5,0),VLOOKUP(B125,'Comp SINAPI PE 06-2025 Onerado'!$B$11:$E$50004,4,0)) -> 161.77 | G125: =TRUNC(E125*F125,2) -> 3235.4 | H125: ca
A126: SINAPI | B126: 90775 | C126: =PROPER(IF(H126="i",VLOOKUP(B126,'Ins SINAPI PE 06-2025 Onerado'!$B$11:$F$50003,2,0),VLOOKUP(B126,'Comp SINAPI PE 06-2025 Onerado'!$B$11:$C$50004,2,0))) -> Desenhista Projetista Com Encargos Complementares | D126: =IF(H126="i",VLOOKUP(B126,'Ins SINAPI PE 06-2025 Onerado'!$B$11:$F$50003,2,0),VLOOKUP(B126,'Comp SINAPI PE 06-2025 Onerado'!$B$11:$H$50004,3,0)) -> H | E126: 60 | F126: =IF(H126="i",VLOOKUP(B126,'Ins SINAPI PE 06-2025 Onerado'!$B$11:$F$50003,5,0),VLOOKUP(B126,'Comp SINAPI PE 06-2025 Onerado'!$B$11:$E$50004,4,0)) -> 24.62 | G126: =TRUNC(E126*F126,2) -> 1477.2 | H126: ca
B128: CPU.12 | C128: Disponibilidade de veículo para apoio a fiscalização, inclusive combustível | D128: un | E128: 1 | G128: =SUM(G133,G131,G130,G129) -> 174.47 | H128: S
A129: =B128 -> CPU.12 | C129: MATERIAL | G129: 0 | H129: ss
A130: =B128 -> CPU.12 | C130: EQUIPAMENTOS | G130: 0 | H130: ss
A131: =B128 -> CPU.12 | C131: SERVIÇOS | G131: =SUM(G132:G132) -> 174.47 | H131: ss
A132: PRÓPRIA | B132: CODE | C132: Veículo tipo pick-up, cabine dupla - 2.0 16V 4x4 diesel Aut. | D132: dia | E132: 1 | F132: ='CPU-VEICULO_PickUp (2)'!C11 -> 174.4736185 | G132: =TRUNC(E132*F132,2) -> 174.47 | H132: ca
A133: =B128 -> CPU.12 | C133: MÃO DE OBRA | G133: 0 | H133: mdo
B135: CPU.13 | C135: Selagem de fissuras com resina epóxi | D135: m | E135: 1 | G135: =SUM(G142,G138,G137,G136) -> 45.49 | H135: S
A136: =B135 -> CPU.13 | C136: MATERIAL | G136: 0 | H136: ss
A137: =B135 -> CPU.13 | C137: EQUIPAMENTOS | G137: 0 | H137: ss
A138: =B135 -> CPU.13 | C138: SERVIÇOS | G138: =SUM(G139:G141) -> 45.49 | H138: ss
A139: SICRO | B139: 4915653 | C139: Selagem superficial de fissuras com adesivo estrutural à base de resina epóxi de alta viscosidade, inclusive limpeza superficial - fornecimento e aplicação | D139: kg | E139: 0.3 | F139: 73.91 | G139: =TRUNC(E139*F139,2) -> 22.17 | H139: ca
A140: PRÓPRIA | B140: CODE | C140: Hospedagem | D140: un | E140: ='Memorial de cálculo'!D75*'Memorial de cálculo'!H75 -> 0.075 | F140: 252.8 | G140: =TRUNC(E140*F140,2) -> 18.96 | H140: ca
A141: PRÓPRIA | B141: CODE | C141: Veículo tipo pick-up, cabine dupla - 2.0 16V 4x4 diesel Aut. | D141: dia | E141: =LARGE('Memorial de cálculo'!H75:H75,1) -> 0.025 | F141: ='CPU-VEICULO_PickUp (2)'!C11 -> 174.4736185 | G141: =TRUNC(E141*F141,2) -> 4.36 | H141: ca
A142: =B135 -> CPU.13 | C142: MÃO DE OBRA | G142: 0 | H142: mdo
B144: CPU.14 | C144: Concreto projetado c/ aditivo impermeabilizante | D144: m3 | E144: 1 | G144: =SUM(G152,G148,G147,G145) -> 1698.3 | H144: S
A145: =B144 -> CPU.14 | C145: MATERIAL | G145: =SUM(G146) -> 407.87 | H145: ss
A146: SINAPI | B146: 45146 | C146: =PROPER(IF(H146="i",VLOOKUP(B146,'Ins SINAPI PE 06-2025 Onerado'!$B$11:$F$50003,2,0),VLOOKUP(B146,'Comp SINAPI PE 06-2025 Onerado'!$B$11:$C$50004,2,0))) -> Aditivo Impermeabilizante Cristalizante Para Concreto | D146: =IF(H146="i",VLOOKUP(B146,'Ins SINAPI PE 06-2025 Onerado'!$B$11:$F$50003,3,0),VLOOKUP(B146,'Comp SINAPI PE 06-2025 Onerado'!$B$11:$H$50004,3,0)) -> KG | E146: ='Memorial de cálculo'!$E$82 -> 11.6335156 | F146: =IF(H146="i",VLOOKUP(B146,'Ins SINAPI PE 06-2025 Onerado'!$B$11:$F$50003,5,0),VLOOKUP(B146,'Comp SINAPI PE 06-2025 Onerado'!$B$11:$E$50004,4,0)) -> 35.06 | G146: =TRUNC(E146*F146,2) -> 407.87 | H146: i
A147: =B144 -> CPU.14 | C147: EQUIPAMENTOS | G147: 0 | H147: ss
A148: =B144 -> CPU.14 | C148: SERVIÇOS | G148: =SUM(G149:G151) -> 1290.43 | H148: ss
A149: SICRO | B149: 1207711 | C149: Concreto projetado via seca fck = 20 MPa aplicado em superfícies inclinadas e verticais | D149: m3 | E149: 1 | F149: 1110.63 | G149: =TRUNC(E149*F149,2) -> 1110.63 | H149: ca
A150: PRÓPRIA | B150: CODE | C150: Hospedagem | D150: un | E150: ='Memorial de cálculo'!D79*'Memorial de cálculo'!H79+'Memorial de cálculo'!D80*'Memorial de cálculo'!H80 -> 0.625 | F150: 252.8 | G150: =TRUNC(E150*F150,2) -> 158 | H150: ca
A151: PRÓPRIA | B151: CODE | C151: Veículo tipo pick-up, cabine dupla - 2.0 16V 4x4 diesel Aut. | D151: dia | E151: =LARGE('Memorial de cálculo'!H79:H80,1) -> 0.125 | F151: ='CPU-VEICULO_PickUp (2)'!C11 -> 174.4736185 | G151: =TRUNC(E151*F151,2) -> 21.8 | H151: ca
A152: =B144 -> CPU.14 | C152: MÃO DE OBRA | G152: 0 | H152: mdo
B154: CPU.15 | C154: Preenchimento de espaços vazios com argamassa traço 1:3 | D154: m3 | E154: 1 | G154: =SUM(G161,G157,G156,G155) -> 1055.28 | H154: S
A155: =B154 -> CPU.15 | C155: MATERIAL | G155: 0
A156: =B154 -> CPU.15 | C156: EQUIPAMENTOS | G156: 0 | H156: ss
A157: =B154 -> CPU.15 | C157: SERVIÇOS | G157: =SUM(G158:G160) -> 1055.28 | H157: ss
A158: SINAPI | B158: 88629 | C158: =PROPER(IF(H158="i",VLOOKUP(B158,'Ins SINAPI PE 06-2025 Onerado'!$B$11:$F$50003,2,0),VLOOKUP(B158,'Comp SINAPI PE 06-2025 Onerado'!$B$11:$C$50004,2,0))) -> Argamassa Traço 1:3 (Em Volume De Cimento E Areia Média Úmida), Preparo Manual. Af_08/2019 | D158: =IF(H158="i",VLOOKUP(B158,'Ins SINAPI PE 06-2025 Onerado'!$B$11:$F$50003,3,0),VLOOKUP(B158,'Comp SINAPI PE 06-2025 Onerado'!$B$11:$H$50004,3,0)) -> M3 | E158: 1 | F158: =IF(H158="i",VLOOKUP(B158,'Ins SINAPI PE 06-2025 Onerado'!$B$11:$F$50003,5,0),VLOOKUP(B158,'Comp SINAPI PE 06-2025 Onerado'!$B$11:$E$50004,4,0)) -> 691.02 | G158: =TRUNC(E158*F158,2) -> 691.02 | H158: ca
A159: PRÓPRIA | B159: CODE | C159: Hospedagem | D159: un | E159: ='Memorial de cálculo'!D86*'Memorial de cálculo'!H86 -> 1.07125 | F159: 252.8 | G159: =TRUNC(E159*F159,2) -> 270.81 | H159: ca
A160: PRÓPRIA | B160: CODE | C160: Veículo tipo pick-up, cabine dupla - 2.0 16V 4x4 diesel Aut. | D160: dia | E160: =LARGE('Memorial de cálculo'!H86:H86,1) -> 0.535625 | F160: ='CPU-VEICULO_PickUp (2)'!C11 -> 174.4736185 | G160: =TRUNC(E160*F160,2) -> 93.45 | H160: ca
A161: =B154 -> CPU.15 | C161: MÃO DE OBRA | G161: 0 | H161: mdo
B163: CPU.16 | C163: Troca do registro de gaveta, incluso registro DN 150 mm | D163: un | E163: 1 | G163: =SUM(G170,G166,G165,G164) -> 85.33 | H163: S
A164: =B163 -> CPU.16 | C164: MATERIAL | G164: 0
A165: =B163 -> CPU.16 | C165: EQUIPAMENTOS | G165: 0 | H165: ss
A166: =B163 -> CPU.16 | C166: SERVIÇOS | G166: =SUM(G167:G169) -> 85.33 | H166: ss
A167: SINAPI | B167: 103530 | C167: =PROPER(IF(H167="i",VLOOKUP(B167,'Ins SINAPI PE 06-2025 Onerado'!$B$11:$F$50003,2,0),VLOOKUP(B167,'Comp SINAPI PE 06-2025 Onerado'!$B$11:$C$50004,2,0))) -> Registro De Gaveta De Ferro Fundido Para Rede De Água Ou Esgoto, Dn 150 Mm, Junta Flangeada. Af_01/2021 | D167: =IF(H167="i",VLOOKUP(B167,'Ins SINAPI PE 06-2025 Onerado'!$B$11:$F$50003,3,0),VLOOKUP(B167,'Comp SINAPI PE 06-2025 Onerado'!$B$11:$H$50004,3,0)) -> UN | E167: 1 | F167: 57.77 | G167: =TRUNC(E167*F167,2) -> 57.77 | H167: ca
A168: PRÓPRIA | B168: CODE | C168: Hospedagem | D168: un | E168: ='Memorial de cálculo'!D90*'Memorial de cálculo'!H90+'Memorial de cálculo'!D91*'Memorial de cálculo'!H91 -> 0.0686375 | F168: 252.8 | G168: =TRUNC(E168*F168,2) -> 17.35 | H168: ca
A169: PRÓPRIA | B169: CODE | C169: Veículo tipo pick-up, cabine dupla - 2.0 16V 4x4 diesel Aut. | D169: dia | E169: =LARGE('Memorial de cálculo'!H90:H91,1) -> 0.058575 | F169: ='CPU-VEICULO_PickUp (2)'!C11 -> 174.4736185 | G169: =TRUNC(E169*F169,2) -> 10.21 | H169: ca
A170: =B163 -> CPU.16 | C170: MÃO DE OBRA | G170: 0 | H170: mdo
B172: CPU.17 | C172: Pintura esmalte, incl. base anticorrosiva e lixamento, em duas demãos | D172: m2 | E172: 1 | G172: =SUM(G179,G175,G174,G173) -> 113.26 | H172: S
A173: =B172 -> CPU.17 | C173: MATERIAL | G173: 0
A174: =B172 -> CPU.17 | C174: EQUIPAMENTOS | G174: 0 | H174: ss
A175: =B172 -> CPU.17 | C175: SERVIÇOS | G175: =SUM(G176:G178) -> 113.26 | H175: ss
A176: EMBASA | B176: 15.07.34 | C176: PINTURA ESMALTE EM METAL, INCL. BASE ANTICORROSIVA E LIXAMENTO, EM DUAS DEMAOS | D176: M2 | E176: 1 | F176: 45.26 | G176: =TRUNC(E176*F176,2) -> 45.26 | H176: ca
A177: PRÓPRIA | B177: CODE | C177: Hospedagem | D177: un | E177: ='Memorial de cálculo'!D95*'Memorial de cálculo'!H95+'Memorial de cálculo'!D96*'Memorial de cálculo'!H96 -> 0.2 | F177: 252.8 | G177: =TRUNC(E177*F177,2) -> 50.56 | H177: ca
A178: PRÓPRIA | B178: CODE | C178: Veículo tipo pick-up, cabine dupla - 2.0 16V 4x4 diesel Aut. | D178: dia | E178: =LARGE('Memorial de cálculo'!H95:H96,1) -> 0.1 | F178: ='CPU-VEICULO_PickUp (2)'!C11 -> 174.4736185 | G178: =TRUNC(E178*F178,2) -> 17.44 | H178: ca
A179: =B172 -> CPU.17 | C179: MÃO DE OBRA | G179: 0 | H179: mdo
B181: CPU.18 | C181: Caixa em concreto armado | D181: m3 | E181: 1 | G181: =SUM(G193,G184,G183,G182) -> 1433.47 | H181: S
A182: =B181 -> CPU.18 | C182: MATERIAL | G182: 0 | H182: ss
A183: =B181 -> CPU.18 | C183: EQUIPAMENTOS | G183: 0 | H183: ss
A184: =B181 -> CPU.18 | C184: SERVIÇOS | G184: =SUM(G185:G192) -> 1433.47 | H184: ss
A185: SINAPI | B185: 94975 | C185: =PROPER(IF(H185="i",VLOOKUP(B185,'Ins SINAPI PE 06-2025 Onerado'!$B$11:$F$50003,2,0),VLOOKUP(B185,'Comp SINAPI PE 06-2025 Onerado'!$B$11:$C$50004,2,0))) -> Concreto Fck = 15Mpa, Traço 1:3,4:3,5 (Em Massa Seca De Cimento/ Areia Média/ Brita 1) - Preparo Manual. Af_05/2021 | D185: =IF(H185="i",VLOOKUP(B185,'Ins SINAPI PE 06-2025 Onerado'!$B$11:$F$50003,2,0),VLOOKUP(B185,'Comp SINAPI PE 06-2025 Onerado'!$B$11:$H$50004,3,0)) -> M3 | E185: 1 | F185: =IF(H185="i",VLOOKUP(B185,'Ins SINAPI PE 06-2025 Onerado'!$B$11:$F$50003,5,0),VLOOKUP(B185,'Comp SINAPI PE 06-2025 Onerado'!$B$11:$E$50004,4,0)) -> 515.38 | G185: =TRUNC(E185*F185,2) -> 515.38 | H185: ca
A186: SINAPI | B186: 97120 | C186: =PROPER(IF(H186="i",VLOOKUP(B186,'Ins SINAPI PE 06-2025 Onerado'!$B$11:$F$50003,2,0),VLOOKUP(B186,'Comp SINAPI PE 06-2025 Onerado'!$B$11:$C$50004,2,0))) -> Barras De Ligação, Aço Ca-50 De 10 Mm, Para Execução De Pavimento De Concreto - Fornecimento E Instalação. Af_04/2022 | D186: =IF(H186="i",VLOOKUP(B186,'Ins SINAPI PE 06-2025 Onerado'!$B$11:$F$50003,2,0),VLOOKUP(B186,'Comp SINAPI PE 06-2025 Onerado'!$B$11:$H$50004,3,0)) -> KG | E186: 0.6 | F186: =IF(H186="i",VLOOKUP(B186,'Ins SINAPI PE 06-2025 Onerado'!$B$11:$F$50003,5,0),VLOOKUP(B186,'Comp SINAPI PE 06-2025 Onerado'!$B$11:$E$50004,4,0)) -> 9.92 | G186: =TRUNC(E186*F186,2) -> 5.95 | H186: ca
A187: SINAPI | B187: 93589 | C187: =PROPER(IF(H187="i",VLOOKUP(B187,'Ins SINAPI PE 06-2025 Onerado'!$B$11:$F$50003,2,0),VLOOKUP(B187,'Comp SINAPI PE 06-2025 Onerado'!$B$11:$C$50004,2,0))) -> Transporte Com Caminhão Basculante De 10 M³, Em Via Urbana Em Revestimento Primário (Unidade: M3Xkm). Af_07/2020 | D187: =IF(H187="i",VLOOKUP(B187,'Ins SINAPI PE 06-2025 Onerado'!$B$11:$F$50003,2,0),VLOOKUP(B187,'Comp SINAPI PE 06-2025 Onerado'!$B$11:$H$50004,3,0)) -> M3XKM | E187: ='Memorial de cálculo'!$H$8 -> 10.6 | F187: =IF(H187="i",VLOOKUP(B187,'Ins SINAPI PE 06-2025 Onerado'!$B$11:$F$50003,5,0),VLOOKUP(B187,'Comp SINAPI PE 06-2025 Onerado'!$B$11:$E$50004,4,0)) -> 2.69 | G187: =TRUNC(E187*F187,2) -> 28.51 | H187: ca
A188: SINAPI | B188: 95875 | C188: =PROPER(IF(H188="i",VLOOKUP(B188,'Ins SINAPI PE 06-2025 Onerado'!$B$11:$F$50003,2,0),VLOOKUP(B188,'Comp SINAPI PE 06-2025 Onerado'!$B$11:$C$50004,2,0))) -> Transporte Com Caminhão Basculante De 10 M³, Em Via Urbana Pavimentada, Dmt Até 30 Km (Unidade: M3Xkm). Af_07/2020 | D188: =IF(H188="i",VLOOKUP(B188,'Ins SINAPI PE 06-2025 Onerado'!$B$11:$F$50003,2,0),VLOOKUP(B188,'Comp SINAPI PE 06-2025 Onerado'!$B$11:$H$50004,3,0)) -> M3XKM | E188: =30 -> 30 | F188: =IF(H188="i",VLOOKUP(B188,'Ins SINAPI PE 06-2025 Onerado'!$B$11:$F$50003,5,0),VLOOKUP(B188,'Comp SINAPI PE 06-2025 Onerado'!$B$11:$E$50004,4,0)) -> 2.48 | G188: 74.4 | H188: ca
A189: SINAPI | B189: 95875 | C189: =PROPER(IF(H189="i",VLOOKUP(B189,'Ins SINAPI PE 06-2025 Onerado'!$B$11:$F$50003,2,0),VLOOKUP(B189,'Comp SINAPI PE 06-2025 Onerado'!$B$11:$C$50004,2,0))) -> Transporte Com Caminhão Basculante De 10 M³, Em Via Urbana Pavimentada, Dmt Até 30 Km (Unidade: M3Xkm). Af_07/2020 | D189: =IF(H189="i",VLOOKUP(B189,'Ins SINAPI PE 06-2025 Onerado'!$B$11:$F$50003,2,0),VLOOKUP(B189,'Comp SINAPI PE 06-2025 Onerado'!$B$11:$H$50004,3,0)) -> M3XKM | E189: ='Memorial de cálculo'!$H$7-30 -> 130.6 | F189: =IF(H189="i",VLOOKUP(B189,'Ins SINAPI PE 06-2025 Onerado'!$B$11:$F$50003,5,0),VLOOKUP(B189,'Comp SINAPI PE 06-2025 Onerado'!$B$11:$E$50004,4,0)) -> 2.48 | G189: 323.88 | H189: ca
A190: SINAPI | B190: 92268 | C190: =PROPER(IF(H190="i",VLOOKUP(B190,'Ins SINAPI PE 06-2025 Onerado'!$B$11:$F$50003,2,0),VLOOKUP(B190,'Comp SINAPI PE 06-2025 Onerado'!$B$11:$C$50004,2,0))) -> Fabricação De Fôrma Para Lajes, Em Chapa De Madeira Compensada Plastificada, E = 18 Mm. Af_09/2020 | D190: =IF(H190="i",VLOOKUP(B190,'Ins SINAPI PE 06-2025 Onerado'!$B$11:$F$50003,2,0),VLOOKUP(B190,'Comp SINAPI PE 06-2025 Onerado'!$B$11:$H$50004,3,0)) -> M2 | E190: 5.5 | F190: =IF(H190="i",VLOOKUP(B190,'Ins SINAPI PE 06-2025 Onerado'!$B$11:$F$50003,5,0),VLOOKUP(B190,'Comp SINAPI PE 06-2025 Onerado'!$B$11:$E$50004,4,0)) -> 75.74 | G190: 416.57 | H190: ca
A191: PRÓPRIA | B191: CODE | C191: Hospedagem | D191: un | E191: ='Memorial de cálculo'!H100*'Memorial de cálculo'!H104 -> 0.001212246094 | F191: 252.8 | G191: 0.3 | H191: ca
A192: PRÓPRIA | B192: CODE | C192: Veículo tipo pick-up, cabine dupla - 2.0 16V 4x4 diesel Aut. | D192: dia | E192: =LARGE('Memorial de cálculo'!H100:H104,1) -> 0.3925 | F192: ='CPU-VEICULO_PickUp (2)'!C11 -> 174.4736185 | G192: 68.48 | H192: ca
A193: =B181 -> CPU.18 | C193: MÃO DE OBRA | G193: 0 | H193: mdo

Sheet BDI serv
A1: =Resumo!A1 -> Ministério da Integração e do Desenvolvimento Regional
A2: =Resumo!A2 -> Companhia de Desenvolvimento dos Vales do São Francisco e do Parnaíba
A4: COMPOSIÇÃO DE BDI - SERVIÇOS - NÃO DESONERADO
A5: OBRA: | B5: =Resumo!B5 -> Execução de manutenção e obras civis nas barragens de Sitio Lambedor, Poço da Onça, Brejo, Boqueirão e Paus Grandes localizadas no estado de Pernambuco. | D5: BDI (serv.): | E5: =D23 -> 0.2321
A6: LOCAL: | B6: =Resumo!B6 -> BARRAGENS DE PERNAMBUCO | D6: BDI (forn.): | E6: ='BDI forn'!E6 -> 0.1415
A7: DATA BASE: | B7: =Resumo!B7 -> 2025-07-01
A8: PRAZO: | B8: =Resumo!B8 -> 240 dias
A9: ITEM | B9: DESCRIÇÃO | C9: SIGLA | D9: % APLICADO | E9: REFERÊNCIA TCU (ACÓRDÃO Nº 2622/2013)
E10: 1º QUARTIL | F10: 2º QUARTIL | G10: 3º QUARTIL
A11: 1 | B11: ADMINISTRAÇÃO CENTRAL | C11: AC | D11: =E11 -> 0.04 | E11: 0.04 | F11: 0.0552 | G11: 0.0785
A12: 2 | B12: IMPOSTOS | C12: T | D12: =SUM(D13:D16) -> 0.0665
A13: 2.1 | B13: ISS (*) | D13: 0.03 | E13: - | F13: - | G13: -
A14: 2.2 | B14: PIS | D14: 0.0065 | E14: - | F14: - | G14: -
A15: 2.3 | B15: Cofins | D15: 0.03 | E15: - | F15: - | G15: -
A16: 2.4 | B16: Contribuição previdênciária sobre a receita bruta (CPRB) | E16: - | F16: - | G16: -
A17: 3 | B17: SEGURO, GARANTIA E RISCO | D17: =SUM(D18:D20) -> 0.0227
A18: 3.1 | B18: Seguro | C18: S | D18: =E18 -> 0.0081 | E18: 0.0081 | F18: 0.0122 | G18: 0.0199
A19: 3.2 | B19: Garantia | C19: G
A20: 3.3 | B20: Risco | C20: R | D20: =E20 -> 0.0146 | E20: 0.0146 | F20: 0.0232 | G20: 0.0316
A21: 4 | B21: DESPESAS FINANCEIRAS | C21: DF | D21: =F21 -> 0.0102 | E21: 0.0094 | F21: 0.0102 | G21: 0.01363
A22: 5 | B22: LUCRO | C22: L | D22: =E22 -> 0.0714 | E22: 0.0714 | F22: 0.084 | G22: 0.1043
B23: BDI ADOTADO: | D23: =ROUND(((((1+D11+D17)*(1+D21)*(1+D22))/(1-D12))-1),4) -> 0.2321
A24: Considerações: O BDI foi calculado através da seguinte fórmula, regulamentada pelo Acórdão Nº 2622/2013 – TCU.
H173: =SUM(H174:H177) -> 0
D177: mec | F177: 2 | G177: 128

Sheet BDI forn
A1: =Resumo!A1 -> Ministério da Integração e do Desenvolvimento Regional
A2: =Resumo!A2 -> Companhia de Desenvolvimento dos Vales do São Francisco e do Parnaíba
A4: COMPOSIÇÃO DE BDI - FORNECIMENTO - NÃO DESONERADO
A5: =Resumo!A5 -> OBRA: | B5: =Resumo!B5 -> Execução de manutenção e obras civis nas barragens de Sitio Lambedor, Poço da Onça, Brejo, Boqueirão e Paus Grandes localizadas no estado de Pernambuco. | D5: BDI (serv.): | E5: ='BDI serv'!E5 -> 0.2321
A6: =Resumo!A6 -> LOCAL: | B6: =Resumo!B6 -> BARRAGENS DE PERNAMBUCO | D6: BDI (forn.): | E6: =D23 -> 0.1415
A7: =Resumo!A7 -> DATA BASE: | B7: =Resumo!B7 -> 2025-07-01
A8: =Resumo!A8 -> PRAZO: | B8: =Resumo!B8 -> 240 dias
A9: ITEM | B9: DESCRIÇÃO | C9: SIGLA | D9: % APLICADO | E9: REFERÊNCIA TCU (ACÓRDÃO Nº 2622/2013)
E10: 1º QUARTIL | F10: 2º QUARTIL | G10: 3º QUARTIL
A11: 1 | B11: ADMINISTRAÇÃO CENTRAL | C11: AC | D11: 0.03 | E11: 0.015 | F11: 0.0345 | G11: 0.0449
A12: 2 | B12: IMPOSTOS | C12: T | D12: =SUM(D13:D16) -> 0.0365
A13: 2.1 | B13: ISS (*) | E13: - | F13: - | G13: -
A14: 2.2 | B14: PIS | D14: 0.0065 | E14: - | F14: - | G14: -
A15: 2.3 | B15: Cofins | D15: 0.03 | E15: - | F15: - | G15: -
A16: 2.4 | B16: Contribuição previdênciária sobre a receita bruta (CPRB) | E16: - | F16: - | G16: -
A17: 3 | B17: SEGURO, GARANTIA E RISCO | D17: =SUM(D18:D20) -> 0.0086
A18: 3.1 | B18: Seguro | C18: S | D18: =E18 -> 0.003 | E18: 0.003 | F18: 0.0048 | G18: 0.0082
A19: 3.2 | B19: Garantia | C19: G
A20: 3.3 | B20: Risco | C20: R | D20: =E20 -> 0.0056 | E20: 0.0056 | F20: 0.0085 | G20: 0.0089
A21: 4 | B21: DESPESAS FINANCEIRAS | C21: DF | D21: =F21 -> 0.0085 | E21: 0.0085 | F21: 0.0085 | G21: 0.0111
A22: 5 | B22: LUCRO | C22: L | D22: 0.05 | E22: 0.035 | F22: 0.0511 | G22: 0.0622
B23: BDI ADOTADO: | D23: =ROUND(((((1+D11+D17)*(1+D21)*(1+D22))/(1-D12))-1),4) -> 0.1415
A24: Considerações: O BDI foi calculado através da seguinte fórmula, regulamentada pelo Acórdão Nº 2622/2013 – TCU.
H173: =SUM(H174:H177) -> 0
D177: mec | F177: 2 | G177: 128

Sheet Cronograma Geral
A1: Ministério da Integração e do Desenvolvimento Regional
A2: Companhia de Desenvolvimento dos Vales do São Francisco e do Parnaíba
A4: CRONOGRAMA FÍSICO-FINANCEIRO NÃO DESONERADO
A5: =Resumo!A5 -> OBRA: | B5: =Resumo!B5 -> Execução de manutenção e obras civis nas barragens de Sitio Lambedor, Poço da Onça, Brejo, Boqueirão e Paus Grandes localizadas no estado de Pernambuco.
A6: =Resumo!A6 -> LOCAL: | B6: =Resumo!B6 -> BARRAGENS DE PERNAMBUCO
A7: =Resumo!A7 -> DATA BASE: | B7: =Resumo!B7 -> 2025-07-01
A8: =Resumo!A8 -> PRAZO: | B8: =Resumo!B8 -> 240 dias
A9: ITEM | B9: DESCRIÇÃO | C9: TOTAL POR ETAPA | D9: MESES | L9: TOTAL
D10: 1 | E10: 2 | F10: 3 | G10: 4 | H10: 5 | I10: 6 | J10: 7 | K10: 8
A11: 1.1 | B11: =VLOOKUP(A11,Resumo!A$10:I$1005,2) -> Sítio Lambedor | C11: =VLOOKUP(A11,Resumo!A$10:I$1005,7) -> 244359.89 | D11: =$C11*D12 -> 131371.4655 | E11: =$C11*E12 -> 112988.4245 | L11: =SUM(D11:K11) -> 244359.89 | M11: R$
C12: =C11/C11 -> 1 | D12: ='Cronograma Sítio Lambedor'!D32 -> 0.5376146857 | E12: ='Cronograma Sítio Lambedor'!E32 -> 0.4623853143 | L12: 1 | M12: %
A13: 1.2 | B13: =VLOOKUP(A13,Resumo!A$10:I$1005,2) -> Poço da Onça | C13: =VLOOKUP(A13,Resumo!A$10:I$1005,7) -> 287608.52 | D13: =$C13*D14 -> 106492.2412 | E13: =$C13*E14 -> 101859.899 | F13: =$C13*F14 -> 79256.37985 | L13: 287608.52 | M13: R$
C14: =C13/C13 -> 1 | D14: ='Cronograma Poço da Onça'!D34 -> 0.3702680337 | E14: ='Cronograma Poço da Onça'!E34 -> 0.3541616186 | F14: ='Cronograma Poço da Onça'!F34 -> 0.2755703477 | L14: 1 | M14: %
A15: 1.3 | B15: =VLOOKUP(A15,Resumo!A$10:I$1005,2) -> Brejo | C15: =VLOOKUP(A15,Resumo!A$10:I$1005,7) -> 403473.8 | G15: =$C15*G16 -> 141003.2021 | H15: =$C15*H16 -> 204113.5081 | I15: 58357.08981 | L15: 403473.8 | M15: R$
C16: =C15/C15 -> 1 | G16: ='Cronograma Brejo'!D38 -> 0.349473007 | H16: ='Cronograma Brejo'!E38 -> 0.5058903653 | I16: ='Cronograma Brejo'!F38 -> 0.1446366277 | L16: 1 | M16: %
A17: 1.4 | B17: =VLOOKUP(A17,Resumo!A$10:I$1005,2) -> Boqueirão | C17: =VLOOKUP(A17,Resumo!A$10:I$1005,7) -> 289468.97 | G17: =$C17*G18 -> 100144.8783 | H17: 99025.40069 | I17: =$C17*I18 -> 90298.69105 | L17: 289468.97 | M17: R$
C18: =C17/C17 -> 1 | G18: ='Cronograma Boqueirão'!D34 -> 0.3459606681 | H18: ='Cronograma Boqueirão'!E34 -> 0.342093319 | I18: ='Cronograma Boqueirão'!F34 -> 0.3119460129 | L18: 1 | M18: %
A19: 1.5 | B19: =VLOOKUP(A19,Resumo!A$10:I$1005,2) -> Paus Grandes | C19: =VLOOKUP(A19,Resumo!A$10:I$1005,7) -> 169147.08 | J19: =$C19*J20 -> 87910.94275 | K19: =$C19*K20 -> 81236.13725 | L19: 169147.08 | M19: R$
C20: =C19/C19 -> 1 | J20: ='Cronograma Paus Grandes'!D34 -> 0.5197307736 | K20: ='Cronograma Paus Grandes'!E34 -> 0.4802692264 | L20: 1 | M20: %
B21: VALOR TOTAL: | C21: =SUMIF($M$11:$M$20,"R$",C$11:C$20) -> 1394058.26 | D21: 237863.7066 | E21: 214848.3235 | F21: 79256.37985 | G21: 241148.0804 | H21: 303138.9088 | I21: 148655.7809 | J21: 87910.94275 | K21: 81236.13725 | L21: 1394058.26
B22: VALOR ACUMULADO: | D22: =D21 -> 237863.7066 | E22: =E21+D22 -> 452712.0301 | F22: =F21+E22 -> 531968.41 | G22: 773116.4904 | H22: 1076255.399 | I22: =I21+H22 -> 1224911.18 | J22: =J21+I22 -> 1312822.123 | K22: 1394058.26 | L22: =K22 -> 1394058.26 | O22: =IF(L22=Resumo!G21,"ok","ERRO") -> ok
B23: FÍSICO PARCIAL: | D23: =SUMIF($M$11:$M$20,"R$",D$11:D$20)/$C$21 -> 0.1706268048 | E23: =SUMIF($M$11:$M$20,"R$",E$11:E$20)/$C$21 -> 0.1541171769 | F23: 0.05685298967 | G23: 0.1729827851 | H23: 0.2174506744 | I23: 0.1066352714 | J23: 0.06306116844 | K23: 0.05827312931 | L23: =SUMIF($M$11:$M$20,"R$",L$11:L$20)/$C$21 -> 1
B24: AVANÇO FÍSICO: | D24: =D23 -> 0.1706268048 | E24: =E23+D24 -> 0.3247439818 | F24: =F23+E24 -> 0.3815969714 | G24: 0.5545797565 | H24: 0.7720304309 | I24: =I23+H24 -> 0.8786657022 | J24: =J23+I24 -> 0.9417268707 | K24: 1

Sheet Cronograma Sítio Lambedor
A1: Ministério da Integração e do Desenvolvimento Regional
A2: Companhia de Desenvolvimento dos Vales do São Francisco e do Parnaíba
A4: CRONOGRAMA FÍSICO-FINANCEIRO NÃO DESONERADO
A5: =Resumo!A5 -> OBRA: | B5: =Resumo!B5 -> Execução de manutenção e obras civis nas barragens de Sitio Lambedor, Poço da Onça, Brejo, Boqueirão e Paus Grandes localizadas no estado de Pernambuco.
A6: =Resumo!A6 -> LOCAL: | B6: =Resumo!B6 -> BARRAGENS DE PERNAMBUCO
A7: =Resumo!A7 -> DATA BASE: | B7: =Resumo!B7 -> 2025-07-01
A8: =Resumo!A8 -> PRAZO: | B8: ='Sítio Lambedor'!B8 -> 60 dias
B9: ='Sítio Lambedor'!B9 -> Sítio Lambedor
A10: ITEM | B10: DESCRIÇÃO | C10: TOTAL POR ETAPA | D10: MESES | F10: TOTAL
D11: 1 | E11: 2
A12: 1 | B12: =VLOOKUP(A12,'Sítio Lambedor'!A12:D63,4) -> ADMINISTRAÇÃO DA OBRA | C12: =VLOOKUP(A12,'Sítio Lambedor'!A12:I63,9) -> 71611.82 | D12: =$C12*D13 -> 29774.02546 | E12: =$C12*E13 -> 41837.79454 | F12: =SUM(D12:E12) -> 71611.82 | G12: R$
C13: =C12/C12 -> 1 | D13: =SUMIF($G$14:$G$29,"R$",D$14:D$29)/$C$30 -> 0.4157697075 | E13: =1-D13 -> 0.5842302925 | F13: 1 | G13: %
A14: 2 | B14: =VLOOKUP(A14,'Sítio Lambedor'!A14:D65,4) -> SERVIÇOS PRELIMINARES | C14: =VLOOKUP(A14,'Sítio Lambedor'!A14:I65,9) -> 30081.1 | D14: =$C14*D15 -> 30081.1 | F14: 30081.1 | G14: R$
C15: =C14/C14 -> 1 | D15: 1 | F15: 1 | G15: %
A16: 3 | B16: =VLOOKUP(A16,'Sítio Lambedor'!A16:D67,4) -> CORTE DA VEGETAÇÃO E REMOÇÃO DAS RAIZES | C16: =VLOOKUP(A16,'Sítio Lambedor'!A16:I67,9) -> 43496.1 | D16: =$C16*D17 -> 43496.1 | F16: 43496.1 | G16: R$
C17: =C16/C16 -> 1 | D17: 1 | F17: 1 | G17: %
A18: 4 | B18: =VLOOKUP(A18,'Sítio Lambedor'!A18:D69,4) -> RECUPERAÇÃO DA CRISTA | C18: =VLOOKUP(A18,'Sítio Lambedor'!A18:I69,9) -> 55180.64 | D18: =$C18*D19 -> 27590.32 | E18: =$C18*E19 -> 27590.32 | F18: 55180.64 | G18: R$
C19: =C18/C18 -> 1 | D19: 0.5 | E19: 0.5 | F19: 1 | G19: %
A20: 5 | B20: =VLOOKUP(A20,'Sítio Lambedor'!A20:D71,4) -> MANUTENÇÃO NO PARAMENTO DE MONTANTE | C20: =VLOOKUP(A20,'Sítio Lambedor'!A20:I71,9) -> 21945.3 | E20: =$C20*E21 -> 21945.3 | F20: 21945.3 | G20: R$
C21: =C20/C20 -> 1 | E21: 1 | F21: 1 | G21: %
A22: 6 | B22: =VLOOKUP(A22,'Sítio Lambedor'!A22:D73,4) -> MANUTENÇÃO DO PARAMENTO DE JUSANTE | C22: =VLOOKUP(A22,'Sítio Lambedor'!A22:I73,9) -> 5209.7 | E22: =$C22*E23 -> 5209.7 | F22: 5209.7 | G22: R$
C23: =C22/C22 -> 1 | E23: 1 | F23: 1 | G23: %
A24: 7 | B24: =VLOOKUP(A24,'Sítio Lambedor'!A24:D75,4) -> SERVIÇOS COMPLEMENTARES | C24: =VLOOKUP(A24,'Sítio Lambedor'!A24:I75,9) -> 3780.84 | E24: =$C24*E25 -> 3780.84 | F24: 3780.84 | G24: R$
C25: =C24/C24 -> 1 | E25: 1 | F25: 1 | G25: %
A26: 8 | B26: =VLOOKUP(A26,'Sítio Lambedor'!A26:D77,4) -> PROJETO "AS IS" | C26: =VLOOKUP(A26,'Sítio Lambedor'!A26:I77,9) -> 12194.55 | E26: =$C26*E27 -> 12194.55 | F26: 12194.55 | G26: R$
C27: =C26/C26 -> 1 | E27: 1 | F27: 1 | G27: %
A28: 9 | B28: =VLOOKUP(A28,'Sítio Lambedor'!A28:D79,4) -> FISCALIZAÇÃO E ACOMPANHAMENTO | C28: =VLOOKUP(A28,'Sítio Lambedor'!A28:I79,9) -> 859.84 | D28: =$C28*D29 -> 429.92 | E28: =$C28*E29 -> 429.92 | F28: 859.84 | G28: R$
C29: =C28/C28 -> 1 | D29: 0.5 | E29: 0.5 | F29: 1 | G29: %
B30: VALOR TOTAL: | C30: =SUMIF($G$12:$G$29,"R$",C$12:C$29) -> 244359.89 | D30: =SUMIF($G$12:$G$29,"R$",D$12:D$29) -> 131371.4655 | E30: =SUMIF($G$12:$G$29,"R$",E$12:E$29) -> 112988.4245 | F30: =SUMIF($G$12:$G$29,"R$",F$12:F$29) -> 244359.89 | I30: VERIFICAÇÃO
B31: VALOR ACUMULADO: | D31: =D30 -> 131371.4655 | E31: =E30+D31 -> 244359.89 | F31: =E31 -> 244359.89 | I31: =IF(F31='Sítio Lambedor'!I63,"OK","ERRO") -> OK
B32: FÍSICO PARCIAL: | D32: =SUMIF($G$12:$G$29,"R$",D$12:D$29)/$C$30 -> 0.5376146857 | E32: =SUMIF($G$12:$G$29,"R$",E$12:E$29)/$C$30 -> 0.4623853143 | F32: =F30/$C$30 -> 1
B33: AVANÇO FÍSICO: | D33: =D32 -> 0.5376146857 | E33: =E32+D33 -> 1

Sheet Cronograma Poço da Onça
A1: Ministério da Integração e do Desenvolvimento Regional
A2: Companhia de Desenvolvimento dos Vales do São Francisco e do Parnaíba
A4: CRONOGRAMA FÍSICO-FINANCEIRO NÃO DESONERADO
A5: =Resumo!A5 -> OBRA: | B5: =Resumo!B5 -> Execução de manutenção e obras civis nas barragens de Sitio Lambedor, Poço da Onça, Brejo, Boqueirão e Paus Grandes localizadas no estado de Pernambuco.
A6: =Resumo!A6 -> LOCAL: | B6: =Resumo!B6 -> BARRAGENS DE PERNAMBUCO
A7: =Resumo!A7 -> DATA BASE: | B7: =Resumo!B7 -> 2025-07-01
A8: =Resumo!A8 -> PRAZO: | B8: ='Poço da Onça'!B8 -> 90 dias
B9: ='Poço da Onça'!B9 -> Poço da Onça
A10: ITEM | B10: DESCRIÇÃO | C10: TOTAL POR ETAPA | D10: MESES | G10: TOTAL
D11: 1 | E11: 2 | F11: 3
A12: 1 | B12: =VLOOKUP(A12,'Poço da Onça'!A:I,4) -> ADMINISTRAÇÃO DA OBRA | C12: =VLOOKUP(A12,'Poço da Onça'!A$10:I$1018,9) -> 107417.73 | D12: =$C12*D13 -> 28957.96117 | E12: =$C12*E13 -> 27698.30898 | F12: =$C12*F13 -> 50761.45985 | G12: =SUM(D12:F12) -> 107417.73 | H12: R$
C13: =C12/C12 -> 1 | D13: =SUMIF($H$14:$H$31,"R$",D$14:D$31)/$C$32 -> 0.2695826953 | E13: =SUMIF($H$14:$H$31,"R$",E$14:E$31)/$C$32 -> 0.257856026 | F13: =1-SUM(D13:E13) -> 0.4725612788 | G13: 1 | H13: %
A14: 2 | B14: =VLOOKUP(A14,'Poço da Onça'!A:I,4) -> SERVIÇOS PRELIMINARES | C14: =VLOOKUP(A14,'Poço da Onça'!A$10:I$1018,9) -> 30081.1 | D14: =$C14*D15 -> 30081.1 | G14: 30081.1 | H14: R$
C15: =C14/C14 -> 1 | D15: 1 | G15: 1 | H15: %
A16: 3 | B16: =VLOOKUP(A16,'Poço da Onça'!A:I,4) -> CORTE DA VEGETAÇÃO E REMOÇÃO DAS RAIZES | C16: =VLOOKUP(A16,'Poço da Onça'!A$10:I$1018,9) -> 47023.26 | D16: =$C16*D17 -> 47023.26 | G16: 47023.26 | H16: R$
C17: =C16/C16 -> 1 | D17: 1 | G17: 1 | H17: %
A18: 4 | B18: =VLOOKUP(A18,'Poço da Onça'!A:I,4) -> RECUPERAÇÃO DA CRISTA | C18: =VLOOKUP(A18,'Poço da Onça'!A$10:I$1018,9) -> 13246.1 | E18: =$C18*E19 -> 13246.1 | G18: 13246.1 | H18: R$
C19: =C18/C18 -> 1 | E19: 1 | G19: 1 | H19: %
A20: 5 | B20: =VLOOKUP(A20,'Poço da Onça'!A:I,4) -> MANUTENÇÃO NO PARAMENTO DE MONTANTE | C20: =VLOOKUP(A20,'Poço da Onça'!A$10:I$1018,9) -> 51749.3 | E20: =$C20*E21 -> 51749.3 | G20: 51749.3 | H20: R$
C21: =C20/C20 -> 1 | E21: 1 | G21: 1 | H21: %
A22: 6 | B22: =VLOOKUP(A22,'Poço da Onça'!A:I,4) -> MANUTENÇÃO DO PARAMENTO DE JUSANTE | C22: =VLOOKUP(A22,'Poço da Onça'!A$10:I$1018,9) -> 17902.46 | E22: =$C22*E23 -> 8951.23 | F22: =$C22*F23 -> 8951.23 | G22: 17902.46 | H22: R$
C23: =C22/C22 -> 1 | E23: 0.5 | F23: 0.5 | G23: 1 | H23: %
A24: 7 | B24: =VLOOKUP(A24,'Poço da Onça'!A:I,4) -> RESTAURAÇÃO DO VERTEDOURO | C24: =VLOOKUP(A24,'Poço da Onça'!A$10:I$1018,9) -> 1999.14 | F24: =$C24*F25 -> 1999.14 | G24: 1999.14 | H24: R$
C25: =C24/C24 -> 1 | F25: 1 | G25: 1 | H25: %
A26: 8 | B26: =VLOOKUP(A26,'Poço da Onça'!A:I,4) -> SERVIÇOS COMPLEMENTARES | C26: =VLOOKUP(A26,'Poço da Onça'!A$10:I$1018,9) -> 4763.56 | F26: =$C26*F27 -> 4763.56 | G26: 4763.56 | H26: R$
C27: =C26/C26 -> 1 | F27: 1 | G27: 1 | H27: %
A28: 9 | B28: =VLOOKUP(A28,'Poço da Onça'!A:I,4) -> PROJETO "AS IS" | C28: =VLOOKUP(A28,'Poço da Onça'!A$10:I$1018,9) -> 12351.07 | F28: =$C28*F29 -> 12351.07 | G28: 12351.07 | H28: R$
C29: =C28/C28 -> 1 | F29: 1 | G29: 1 | H29: %
A30: 10 | B30: =VLOOKUP(A30,'Poço da Onça'!A:I,4) -> FISCALIZAÇÃO E ACOMPANHAMENTO | C30: =VLOOKUP(A30,'Poço da Onça'!A$10:I$1018,9) -> 1074.8 | D30: =C30/5*2 -> 429.92 | E30: =C30/5 -> 214.96 | F30: =C30/5*2 -> 429.92 | G30: 1074.8 | H30: R$
C31: =C30/C30 -> 1 | D31: =D30/$C$30 -> 0.4 | E31: =E30/$C$30 -> 0.2 | F31: =F30/$C$30 -> 0.4 | G31: 1 | H31: %
B32: VALOR TOTAL: | C32: =SUMIF($H$12:$H$31,"R$",C$12:C$31) -> 287608.52 | D32: =SUMIF($H$12:$H$31,"R$",D$12:D$31) -> 106492.2412 | E32: =SUMIF($H$12:$H$31,"R$",E$12:E$31) -> 101859.899 | F32: =SUMIF($H$12:$H$31,"R$",F$12:F$31) -> 79256.37985 | G32: =SUMIF($H$12:$H$31,"R$",G$12:G$31) -> 287608.52 | K32: VERIFICAÇÃO
B33: VALOR ACUMULADO: | D33: =D32 -> 106492.2412 | E33: =E32+D33 -> 208352.1401 | F33: =F32+E33 -> 287608.52 | G33: =G32 -> 287608.52 | K33: =IF(G33='Poço da Onça'!I68,"OK","ERRO") -> OK
B34: FÍSICO PARCIAL: | D34: =SUMIF($H$12:$H$31,"R$",D$12:D$31)/$C$32 -> 0.3702680337 | E34: =SUMIF($H$12:$H$31,"R$",E$12:E$31)/$C$32 -> 0.3541616186 | F34: =1-SUM(D34:E34) -> 0.2755703477 | G34: =SUMIF($H$12:$H$31,"R$",G$12:G$31)/$C$32 -> 1
B35: AVANÇO FÍSICO: | D35: =D34 -> 0.3702680337 | E35: =E34+D35 -> 0.7244296523 | F35: =F34+E35 -> 1

Sheet Cronograma Brejo
A1: Ministério da Integração e do Desenvolvimento Regional
A2: Companhia de Desenvolvimento dos Vales do São Francisco e do Parnaíba
A4: CRONOGRAMA FÍSICO-FINANCEIRO NÃO DESONERADO
A5: =Resumo!A5 -> OBRA: | B5: =Resumo!B5 -> Execução de manutenção e obras civis nas barragens de Sitio Lambedor, Poço da Onça, Brejo, Boqueirão e Paus Grandes localizadas no estado de Pernambuco.
A6: =Resumo!A6 -> LOCAL: | B6: =Resumo!B6 -> BARRAGENS DE PERNAMBUCO
A7: =Resumo!A7 -> DATA BASE: | B7: =Resumo!B7 -> 2025-07-01
A8: =Resumo!A8 -> PRAZO: | B8: =Brejo!B8 -> 90 dias
B9: =Brejo!B9 -> Brejo
A10: ITEM | B10: DESCRIÇÃO | C10: TOTAL POR ETAPA | D10: MESES | G10: TOTAL
D11: 1 | E11: 2 | F11: 3
A12: 1 | B12: =VLOOKUP(A12,Brejo!A:I,4) -> ADMINISTRAÇÃO DA OBRA | C12: =VLOOKUP(A12,Brejo!A$10:I$1018,9) -> 107417.73 | D12: =$C12*D13 -> 29646.69211 | E12: =$C12*E13 -> 42915.97807 | F12: =$C12*F13 -> 34855.05981 | G12: =SUM(D12:F12) -> 107417.73 | H12: R$
C13: =C12/C12 -> 1 | D13: =SUMIF($H$14:$H$35,"R$",D$14:D$35)/$C$36 -> 0.2759944016 | E13: =SUMIF($H$14:$H$35,"R$",E$14:E$35)/$C$36 -> 0.3995241575 | F13: =1-SUM(D13:E13) -> 0.3244814409 | G13: =SUM(D13:F13) -> 1 | H13: %
A14: 2 | B14: =VLOOKUP(A14,Brejo!A:I,4) -> SERVIÇOS PRELIMINARES | C14: =VLOOKUP(A14,Brejo!A$10:I$1018,9) -> 30081.1 | D14: =$C14*D15 -> 30081.1 | G14: =SUM(D14:F14) -> 30081.1 | H14: R$
C15: =C14/C14 -> 1 | D15: 1 | G15: 1 | H15: %
A16: 3 | B16: =VLOOKUP(A16,Brejo!A:I,4) -> CORTE DA VEGETAÇÃO E REMOÇÃO DAS RAIZES | C16: =VLOOKUP(A16,Brejo!A$10:I$1018,9) -> 71619.09 | D16: =$C16*D17 -> 71619.09 | G16: 71619.09 | H16: R$
C17: =C16/C16 -> 1 | D17: 1 | G17: =SUM(D17:F17) -> 1 | H17: %
A18: 4 | B18: =VLOOKUP(A18,Brejo!A:I,4) -> RECUPERAÇÃO DA CRISTA | C18: =VLOOKUP(A18,Brejo!A$10:I$1018,9) -> 9226.4 | D18: =$C18*D19 -> 9226.4 | G18: 9226.4 | H18: R$
C19: =C18/C18 -> 1 | D19: 1 | G19: 1 | H19: %
A20: 5 | B20: =VLOOKUP(A20,Brejo!A:I,4) -> MANUTENÇÃO NO PARAMENTO DE MONTANTE | C20: =VLOOKUP(A20,Brejo!A$10:I$1018,9) -> 151204.72 | E20: =$C20*E21 -> 151204.72 | G20: 151204.72 | H20: R$
C21: =C20/C20 -> 1 | E21: 1 | G21: 1 | H21: %
A22: 6 | B22: =VLOOKUP(A22,Brejo!A:I,4) -> MANUTENÇÃO DO PARAMENTO DE JUSANTE | C22: =VLOOKUP(A22,Brejo!A$10:I$1018,9) -> 5667.49 | E22: =$C22*E23 -> 5667.49 | G22: 5667.49 | H22: R$
C23: =C22/C22 -> 1 | E23: 1 | G23: 1 | H23: %
A24: 7 | B24: =VLOOKUP(A24,Brejo!A:I,4) -> RESTAURAÇÃO DOS MUROS LATERAIS | C24: =VLOOKUP(A24,Brejo!A$10:I$1018,9) -> 4110.36 | E24: =$C24*E25 -> 4110.36 | G24: 4110.36 | H24: R$
C25: =C24/C24 -> 1 | E25: 1 | G25: 1 | H25: %
A26: 8 | B26: =VLOOKUP(A26,Brejo!A:I,4) -> MANUTENÇÃO DOS EQUIPAMENTOS HIDROMECÂNICOS | C26: =VLOOKUP(A26,Brejo!A$10:I$1018,9) -> 631.19 | F26: =$C26*F27 -> 631.19 | G26: 631.19 | H26: R$
C27: =C26/C26 -> 1 | F27: 1 | G27: 1 | H27: %
A28: 9 | B28: =VLOOKUP(A28,Brejo!A:I,4) -> CONSTRUÇÃO DE CAIXA DE CONCRETO PARA IMPLANTAÇÃO DA GRADE DE PROTEÇÃO DE PROTEÇÃO DO CONDUTO | C28: =VLOOKUP(A28,Brejo!A$10:I$1018,9) -> 2328.98 | F28: =$C28*F29 -> 2328.98 | G28: 2328.98 | H28: R$
C29: =C28/C28 -> 1 | F29: 1 | G29: 1 | H29: %
A30: 10 | B30: =VLOOKUP(A30,Brejo!A:I,4) -> SERVIÇOS COMPLEMENTARES | C30: =VLOOKUP(A30,Brejo!A$10:I$1018,9) -> 7220.36 | F30: =$C30*F31 -> 7220.36 | G30: 7220.36 | H30: R$
C31: =C30/C30 -> 1 | F31: 1 | G31: 1 | H31: %
A32: 11 | B32: =VLOOKUP(A32,Brejo!A:I,4) -> PROJETO "AS IS" | C32: =VLOOKUP(A32,Brejo!A$10:I$1018,9) -> 12891.58 | F32: =$C32*F33 -> 12891.58 | G32: 12891.58 | H32: R$
C33: =C32/C32 -> 1 | F33: 1 | G33: 1 | H33: %
A34: 13 | B34: =VLOOKUP(A34,Brejo!A:I,4) -> FISCALIZAÇÃO E ACOMPANHAMENTO | C34: =VLOOKUP(A34,Brejo!A$10:I$1018,9) -> 1074.8 | D34: =C34/5*2 -> 429.92 | E34: =C34/5 -> 214.96 | F34: =C34/5*2 -> 429.92 | G34: 1074.8 | H34: R$
C35: =C34/C34 -> 1 | D35: =D34/$C$34 -> 0.4 | E35: =E34/$C$34 -> 0.2 | F35: =F34/$C$34 -> 0.4 | G35: 1 | H35: %
B36: VALOR TOTAL: | C36: =SUMIF($H$12:$H$35,"R$",C$12:C$35) -> 403473.8 | D36: =SUMIF($H$12:$H$35,"R$",D$12:D$35) -> 141003.2021 | E36: =SUMIF($H$12:$H$35,"R$",E$12:E$35) -> 204113.5081 | F36: =SUMIF($H$12:$H$35,"R$",F$12:F$35) -> 58357.08981 | G36: =SUMIF($H$12:$H$35,"R$",G$12:G$35) -> 403473.8 | K36: VERIFICAÇÃO
B37: VALOR ACUMULADO: | D37: =D36 -> 141003.2021 | E37: =E36+D37 -> 345116.7102 | F37: =F36+E37 -> 403473.8 | G37: =F37 -> 403473.8 | K37: =IF(G37=Brejo!I80,"OK","ERRO") -> OK
B38: FÍSICO PARCIAL: | D38: =SUMIF($H$12:$H$35,"R$",D$12:D$35)/$C$36 -> 0.349473007 | E38: =SUMIF($H$12:$H$35,"R$",E$12:E$35)/$C$36 -> 0.5058903653 | F38: =1-SUM(D38:E38) -> 0.1446366277 | G38: =G36/$C$36 -> 1
B39: AVANÇO FÍSICO: | D39: =D38 -> 0.349473007 | E39: =E38+D39 -> 0.8553633723 | F39: =F38+E39 -> 1

Sheet Cronograma Boqueirão
A1: Ministério da Integração e do Desenvolvimento Regional
A2: Companhia de Desenvolvimento dos Vales do São Francisco e do Parnaíba
A4: CRONOGRAMA FÍSICO-FINANCEIRO NÃO DESONERADO
A5: =Resumo!A5 -> OBRA: | B5: =Resumo!B5 -> Execução de manutenção e obras civis nas barragens de Sitio Lambedor, Poço da Onça, Brejo, Boqueirão e Paus Grandes localizadas no estado de Pernambuco.
A6: =Resumo!A6 -> LOCAL: | B6: =Resumo!B6 -> BARRAGENS DE PERNAMBUCO
A7: =Resumo!A7 -> DATA BASE: | B7: =Resumo!B7 -> 2025-07-01
A8: =Resumo!A8 -> PRAZO: | B8: =Boqueirão!B8 -> 90 dias
B9: =Boqueirão!B9 -> Boqueirão
A10: ITEM | B10: DESCRIÇÃO | C10: TOTAL POR ETAPA | D10: MESES | G10: TOTAL
D11: 1 | E11: 2 | F11: 3
A12: 1 | B12: =VLOOKUP(A12,Boqueirão!A12:D63,4) -> ADMINISTRAÇÃO DA OBRA | C12: =VLOOKUP(A12,Boqueirão!A12:I63,9) -> 107417.73 | D12: =$C12*D13 -> 27104.29827 | E12: =$C12*E13 -> 26801.31069 | F12: =$C12*F13 -> 53512.12105 | G12: =SUM(D12:F12) -> 107417.73 | H12: R$
C13: =C12/C12 -> 1 | D13: =SUMIF($H$14:$H$31,"R$",D$14:D$31)/$C$32 -> 0.2523261129 | E13: =SUMIF($H$14:$H$31,"R$",E$14:E$31)/$C$32 -> 0.2495054651 | F13: =1-SUM(D13:E13) -> 0.498168422 | G13: 1 | H13: %
A14: 2 | B14: =VLOOKUP(A14,Boqueirão!A14:D65,4) -> SERVIÇOS PRELIMINARES | C14: =VLOOKUP(A14,Boqueirão!A14:I65,9) -> 30081.1 | D14: =$C14*D15 -> 30081.1 | G14: 30081.1 | H14: R$
C15: =C14/C14 -> 1 | D15: 1 | G15: 1 | H15: %
A16: 3 | B16: =VLOOKUP(A16,Boqueirão!A16:D67,4) -> CORTE DA VEGETAÇÃO E REMOÇÃO DAS RAIZES | C16: =VLOOKUP(A16,Boqueirão!A16:I67,9) -> 85059.12 | D16: =$C16*D17 -> 42529.56 | E16: =$C16*E17 -> 42529.56 | G16: 85059.12 | H16: R$
C17: =C16/C16 -> 1 | D17: 0.5 | E17: 0.5 | G17: 1 | H17: %
A18: 4 | B18: =VLOOKUP(A18,Boqueirão!A18:D69,4) -> RECUPERAÇÃO DA CRISTA | C18: =VLOOKUP(A18,Boqueirão!A18:I69,9) -> 1977.36 | E18: =$C18*E19 -> 1977.36 | G18: 1977.36 | H18: R$
C19: =C18/C18 -> 1 | E19: 1 | G19: 1 | H19: %
A20: 5 | B20: =VLOOKUP(A20,Boqueirão!A20:D71,4) -> MANUTENÇÃO NO PARAMENTO DE MONTANTE | C20: =VLOOKUP(A20,Boqueirão!A20:I71,9) -> 2461.47 | E20: =$C20*E21 -> 2461.47 | G20: 2461.47 | H20: R$
C21: =C20/C20 -> 1 | E21: 1 | G21: 1 | H21: %
A22: 6 | B22: =VLOOKUP(A22,Boqueirão!A22:D73,4) -> MANUTENÇÃO DO PARAMENTO DE JUSANTE | C22: =VLOOKUP(A22,Boqueirão!A22:I73,9) -> 6935.64 | E22: =$C22*E23 -> 6935.64 | G22: 6935.64 | H22: R$
C23: =C22/C22 -> 1 | E23: 1 | G23: 1 | H23: %
A24: 7 | B24: =VLOOKUP(A24,Boqueirão!A24:D75,4) -> RESTAURAÇÃO DOS MUROS LATERAIS | C24: =VLOOKUP(A24,Boqueirão!A24:I75,9) -> 36210.2 | E24: =$C24*E25 -> 18105.1 | F24: =$C24*F25 -> 18105.1 | G24: 36210.2 | H24: R$
C25: =C24/C24 -> 1 | E25: 0.5 | F25: 0.5 | G25: 1 | H25: %
A26: 8 | B26: =VLOOKUP(A26,Boqueirão!A26:D77,4) -> SERVIÇOS COMPLEMENTARES | C26: =VLOOKUP(A26,Boqueirão!A26:I77,9) -> 4763.56 | F26: =$C26*F27 -> 4763.56 | G26: 4763.56 | H26: R$
C27: =C26/C26 -> 1 | F27: 1 | G27: 1 | H27: %
A28: 9 | B28: =VLOOKUP(A28,Boqueirão!A28:D79,4) -> PROJETO "AS IS" | C28: =VLOOKUP(A28,Boqueirão!A28:I79,9) -> 13487.99 | F28: =$C28*F29 -> 13487.99 | G28: 13487.99 | H28: R$
C29: =C28/C28 -> 1 | F29: 1 | G29: 1 | H29: %
A30: 10 | B30: =VLOOKUP(A30,Boqueirão!A30:D81,4) -> FISCALIZAÇÃO E ACOMPANHAMENTO | C30: =VLOOKUP(A30,Boqueirão!A30:I81,9) -> 1074.8 | D30: =C30/5*2 -> 429.92 | E30: =C30/5 -> 214.96 | F30: =C30/5*2 -> 429.92 | G30: 1074.8 | H30: R$
C31: =C30/C30 -> 1 | D31: =D30/$C$30 -> 0.4 | E31: =E30/$C$30 -> 0.2 | F31: =F30/$C$30 -> 0.4 | G31: 1 | H31: %
B32: VALOR TOTAL: | C32: =SUMIF($H$12:$H$31,"R$",C$12:C$31) -> 289468.97 | D32: =SUMIF($H$12:$H$31,"R$",D$12:D$31) -> 100144.8783 | E32: =SUMIF($H$12:$H$31,"R$",E$12:E$31) -> 99025.40069 | F32: =SUMIF($H$12:$H$31,"R$",F$12:F$31) -> 90298.69105 | G32: =SUMIF($H$12:$H$31,"R$",G$12:G$31) -> 289468.97 | K32: VERIFICAÇÃO
B33: VALOR ACUMULADO: | D33: =D32 -> 100144.8783 | E33: =E32+D33 -> 199170.279 | F33: =F32+E33 -> 289468.97 | G33: =G32 -> 289468.97 | K33: =IF(G33=Boqueirão!I67,"OK","ERRO") -> OK
B34: FÍSICO PARCIAL: | D34: =SUMIF($H$12:$H$31,"R$",D$12:D$31)/$C$32 -> 0.3459606681 | E34: =SUMIF($H$12:$H$31,"R$",E$12:E$31)/$C$32 -> 0.342093319 | F34: =1-SUM(D34:E34) -> 0.3119460129 | G34: =SUMIF($H$12:$H$31,"R$",G$12:G$31)/$C$32 -> 1
B35: AVANÇO FÍSICO: | D35: =D34 -> 0.3459606681 | E35: =E34+D35 -> 0.6880539871 | F35: =F34+E35 -> 1

Sheet Cronograma Paus Grandes
A1: Ministério da Integração e do Desenvolvimento Regional
A2: Companhia de Desenvolvimento dos Vales do São Francisco e do Parnaíba
A4: CRONOGRAMA FÍSICO-FINANCEIRO NÃO DESONERADO
A5: =Resumo!A5 -> OBRA: | B5: =Resumo!B5 -> Execução de manutenção e obras civis nas barragens de Sitio Lambedor, Poço da Onça, Brejo, Boqueirão e Paus Grandes localizadas no estado de Pernambuco.
A6: =Resumo!A6 -> LOCAL: | B6: =Resumo!B6 -> BARRAGENS DE PERNAMBUCO
A7: =Resumo!A7 -> DATA BASE: | B7: =Resumo!B7 -> 2025-07-01
A8: =Resumo!A8 -> PRAZO: | B8: ='Paus Grandes'!B8 -> 60 dias
B9: ='Paus Grandes'!B9 -> Paus Grandes
A10: ITEM | B10: DESCRIÇÃO | C10: TOTAL POR ETAPA | D10: MESES | F10: TOTAL
D11: 1 | E11: 3
A12: 1 | B12: =VLOOKUP(A12,'Paus Grandes'!A12:D63,4) -> ADMINISTRAÇÃO DA OBRA | C12: =VLOOKUP(A12,'Paus Grandes'!A12:I63,9) -> 71611.82 | D12: =$C12*D13 -> 26148.41075 | E12: =$C12*E13 -> 45463.40925 | F12: =SUM(D12:E12) -> 71611.82 | G12: R$
C13: =C12/C12 -> 1 | D13: =SUMIF($G$14:$G$31,"R$",D$14:D$31)/$C$32 -> 0.3651409885 | E13: =1-D13 -> 0.6348590115 | F13: 1 | G13: %
A14: 2 | B14: =VLOOKUP(A14,'Paus Grandes'!A14:D65,4) -> SERVIÇOS PRELIMINARES | C14: =VLOOKUP(A14,'Paus Grandes'!A14:I65,9) -> 30081.1 | D14: =$C14*D15 -> 30081.1 | F14: 30081.1 | G14: R$
C15: =C14/C14 -> 1 | D15: 1 | F15: 1 | G15: %
A16: 3 | B16: =VLOOKUP(A16,'Paus Grandes'!A16:D67,4) -> CORTE DA VEGETAÇÃO E REMOÇÃO DAS RAIZES | C16: =VLOOKUP(A16,'Paus Grandes'!A16:I67,9) -> 21308.46 | D16: =$C16*D17 -> 21308.46 | F16: 21308.46 | G16: R$
C17: =C16/C16 -> 1 | D17: 1 | F17: 1 | G17: %
A18: 4 | B18: =VLOOKUP(A18,'Paus Grandes'!A18:D69,4) -> RECUPERAÇÃO DA CRISTA | C18: =VLOOKUP(A18,'Paus Grandes'!A18:I69,9) -> 1090.94 | D18: =$C18*D19 -> 1090.94 | F18: 1090.94 | G18: R$
C19: =C18/C18 -> 1 | D19: 1 | F19: 1 | G19: %
A20: 5 | B20: =VLOOKUP(A20,'Paus Grandes'!A20:D71,4) -> MANUTENÇÃO NO PARAMENTO DE MONTANTE | C20: =VLOOKUP(A20,'Paus Grandes'!A20:I71,9) -> 22130.28 | D20: =$C20*D21 -> 8852.112 | E20: =$C20*E21 -> 13278.168 | F20: 22130.28 | G20: R$
C21: =C20/C20 -> 1 | D21: 0.4 | E21: 0.6 | F21: 1 | G21: %
A22: 6 | B22: =VLOOKUP(A22,'Paus Grandes'!A28:D79,4) -> MANUTENÇÃO DO PARAMENTO DE JUSANTE | C22: =VLOOKUP(A22,'Paus Grandes'!A22:I73,9) -> 4543.95 | E22: =$C22*E23 -> 4543.95 | F22: 4543.95 | G22: R$
C23: =C22/C22 -> 1 | E23: 1 | F23: 1 | G23: %
A24: 7 | B24: =VLOOKUP(A24,'Paus Grandes'!A30:D81,4) -> MANUTENÇÃO NAS OMBREIRAS | C24: =VLOOKUP(A24,'Paus Grandes'!A24:I75,9) -> 1657.36 | E24: =$C24*E25 -> 1657.36 | F24: 1657.36 | G24: R$
C25: =C24/C24 -> 1 | E25: 1 | F25: 1 | G25: %
A26: 8 | B26: =VLOOKUP(A26,'Paus Grandes'!A32:D83,4) -> SERVIÇOS COMPLEMENTARES | C26: =VLOOKUP(A26,'Paus Grandes'!A26:I77,9) -> 4763.56 | E26: =$C26*E27 -> 4763.56 | F26: 4763.56 | G26: R$
C27: =C26/C26 -> 1 | E27: 1 | F27: 1 | G27: %
A28: 9 | B28: =VLOOKUP(A28,'Paus Grandes'!A34:D85,4) -> PROJETO "AS IS" | C28: =VLOOKUP(A28,'Paus Grandes'!A28:I79,9) -> 11099.77 | E28: =$C28*E29 -> 11099.77 | F28: 11099.77 | G28: R$
C29: =C28/C28 -> 1 | E29: 1 | F29: 1 | G29: %
A30: 10 | B30: =VLOOKUP(A30,'Paus Grandes'!A36:D87,4) -> FISCALIZAÇÃO E ACOMPANHAMENTO | C30: =VLOOKUP(A30,'Paus Grandes'!A30:I81,9) -> 859.84 | D30: =C30*D31 -> 429.92 | E30: =C30*E31 -> 429.92 | F30: 859.84 | G30: R$
C31: =C30/C30 -> 1 | D31: 0.5 | E31: 0.5 | F31: 1 | G31: %
B32: VALOR TOTAL: | C32: =SUMIF($G$12:$G$31,"R$",C$12:C$31) -> 169147.08 | D32: =SUMIF($G$12:$G$31,"R$",D$12:D$31) -> 87910.94275 | E32: =SUMIF($G$12:$G$31,"R$",E$12:E$31) -> 81236.13725 | F32: =SUMIF($G$12:$G$31,"R$",F$12:F$31) -> 169147.08 | J32: VERIFICAÇÃO
B33: VALOR ACUMULADO: | D33: =D32 -> 87910.94275 | E33: =D33+E32 -> 169147.08 | F33: =F32 -> 169147.08 | J33: =IF(F33='Paus Grandes'!I70,"OK","ERRO") -> OK
B34: FÍSICO PARCIAL: | D34: =SUMIF($G$12:$G$31,"R$",D$12:D$31)/$C$32 -> 0.5197307736 | E34: =1-SUM(D34:D34) -> 0.4802692264 | F34: =F32/$C$32 -> 1
B35: AVANÇO FÍSICO: | D35: =D34 -> 0.5197307736 | E35: =D35+E34 -> 1

Sheet CPU HOSPEDAGEM
B2: Engenharia Consultiva da Codevasf
B3: CPU - HOSPEDAGEM EQUIPE DE CAMPO (4 PESSOAS/MÊS) | D3: Código/Referencia
B4: ALUGUEL | C4: 3074.56 | D4: F020003334/EMBASA insumo
B5: Aquisição de Mobiliário | C5: =41.81*C16 -> 167.24 | D5: B8954/DNIT
B6: Material de limpeza e diarista | C6: =129.46+(123*8) -> 1113.46 | D6: 10563/ORSE - E200300131/EMBASA
B7: manutenção da casa alugada - Serviços Gerais/Vigia | C7: 3043.76 | D7: 41096/SINAPI
B8: Energia | C8: 180 | D8: 10555/ORSE
B9: Água | C9: 394.99 | D9: 10554/ORSE
B10: telefone/Internet | C10: =154.99+89 -> 243.99 | D10: 10557/10558/ORSE
B11: IPTU (mês) | C11: =(C4*0.5)/12 -> 128.1066667
B13: Custo Mensal: | C13: =SUM(C4:C12) -> 8346.106667
B14: Custo Mensal por pessoa: | C14: =C13/C16 -> 2086.526667
B15: Custo diário por pessoa: | C15: =C14/22 -> 94.84212121
B16: número de pessoas: | C16: 4
B17: Alimentação: | C17: 100.59 | D17: Tabela Diária Codevasf 2025
B19: Diária Total (alimentação + hospedagem): | C19: =C15+C17 -> 195.4321212

Sheet Cotação
A3: ITEM | B3: EMPRESA | G3: ORÇADO POR | H3: DESCRIÇÃO / OBSERVAÇÃO | I3: UNID | J3: QUANT | K3: LINK OU LOCAL DO ARQUIVO | L3: VALOR
B4: DATA | C4: EMPRESA / CNPJ | D4: RESPONSÁVEL | E4: ENDEREÇO | F4: CONTATO | L4: MAT | M4: MDO | N4: TRANSPORTE | O4: TOTAL
A5: 1 | B5: 2024-04-09 | C5: POLIMEDIÇÃO COMERCIAL | D5: Preço na loja online | E5: R. Arlete, 151 - Jardim Penha - São Paulo - SP | F5: Tel: (11) 4328-3003 WhatsApp: (11) 98575-6343 polimedicao@gmail.com | G5: Murilo | H5: Régua linimétrica em alumínio 2 X 70 X 1000MM | I5: un | J5: 1 | K5: https://www.polimedicao.com.br/product-page/r%C3%A9gua-linim%C3%A9trica-em-chapa-de-aluminio-2-x-70-x-1000mm | L5: 160 | O5: =SUM(L5:N5) -> 160
A6: 2 | B6: 2024-04-09 | C6: Gravametal | D6: Preço na loja online | E6: Rua Uniflor, 1012 - Emiliano Perneta Pinhais - Paraná - CEP: 83324-227 | F6: ☎ (41) 3403-0144 ✆ (41) 99672-9692 ✉ gravametal@gmail.com | G6: Murilo | H6: Régua linimétrica em alumínio 2 X 70 X 1000MM | I6: un | J6: 1 | K6: https://www.gravametal.com.br/product-page/r%C3%A9gua-linim%C3%A9trica-fluviom%C3%A9trica-1000x70x2mm | L6: 209.9 | O6: =SUM(L6:N6) -> 209.9
A7: 4 | B7: 2024-04-09 | C7: Dualbase | D7: Consulta via email | E7: Av. Gentil Reinaldo Cordioli, 157 - CEP 88133-500 - Palhoça/SC | F7: Tel: (48) 3342 5202 adriano@dualbase.com.br | G7: Murilo | H7: Régua linimétrica em alumínio 2 X 70 X 1000MM | I7: un | J7: 1 | K7: www.dualbase.com.br | O7: 185
N8: Média | O8: =AVERAGE(O5:O7) -> 184.9666667
N9: Mediana | O9: =MEDIAN(O5:O7) -> 185
N10: Menor | O10: =SMALL(O8:O9,1) -> 184.9666667

Sheet Memorial de cálculo
A1: Ministério da Integração e do Desenvolvimento Regional
A2: Companhia de desenvolvimento dos Vales do São Francisco e do Parnaíba | I2: Quantitativos por Barragem
A4: MEMORIAL DE CÁLCULO | I4: Sítio Lambedor | J4: Poço da Onça | K4: Brejo | L4: Boqueirão | M4: Paus Grandes | N4: MÉDIA
A5: OBRA: | B5: =Resumo!B5 -> Execução de manutenção e obras civis nas barragens de Sitio Lambedor, Poço da Onça, Brejo, Boqueirão e Paus Grandes localizadas no estado de Pernambuco. | D5: DESLOCAMENTO - Petrolina para Barragem (km): | H5: =N5 -> 171.2 | I5: 56 | J5: 97 | K5: 182 | L5: 236 | M5: 285 | N5: =AVERAGE(I5:M5) -> 171.2
A6: LOCAL: | B6: =Resumo!B6 -> BARRAGENS DE PERNAMBUCO
A7: DATA BASE: | B7: =Resumo!B7 -> 2025-07-01 | D7: VIA URBANA PAVIMENTADA - Petrolina para Barragem (km) | H7: =N7 -> 160.6 | I7: =I5-I8 -> 53 | J7: 80 | K7: 181 | L7: 218 | M7: 271 | N7: =AVERAGE(I7:M7) -> 160.6
A8: PRAZO: | B8: =Resumo!B8 -> 240 dias | D8: REVESTIMENTO PRIMÁRIO - Petrolina para Barragem (km) | H8: =N8 -> 10.6 | I8: 3 | J8: 17 | K8: 1 | L8: 18 | M8: 14 | N8: =AVERAGE(I8:M8) -> 10.6
A9: ITEM | B9: DESCRIÇÃO | C9: UNID. | D9: PARÂMETRO 1 | E9: PARÂMETRO 2 | F9: PARÂMETRO 3 | G9: PARÂMETRO 4 | H9: TOTAL
A11: =CPU!B10 -> CPU.01 | B11: =VLOOKUP(A11,CPU!$B$10:$G$5003,2,0) -> Administração Local | C11: =VLOOKUP(A11,CPU!$B$10:$G$5003,3,0) -> mês | D11: QUANT.PESSOAS | E11: HORAS DIÁRIA | F11: DIAS TRABALHADOS NO MÊS | G11: MESES | H11: 3
B12: =CPU!C15 -> Engenheiro Civil De Obra Pleno Com Encargos Complementares | C12: h | D12: 1 | E12: 1.5 | F12: =4*5 -> 20 | H12: =D12*E12*F12 -> 30
B13: =CPU!C16 -> Encarregado Geral De Obras Com Encargos Complementares | C13: mês | D13: 1 | G13: 0.8 | H13: =D13*G13 -> 0.8
B14: =CPU!C17 -> VIGIA - NA | C14: h | D14: 4 | E14: 12 | F14: 15 | H14: =D14*E14*F14 -> 720
B15: A escala de trabalho 12x36 para vigias noturnos consiste em trabalhar 12 horas seguidas e folgar 36 horas
A17: =CPU!B19 -> CPU.02 | B17: =VLOOKUP(A17,CPU!$B$10:$G$5003,2,0) -> Mobilização e desmobilização de instalação do canteiro | C17: =VLOOKUP(A17,CPU!$B$10:$G$5003,3,0) -> un | H17: 1
A18: 100946 | B18: =IF(I18="ca",VLOOKUP(A18,'Comp SINAPI PE 06-2025 Onerado'!B:C,2,0),VLOOKUP(A18,'Ins SINAPI PE 06-2025 Onerado'!B:C,2,0)) -> TRANSPORTE COM CAMINHÃO CARROCERIA 9T, EM VIA URBANA EM REVESTIMENTO PRIMÁRIO (UNIDADE: TXKM). AF_07/2020 | C18: =IF(I18="ca",VLOOKUP(A18,'Comp SINAPI PE 06-2025 Onerado'!B:D,3,0),VLOOKUP(A18,'Ins SINAPI PE 06-2025 Onerado'!B:D,3,0)) -> TXKM | H18: =$C$20*$D$20*$E$20 -> 106 | I18: ca
C19: T | D19: km | E19: N. viagens
C20: 5 | D20: =H8 -> 10.6 | E20: 2
A21: 100947 | B21: =IF(I21="ca",VLOOKUP(A21,'Comp SINAPI PE 06-2025 Onerado'!B:C,2,0),VLOOKUP(A21,'Ins SINAPI PE 06-2025 Onerado'!B:C,2,0)) -> TRANSPORTE COM CAMINHÃO CARROCERIA 9T, EM VIA URBANA PAVIMENTADA, DMT ATÉ 30KM (UNIDADE: TXKM). AF_07/2020 | C21: =IF(I21="ca",VLOOKUP(A21,'Comp SINAPI PE 06-2025 Onerado'!B:D,3,0),VLOOKUP(A21,'Ins SINAPI PE 06-2025 Onerado'!B:D,3,0)) -> TXKM | H21: =$C$23*$D$23*$E$23 -> 300 | I21: ca
C22: T | D22: km | E22: N. viagens
C23: 5 | D23: 30 | E23: 2
A24: 100948 | B24: =IF(I24="ca",VLOOKUP(A24,'Comp SINAPI PE 06-2025 Onerado'!B:C,2,0),VLOOKUP(A24,'Ins SINAPI PE 06-2025 Onerado'!B:C,2,0)) -> TRANSPORTE COM CAMINHÃO CARROCERIA 9T, EM VIA URBANA PAVIMENTADA, ADICIONAL PARA DMT EXCEDENTE A 30 KM (UNIDADE: TXKM). AF_07/2020 | C24: =IF(I24="ca",VLOOKUP(A24,'Comp SINAPI PE 06-2025 Onerado'!B:D,3,0),VLOOKUP(A24,'Ins SINAPI PE 06-2025 Onerado'!B:D,3,0)) -> TXKM | H24: =$C$26*$D$26*$E$26 -> 1306 | I24: ca
C25: T | D25: km | E25: N. viagens
C26: 5 | D26: =H5-D23-D20 -> 130.6 | E26: 2
A28: =CPU!B29 -> CPU.03 | B28: =VLOOKUP(A28,CPU!$B$10:$G$5003,2,0) -> Execução de canteiro de obras, inclusive, limpeza, refeitório, sanitários e central de formas | C28: =VLOOKUP(A28,CPU!$B$10:$G$5003,3,0) -> m2 | H28: =SUM(H29:H31) -> 28.5
B29: Área do Refeitório Em Canteiro De Obra | C29: m2 | D29: 1 | E29: 3 | F29: 2.5 | H29: =D29*E29*F29 -> 7.5
B30: Área do Sanitário Em Canteiro De Obra | C30: m2 | D30: 1 | E30: 4.5 | F30: 2 | H30: =D30*E30*F30 -> 9
B31: Área da Central de Fôrmas Em Canteiro De Obra | C31: m2 | D31: 1 | E31: 4 | F31: 3 | H31: =D31*E31*F31 -> 12
B32: Mao de obra | C32: m2 | D32: QUANT.PESSOAS | E32: RENDIMENTO (H/M2) | F32: m2 | G32: HORAS | H32: DIAS | I32: DIAS | J32: DIAS | K32: DIAS | L32: DIAS | M32: DIAS
B33: Carpinteiro | C33: h | D33: 2 | E33: =1.1155/D33 -> 0.55775 | F33: 1 | G33: =F33*(E33) -> 0.55775 | H33: =G33/8 -> 0.06971875 | I33: =$H$28*$E$33/8 -> 1.986984375 | J33: =$H$28*$E$33/8 -> 1.986984375 | K33: 1.986984375 | L33: 1.986984375 | M33: 1.986984375
A35: =CPU!B40 -> CPU.04 | B35: =VLOOKUP(A35,CPU!$B$10:$G$5003,2,0) -> Limpeza de vegetação | C35: =VLOOKUP(A35,CPU!$B$10:$G$5003,3,0) -> m2 | I35: ='Sítio Lambedor'!F26 -> 3720 | J35: ='Poço da Onça'!F26 -> 4084 | K35: =Brejo!F26 -> 5341 | L35: =Boqueirão!F26 -> 6728 | M35: ='Paus Grandes'!F26 -> 1174
B36: Mao de obra | C36: m2 | D36: QUANT.PESSOAS | E36: RENDIMENTO (H/M2) | F36: m2 | G36: HORAS | H36: DIAS | I36: DIAS | J36: DIAS | K36: DIAS | L36: DIAS | M36: DIAS
B37: Servente | C37: h | D37: 4 | E37: =20/1000/D37 -> 0.005 | F37: 1 | G37: =F37*(E37) -> 0.005 | H37: =G37/8 -> 0.000625 | I37: =I35*$E$37/8 -> 2.325 | J37: =J35*$E$37/8 -> 2.5525 | K37: 3.338125 | L37: 4.205 | M37: 0.73375
B38: Rendimento 400 m² por dia por servente
A39: =CPU!B50 -> CPU.05 | B39: =VLOOKUP(A39,CPU!$B$10:$G$5003,2,0) -> Corte de tronco e remoção de raiz | C39: =VLOOKUP(A39,CPU!$B$10:$G$5003,3,0) -> un | I39: ='Sítio Lambedor'!F27 -> 15 | J39: ='Poço da Onça'!F27 -> 15 | K39: =Brejo!F27 -> 40 | L39: =Boqueirão!F27 -> 40 | M39: ='Paus Grandes'!F27 -> 20
B40: Mão de obra | D40: QUANT.PESSOAS | E40: RENDIMENTO (H/un) | F40: un | G40: HORAS | H40: DIAS | I40: DIAS | J40: DIAS | K40: DIAS | L40: DIAS | M40: DIAS
B41: Servente | C41: h | D41: 2 | E41: =2.1685/D41 -> 1.08425 | F41: 1 | G41: =F41*(E41) -> 1.08425 | H41: =G41/8 -> 0.13553125 | I41: =I39*$E$41/8 -> 2.03296875 | J41: =J39*$E$41/8 -> 2.03296875 | K41: 5.42125 | L41: 5.42125 | M41: 2.710625
B42: Jardineiro | C42: h | D42: 1 | E42: =1.1535/D42 -> 1.1535 | F42: 1 | G42: =F42*(E42) -> 1.1535 | H42: =G42/8 -> 0.1441875 | I42: =I39*$E$42/8 -> 2.1628125 | J42: =J39*$E$42/8 -> 2.1628125 | K42: 5.7675 | L42: 5.7675 | M42: 2.88375
A44: =CPU!B63 -> CPU.06 | B44: =VLOOKUP(A44,CPU!$B$10:$G$5003,2,0) -> Apicoamento da superfície | C44: =VLOOKUP(A44,CPU!$B$10:$G$5003,3,0) -> m2 | J44: ='Poço da Onça'!F31 -> 20 | K44: =Brejo!F31 -> 20 | M44: ='Paus Grandes'!F37+'Paus Grandes'!F43 -> 168.1
B45: Mao de obra | D45: QUANT.PESSOAS | E45: RENDIMENTO (H/m2) | F45: m2 | G45: HORAS | H45: DIAS | I45: DIAS | J45: DIAS | K45: DIAS | L45: DIAS | M45: DIAS
B46: PEDREIRO | D46: 1 | E46: =0.1151/D46 -> 0.1151 | F46: 1 | G46: =F46*(E46) -> 0.1151 | H46: =G46/8 -> 0.0143875 | J46: =J44*$E$46/8 -> 0.28775 | K46: =K44*$E$46/8 -> 0.28775 | M46: =M44*$E$46/8 -> 2.41853875
B47: SERVENTE | D47: 3 | E47: =0.3872/D47 -> 0.1290666667 | F47: 1 | G47: =F47*(E47) -> 0.1290666667 | H47: =G47/8 -> 0.01613333333 | J47: =J44*$E$47/8 -> 0.3226666667 | K47: =K44*$E$47/8 -> 0.3226666667 | M47: =M44*$E$47/8 -> 2.712013333
A49: =CPU!B75 -> CPU.07 | B49: =VLOOKUP(A49,CPU!$B$10:$G$5003,2,0) -> Restauração com uso de concreto | C49: =VLOOKUP(A49,CPU!$B$10:$G$5003,3,0) -> m3 | I49: ='Sítio Lambedor'!F32 -> 19.5 | J49: ='Poço da Onça'!F49 -> 1 | K49: =Brejo!F45+Brejo!F49 -> 4 | L49: =Boqueirão!F43 -> 1 | M49: ='Paus Grandes'!F46 -> 1
B50: Mao de obra | C50: m3 | D50: QUANT.PESSOAS | E50: RENDIMENTO (H/M3) | F50: m3 | G50: HORAS | H50: DIAS | I50: DIAS | J50: DIAS | K50: DIAS | L50: DIAS | M50: DIAS
B51: Servente | C51: h | D51: 2 | E51: =6.2067/D51 -> 3.10335 | F51: 1 | G51: =F51*(E51) -> 3.10335 | H51: =G51/8 -> 0.38791875 | I51: =I49*$E$51/8 -> 7.564415625 | J51: =J49*$E$51/8 -> 0.38791875 | K51: 1.551675 | L51: 0.38791875 | M51: 0.38791875
A53: =CPU!B88 -> CPU.08 | B53: =VLOOKUP(A53,CPU!$B$10:$G$5003,2,0) -> Régua Linimétrica Padrão “ANA”, Aço Carbono - 2 X 70 X 1000 mm (Fornecimento e Instalação) | C53: =VLOOKUP(A53,CPU!$B$10:$G$5003,3,0) -> un | I53: ='Sítio Lambedor'!F50 -> 3 | J53: ='Poço da Onça'!F55 -> 5 | K53: =Brejo!F67 -> 10 | L53: =Boqueirão!F54 -> 5 | M53: ='Paus Grandes'!F57 -> 5
B54: Mao de obra | D54: QUANT.PESSOAS | E54: RENDIMENTO (H/UN) | F54: un | G54: HORAS | H54: DIAS
B55: Topógrafo | D55: 1 | E55: =0.8/D55 -> 0.8 | F55: 1 | G55: =F55*(E55) -> 0.8 | H55: =G55/8 -> 0.1 | I55: =I53*$E$55/8 -> 0.3 | J55: =J53*$E$55/8 -> 0.5 | K55: 1 | L55: 0.5 | M55: 0.5
B56: Servente | D56: 1 | E56: =1.6/D56 -> 1.6 | F56: 1 | G56: =F56*(E56) -> 1.6 | H56: =G56/8 -> 0.2 | I56: =I53*$E$56/8 -> 0.6 | J56: =J53*$E$56/8 -> 1 | K56: 2 | L56: 1 | M56: 1
A58: =CPU!B101 -> CPU.09 | B58: =VLOOKUP(A58,CPU!$B$10:$G$5003,2,0) -> Emboço ou massa única em argamassa | C58: =VLOOKUP(A58,CPU!$B$10:$G$5003,3,0) -> m2 | J58: ='Poço da Onça'!F34+'Poço da Onça'!F45 -> 120 | K58: =Brejo!F34 -> 20 | L58: =Boqueirão!F48 -> 260 | M58: ='Paus Grandes'!F33 -> 5
B59: Mao de obra | D59: QUANT.PESSOAS | E59: RENDIMENTO (H/m2) | F59: m2 | G59: HORAS | H59: DIAS
B60: Servente | D60: 2 | E60: =0.545/D60 -> 0.2725 | F60: 1 | G60: =F60*(E60) -> 0.2725 | H60: =G60/8 -> 0.0340625 | J60: =J58*$E$60/8 -> 4.0875 | K60: =K58*$E$60/8 -> 0.68125 | L60: 8.85625 | M60: 0.1703125
B61: Pedreiro | D61: 2 | E61: =0.545/D61 -> 0.2725 | F61: 1 | G61: =F61*(E61) -> 0.2725 | H61: =G61/8 -> 0.0340625 | J61: =J58*$E$61/8 -> 4.0875 | K61: =K58*$E$61/8 -> 0.68125 | L61: 8.85625 | M61: 0.1703125
A63: =CPU!B110 -> CPU.10 | B63: =VLOOKUP(A63,CPU!$B$10:$G$5003,2,0) -> Limpeza da superfície | C63: =VLOOKUP(A63,CPU!$B$10:$G$5003,3,0) -> m2 | I63: ='Sítio Lambedor'!F31+'Sítio Lambedor'!F38+'Sítio Lambedor'!F43 -> 1040 | J63: ='Poço da Onça'!F32+'Poço da Onça'!F38+'Poço da Onça'!F43 -> 1110 | K63: =Brejo!F32+Brejo!F38+Brejo!F43 -> 1420 | L63: =Boqueirão!F31+Boqueirão!F36+Boqueirão!F41+Boqueirão!F47 -> 1057 | M63: ='Paus Grandes'!F31+'Paus Grandes'!F38+'Paus Grandes'!F44 -> 246
B64: Mao de obra | D64: QUANT.PESSOAS | E64: RENDIMENTO (H/m2) | F64: m2 | G64: HORAS | H64: DIAS
B65: Servente | D65: 2 | E65: =0.089/D65 -> 0.0445 | F65: 1 | G65: =F65*(E65) -> 0.0445 | H65: =G65/8 -> 0.0055625 | I65: =I63*$E$65/8 -> 5.785 | J65: =J63*$E$65/8 -> 6.174375 | K65: 7.89875 | L65: 5.8795625 | M65: 1.368375
A67: =CPU!B119 -> CPU.11 | B67: =VLOOKUP(A67,CPU!$B$10:$G$5003,2,0) -> Projeto geométrico | C67: =VLOOKUP(A67,CPU!$B$10:$G$5003,3,0) -> un | I67: 1 | J67: 1 | K67: 1 | L67: 1 | M67: 1
B68: Mao de obra | D68: QUANT.PESSOAS | E68: RENDIMENTO (H/un) | F68: un | G68: HORAS | H68: DIAS
B69: Engenheiro Civil De Obra Junior Com Encargos Complementares | D69: 1 | E69: =CPU!E124/D69 -> 30 | F69: 1 | G69: =F69*(E69) -> 30 | H69: =G69/8 -> 3.75 | I69: =I67*$E$69/8 -> 3.75 | J69: =J67*$E$69/8 -> 3.75 | K69: 3.75 | L69: 3.75 | M69: 3.75
B70: Engenheiro Civil De Obra Senior Com Encargos Complementares | D70: 1 | E70: =CPU!E125/D70 -> 20 | F70: 1 | G70: =F70*(E70) -> 20 | H70: =G70/8 -> 2.5 | I70: =I67*$E$70/8 -> 2.5 | J70: =J67*$E$70/8 -> 2.5 | K70: 2.5 | L70: 2.5 | M70: 2.5
B71: Desenhista Projetista Com Encargos Complementares | D71: 1 | E71: =CPU!E126/D71 -> 60 | F71: 1 | G71: =F71*(E71) -> 60 | H71: =G71/8 -> 7.5 | I71: =I67*$E$71/8 -> 7.5 | J71: =J67*$E$71/8 -> 7.5 | K71: 7.5 | L71: 7.5 | M71: 7.5
A73: =CPU!B135 -> CPU.13 | B73: =VLOOKUP(A73,CPU!$B$10:$G$5003,2,0) -> Selagem de fissuras com resina epóxi | C73: =VLOOKUP(A73,CPU!$B$10:$G$5003,3,0) -> m | J73: ='Poço da Onça'!F33 -> 150 | K73: =Brejo!F33+Brejo!F50 -> 102 | L73: =Boqueirão!F32+Boqueirão!F42 -> 25 | M73: ='Paus Grandes'!F32 -> 5
B74: Mao de obra | D74: QUANT.PESSOAS | E74: RENDIMENTO (H/m) | F74: m | G74: HORAS | H74: DIAS | I74: DIAS | J74: DIAS | K74: DIAS | L74: DIAS | M74: DIAS
B75: Servente | D75: 3 | E75: =0.6/D75 -> 0.2 | F75: 1 | G75: =F75*(E75) -> 0.2 | H75: =G75/8 -> 0.025 | I75: =I73*$E$75/8 -> 0 | J75: =J73*$E$75/8 -> 3.75 | K75: 2.55 | L75: 0.625 | M75: 0.125
A77: =CPU!B144 -> CPU.14 | B77: =VLOOKUP(A77,CPU!$B$10:$G$5003,2,0) -> Concreto projetado c/ aditivo impermeabilizante | C77: =VLOOKUP(A77,CPU!$B$10:$G$5003,3,0) -> m3 | I77: ='Sítio Lambedor'!F39 -> 9.8 | J77: ='Poço da Onça'!F39 -> 23.1 | K77: =Brejo!F39 -> 67.5 | L77: =Boqueirão!F37 -> 1 | M77: ='Paus Grandes'!F39+'Paus Grandes'!F51 -> 7.95
B78: Mao de obra | D78: QUANT.PESSOAS | E78: RENDIMENTO (H/m3) | F78: m3 | G78: HORAS | H78: DIAS | I78: DIAS | J78: DIAS | K78: DIAS | L78: DIAS | M78: DIAS
B79: Ajudante especializado | D79: 1 | E79: =1/D79 -> 1 | F79: 1 | G79: =F79*(E79) -> 1 | H79: =G79/8 -> 0.125 | I79: =I77*$E$79/8 -> 1.225 | J79: =J77*$E$79/8 -> 2.8875 | K79: 8.4375 | L79: 0.125 | M79: 0.99375
B80: Servente | D80: 4 | E80: =4/D80 -> 1 | F80: 1 | G80: =F80*(E80) -> 1 | H80: =G80/8 -> 0.125 | I80: =I77*$E$80/8 -> 1.225 | J80: =J77*$E$80/8 -> 2.8875 | K80: 8.4375 | L80: 0.125 | M80: 0.99375
B82: Utilização do aditivo: 4% massa de cimento | C82: 290.83789 | D82: Cimento (kg/m3) | E82: =0.04*C82 -> 11.6335156 | F82: Aditivo (kg/m3) | O82: <<
A84: =CPU!B154 -> CPU.15 | B84: =VLOOKUP(A84,CPU!$B$10:$G$5003,2,0) -> Preenchimento de espaços vazios com argamassa traço 1:3 | C84: =VLOOKUP(A84,CPU!$B$10:$G$5003,3,0) -> m3 | I84: ='Sítio Lambedor'!F44 -> 2.9 | J84: ='Poço da Onça'!F44 -> 1 | K84: =Brejo!F44 -> 1 | M84: ='Paus Grandes'!F45 -> 0.7
B85: Mao de obra | D85: QUANT.PESSOAS | E85: RENDIMENTO (H/m3) | F85: m3 | G85: HORAS | H85: DIAS | I85: DIAS | J85: DIAS | K85: DIAS | L85: DIAS | M85: DIAS
B86: Servente | D86: 2 | E86: =8.57/D86 -> 4.285 | F86: 1 | G86: =F86*(E86) -> 4.285 | H86: =G86/8 -> 0.535625 | I86: =I84*$E$86/8 -> 1.5533125 | J86: =J84*$E$86/8 -> 0.535625 | K86: 0.535625 | L86: 0 | M86: 0.3749375
A88: =CPU!B163 -> CPU.16 | B88: =VLOOKUP(A88,CPU!$B$10:$G$5003,2,0) -> Troca do registro de gaveta, incluso registro DN 150 mm | C88: =VLOOKUP(A88,CPU!$B$10:$G$5003,3,0) -> un | K88: =Brejo!F54 -> 1
B89: Mao de obra | D89: QUANT.PESSOAS | E89: RENDIMENTO (H/un) | F89: un | G89: HORAS | H89: DIAS | I89: DIAS | J89: DIAS | K89: DIAS | L89: DIAS | M89: DIAS
B90: AUXILIAR DE ENCANADOR OU BOMBEIRO HIDRÁULICO | D90: 1 | E90: =0.0805/D90 -> 0.0805 | F90: 1 | G90: =F90*(E90) -> 0.0805 | H90: =G90/8 -> 0.0100625 | I90: =I88*$E$90/8 -> 0 | J90: =J88*$E$90/8 -> 0 | K90: 0.0100625 | L90: 0 | M90: 0
B91: ENCANADOR OU BOMBEIRO HIDRÁULICO | D91: 1 | E91: =0.4686 /D91 -> 0.4686 | F91: 1 | G91: =F91*(E91) -> 0.4686 | H91: =G91/8 -> 0.058575 | I91: =I88*$E$91/8 -> 0 | J91: =J88*$E$91/8 -> 0 | K91: 0.058575 | L91: 0 | M91: 0
A93: =CPU!B172 -> CPU.17 | B93: =VLOOKUP(A93,CPU!$B$10:$G$5003,2,0) -> Pintura esmalte, incl. base anticorrosiva e lixamento, em duas demãos | C93: =VLOOKUP(A93,CPU!$B$10:$G$5003,3,0) -> m2 | I93: ='Sítio Lambedor'!F34 -> 81.7 | K93: =Brejo!F56 -> 3.77
B94: Mao de obra | D94: QUANT.PESSOAS | E94: RENDIMENTO (H/m2) | F94: m2 | G94: HORAS | H94: DIAS | I94: DIAS | J94: DIAS | K94: DIAS | L94: DIAS | M94: DIAS
B95: AJUDANTE DE PINTOR | D95: 1 | E95: =0.8/D95 -> 0.8 | F95: 1 | G95: =F95*(E95) -> 0.8 | H95: =G95/8 -> 0.1 | I95: =I93*$E$95/8 -> 8.17 | J95: =J93*$E$95/8 -> 0 | K95: 0.377 | L95: 0 | M95: 0
B96: PINTOR | D96: 1 | E96: =0.8/D96 -> 0.8 | F96: 1 | G96: =F96*(E96) -> 0.8 | H96: =G96/8 -> 0.1 | I96: =I93*$E$96/8 -> 8.17 | J96: =J93*$E$96/8 -> 0 | K96: 0.377 | L96: 0 | M96: 0
A98: =CPU!B181 -> CPU.18 | B98: =VLOOKUP(A98,CPU!$B$10:$G$5003,2,0) -> Caixa em concreto armado | C98: =VLOOKUP(A98,CPU!$B$10:$G$5003,3,0) -> m3 | K98: =Brejo!F60 -> 1
B99: Mao de obra | C99: m3 | D99: QUANT.PESSOAS | E99: RENDIMENTO (H/M3) | F99: m3 | G99: HORAS | H99: DIAS | I99: DIAS | J99: DIAS | K99: DIAS | L99: DIAS | M99: DIAS
B100: Servente | C100: h | D100: 2 | E100: =6.2067/D100 -> 3.10335 | F100: 1 | G100: =F100*(E100) -> 3.10335 | H100: =G100/8 -> 0.38791875 | I100: =I98*$E$100/8 -> 0 | J100: =J98*$E$100/8 -> 0 | K100: 0.38791875 | L100: 0 | M100: 0
B101: ARMADOR | C101: h | D101: 1 | E101: =1.57/D101 -> 1.57 | F101: 2 | G101: =F101*(E101) -> 3.14 | H101: =G101/8 -> 0.3925 | I101: =I98*$E$101/8 -> 0 | J101: =J98*$E$101/8 -> 0 | K101: 0.19625 | L101: 0 | M101: 0
B102: SERVENTE | C102: h | D102: 1 | E102: =0.06/D102 -> 0.06 | F102: 3 | G102: =F102*(E102) -> 0.18 | H102: =G102/8 -> 0.0225 | I102: =I98*$E$102/8 -> 0 | J102: =J98*$E$102/8 -> 0 | K102: 0.0075 | L102: 0 | M102: 0
B103: AJUDANTE DE CARPINTEIRO | C103: h | D103: 1 | E103: =0.005/D103 -> 0.005 | F103: 4 | G103: =F103*(E103) -> 0.02 | H103: =G103/8 -> 0.0025 | I103: =I98*$E$103/8 -> 0 | J103: =J98*$E$103/8 -> 0 | K103: 0.000625 | L103: 0 | M103: 0
B104: CARPINTEIRO | C104: h | D104: 1 | E104: =0.005/D104 -> 0.005 | F104: 5 | G104: =F104*(E104) -> 0.025 | H104: =G104/8 -> 0.003125 | I104: =I98*$E$104/8 -> 0 | J104: =J98*$E$104/8 -> 0 | K104: 0.000625 | L104: 0 | M104: 0
E275: ='Memorial de cálculo'!#REF!*'Memorial de cálculo'!E1603 -> 

Sheet CPU-VEICULO_PickUp (2)
A5: Composição de Preços de Locação de Veículo tipo pick-up
B6: Data de atualização: | C6: 2025-01-22 | E6: CV | F6: Média | G6: Mediana | K6: CV | L6: Média | M6: Mediana | V6: CV | W6: Média | X6: Mediana
A7: CODEVASF | E7: =_xlfn.STDEV.S(E10:H10)/AVERAGE(E10:H10) -> 0.09461804749 | F7: =AVERAGE(E10:H10) -> 200477 | G7: =MEDIAN(E10:H10) -> 205565.5 | K7: =_xlfn.STDEV.S(L9:S9)/AVERAGE(L9:S9) -> 0.2049193683 | L7: =AVERAGE(L9:S9) -> 34.54857143 | M7: =MEDIAN(L9:S9) -> 30.91 | V7: =_xlfn.STDEV.S(W9:AD9)/AVERAGE(W9:AD9) -> 0.1241023561 | W7: =AVERAGE(W9:AD9) -> 499.0190625 | X7: =MEDIAN(W9:AD9) -> 499.45
A8: OBS: Preço sem BDI e sem motorista BDI= | E8: Preço FIPE | J8: PRODUTO | K8: MENOR (MÉDIA, MEDIANA) | L8: COT. 1 | M8: COT. 2 | N8: COT. 3 | O8: COT. 4 | P8: COT. 5 | Q8: COT. 6 | R8: COT. 7 | S8: COT. 8 | U8: PRODUTO | V8: MENOR (MÉDIA, MEDIANA) | W8: COT. 1 | X8: COT. 2 | Y8: COT. 3 | Z8: COT. 4 | AA8: COT. 5 | AB8: COT. 6 | AC8: COT. 7 | AD8: COT. 8
A9: Veículo tipo pick-up, cabine dupla - 2.0 16V 4x4 diesel Aut. | E9: Toro Ultra 2.0 16V 4x4 TB Diesel Aut. | F9: Toro Freedom 2.0 16V 4x4 TB Diesel Aut. | G9: Toro Volcano 2.0 16V 4x4 TB Diesel Aut. | H9: Toro Ranch 2.0 16V 4x4 TB Diesel Aut. | J9: LUBRIFICANTE 5W30 | K9: =SMALL(L7:M7,1) -> 30.91 | L9: 33.33 | M9: 26.9 | N9: 30.9 | O9: 30.9 | P9: 30.91 | Q9: 46 | R9: 42.9 | U9: Pneu 225/65 R17 | V9: =SMALL(W7:X7,1) -> 499.0190625 | W9: 499 | X9: 479.9 | Y9: 565.25 | Z9: 393.38 | AA9: 449.9 | AB9: =2059.44/4 -> 514.86 | AC9: =2359.85/4 -> 589.9625 | AD9: 499.9
B10: Custo Mensal (R$): | C10: =C51 -> 3838.419606 | E10: 215525 | F10: 175252 | G10: 196485 | H10: 214646
B11: Custo Diária (R$): | C11: =C10/22 -> 174.4736185
B12: Custo Horário (R$): | C12: =C10/176 -> 21.80920231
A13: A | B13: Depreciação mensal do equipamento
A14: A1 | B14: Preço de Aquisição | C14: =SMALL(F7:G7,1) -> 200477
A15: A2 | B15: Tempo previsto de vida útil (meses) | C15: 36
A16: A3 | B16: Previsão de recup. Na venda do bem usado | C16: 0.7
A17: A4 | B17: Custo mensal [A1-(A3xA1)]/A2 | C17: =(C14-(C16*C14))/C15 -> 1670.641667
A18: B | B18: Juros pelo Capital empregado
A19: B1 | B19: Taxa mensal de Juros * | C19: =POWER(1+C56,1/12)-1 -> 0.01034852829
A20: B2 | B20: Juros s/depreciação/aluguel (B1xA4) | C20: =C19*C17 -> 17.28868255
A21: C | B21: Conservação e manutenção ** | C21: 0.75
A22: C1 | B22: Taxa de gastos s/a deprec. Inc. seguros (%) | C22: =C21 -> 0.75 | AF22: PREÇO DO DIESEL | AG22: 6.1
A23: C2 | B23: Incidência mensal (C1xA4) | C23: =C22*C17 -> 1252.98125 | AF23: https://precos.petrobras.com.br/sele%C3%A7%C3%A3o-de-estados-diesel
A24: D | B24: Combustível
A25: D1 | B25: Média mensal de quilômetro por veículo | C25: =60*22 -> 1320
A26: D2 | B26: Preço do litro de combustível | C26: =AG22 -> 6.1
A27: D3 | B27: Quilômetros rodados com um litro combustivel | C27: 10
A28: D4 | B28: Combustivel (D1/D3)*D2 | C28: =(C25/C27)*C26 -> 805.2
A29: E | B29: Lubrificantes
A30: E1 | B30: Quilometragem do Contrato (D1*12) | C30: =C25*36 -> 47520
A31: E2 | B31: Franquia por troca de óleo (km) | C31: 10000
A32: E3 | B32: Preço do litro de óleo | C32: =K9 -> 30.91
A33: E4 | B33: Quantidade de litros de óleo por troca | C33: 5
A34: E5 | B34: Quantidade de dias do Contrato | C34: =365*3 -> 1095
A35: E6 | B35: Lubrificantes E = (E1*E3*E4*30)/E2*E5 | C35: =(C30*C32*C33*30)/(C31*C34) -> 20.12113973
A36: F | B36: Pneus
A37: F1 | B37: Quilometragem do Contrato | C37: =C30 -> 47520
A38: F2 | B38: Vida do Pneu em quilômetros | C38: 45000
A39: F3 | B39: Quantidade de pneus | C39: 5
A40: F4 | B40: Preço do Pneu | C40: =V9 -> 499.0190625
A41: F5 | B41: Quantidade de dias do contrato | C41: =C34 -> 1095
A42: F6 | B42: Pneus = (F1*F3*F4*30)/(F2*F5) | C42: =(C37*C39*C40*30)/(C38*C41) -> 72.18686712
A43: G | B43: Motorista
A44: G1 | B44: Salário com encargos sociais | C44: 0
A45: H | B45: Custo Mensal
B46: Sem Motorista (A4+B2+C2+D4+E6+F6) | C46: =C17+C20+C23+C28+C35+C42 -> 3838.419606
B47: Com Motorista (A4+B2+C2+D4+E6+F6+G1) | C47: =C17+C20+C23+C28+C35+C42+C44 -> 3838.419606
A48: I | B48: Custo Direto p/ km Rodado
B49: Sem Motorista | C49: =C46/C25 -> 2.907893641
B50: Com Motorista | C50: =C47/C25 -> 2.907893641
A51: J | B51: Preço cobrado sem BDI | C51: =C46*(1+C8) -> 3838.419606
A52: J1 | B52: Sem Motorista | C52: =C51 -> 3838.419606
A53: J2 | B53: Com Motorista | C53: =C47 -> 3838.419606 | I53: https://www.google.com/search?q=lubrificante+5w30+1l&sa=X&sca_esv=c77f5342bf7e367a&tbm=shop&ei=e0uKZ-DcDNKp5OUPkOKj6QY&ved=0ahUKEwighoOy3_yKAxXSFLkGHRDxKG0Q4dUDCAg&uact=5&oq=lubrificante+5w30+1l&gs_lp=Egtwcm9kdWN0cy1jYyIUbHVicmlmaWNhbnRlIDV3MzAgMWxIgQ9Q4AlY8Q1wAHgAkAEAmAFroAGgA6oBAzEuM7gBA8gBAPgBAZgCAqAC0gHCAgUQABiABMICBhAAGAcYHsICBhAAGAgYHsICBhAAGBYYHpgDAIgGAZIHAzEuMaAHxQU&sclient=products-cc | T53: https://www.google.com/search?q=pneu+225%2F65+R17&sa=X&biw=1600&bih=757&tbm=shop&sxsrf=AJOqlzWsb-d4PS1_OUOEhKmRc2RbtSg3RQ%3A1677092596279&ei=9Gb2Y9K5ENTa5OUPvLykGA&ved=0ahUKEwjSg9Pj6Kn9AhVULbkGHTweCQMQ4dUDCAg&uact=5&oq=pneu+225%2F65+R17&gs_lcp=Cgtwcm9kdWN0cy1jYxADMgsIABCABBCxAxCDATIFCAAQgAQyBwgAEIAEEAoyBwgAEIAEEAoyBwgAEIAEEAoyBwgAEIAEEAoyBwgAEIAEEAoyBQgAEIAEMgcIABCABBAKMgcIABCABBAKOgQIIxAnOgQIABBDSgQIQRgAUABYoTJgqUBoAHAAeACAAdIFiAGUKZIBDTAuMi42LjIuMi4yLjGYAQCgAQHAAQE&sclient=products-cc
B55: OBSERVAÇÕES:
A56: * | B56: Calculado com base na taxa SELIC JANEIRO/2025: | C56: 0.1315
B57: Taxa de Juros Selic — Português (Brasil) (www.gov.br)
A58: ** | B58: Conservação e manutenção - é calculado com o uso de um coeficiente multiplicador "k", conforme tabela abaixo, sobre a
B59: depreciação mensal do equipamento (Item A da planilha de composição de preços). Os valores de K são fornecidos por
B60: fabricantes.
B61: Metodologia conforme a bibliografia "Como Preparar Orçamentos de Obras", 3 edição, Aldo Dórea Mattos, 2019.

Sheet Encargos Sociais
A1: Ministério da Integração e do Desenvolvimento Regional
A2: Companhia de Desenvolvimento dos Vales do São Francisco e do Parnaíba
A4: COMPOSIÇÃO DE ENCARGOS SOCIAIS SOBRE A MÃO DE OBRA
A5: =Resumo!A5 -> OBRA: | B5: =Resumo!B5 -> Execução de manutenção e obras civis nas barragens de Sitio Lambedor, Poço da Onça, Brejo, Boqueirão e Paus Grandes localizadas no estado de Pernambuco.
A6: =Resumo!A6 -> LOCAL: | B6: =Resumo!B6 -> BARRAGENS DE PERNAMBUCO
A7: =Resumo!A7 -> DATA BASE: | B7: =Resumo!B7 -> 2025-07-01
A8: =Resumo!A8 -> PRAZO: | B8: =Resumo!B8 -> 240 dias
A9: PERNAMBUCO
A10: Encargos Sociais – Pernambuco VIGÊNCIA A PARTIR DE 01/2025
A11: ENCARGOS SOCIAIS SOBRE A MÃO DE OBRA
A12: CÓDIGO | B12: DESCRIÇÃO | C12: COM DESONERAÇÃO | E12: SEM DESONERAÇÃO
C13: HORISTA % | D13: MENSALISTA % | E13: HORISTA % | F13: MENSALISTA %
A14: GRUPO A
A15: A1 | B15: INSS | C15: 0.05 | D15: 0.05 | E15: 0.2 | F15: 0.2
A16: A2 | B16: SESI | C16: 0.015 | D16: 0.015 | E16: 0.015 | F16: 0.015
A17: A3 | B17: SENAI | C17: 0.01 | D17: 0.01 | E17: 0.01 | F17: 0.01
A18: A4 | B18: INCRA | C18: 0.002 | D18: 0.002 | E18: 0.002 | F18: 0.002
A19: A5 | B19: SEBRAE | C19: 0.006 | D19: 0.006 | E19: 0.006 | F19: 0.006
A20: A6 | B20: Salário Educação | C20: 0.025 | D20: 0.025 | E20: 0.025 | F20: 0.025
A21: A7 | B21: Seguro Contra Acidentes de Trabalho | C21: 0.03 | D21: 0.03 | E21: 0.03 | F21: 0.03
A22: A8 | B22: FGTS | C22: 0.08 | D22: 0.08 | E22: 0.08 | F22: 0.08
A23: A9 | B23: SECONCI | C23: 0 | D23: 0 | E23: 0 | F23: 0
A24: A | B24: Total | C24: =SUM(C15:C23) -> 0.218 | D24: =SUM(D15:D23) -> 0.218 | E24: =SUM(E15:E23) -> 0.368 | F24: =SUM(F15:F23) -> 0.368
A25: GRUPO B
A26: B1 | B26: Repouso Semanal Remunerado | C26: 0.1801 | D26: Não incide | E26: 0.1801 | F26: Não incide
A27: B2 | B27: Feriados | C27: 0.0432 | D27: Não incide | E27: 0.0432 | F27: Não incide
A28: B3 | B28: Auxílio - Enfermidade | C28: 0.0086 | D28: 0.0065 | E28: 0.0086 | F28: 0.0065
A29: B4 | B29: 13º Salário | C29: 0.1097 | D29: 0.0833 | E29: 0.1097 | F29: 0.0833
A30: B5 | B30: Licença Paternidade | C30: 0.0007 | D30: 0.0005 | E30: 0.0007 | F30: 0.0005
A31: B6 | B31: Faltas Justificadas | C31: 0.0073 | D31: 0.0056 | E31: 0.0073 | F31: 0.0056
A32: B7 | B32: Dias de Chuvas | C32: 0.0196 | D32: Não incide | E32: 0.0196 | F32: Não incide
A33: B8 | B33: Auxílio Acidente de Trabalho | C33: 0.001 | D33: 0.0007 | E33: 0.001 | F33: 0.0007
A34: B9 | B34: Férias Gozadas | C34: 0.0995 | D34: 0.0756 | E34: 0.0995 | F34: 0.0756
A35: B10 | B35: Salário Maternidade | C35: 0.0003 | D35: 0.0003 | E35: 0.0003 | F35: 0.0003
A36: B | B36: Total | C36: =SUM(C26:C35) -> 0.47 | D36: =SUM(D26:D35) -> 0.1725 | E36: =SUM(E26:E35) -> 0.47 | F36: =SUM(F26:F35) -> 0.1725
A37: GRUPO C
A38: C1 | B38: Aviso Prévio Indenizado | C38: 0.0477 | D38: 0.0363 | E38: 0.0477 | F38: 0.0363
A39: C2 | B39: Aviso Prévio Trabalhado | C39: 0.0011 | D39: 0.0009 | E39: 0.0011 | F39: 0.0009
A40: C3 | B40: Férias Indenizadas | C40: 0.0398 | D40: 0.0303 | E40: 0.0398 | F40: 0.0303
A41: C4 | B41: Depósito Rescisão Sem Justa Causa | C41: 0.0306 | D41: 0.0233 | E41: 0.0306 | F41: 0.0233
A42: C5 | B42: Indenização Adicional | C42: 0.004 | D42: 0.0031 | E42: 0.004 | F42: 0.0031
A43: C | B43: Total | C43: =SUM(C38:C42) -> 0.1232 | D43: =SUM(D38:D42) -> 0.0939 | E43: =SUM(E38:E42) -> 0.1232 | F43: =SUM(F38:F42) -> 0.0939
A44: GRUPO D
A45: D1 | B45: Reincidência de Grupo A sobre Grupo B | C45: 0.097 | D45: 0.0334 | E45: 0.173 | F45: 0.0635
A46: D2 | B46: Reincidência de Grupo A sobre Aviso Prévio Trabalhado e Reincidência do FGTS sobre Aviso Prévio Indenizado | C46: 0.0041 | D46: 0.0031 | E46: 0.0042 | F46: 0.0032
A47: D | B47: Total | C47: =SUM(C45:C46) -> 0.1011 | D47: =SUM(D45:D46) -> 0.0365 | E47: =SUM(E45:E46) -> 0.1772 | F47: =SUM(F45:F46) -> 0.0667
A48: TOTAL(A+B+C+D) | C48: =C24+C36+C43+C47 -> 0.9123 | D48: =D24+D36+D43+D47 -> 0.5209 | E48: =E24+E36+E43+E47 -> 1.1384 | F48: =F24+F36+F43+F47 -> 0.7011
A49: Fonte: Informação Dias de Chuva – INMET

Sheet Ins SINAPI PE 06-2025 Onerado
A1: SINAPI - Sistema Nacional de Pesquisa de Custos e Índices da Construção Civil
A2: RELATÓRIO DE PREÇOS DE INSUMOS - ENGARGOS SOCIAIS SEM DESONERAÇÃO
A3: Mês de Referência: | B3: 2025-06-01 | E3: Encargos sociais sobre a mão de obra:
A4: Data de emissão: | E4: (SEM DESONERAÇÃO) | F4: PE
E5: Localidade | F5: RECIFE
A6: Origem de preço: | B6: C = COLETADO | C6: CR = COEFICIENTE DE REPRESENTATIVIDADE | E6: Horista | F6: 1.1384
A7: Preço em branco para determinado estado significa que não houve coleta mínima de preços no mês de referência | E7: Mensalista | F7: 0.7011
A9: Acessar Fichas de Especificação Técnico dos Insumos | E9: Preços Medianos (R$):
A10: Classificação | B10: Código do Insumo | C10: Descrição do Insumo | D10: Unidade | E10: Origem de Preço | F10: PE
A11: SERVIÇOS | B11: 45333 | C11: ABERTURA PARA ENCAIXE DE CUBA OU LAVATORIO EM BANCADA DE MARMORE/ GRANITO OU OUTRO TIPO DE PEDRA NATURAL | D11: UN | E11: CR | F11: 168.81
A12: MATERIAL | B12: 11270 | C12: ABRACADEIRA DE LATAO PARA FIXACAO DE CABO PARA-RAIO, DIMENSOES 32 X 24 X 24 MM | D12: UN | E12: CR | F12: 4.05
A13: MATERIAL | B13: 412 | C13: ABRACADEIRA DE NYLON PARA AMARRACAO DE CABOS, COMPRIMENTO DE *230* X *7,6* MM | D13: UN | E13: CR | F13: 1.28
A14: MATERIAL | B14: 414 | C14: ABRACADEIRA DE NYLON PARA AMARRACAO DE CABOS, COMPRIMENTO DE 100 X 2,5 MM | D14: UN | E14: CR | F14: 0.08
A15: MATERIAL | B15: 410 | C15: ABRACADEIRA DE NYLON PARA AMARRACAO DE CABOS, COMPRIMENTO DE 150 X *3,6* MM | D15: UN | E15: CR | F15: 0.19
A16: MATERIAL | B16: 411 | C16: ABRACADEIRA DE NYLON PARA AMARRACAO DE CABOS, COMPRIMENTO DE 200 X *4,6* MM | D16: UN | E16: C | F16: 0.25
A17: MATERIAL | B17: 408 | C17: ABRACADEIRA DE NYLON PARA AMARRACAO DE CABOS, COMPRIMENTO DE 390 X *4,6* MM | D17: UN | E17: CR | F17: 1.24
A18: MATERIAL | B18: 39131 | C18: ABRACADEIRA EM ACO PARA AMARRACAO DE ELETRODUTOS, TIPO D, COM 1 1/2" E CUNHA DE FIXACAO | D18: UN | E18: CR | F18: 4.93
A19: MATERIAL | B19: 394 | C19: ABRACADEIRA EM ACO PARA AMARRACAO DE ELETRODUTOS, TIPO D, COM 1 1/2" E PARAFUSO DE FIXACAO | D19: UN | E19: CR | F19: 4.99
A20: MATERIAL | B20: 39130 | C20: ABRACADEIRA EM ACO PARA AMARRACAO DE ELETRODUTOS, TIPO D, COM 1 1/4" E CUNHA DE FIXACAO | D20: UN | E20: CR | F20: 4.5
A21: MATERIAL | B21: 395 | C21: ABRACADEIRA EM ACO PARA AMARRACAO DE ELETRODUTOS, TIPO D, COM 1 1/4" E PARAFUSO DE FIXACAO | D21: UN | E21: CR | F21: 4.81
A22: MATERIAL | B22: 39129 | C22: ABRACADEIRA EM ACO PARA AMARRACAO DE ELETRODUTOS, TIPO D, COM 1" E CUNHA DE FIXACAO | D22: UN | E22: CR | F22: 2.77
A23: MATERIAL | B23: 393 | C23: ABRACADEIRA EM ACO PARA AMARRACAO DE ELETRODUTOS, TIPO D, COM 1" E PARAFUSO DE FIXACAO | D23: UN | E23: C | F23: 2.9
A24: MATERIAL | B24: 39127 | C24: ABRACADEIRA EM ACO PARA AMARRACAO DE ELETRODUTOS, TIPO D, COM 1/2" E CUNHA DE FIXACAO | D24: UN | E24: CR | F24: 2.37
A25: MATERIAL | B25: 392 | C25: ABRACADEIRA EM ACO PARA AMARRACAO DE ELETRODUTOS, TIPO D, COM 1/2" E PARAFUSO DE FIXACAO | D25: UN | E25: CR | F25: 2.43
A26: MATERIAL | B26: 39133 | C26: ABRACADEIRA EM ACO PARA AMARRACAO DE ELETRODUTOS, TIPO D, COM 2 1/2" E CUNHA DE FIXACAO | D26: UN | E26: CR | F26: 6.47
A27: MATERIAL | B27: 397 | C27: ABRACADEIRA EM ACO PARA AMARRACAO DE ELETRODUTOS, TIPO D, COM 2 1/2" E PARAFUSO DE FIXACAO | D27: UN | E27: CR | F27: 7.15
A28: MATERIAL | B28: 39132 | C28: ABRACADEIRA EM ACO PARA AMARRACAO DE ELETRODUTOS, TIPO D, COM 2" E CUNHA DE FIXACAO | D28: UN | E28: CR | F28: 5.18
A29: MATERIAL | B29: 396 | C29: ABRACADEIRA EM ACO PARA AMARRACAO DE ELETRODUTOS, TIPO D, COM 2" E PARAFUSO DE FIXACAO | D29: UN | E29: CR | F29: 5.55
A30: MATERIAL | B30: 39135 | C30: ABRACADEIRA EM ACO PARA AMARRACAO DE ELETRODUTOS, TIPO D, COM 3 1/2" E CUNHA DE FIXACAO | D30: UN | E30: CR | F30: 10.36
A31: MATERIAL | B31: 39134 | C31: ABRACADEIRA EM ACO PARA AMARRACAO DE ELETRODUTOS, TIPO D, COM 3" E CUNHA DE FIXACAO | D31: UN | E31: CR | F31: 8.63
A32: MATERIAL | B32: 398 | C32: ABRACADEIRA EM ACO PARA AMARRACAO DE ELETRODUTOS, TIPO D, COM 3" E PARAFUSO DE FIXACAO | D32: UN | E32: CR | F32: 7.95
A33: MATERIAL | B33: 39128 | C33: ABRACADEIRA EM ACO PARA AMARRACAO DE ELETRODUTOS, TIPO D, COM 3/4" E CUNHA DE FIXACAO | D33: UN | E33: CR | F33: 2.59
A34: MATERIAL | B34: 400 | C34: ABRACADEIRA EM ACO PARA AMARRACAO DE ELETRODUTOS, TIPO D, COM 3/4" E PARAFUSO DE FIXACAO | D34: UN | E34: CR | F34: 2.52
A35: MATERIAL | B35: 39125 | C35: ABRACADEIRA EM ACO PARA AMARRACAO DE ELETRODUTOS, TIPO D, COM 3/8" E PARAFUSO DE FIXACAO | D35: UN | E35: CR | F35: 2.59
A36: MATERIAL | B36: 39126 | C36: ABRACADEIRA EM ACO PARA AMARRACAO DE ELETRODUTOS, TIPO D, COM 4" E CUNHA DE FIXACAO | D36: UN | E36: CR | F36: 11.66
A37: MATERIAL | B37: 399 | C37: ABRACADEIRA EM ACO PARA AMARRACAO DE ELETRODUTOS, TIPO D, COM 4" E PARAFUSO DE FIXACAO | D37: UN | E37: CR | F37: 10.27
A38: MATERIAL | B38: 39158 | C38: ABRACADEIRA EM ACO PARA AMARRACAO DE ELETRODUTOS, TIPO ECONOMICA (GOTA), COM 8" | D38: UN | E38: CR | F38: 27.58
A39: MATERIAL | B39: 39141 | C39: ABRACADEIRA EM ACO PARA AMARRACAO DE ELETRODUTOS, TIPO U SIMPLES, COM 1 1/2" | D39: UN | E39: CR | F39: 2
A40: MATERIAL | B40: 39140 | C40: ABRACADEIRA EM ACO PARA AMARRACAO DE ELETRODUTOS, TIPO U SIMPLES, COM 1 1/4" | D40: UN | E40: CR | F40: 1.82
A41: MATERIAL | B41: 39139 | C41: ABRACADEIRA EM ACO PARA AMARRACAO DE ELETRODUTOS, TIPO U SIMPLES, COM 1" | D41: UN | E41: CR | F41: 1.51
A42: MATERIAL | B42: 39137 | C42: ABRACADEIRA EM ACO PARA AMARRACAO DE ELETRODUTOS, TIPO U SIMPLES, COM 1/2" | D42: UN | E42: CR | F42: 1.04
A43: MATERIAL | B43: 39143 | C43: ABRACADEIRA EM ACO PARA AMARRACAO DE ELETRODUTOS, TIPO U SIMPLES, COM 2 1/2" | D43: UN | E43: CR | F43: 4.13
A44: MATERIAL | B44: 39142 | C44: ABRACADEIRA EM ACO PARA AMARRACAO DE ELETRODUTOS, TIPO U SIMPLES, COM 2" | D44: UN | E44: CR | F44: 2.96
A45: MATERIAL | B45: 39144 | C45: ABRACADEIRA EM ACO PARA AMARRACAO DE ELETRODUTOS, TIPO U SIMPLES, COM 3" | D45: UN | E45: CR | F45: 4.81
A46: MATERIAL | B46: 39138 | C46: ABRACADEIRA EM ACO PARA AMARRACAO DE ELETRODUTOS, TIPO U SIMPLES, COM 3/4" | D46: UN | E46: CR | F46: 1.11
A47: MATERIAL | B47: 39136 | C47: ABRACADEIRA EM ACO PARA AMARRACAO DE ELETRODUTOS, TIPO U SIMPLES, COM 3/8" | D47: UN | E47: CR | F47: 0.74
A48: MATERIAL | B48: 39145 | C48: ABRACADEIRA EM ACO PARA AMARRACAO DE ELETRODUTOS, TIPO U SIMPLES, COM 4" | D48: UN | E48: CR | F48: 7.92
A49: MATERIAL | B49: 12615 | C49: ABRACADEIRA PVC, PARA CALHA PLUVIAL, DIAMETRO ENTRE *80 E 100* MM, PARA DRENAGEM PLUVIAL PREDIAL | D49: UN | E49: CR | F49: 9.86
A50: MATERIAL | B50: 11927 | C50: ABRACADEIRA, GALVANIZADA/ZINCADA, ROSCA SEM FIM, PARAFUSO INOX, LARGURA FITA *12,6 A *14 MM, D = 2" A 2 1/2" | D50: UN | E50: CR | F50: 12.1
A51: MATERIAL | B51: 11928 | C51: ABRACADEIRA, GALVANIZADA/ZINCADA, ROSCA SEM FIM, PARAFUSO INOX, LARGURA FITA *12,6 A *14 MM, D = 3" A 3 3/4" | D51: UN | E51: CR | F51: 13.87
A52: MATERIAL | B52: 11929 | C52: ABRACADEIRA, GALVANIZADA/ZINCADA, ROSCA SEM FIM, PARAFUSO INOX, LARGURA FITA *12,6 A *14 MM, D = 4" A 4 3/4" | D52: UN | E52: CR | F52: 21.45
A53: MATERIAL | B53: 36801 | C53: ACABAMENTO DE METAL CROMADO PARA REGISTRO PEQUENO, DE PAREDE, 1/2" OU 3/4" | D53: UN | E53: CR | F53: 38.58
A54: MATERIAL | B54: 36246 | C54: ACABAMENTO SIMPLES/CONVENCIONAL PARA FORRO PVC, TIPO "U" OU "C", COR BRANCA, COMPRIMENTO 6 M | D54: M | E54: CR | F54: 3.99
A55: MATERIAL | B55: 37600 | C55: ACESSORIO DE LIGACAO NAO ELETRICO PARA CARGAS EXPLOSIVAS, TUBO DE 6 M | D55: UN | E55: CR
A56: MATERIAL | B56: 37599 | C56: ACESSORIO INICIADOR NAO ELETRICO, TUBO DE 6 M, TEMPO DE RETARDO DE *160* MS | D56: UN | E56: CR
A57: MATERIAL | B57: 1 | C57: ACETILENO - RECARGA DE GAS PARA CILINDRO (NAO INCLUI TROCA/MANUTENCAO DO CILINDRO) | D57: KG | E57: C
A58: MATERIAL | B58: 3 | C58: ACIDO CLORIDRICO / ACIDO MURIATICO, DILUICAO 10% A 12% PARA USO EM LIMPEZA | D58: L | E58: CR | F58: 23.17
A59: MATERIAL | B59: 43054 | C59: ACO CA-25, 10,0 MM, OU 12,5 MM, OU 16,0 MM, OU 20,0 MM, OU 25,0 MM, VERGALHAO | D59: KG | E59: CR | F59: 8.81
A60: MATERIAL | B60: 42402 | C60: ACO CA-25, 16,0 MM, BARRA DE TRANSFERENCIA | D60: KG | E60: CR | F60: 8.42
A61: MATERIAL | B61: 42403 | C61: ACO CA-25, 20,0 MM, BARRA DE TRANSFERENCIA | D61: KG | E61: CR | F61: 10.8
A62: MATERIAL | B62: 42404 | C62: ACO CA-25, 25,0 MM, BARRA DE TRANSFERENCIA | D62: KG | E62: CR | F62: 10.74
A63: MATERIAL | B63: 42405 | C63: ACO CA-25, 32,0 MM, BARRA DE TRANSFERENCIA | D63: KG | E63: CR | F63: 11.43
A64: MATERIAL | B64: 34341 | C64: ACO CA-25, 32,0 MM, VERGALHAO | D64: KG | E64: CR | F64: 9.92
A65: MATERIAL | B65: 43053 | C65: ACO CA-25, 6,3 MM OU 8,0 MM, VERGALHAO | D65: KG | E65: CR | F65: 7.86
A66: MATERIAL | B66: 43058 | C66: ACO CA-50, 10,0 MM, OU 12,5 MM, OU 16,0 MM, OU 20,0 MM, DOBRADO E CORTADO | D66: KG | E66: CR | F66: 8.16
A67: MATERIAL | B67: 34 | C67: ACO CA-50, 10,0 MM, VERGALHAO | D67: KG | E67: CR | F67: 8.2
A68: MATERIAL | B68: 43055 | C68: ACO CA-50, 12,5 MM OU 16,0 MM, VERGALHAO | D68: KG | E68: C | F68: 7.1
A69: MATERIAL | B69: 43056 | C69: ACO CA-50, 20,0 MM OU 25,0 MM, VERGALHAO | D69: KG | E69: CR | F69: 8.18
A70: MATERIAL | B70: 43057 | C70: ACO CA-50, 32,0 MM, VERGALHAO | D70: KG | E70: CR | F70: 8.99
A71: MATERIAL | B71: 34449 | C71: ACO CA-50, 6,3 MM, DOBRADO E CORTADO | D71: KG | E71: CR | F71: 9.62
A72: MATERIAL | B72: 32 | C72: ACO CA-50, 6,3 MM, VERGALHAO | D72: KG | E72: CR | F72: 8.65
A73: MATERIAL | B73: 33 | C73: ACO CA-50, 8,0 MM, VERGALHAO | D73: KG | E73: CR | F73: 8.69
A74: MATERIAL | B74: 43061 | C74: ACO CA-60, 4,2 MM OU 5,0 MM, DOBRADO E CORTADO | D74: KG | E74: CR | F74: 8.12
A75: MATERIAL | B75: 43059 | C75: ACO CA-60, 4,2 MM, OU 5,0 MM, OU 6,0 MM, OU 7,0 MM, VERGALHAO | D75: KG | E75: CR | F75: 7.75
A76: MATERIAL | B76: 43062 | C76: ACO CA-60, 6,0 MM OU 7,0 MM, DOBRADO E CORTADO | D76: KG | E76: CR | F76: 8.59
A77: MATERIAL | B77: 43060 | C77: ACO CA-60, 8,0 MM OU 9,5 MM, VERGALHAO | D77: KG | E77: CR | F77: 6.76
A78: MATERIAL | B78: 40410 | C78: ACOPLAMENTO RIGIDO EM FERRO FUNDIDO PARA SISTEMA DE TUBULACAO RANHURADA, DN 50 MM (2") | D78: UN | E78: C
A79: MATERIAL | B79: 40411 | C79: ACOPLAMENTO RIGIDO EM FERRO FUNDIDO PARA SISTEMA DE TUBULACAO RANHURADA, DN 65 MM (2 1/2") | D79: UN | E79: CR
A80: MATERIAL | B80: 40412 | C80: ACOPLAMENTO RIGIDO EM FERRO FUNDIDO PARA SISTEMA DE TUBULACAO RANHURADA, DN 80 MM (3") | D80: UN | E80: CR
A81: MATERIAL | B81: 44254 | C81: ADAPTADOR CPVC, ROSCAVEL, COM FLANGES E ANEL DE VEDACAO, 15 MM, CAIXA D'AGUA PARA AGUA QUENTE | D81: UN | E81: CR | F81: 28.93
A82: MATERIAL | B82: 44255 | C82: ADAPTADOR CPVC, ROSCAVEL, COM FLANGES E ANEL DE VEDACAO, 22 MM, CAIXA D'AGUA PARA AGUA QUENTE | D82: UN | E82: CR | F82: 32.06
A83: MATERIAL | B83: 44256 | C83: ADAPTADOR CPVC, ROSCAVEL, COM FLANGES E ANEL DE VEDACAO, 28 MM, CAIXA D'AGUA PARA AGUA QUENTE | D83: UN | E83: CR | F83: 36.21
A84: MATERIAL | B84: 44257 | C84: ADAPTADOR CPVC, ROSCAVEL, COM FLANGES E ANEL DE VEDACAO, 35 MM, CAIXA D'AGUA PARA AGUA QUENTE | D84: UN | E84: CR | F84: 57.29
A85: MATERIAL | B85: 44258 | C85: ADAPTADOR CPVC, ROSCAVEL, COM FLANGES E ANEL DE VEDACAO, 42 MM, CAIXA D'AGUA PARA AGUA QUENTE | D85: UN | E85: CR | F85: 65.47
A86: MATERIAL | B86: 44259 | C86: ADAPTADOR CPVC, ROSCAVEL, COM FLANGES E ANEL DE VEDACAO, 54 MM, CAIXA D'AGUA PARA AGUA QUENTE | D86: UN | E86: CR | F86: 89.87
A87: MATERIAL | B87: 37997 | C87: ADAPTADOR CPVC, SOLDAVEL, 15 MM, PARA AGUA QUENTE | D87: UN | E87: CR | F87: 17.24
A88: MATERIAL | B88: 37998 | C88: ADAPTADOR CPVC, SOLDAVEL, 22 MM, PARA AGUA QUENTE | D88: UN | E88: CR | F88: 23.07
A89: MATERIAL | B89: 55 | C89: ADAPTADOR DE COMPRESSAO EM POLIPROPILENO (PP), PARA TUBO EM PEAD, 20 MM X 1/2", PARA LIGACAO PREDIAL DE AGUA (NTS 179) | D89: UN | E89: C
A90: MATERIAL | B90: 61 | C90: ADAPTADOR DE COMPRESSAO EM POLIPROPILENO (PP), PARA TUBO EM PEAD, 20 MM X 3/4", PARA LIGACAO PREDIAL DE AGUA (NTS 179) | D90: UN | E90: CR
A91: MATERIAL | B91: 62 | C91: ADAPTADOR DE COMPRESSAO EM POLIPROPILENO (PP), PARA TUBO EM PEAD, 32 MM X 1", PARA LIGACAO PREDIAL DE AGUA (NTS 179) | D91: UN | E91: CR
A92: MATERIAL | B92: 10899 | C92: ADAPTADOR EM LATAO, ENGATE RAPIDO 2 1/2" X ROSCA INTERNA 5 FIOS 2 1/2", PARA INSTALACAO PREDIAL DE COMBATE A INCENDIO | D92: UN | E92: CR | F92: 100.76
A93: MATERIAL | B93: 10900 | C93: ADAPTADOR EM LATAO, ENGATE RAPIDO1 1/2" X ROSCA INTERNA 5 FIOS 2 1/2", PARA INSTALACAO PREDIAL DE COMBATE A INCENDIO | D93: UN | E93: CR | F93: 78.85
A94: MATERIAL | B94: 47 | C94: ADAPTADOR PVC PBA, BOLSA/ROSCA, JE, DN 100 / DE 110 MM | D94: UN | E94: CR
A95: MATERIAL | B95: 48 | C95: ADAPTADOR PVC PBA, BOLSA/ROSCA, JE, DN 50 / DE 60 MM | D95: UN | E95: CR
A96: MATERIAL | B96: 46 | C96: ADAPTADOR PVC PBA, BOLSA/ROSCA, JE, DN 75 / DE 85 MM | D96: UN | E96: CR
A97: MATERIAL | B97: 52 | C97: ADAPTADOR PVC PBA, PONTA/ROSCA, JE, DN 50 / DE 60 MM | D97: UN | E97: CR
A98: MATERIAL | B98: 43 | C98: ADAPTADOR PVC PBA, PONTA/ROSCA, JE, DN 75 / DE 85 MM | D98: UN | E98: CR
A99: MATERIAL | B99: 103 | C99: ADAPTADOR PVC SOLDAVEL CURTO COM BOLSA E ROSCA, 110 MM X 4", PARA AGUA FRIA | D99: UN | E99: CR | F99: 42.6
A100: MATERIAL | B100: 107 | C100: ADAPTADOR PVC SOLDAVEL CURTO COM BOLSA E ROSCA, 20 MM X 1/2", PARA AGUA FRIA | D100: UN | E100: CR | F100: 0.8
A101: MATERIAL | B101: 65 | C101: ADAPTADOR PVC SOLDAVEL CURTO COM BOLSA E ROSCA, 25 MM X 3/4", PARA AGUA FRIA | D101: UN | E101: CR | F101: 0.88
A102: MATERIAL | B102: 108 | C102: ADAPTADOR PVC SOLDAVEL CURTO COM BOLSA E ROSCA, 32 MM X 1", PARA AGUA FRIA | D102: UN | E102: CR | F102: 1.76
A103: MATERIAL | B103: 110 | C103: ADAPTADOR PVC SOLDAVEL CURTO COM BOLSA E ROSCA, 40 MM X 1 1/2", PARA AGUA FRIA | D103: UN | E103: CR | F103: 6.13
A104: MATERIAL | B104: 109 | C104: ADAPTADOR PVC SOLDAVEL CURTO COM BOLSA E ROSCA, 40 MM X 1 1/4", PARA AGUA FRIA | D104: UN | E104: CR | F104: 3.65
A105: MATERIAL | B105: 111 | C105: ADAPTADOR PVC SOLDAVEL CURTO COM BOLSA E ROSCA, 50 MM X 1 1/4", PARA AGUA FRIA | D105: UN | E105: CR | F105: 8.29
A106: MATERIAL | B106: 112 | C106: ADAPTADOR PVC SOLDAVEL CURTO COM BOLSA E ROSCA, 50 MM X1 1/2", PARA AGUA FRIA | D106: UN | E106: CR | F106: 4.39
A107: MATERIAL | B107: 113 | C107: ADAPTADOR PVC SOLDAVEL CURTO COM BOLSA E ROSCA, 60 MM X 2", PARA AGUA FRIA | D107: UN | E107: CR | F107: 11
A108: MATERIAL | B108: 104 | C108: ADAPTADOR PVC SOLDAVEL CURTO COM BOLSA E ROSCA, 75 MM X 2 1/2", PARA AGUA FRIA | D108: UN | E108: CR | F108: 19.14
A109: MATERIAL | B109: 102 | C109: ADAPTADOR PVC SOLDAVEL CURTO COM BOLSA E ROSCA, 85 MM X 3", PARA AGUA FRIA | D109: UN | E109: CR | F109: 26.39
A110: MATERIAL | B110: 95 | C110: ADAPTADOR PVC SOLDAVEL, COM FLANGE E ANEL DE VEDACAO, 20 MM X 1/2", PARA CAIXA D'AGUA | D110: UN | E110: CR | F110: 11.15
A111: MATERIAL | B111: 96 | C111: ADAPTADOR PVC SOLDAVEL, COM FLANGE E ANEL DE VEDACAO, 25 MM X 3/4", PARA CAIXA D'AGUA | D111: UN | E111: CR | F111: 12.13
A112: MATERIAL | B112: 97 | C112: ADAPTADOR PVC SOLDAVEL, COM FLANGE E ANEL DE VEDACAO, 32 MM X 1", PARA CAIXA D'AGUA | D112: UN | E112: CR | F112: 18.25
A113: MATERIAL | B113: 98 | C113: ADAPTADOR PVC SOLDAVEL, COM FLANGE E ANEL DE VEDACAO, 40 MM X 1 1/4", PARA CAIXA D'AGUA | D113: UN | E113: CR | F113: 27.32
A114: MATERIAL | B114: 99 | C114: ADAPTADOR PVC SOLDAVEL, COM FLANGE E ANEL DE VEDACAO, 50 MM X 1 1/2", PARA CAIXA D'AGUA | D114: UN | E114: CR | F114: 25.82
A115: MATERIAL | B115: 60 | C115: ADAPTADOR PVC, COM REGISTRO, PARA PEAD, 20 MM X 3/4", PARA LIGACAO PREDIAL DE AGUA | D115: UN | E115: CR
A116: MATERIAL | B116: 72 | C116: ADAPTADOR PVC, ROSCAVEL, COM FLANGES E ANEL DE VEDACAO, 1 1/2", PARA CAIXA D'AGUA | D116: UN | E116: CR | F116: 49.53
A117: MATERIAL | B117: 71 | C117: ADAPTADOR PVC, ROSCAVEL, COM FLANGES E ANEL DE VEDACAO, 1", PARA CAIXA D'AGUA | D117: UN | E117: CR | F117: 30.59
A118: MATERIAL | B118: 67 | C118: ADAPTADOR PVC, ROSCAVEL, COM FLANGES E ANEL DE VEDACAO, 1/2", PARA CAIXA D'AGUA | D118: UN | E118: CR | F118: 16.01
A119: MATERIAL | B119: 73 | C119: ADAPTADOR PVC, ROSCAVEL, COM FLANGES E ANEL DE VEDACAO, 3/4", PARA CAIXA D'AGUA | D119: UN | E119: CR | F119: 15.32
A120: MATERIAL | B120: 100 | C120: ADAPTADOR PVC, SOLDAVEL, COM FLANGES E ANEL DE VEDACAO, 60 MM X 2", PARA CAIXA D'AGUA | D120: UN | E120: CR | F120: 45.12
A121: MATERIAL | B121: 75 | C121: ADAPTADOR PVC, SOLDAVEL, COM FLANGES LIVRES, 110 MM X 4", PARA CAIXA D'AGUA | D121: UN | E121: CR | F121: 263.07
A122: MATERIAL | B122: 83 | C122: ADAPTADOR PVC, SOLDAVEL, COM FLANGES LIVRES, 75 MM X 2 1/2", PARA CAIXA D'AGUA | D122: UN | E122: CR | F122: 210.32
A123: MATERIAL | B123: 74 | C123: ADAPTADOR PVC, SOLDAVEL, COM FLANGES LIVRES, 85 MM X 3", PARA CAIXA D'AGUA | D123: UN | E123: CR | F123: 300.69
A124: MATERIAL | B124: 106 | C124: ADAPTADOR PVC, SOLDAVEL, LONGO, COM FLANGE LIVRE, 110 MM X 4", PARA CAIXA D'AGUA | D124: UN | E124: CR | F124: 380.24
A125: MATERIAL | B125: 88 | C125: ADAPTADOR PVC, SOLDAVEL, LONGO, COM FLANGE LIVRE, 32 MM X 1", PARA CAIXA D'AGUA | D125: UN | E125: CR | F125: 10.68
A126: MATERIAL | B126: 82 | C126: ADAPTADOR PVC, SOLDAVEL, LONGO, COM FLANGE LIVRE, 75 MM X 2 1/2", PARA CAIXA D'AGUA | D126: UN | E126: CR | F126: 200.1
A127: MATERIAL | B127: 105 | C127: ADAPTADOR PVC, SOLDAVEL, LONGO, COM FLANGE LIVRE, 85 MM X 3", PARA CAIXA D'AGUA | D127: UN | E127: CR | F127: 283.54
A128: MATERIAL | B128: 39719 | C128: ADESIVO / COLA DE CONTATO LIQUIDO, A BASE DE RESINAS, PARA COLAGEM DE ESPUMA PARA ISOLAMENTO TERMICO FLEXIVEL | D128: L | E128: CR | F128: 170.13
A129: MATERIAL | B129: 3410 | C129: ADESIVO / COLA PARA EPS (ISOPOR) E OUTROS MATERIAIS | D129: KG | E129: CR | F129: 38.27
A130: MATERIAL | B130: 4791 | C130: ADESIVO ACRILICO DE BASE AQUOSA / COLA DE CONTATO | D130: KG | E130: CR | F130: 45.54
A131: MATERIAL | B131: 157 | C131: ADESIVO ESTRUTURAL A BASE DE RESINA EPOXI PARA INJECAO EM TRINCAS, BICOMPONENTE, BAIXA VISCOSIDADE | D131: KG | E131: CR | F131: 155.7
A132: MATERIAL | B132: 156 | C132: ADESIVO ESTRUTURAL A BASE DE RESINA EPOXI, BICOMPONENTE, FLUIDO | D132: KG | E132: CR | F132: 55.44
A133: MATERIAL | B133: 131 | C133: ADESIVO ESTRUTURAL A BASE DE RESINA EPOXI, BICOMPONENTE, PASTOSO (TIXOTROPICO) | D133: KG | E133: CR | F133: 47.41
A134: MATERIAL | B134: 21114 | C134: ADESIVO PARA TUBOS CPVC, *75* G | D134: UN | E134: CR | F134: 33.53
A135: MATERIAL | B135: 119 | C135: ADESIVO PLASTICO PARA PVC, BISNAGA COM 75 GR | D135: UN | E135: C | F135: 8.5
A136: MATERIAL | B136: 122 | C136: ADESIVO PLASTICO PARA PVC, FRASCO COM *850* GR | D136: UN | E136: CR | F136: 65.4
A137: MATERIAL | B137: 20080 | C137: ADESIVO PLASTICO PARA PVC, FRASCO COM 175 GR | D137: UN | E137: CR | F137: 21.34
A138: MATERIAL | B138: 124 | C138: ADITIVO ACELERADOR DE PEGA E ENDURECIMENTO PARA ARGAMASSAS E CONCRETOS, LIQUIDO E ISENTO DE CLORETOS | D138: L | E138: CR | F138: 18.28
A139: MATERIAL | B139: 7334 | C139: ADITIVO ADESIVO LIQUIDO PARA ARGAMASSAS DE REVESTIMENTOS CIMENTICIOS | D139: L | E139: CR | F139: 16.85
A140: MATERIAL | B140: 45146 | C140: ADITIVO IMPERMEABILIZANTE CRISTALIZANTE PARA CONCRETO | D140: KG | E140: CR | F140: 35.06
A141: MATERIAL | B141: 123 | C141: ADITIVO IMPERMEABILIZANTE DE PEGA NORMAL PARA ARGAMASSAS E CONCRETOS SEM ARMACAO, LIQUIDO E ISENTO DE CLORETOS | D141: L | E141: C | F141: 7.48
A142: MATERIAL | B142: 127 | C142: ADITIVO IMPERMEABILIZANTE DE PEGA ULTRARRAPIDA, LIQUIDO E ISENTO DE CLORETOS | D142: L | E142: CR | F142: 17.86
A143: MATERIAL | B143: 133 | C143: ADITIVO LIQUIDO INCORPORADOR DE AR PARA CONCRETO E ARGAMASSA, LIQUIDO E ISENTO DE CLORETOS | D143: L | E143: CR | F143: 7.41
A144: MATERIAL | B144: 43617 | C144: ADITIVO PLASTIFICANTE E ESTABILIZADOR PARA ARGAMASSAS DE ASSENTAMENTO E REBOCO, LIQUIDO E ISENTO DE CLORETOS | D144: L | E144: CR | F144: 8.28
A145: MATERIAL | B145: 132 | C145: ADITIVO PLASTIFICANTE RETARDADOR DE PEGA E REDUTOR DE AGUA PARA CONCRETO, LIQUIDO E ISENTO DE CLORETOS | D145: L | E145: CR | F145: 7.69
A146: MATERIAL | B146: 43618 | C146: ADITIVO SUPERPLASTIFICANTE DE PEGA NORMAL PARA CONCRETO, LIQUIDO E ISENTO DE CLORETOS | D146: KG | E146: CR | F146: 19.36
A147: MATERIAL | B147: 37476 | C147: ADUELA/ GALERIA PRE-MOLDADA DE CONCRETO ARMADO, SECAO QUADRADA INTERNA DE 1,50 X 1,50 M (L X A), MISULA DE 20 X 20 CM, C = 1,00 M, ESPESSURA MIN = 15 CM, TB-45 E FCK DO CONCRETO = 30 MPA | D147: UN | E147: CR | F147: 3128.06
A148: MATERIAL | B148: 37478 | C148: ADUELA/ GALERIA PRE-MOLDADA DE CONCRETO ARMADO, SECAO RETANGULAR INTERNA DE 2,00 X 2,00 M (L X A), MISULA DE 20 X 20 CM, C = 1,00 M, ESPESSURA MIN = 15 CM, TB-45 E FCK DO CONCRETO = 30 MPA | D148: UN | E148: CR | F148: 3917.98
A149: MATERIAL | B149: 37477 | C149: ADUELA/ GALERIA PRE-MOLDADA DE CONCRETO ARMADO, SECAO RETANGULAR INTERNA DE 2,50 X 2,50 M (L X A), MISULA DE 20 X 20 CM, C = 1,00 M, ESPESSURA MIN = 15 CM, TB-45 E FCK DO CONCRETO = 30 MPA | D149: UN | E149: CR | F149: 5308.23
A150: MATERIAL | B150: 37479 | C150: ADUELA/ GALERIA PRE-MOLDADA DE CONCRETO ARMADO, SECAO RETANGULAR INTERNA DE 3,00 X 3,00 M (L X A), MISULA DE 20 X 20 CM, C = 1.00 M, ESPESSURA MIN = 20 CM, TB-45 E FCK DO CONCRETO = 30 MPA | D150: UN | E150: CR | F150: 6295.63
A151: MATERIAL | B151: 4319 | C151: AFASTADOR PARA TELHA DE FIBROCIMENTO CANALETE 90 OU KALHETAO | D151: UN | E151: CR | F151: 1.17
A152: MATERIAL | B152: 42409 | C152: AGENTE DE CURA, PROTETOR DA EVAPORACAO DA AGUA DE HIDRATACAO DO CONCRETO | D152: KG | E152: CR | F152: 12.19
A153: MATERIAL | B153: 40553 | C153: AGREGADO RECICLADO, TIPO RACHAO RECICLADO CINZA, CLASSE A | D153: M3 | E153: C
A154: MAO DE OBRA | B154: 6114 | C154: AJUDANTE DE ARMADOR (HORISTA) | D154: H | E154: CR | F154: 17.91
A155: MAO DE OBRA | B155: 40912 | C155: AJUDANTE DE ARMADOR (MENSALISTA) | D155: MES | E155: CR | F155: 3137.72
A156: MAO DE OBRA | B156: 247 | C156: AJUDANTE DE ELETRICISTA (HORISTA) | D156: H | E156: CR | F156: 17.91
A157: MAO DE OBRA | B157: 40919 | C157: AJUDANTE DE ELETRICISTA (MENSALISTA) | D157: MES | E157: CR | F157: 3137.72
A158: MAO DE OBRA | B158: 44499 | C158: AJUDANTE DE ESTRUTURAS METALICAS (HORISTA) | D158: H | E158: CR | F158: 17.91
A159: MAO DE OBRA | B159: 40984 | C159: AJUDANTE DE ESTRUTURAS METALICAS (MENSALISTA) | D159: MES | E159: CR | F159: 3137.72
A160: MAO DE OBRA | B160: 248 | C160: AJUDANTE DE OPERACAO EM GERAL (HORISTA) | D160: H | E160: CR | F160: 18.06
A161: MAO DE OBRA | B161: 41086 | C161: AJUDANTE DE OPERACAO EM GERAL (MENSALISTA) | D161: MES | E161: CR | F161: 3165.52
A162: MAO DE OBRA | B162: 34466 | C162: AJUDANTE DE PINTOR (HORISTA) | D162: H | E162: CR | F162: 17.91
A163: MAO DE OBRA | B163: 41083 | C163: AJUDANTE DE PINTOR (MENSALISTA) | D163: MES | E163: CR | F163: 3137.72
A164: MAO DE OBRA | B164: 252 | C164: AJUDANTE DE SERRALHEIRO (HORISTA) | D164: H | E164: CR | F164: 17.91
A165: MAO DE OBRA | B165: 40909 | C165: AJUDANTE DE SERRALHEIRO (MENSALISTA) | D165: MES | E165: CR | F165: 3137.72
A166: MAO DE OBRA | B166: 242 | C166: AJUDANTE ESPECIALIZADO (HORISTA) | D166: H | E166: CR | F166: 18.06
A167: MAO DE OBRA | B167: 41085 | C167: AJUDANTE ESPECIALIZADO (MENSALISTA) | D167: MES | E167: CR | F167: 3165.52
A168: MATERIAL | B168: 427 | C168: ALCA PREFORMADA DE CONTRA POSTE, EM ACO GALVANIZADO, PARA CABO 3/16", COMPRIMENTO *860* MM | D168: UN | E168: CR
A169: MATERIAL | B169: 417 | C169: ALCA PREFORMADA DE DISTRIBUICAO, EM ACO GALVANIZADO, PARA CABO DE ALUMINIO DIAMETRO 16 A 25 MM | D169: UN | E169: CR
A170: MATERIAL | B170: 11273 | C170: ALCA PREFORMADA DE DISTRIBUICAO, EM ACO GALVANIZADO, PARA CONDUTORES DE ALUMINIO AWG 1/0 (CAA 6/1 OU CA 7 FIOS) | D170: UN | E170: CR
A171: MATERIAL | B171: 11272 | C171: ALCA PREFORMADA DE DISTRIBUICAO, EM ACO GALVANIZADO, PARA CONDUTORES DE ALUMINIO AWG 2 (CAA 6/1 OU CA 7 FIOS) | D171: UN | E171: CR
A172: MATERIAL | B172: 11275 | C172: ALCA PREFORMADA DE SERVICO, EM ACO GALVANIZADO, PARA CONDUTORES DE ALUMINIO AWG 4 (CAA 6/1) | D172: UN | E172: CR
A173: MATERIAL | B173: 11274 | C173: ALCA PREFORMADA DE SERVICO, EM ACO GALVANIZADO, PARA CONDUTORES DE ALUMINIO AWG 6 (CAA 6/1) | D173: UN | E173: CR
A174: MATERIAL | B174: 45250 | C174: ALICATE BICO LONGO (MEIA CANA) 6", COM ISOLAMENTO ATE 1000 V | D174: UN | E174: CR | F174: 32.27
A175: MATERIAL | B175: 38470 | C175: ALICATE DE CORTE DIAGONAL 6" COM ISOLAMENTO | D175: UN | E175: C | F175: 33.03
A176: MATERIAL | B176: 38547 | C176: ALICATE DE CRIMPAR RJ11, RJ12 E RJ45, COM CATRACA | D176: UN | E176: CR | F176: 219.3
A177: MATERIAL | B177: 38467 | C177: ALICATE DE PRESSAO 11" PARA SOLDA, TIPO C | D177: UN | E177: CR | F177: 120.9
A178: MATERIAL | B178: 38468 | C178: ALICATE DE PRESSAO 11" PARA SOLDA, TIPO U | D178: UN | E178: CR | F178: 150.91
A179: MATERIAL | B179: 38469 | C179: ALICATE DE PRESSAO PARA SOLDA DE CHAPA 18" | D179: UN | E179: CR | F179: 209.4
A180: MATERIAL | B180: 45197 | C180: ALICATE DESENCAPADOR AUTOMATICO 8" | D180: UN | E180: CR | F180: 167
A181: MATERIAL | B181: 38471 | C181: ALICATE PARA ANEIS DE PISTAO, CAPACIDADE *50* A 100 MM | D181: UN | E181: CR | F181: 223.96
A182: MATERIAL | B182: 45206 | C182: ALICATE PROFISSIONAL 8", UNIVERSAL, COM ISOLAMENTO ATE 1000 V | D182: UN | E182: CR | F182: 44.25
A183: MATERIAL | B183: 37370 | C183: ALIMENTACAO - HORISTA (COLETADO CAIXA - ENCARGOS COMPLEMENTARES) | D183: H | E183: C | F183: 2.79
A184: MATERIAL | B184: 40862 | C184: ALIMENTACAO - MENSALISTA (COLETADO CAIXA - ENCARGOS COMPLEMENTARES) | D184: MES | E184: C | F184: 526.86
A185: EQUIPAMENTO (AQUISIÇÃO) | B185: 10658 | C185: ALISADORA DE CONCRETO COM MOTOR A GASOLINA DE 5,5 HP, PESO COM MOTOR DE 78 KG, 4 PAS | D185: UN | E185: C
A186: MAO DE OBRA | B186: 253 | C186: ALMOXARIFE (HORISTA) | D186: H | E186: C | F186: 22.45
A187: MAO DE OBRA | B187: 40809 | C187: ALMOXARIFE (MENSALISTA) | D187: MES | E187: CR | F187: 3929.54
A188: MATERIAL | B188: 42428 | C188: ALONGADOR COM TRES ALTURAS, EM TUBO DE ACO CARBONO, PINTURA NO PROCESSO ELETROSTATICO - EQUIPAMENTO DE GINASTICA PARA ACADEMIA AO AR LIVRE / ACADEMIA DA TERCEIRA IDADE - ATI | D188: UN | E188: C
A189: MATERIAL | B189: 301 | C189: ANEL BORRACHA PARA TUBO ESGOTO PREDIAL, DN 100 MM (NBR 5688) | D189: UN | E189: C | F189: 4
A190: MATERIAL | B190: 296 | C190: ANEL BORRACHA PARA TUBO ESGOTO PREDIAL, DN 50 MM (NBR 5688) | D190: UN | E190: CR | F190: 2.26
A191: MATERIAL | B191: 297 | C191: ANEL BORRACHA PARA TUBO ESGOTO PREDIAL, DN 75 MM (NBR 5688) | D191: UN | E191: CR | F191: 3.32
A192: MATERIAL | B192: 299 | C192: ANEL BORRACHA, DN 100 MM, PARA TUBO SERIE REFORCADA ESGOTO PREDIAL | D192: UN | E192: CR | F192: 4.69
A193: MATERIAL | B193: 300 | C193: ANEL BORRACHA, DN 150 MM, PARA TUBO SERIE REFORCADA ESGOTO PREDIAL | D193: UN | E193: CR | F193: 16.24
A194: MATERIAL | B194: 20085 | C194: ANEL BORRACHA, DN 50 MM, PARA TUBO SERIE REFORCADA ESGOTO PREDIAL | D194: UN | E194: CR | F194: 2.97
A195: MATERIAL | B195: 298 | C195: ANEL BORRACHA, DN 75 MM, PARA TUBO SERIE REFORCADA ESGOTO PREDIAL | D195: UN | E195: CR | F195: 3.61
A196: MATERIAL | B196: 311 | C196: ANEL BORRACHA, PARA TUBO PVC DEFOFO, DN 100 MM (NBR 7665) | D196: UN | E196: CR | F196: 13.39
A197: MATERIAL | B197: 318 | C197: ANEL BORRACHA, PARA TUBO PVC DEFOFO, DN 150 MM (NBR 7665) | D197: UN | E197: CR | F197: 26.97
A198: MATERIAL | B198: 319 | C198: ANEL BORRACHA, PARA TUBO PVC DEFOFO, DN 200 MM (NBR 7665) | D198: UN | E198: CR | F198: 42.28
A199: MATERIAL | B199: 303 | C199: ANEL BORRACHA, PARA TUBO PVC, REDE COLETOR ESGOTO, DN 100 MM (NBR 7362) | D199: UN | E199: CR | F199: 4.43
A200: MATERIAL | B200: 305 | C200: ANEL BORRACHA, PARA TUBO PVC, REDE COLETOR ESGOTO, DN 150 MM (NBR 7362) | D200: UN | E200: CR | F200: 13.94
A201: MATERIAL | B201: 306 | C201: ANEL BORRACHA, PARA TUBO PVC, REDE COLETOR ESGOTO, DN 200 MM (NBR 7362) | D201: UN | E201: CR | F201: 21.14
... 4705 more rows

Sheet Comp SINAPI PE 06-2025 Onerado
A1: SINAPI - Sistema Nacional de Pesquisa de Custos e Índices da Construção Civil
A2: RELATÓRIO DE CUSTOS DE COMPOSIÇÕES - ENCARGOS SOCIAIS SEM DESONERAÇÃO
A3: Mês de Referência: | B3: 2025-06-01 | D3: Encargos sociais sobre a mão de obra:
A4: Data de emissão: | D4: (SEM DESONERAÇÃO) | E4: PE
D5: Localidade | E5: RECIFE
A6: Observação: | B6: %AS (porcentagem Atribuído São Paulo) corresponde a porcentagem do custo total da | D6: Horista | E6: 1.1384
B7: composição que foi obtida utilizando preços de insumos de São Paulo por indisponibilidade | D7: Mensalista | E7: 0.7011
B8: dos preços de insumos necessários à composição no estado em questão. Custo zerado (hífen)
B9: indica que pelo menos um dos itens da composição não tem custo/preço. | E9: PE
A10: Grupo | B10: Código da Composição | C10: Descrição | D10: Unidade | E10: Custo (R$) | F10: %AS
A11: Acessibilidade | B11: 104658 | C11: PISO PODOTÁTIL DE ALERTA OU DIRECIONAL, DE CONCRETO, ASSENTADO SOBRE ARGAMASSA. AF_03/2024 | D11: M2 | E11: 152.52 | F11: 0
A12: Acessibilidade | B12: 105002 | C12: RAMPA DE ACESSIBILIDADE EM CONCRETO MOLDADO IN LOCO, EM CALÇADA NOVA COM LARGURA MAIOR OU IGUAL À 3,00 M, FCK 25MPA, COM PISO PODOTÁTIL. AF_03/2024 | D12: UN | E12: 732.7 | F12: 0
A13: Acessibilidade | B13: 105004 | C13: RAMPA DE ACESSIBILIDADE EM CONCRETO MOLDADO IN LOCO, EM CALÇADA NOVA COM LARGURA MENOR À 3,00 M, FCK 25MPA, COM PISO PODOTÁTIL. AF_03/2024 | D13: M2 | E13: 124.47 | F13: 0
A14: Acessibilidade | B14: 105003 | C14: RAMPA DE ACESSIBILIDADE EM CONCRETO MOLDADO IN LOCO, EM CALÇADA PRÉ EXISTENTE COM LARGURA MAIOR OU IGUAL À 3,00 M, FCK 25MPA, COM PISO PODOTÁTIL. AF_03/2024 | D14: UN | E14: 1175.01 | F14: 0.0626
A15: Acessibilidade | B15: 105005 | C15: RAMPA DE ACESSIBILIDADE EM CONCRETO MOLDADO IN LOCO, EM CALÇADA PRÉ EXISTENTE COM LARGURA MENOR À 3,00 M, FCK 25MPA, COM PISO PODOTÁTIL. AF_03/2024 | D15: M2 | E15: 206.37 | F15: 0.0659
A16: Acessibilidade | B16: 105006 | C16: RAMPA DE ACESSIBILIDADE EM CONCRETO PRÉ MOLDADO, EM CALÇADA NOVA COM LARGURA MAIOR OU IGUAL À 3,00 M, FCK 25MPA, COM PISO PODOTÁTIL. AF_03/2024 | D16: UN | E16: 0
A17: Acessibilidade | B17: 104999 | C17: RAMPA DE ACESSIBILIDADE EM CONCRETO PRÉ MOLDADO, EM CALÇADA PRÉ EXISTENTE COM LARGURA MAIOR OU IGUAL À 3,00 M, FCK 25MPA, COM PISO PODOTÁTIL. AF_03/2024 | D17: UN | E17: 0
A18: Acessibilidade | B18: 105000 | C18: RAMPA DE ACESSIBILIDADE PARA ACESSO A EDIFICAÇÕES COM INCLINAÇÃO DE 8,33% EM CONCRETO MOLDADO IN LOCO, COM LARGURA DE 1,20M, FCK 25MPA, NÃO ARMADA, COM JUNTA A CADA 2M COM CORTE À SECO. AF_03/2024 | D18: M | E18: 1331.67 | F18: 0
A19: Acessibilidade | B19: 105001 | C19: RAMPA DE ACESSIBILIDADE PARA ACESSO A EDIFICAÇÕES COM INCLINAÇÃO DE 8,33% EM CONCRETO MOLDADO IN LOCO, COM LARGURA DE 1,50M, FCK 25MPA, NÃO ARMADA, COM JUNTA A CADA 2M COM CORTE À SECO. AF_03/2024 | D19: M | E19: 1362.25 | F19: 0
A20: Alvenaria Estrutural - Blocos Cerâmicos | B20: 89306 | C20: ALVENARIA ESTRUTURAL DE BLOCOS CERÂMICOS 14X19X29, (ESPESSURA DE 14 CM), UTILIZANDO COLHER DE PEDREIRO E ARGAMASSA DE ASSENTAMENTO COM PREPARO EM BETONEIRA. AF_03/2023 | D20: M2 | E20: 91.78 | F20: 0
A21: Alvenaria Estrutural - Blocos Cerâmicos | B21: 89307 | C21: ALVENARIA ESTRUTURAL DE BLOCOS CERÂMICOS 14X19X29, (ESPESSURA DE 14 CM), UTILIZANDO COLHER DE PEDREIRO E ARGAMASSA DE ASSENTAMENTO COM PREPARO MANUAL. AF_03/2023 | D21: M2 | E21: 94.58 | F21: 0
A22: Alvenaria Estrutural - Blocos Cerâmicos | B22: 89290 | C22: ALVENARIA ESTRUTURAL DE BLOCOS CERÂMICOS 14X19X29, (ESPESSURA DE 14 CM), UTILIZANDO PALHETA E ARGAMASSA DE ASSENTAMENTO COM PREPARO EM BETONEIRA. AF_03/2023 | D22: M2 | E22: 74.25 | F22: 0
A23: Alvenaria Estrutural - Blocos Cerâmicos | B23: 89291 | C23: ALVENARIA ESTRUTURAL DE BLOCOS CERÂMICOS 14X19X29, (ESPESSURA DE 14 CM), UTILIZANDO PALHETA E ARGAMASSA DE ASSENTAMENTO COM PREPARO MANUAL. AF_03/2023 | D23: M2 | E23: 76.34 | F23: 0
A24: Alvenaria Estrutural - Blocos Cerâmicos | B24: 89298 | C24: ALVENARIA ESTRUTURAL DE BLOCOS CERÂMICOS 14X19X39, (ESPESSURA DE 14 CM), UTILIZANDO COLHER DE PEDREIRO E ARGAMASSA DE ASSENTAMENTO COM PREPARO EM BETONEIRA. AF_03/2023 | D24: M2 | E24: 77.78 | F24: 0
A25: Alvenaria Estrutural - Blocos Cerâmicos | B25: 89299 | C25: ALVENARIA ESTRUTURAL DE BLOCOS CERÂMICOS 14X19X39, (ESPESSURA DE 14 CM), UTILIZANDO COLHER DE PEDREIRO E ARGAMASSA DE ASSENTAMENTO COM PREPARO MANUAL. AF_03/2023 | D25: M2 | E25: 80.29 | F25: 0
A26: Alvenaria Estrutural - Blocos Cerâmicos | B26: 89282 | C26: ALVENARIA ESTRUTURAL DE BLOCOS CERÂMICOS 14X19X39, (ESPESSURA DE 14 CM), UTILIZANDO PALHETA E ARGAMASSA DE ASSENTAMENTO COM PREPARO EM BETONEIRA. AF_03/2023 | D26: M2 | E26: 65.39 | F26: 0
A27: Alvenaria Estrutural - Blocos Cerâmicos | B27: 89283 | C27: ALVENARIA ESTRUTURAL DE BLOCOS CERÂMICOS 14X19X39, (ESPESSURA DE 14 CM), UTILIZANDO PALHETA E ARGAMASSA DE ASSENTAMENTO COM PREPARO MANUAL. AF_03/2023 | D27: M2 | E27: 67.27 | F27: 0
A28: Alvenaria Estrutural - Blocos de Concreto | B28: 89480 | C28: ALVENARIA DE BLOCOS DE CONCRETO ESTRUTURAL 14X19X29 CM (ESPESSURA 14 CM), FBK = 14 MPA, UTILIZANDO COLHER DE PEDREIRO. AF_10/2022 | D28: M2 | E28: 159.37 | F28: 0
A29: Alvenaria Estrutural - Blocos de Concreto | B29: 89464 | C29: ALVENARIA DE BLOCOS DE CONCRETO ESTRUTURAL 14X19X29 CM (ESPESSURA 14 CM), FBK = 14,0 MPA, UTILIZANDO PALHETA. AF_10/2022 | D29: M2 | E29: 137.76 | F29: 0
A30: Alvenaria Estrutural - Blocos de Concreto | B30: 89478 | C30: ALVENARIA DE BLOCOS DE CONCRETO ESTRUTURAL 14X19X29 CM (ESPESSURA 14 CM), FBK = 4,5 MPA, UTILIZANDO COLHER DE PEDREIRO. AF_10/2022 | D30: M2 | E30: 138.87 | F30: 0
A31: Alvenaria Estrutural - Blocos de Concreto | B31: 89462 | C31: ALVENARIA DE BLOCOS DE CONCRETO ESTRUTURAL 14X19X29 CM (ESPESSURA 14 CM), FBK = 4,5 MPA, UTILIZANDO PALHETA. AF_10/2022 | D31: M2 | E31: 118.01 | F31: 0
A32: Alvenaria Estrutural - Blocos de Concreto | B32: 104444 | C32: ALVENARIA DE BLOCOS DE CONCRETO ESTRUTURAL 14X19X29 CM (ESPESSURA 14 CM), FBK = 8 MPA, UTILIZANDO COLHER DE PEDREIRO. AF_10/2022 | D32: M2 | E32: 0
A33: Alvenaria Estrutural - Blocos de Concreto | B33: 104442 | C33: ALVENARIA DE BLOCOS DE CONCRETO ESTRUTURAL 14X19X29 CM (ESPESSURA 14 CM), FBK = 8 MPA, UTILIZANDO PALHETA. AF_10/2022 | D33: M2 | E33: 0
A34: Alvenaria Estrutural - Blocos de Concreto | B34: 89472 | C34: ALVENARIA DE BLOCOS DE CONCRETO ESTRUTURAL 14X19X39 CM (ESPESSURA 14 CM), FBK = 14 MPA, UTILIZANDO COLHER DE PEDREIRO. AF_10/2022 | D34: M2 | E34: 120.96 | F34: 0
A35: Alvenaria Estrutural - Blocos de Concreto | B35: 89455 | C35: ALVENARIA DE BLOCOS DE CONCRETO ESTRUTURAL 14X19X39 CM (ESPESSURA 14 CM), FBK = 14 MPA, UTILIZANDO PALHETA. AF_10/2022 | D35: M2 | E35: 107.33 | F35: 0
A36: Alvenaria Estrutural - Blocos de Concreto | B36: 89470 | C36: ALVENARIA DE BLOCOS DE CONCRETO ESTRUTURAL 14X19X39 CM (ESPESSURA 14 CM), FBK = 4,5 MPA, UTILIZANDO COLHER DE PEDREIRO. AF_10/2022 | D36: M2 | E36: 102.2 | F36: 0
A37: Alvenaria Estrutural - Blocos de Concreto | B37: 89453 | C37: ALVENARIA DE BLOCOS DE CONCRETO ESTRUTURAL 14X19X39 CM (ESPESSURA 14 CM), FBK = 4,5 MPA, UTILIZANDO PALHETA. AF_10/2022 | D37: M2 | E37: 89.38 | F37: 0
A38: Alvenaria Estrutural - Blocos de Concreto | B38: 104443 | C38: ALVENARIA DE BLOCOS DE CONCRETO ESTRUTURAL 14X19X39 CM (ESPESSURA 14 CM), FBK = 8 MPA, UTILIZANDO COLHER DE PEDREIRO. AF_10/2022 | D38: M2 | E38: 0
A39: Alvenaria Estrutural - Blocos de Concreto | B39: 104441 | C39: ALVENARIA DE BLOCOS DE CONCRETO ESTRUTURAL 14X19X39 CM (ESPESSURA 14 CM), FBK = 8 MPA, UTILIZANDO PALHETA. AF_10/2022 | D39: M2 | E39: 0
A40: Alvenaria de Vedação | B40: 103354 | C40: ALVENARIA DE VEDAÇÃO DE BLOCOS CERÂMICOS FURADOS NA HORIZONTAL DE 11,5X14X24 CM (ESPESSURA 11,5 CM) E ARGAMASSA DE ASSENTAMENTO COM PREPARO EM BETONEIRA. AF_12/2021 | D40: M2 | E40: 87.09 | F40: 0.0071
A41: Alvenaria de Vedação | B41: 103355 | C41: ALVENARIA DE VEDAÇÃO DE BLOCOS CERÂMICOS FURADOS NA HORIZONTAL DE 11,5X14X24 CM (ESPESSURA 11,5 CM) E ARGAMASSA DE ASSENTAMENTO COM PREPARO MANUAL. AF_12/2021 | D41: M2 | E41: 88.66 | F41: 0.007
A42: Alvenaria de Vedação | B42: 103330 | C42: ALVENARIA DE VEDAÇÃO DE BLOCOS CERÂMICOS FURADOS NA HORIZONTAL DE 11,5X19X19 CM (ESPESSURA 11,5 CM) E ARGAMASSA DE ASSENTAMENTO COM PREPARO EM BETONEIRA. AF_12/2021 | D42: M2 | E42: 79.79 | F42: 0.0055
A43: Alvenaria de Vedação | B43: 103331 | C43: ALVENARIA DE VEDAÇÃO DE BLOCOS CERÂMICOS FURADOS NA HORIZONTAL DE 11,5X19X19 CM (ESPESSURA 11,5 CM) E ARGAMASSA DE ASSENTAMENTO COM PREPARO MANUAL. AF_12/2021 | D43: M2 | E43: 81.28 | F43: 0.0054
A44: Alvenaria de Vedação | B44: 103358 | C44: ALVENARIA DE VEDAÇÃO DE BLOCOS CERÂMICOS FURADOS NA HORIZONTAL DE 11,5X19X29 CM (ESPESSURA 11,5 CM) E ARGAMASSA DE ASSENTAMENTO COM PREPARO EM BETONEIRA. AF_12/2021 | D44: M2 | E44: 66.97 | F44: 0.0066
A45: Alvenaria de Vedação | B45: 103359 | C45: ALVENARIA DE VEDAÇÃO DE BLOCOS CERÂMICOS FURADOS NA HORIZONTAL DE 11,5X19X29 CM (ESPESSURA 11,5 CM) E ARGAMASSA DE ASSENTAMENTO COM PREPARO MANUAL. AF_12/2021 | D45: M2 | E45: 68.23 | F45: 0.0064
A46: Alvenaria de Vedação | B46: 103366 | C46: ALVENARIA DE VEDAÇÃO DE BLOCOS CERÂMICOS FURADOS NA HORIZONTAL DE 11,5X19X39 CM (ESPESSURA 11,5 CM) E ARGAMASSA DE ASSENTAMENTO COM PREPARO EM BETONEIRA. AF_12/2021 | D46: M2 | E46: 57.61 | F46: 0.0076
A47: Alvenaria de Vedação | B47: 103367 | C47: ALVENARIA DE VEDAÇÃO DE BLOCOS CERÂMICOS FURADOS NA HORIZONTAL DE 11,5X19X39 CM (ESPESSURA 11,5 CM) E ARGAMASSA DE ASSENTAMENTO COM PREPARO MANUAL. AF_12/2021 | D47: M2 | E47: 58.75 | F47: 0.0075
A48: Alvenaria de Vedação | B48: 103360 | C48: ALVENARIA DE VEDAÇÃO DE BLOCOS CERÂMICOS FURADOS NA HORIZONTAL DE 14X19X29 CM (ESPESSURA 14 CM) E ARGAMASSA DE ASSENTAMENTO COM PREPARO EM BETONEIRA. AF_12/2021 | D48: M2 | E48: 78.58 | F48: 0.0056
A49: Alvenaria de Vedação | B49: 103361 | C49: ALVENARIA DE VEDAÇÃO DE BLOCOS CERÂMICOS FURADOS NA HORIZONTAL DE 14X19X29 CM (ESPESSURA 14 CM) E ARGAMASSA DE ASSENTAMENTO COM PREPARO MANUAL. AF_12/2021 | D49: M2 | E49: 80.17 | F49: 0.0055
A50: Alvenaria de Vedação | B50: 103368 | C50: ALVENARIA DE VEDAÇÃO DE BLOCOS CERÂMICOS FURADOS NA HORIZONTAL DE 14X19X39 CM (ESPESSURA 14 CM) E ARGAMASSA DE ASSENTAMENTO COM PREPARO EM BETONEIRA. AF_12/2021 | D50: M2 | E50: 65.76 | F50: 0.0067
A51: Alvenaria de Vedação | B51: 103369 | C51: ALVENARIA DE VEDAÇÃO DE BLOCOS CERÂMICOS FURADOS NA HORIZONTAL DE 14X19X39 CM (ESPESSURA 14 CM) E ARGAMASSA DE ASSENTAMENTO COM PREPARO MANUAL. AF_12/2021 | D51: M2 | E51: 67.2 | F51: 0.0065
A52: Alvenaria de Vedação | B52: 103334 | C52: ALVENARIA DE VEDAÇÃO DE BLOCOS CERÂMICOS FURADOS NA HORIZONTAL DE 14X9X19 CM (ESPESSURA 14 CM, BLOCO DEITADO) E ARGAMASSA DE ASSENTAMENTO COM PREPARO EM BETONEIRA. AF_12/2021 | D52: M2 | E52: 142.75 | F52: 0.006
A53: Alvenaria de Vedação | B53: 103335 | C53: ALVENARIA DE VEDAÇÃO DE BLOCOS CERÂMICOS FURADOS NA HORIZONTAL DE 14X9X19 CM (ESPESSURA 14 CM, BLOCO DEITADO) E ARGAMASSA DE ASSENTAMENTO COM PREPARO MANUAL. AF_12/2021 | D53: M2 | E53: 145.53 | F53: 0.0059
A54: Alvenaria de Vedação | B54: 103362 | C54: ALVENARIA DE VEDAÇÃO DE BLOCOS CERÂMICOS FURADOS NA HORIZONTAL DE 19X19X29 CM (ESPESSURA 19 CM) E ARGAMASSA DE ASSENTAMENTO COM PREPARO EM BETONEIRA. AF_12/2021 | D54: M2 | E54: 94.34 | F54: 0.0047
A55: Alvenaria de Vedação | B55: 103363 | C55: ALVENARIA DE VEDAÇÃO DE BLOCOS CERÂMICOS FURADOS NA HORIZONTAL DE 19X19X29 CM (ESPESSURA 19 CM) E ARGAMASSA DE ASSENTAMENTO COM PREPARO MANUAL. AF_12/2021 | D55: M2 | E55: 96.14 | F55: 0.0046
A56: Alvenaria de Vedação | B56: 103370 | C56: ALVENARIA DE VEDAÇÃO DE BLOCOS CERÂMICOS FURADOS NA HORIZONTAL DE 19X19X39 CM (ESPESSURA 19 CM) E ARGAMASSA DE ASSENTAMENTO COM PREPARO EM BETONEIRA. AF_12/2021 | D56: M2 | E56: 81.94 | F56: 0.0054
A57: Alvenaria de Vedação | B57: 103371 | C57: ALVENARIA DE VEDAÇÃO DE BLOCOS CERÂMICOS FURADOS NA HORIZONTAL DE 19X19X39 CM (ESPESSURA 19 CM) E ARGAMASSA DE ASSENTAMENTO COM PREPARO MANUAL. AF_12/2021 | D57: M2 | E57: 83.56 | F57: 0.0053
A58: Alvenaria de Vedação | B58: 103332 | C58: ALVENARIA DE VEDAÇÃO DE BLOCOS CERÂMICOS FURADOS NA HORIZONTAL DE 9X14X19 CM (ESPESSURA 9 CM) E ARGAMASSA DE ASSENTAMENTO COM PREPARO EM BETONEIRA. AF_12/2021 | D58: M2 | E58: 120.43 | F58: 0.0025
A59: Alvenaria de Vedação | B59: 103333 | C59: ALVENARIA DE VEDAÇÃO DE BLOCOS CERÂMICOS FURADOS NA HORIZONTAL DE 9X14X19 CM (ESPESSURA 9 CM) E ARGAMASSA DE ASSENTAMENTO COM PREPARO MANUAL. AF_12/2021 | D59: M2 | E59: 122.02 | F59: 0.0025
A60: Alvenaria de Vedação | B60: 103352 | C60: ALVENARIA DE VEDAÇÃO DE BLOCOS CERÂMICOS FURADOS NA HORIZONTAL DE 9X14X24 CM (ESPESSURA 9 CM) E ARGAMASSA DE ASSENTAMENTO COM PREPARO EM BETONEIRA. AF_12/2021 | D60: M2 | E60: 102.58 | F60: 0.0029
A61: Alvenaria de Vedação | B61: 103353 | C61: ALVENARIA DE VEDAÇÃO DE BLOCOS CERÂMICOS FURADOS NA HORIZONTAL DE 9X14X24 CM (ESPESSURA 9 CM) E ARGAMASSA DE ASSENTAMENTO COM PREPARO MANUAL. AF_12/2021 | D61: M2 | E61: 104.05 | F61: 0.0029
A62: Alvenaria de Vedação | B62: 103328 | C62: ALVENARIA DE VEDAÇÃO DE BLOCOS CERÂMICOS FURADOS NA HORIZONTAL DE 9X19X19 CM (ESPESSURA 9 CM) E ARGAMASSA DE ASSENTAMENTO COM PREPARO EM BETONEIRA. AF_12/2021 | D62: M2 | E62: 93.43 | F62: 0.0024
A63: Alvenaria de Vedação | B63: 103329 | C63: ALVENARIA DE VEDAÇÃO DE BLOCOS CERÂMICOS FURADOS NA HORIZONTAL DE 9X19X19 CM (ESPESSURA 9 CM) E ARGAMASSA DE ASSENTAMENTO COM PREPARO MANUAL. AF_12/2021 | D63: M2 | E63: 94.81 | F63: 0.0023
A64: Alvenaria de Vedação | B64: 103356 | C64: ALVENARIA DE VEDAÇÃO DE BLOCOS CERÂMICOS FURADOS NA HORIZONTAL DE 9X19X29 CM (ESPESSURA 9 CM) E ARGAMASSA DE ASSENTAMENTO COM PREPARO EM BETONEIRA. AF_12/2021 | D64: M2 | E64: 57.91 | F64: 0.0038
A65: Alvenaria de Vedação | B65: 103357 | C65: ALVENARIA DE VEDAÇÃO DE BLOCOS CERÂMICOS FURADOS NA HORIZONTAL DE 9X19X29 CM (ESPESSURA 9 CM) E ARGAMASSA DE ASSENTAMENTO COM PREPARO MANUAL. AF_12/2021 | D65: M2 | E65: 59.08 | F65: 0.0037
A66: Alvenaria de Vedação | B66: 103364 | C66: ALVENARIA DE VEDAÇÃO DE BLOCOS CERÂMICOS FURADOS NA HORIZONTAL DE 9X19X39 CM (ESPESSURA 9 CM) E ARGAMASSA DE ASSENTAMENTO COM PREPARO EM BETONEIRA. AF_12/2021 | D66: M2 | E66: 47.96 | F66: 0.0092
A67: Alvenaria de Vedação | B67: 103365 | C67: ALVENARIA DE VEDAÇÃO DE BLOCOS CERÂMICOS FURADOS NA HORIZONTAL DE 9X19X39 CM (ESPESSURA 9 CM) E ARGAMASSA DE ASSENTAMENTO COM PREPARO MANUAL. AF_12/2021 | D67: M2 | E67: 48.78 | F67: 0.0045
A68: Alvenaria de Vedação | B68: 103350 | C68: ALVENARIA DE VEDAÇÃO DE BLOCOS CERÂMICOS FURADOS NA HORIZONTAL DE 9X9X19 CM (ESPESSURA 9 CM) E ARGAMASSA DE ASSENTAMENTO COM PREPARO EM BETONEIRA. AF_12/2021 | D68: M2 | E68: 172.62 | F68: 0.0025
A69: Alvenaria de Vedação | B69: 103351 | C69: ALVENARIA DE VEDAÇÃO DE BLOCOS CERÂMICOS FURADOS NA HORIZONTAL DE 9X9X19 CM (ESPESSURA 9 CM) E ARGAMASSA DE ASSENTAMENTO COM PREPARO MANUAL. AF_12/2021 | D69: M2 | E69: 174.66 | F69: 0.0025
A70: Alvenaria de Vedação | B70: 103344 | C70: ALVENARIA DE VEDAÇÃO DE BLOCOS CERÂMICOS FURADOS NA VERTICAL DE 11,5X19X29 CM (ESPESSURA 11,5 CM) E ARGAMASSA DE ASSENTAMENTO COM PREPARO EM BETONEIRA. AF_12/2021 | D70: M2 | E70: 77.88 | F70: 0.0056
A71: Alvenaria de Vedação | B71: 103345 | C71: ALVENARIA DE VEDAÇÃO DE BLOCOS CERÂMICOS FURADOS NA VERTICAL DE 11,5X19X29 CM (ESPESSURA 11,5 CM) E ARGAMASSA DE ASSENTAMENTO COM PREPARO MANUAL. AF_12/2021 | D71: M2 | E71: 79.73 | F71: 0.0055
A72: Alvenaria de Vedação | B72: 103348 | C72: ALVENARIA DE VEDAÇÃO DE BLOCOS CERÂMICOS FURADOS NA VERTICAL DE 11,5X19X39 CM (ESPESSURA 11,5 CM) E ARGAMASSA DE ASSENTAMENTO COM PREPARO EM BETONEIRA. AF_12/2021 | D72: M2 | E72: 65.1 | F72: 0.0068
A73: Alvenaria de Vedação | B73: 103349 | C73: ALVENARIA DE VEDAÇÃO DE BLOCOS CERÂMICOS FURADOS NA VERTICAL DE 11,5X19X39 CM (ESPESSURA 11,5 CM) E ARGAMASSA DE ASSENTAMENTO COM PREPARO MANUAL. AF_12/2021 | D73: M2 | E73: 66.79 | F73: 0.0066
A74: Alvenaria de Vedação | B74: 103346 | C74: ALVENARIA DE VEDAÇÃO DE BLOCOS CERÂMICOS FURADOS NA VERTICAL DE 14X19X29 CM (ESPESSURA 14 CM) E ARGAMASSA DE ASSENTAMENTO COM PREPARO EM BETONEIRA. AF_12/2021 | D74: M2 | E74: 86.93 | F74: 0.0051
A75: Alvenaria de Vedação | B75: 103347 | C75: ALVENARIA DE VEDAÇÃO DE BLOCOS CERÂMICOS FURADOS NA VERTICAL DE 14X19X29 CM (ESPESSURA 14 CM) E ARGAMASSA DE ASSENTAMENTO COM PREPARO MANUAL. AF_12/2021 | D75: M2 | E75: 88.9 | F75: 0.0049
A76: Alvenaria de Vedação | B76: 103324 | C76: ALVENARIA DE VEDAÇÃO DE BLOCOS CERÂMICOS FURADOS NA VERTICAL DE 14X19X39 CM (ESPESSURA 14 CM) E ARGAMASSA DE ASSENTAMENTO COM PREPARO EM BETONEIRA. AF_12/2021 | D76: M2 | E76: 73.9 | F76: 0.006
A77: Alvenaria de Vedação | B77: 103325 | C77: ALVENARIA DE VEDAÇÃO DE BLOCOS CERÂMICOS FURADOS NA VERTICAL DE 14X19X39 CM (ESPESSURA 14 CM) E ARGAMASSA DE ASSENTAMENTO COM PREPARO MANUAL. AF_12/2021 | D77: M2 | E77: 75.7 | F77: 0.0058
A78: Alvenaria de Vedação | B78: 103326 | C78: ALVENARIA DE VEDAÇÃO DE BLOCOS CERÂMICOS FURADOS NA VERTICAL DE 19X19X39 CM (ESPESSURA 19 CM) E ARGAMASSA DE ASSENTAMENTO COM PREPARO EM BETONEIRA. AF_12/2021 | D78: M2 | E78: 86.91 | F78: 0.0051
A79: Alvenaria de Vedação | B79: 103327 | C79: ALVENARIA DE VEDAÇÃO DE BLOCOS CERÂMICOS FURADOS NA VERTICAL DE 19X19X39 CM (ESPESSURA 19 CM) E ARGAMASSA DE ASSENTAMENTO COM PREPARO MANUAL. AF_12/2021 | D79: M2 | E79: 89 | F79: 0.0049
A80: Alvenaria de Vedação | B80: 103322 | C80: ALVENARIA DE VEDAÇÃO DE BLOCOS CERÂMICOS FURADOS NA VERTICAL DE 9X19X39 CM (ESPESSURA 9 CM) E ARGAMASSA DE ASSENTAMENTO COM PREPARO EM BETONEIRA. AF_12/2021 | D80: M2 | E80: 54.99 | F80: 0.004
A81: Alvenaria de Vedação | B81: 103323 | C81: ALVENARIA DE VEDAÇÃO DE BLOCOS CERÂMICOS FURADOS NA VERTICAL DE 9X19X39 CM (ESPESSURA 9 CM) E ARGAMASSA DE ASSENTAMENTO COM PREPARO MANUAL. AF_12/2021 | D81: M2 | E81: 56.56 | F81: 0.0039
A82: Alvenaria de Vedação | B82: 103338 | C82: ALVENARIA DE VEDAÇÃO DE BLOCOS VAZADOS DE CONCRETO APARENTE DE 14X19X39 CM (ESPESSURA 14 CM) E ARGAMASSA DE ASSENTAMENTO COM PREPARO EM BETONEIRA. AF_12/2021 | D82: M2 | E82: 116.5 | F82: 0.0038
A83: Alvenaria de Vedação | B83: 103339 | C83: ALVENARIA DE VEDAÇÃO DE BLOCOS VAZADOS DE CONCRETO APARENTE DE 14X19X39 CM (ESPESSURA 14 CM) E ARGAMASSA DE ASSENTAMENTO COM PREPARO MANUAL. AF_12/2021 | D83: M2 | E83: 118.05 | F83: 0.0037
A84: Alvenaria de Vedação | B84: 103340 | C84: ALVENARIA DE VEDAÇÃO DE BLOCOS VAZADOS DE CONCRETO APARENTE DE 19X19X39 CM (ESPESSURA 19 CM) E ARGAMASSA DE ASSENTAMENTO COM PREPARO EM BETONEIRA. AF_12/2021 | D84: M2 | E84: 140.71 | F84: 0.0031
A85: Alvenaria de Vedação | B85: 103341 | C85: ALVENARIA DE VEDAÇÃO DE BLOCOS VAZADOS DE CONCRETO APARENTE DE 19X19X39 CM (ESPESSURA 19 CM) E ARGAMASSA DE ASSENTAMENTO COM PREPARO MANUAL. AF_12/2021 | D85: M2 | E85: 142.65 | F85: 0.0031
A86: Alvenaria de Vedação | B86: 103336 | C86: ALVENARIA DE VEDAÇÃO DE BLOCOS VAZADOS DE CONCRETO APARENTE DE 9X19X39 CM (ESPESSURA 9 CM) E ARGAMASSA DE ASSENTAMENTO COM PREPARO EM BETONEIRA. AF_12/2021 | D86: M2 | E86: 88.71 | F86: 0.0025
A87: Alvenaria de Vedação | B87: 103337 | C87: ALVENARIA DE VEDAÇÃO DE BLOCOS VAZADOS DE CONCRETO APARENTE DE 9X19X39 CM (ESPESSURA 9 CM) E ARGAMASSA DE ASSENTAMENTO COM PREPARO MANUAL. AF_12/2021 | D87: M2 | E87: 90.03 | F87: 0.0024
A88: Alvenaria de Vedação | B88: 103342 | C88: ALVENARIA DE VEDAÇÃO DE BLOCOS VAZADOS DE CONCRETO DE 14X19X29 CM (ESPESSURA 14 CM) E ARGAMASSA DE ASSENTAMENTO COM PREPARO EM BETONEIRA. AF_12/2021 | D88: M2 | E88: 118.93 | F88: 0.0037
A89: Alvenaria de Vedação | B89: 103343 | C89: ALVENARIA DE VEDAÇÃO DE BLOCOS VAZADOS DE CONCRETO DE 14X19X29 CM (ESPESSURA 14 CM) E ARGAMASSA DE ASSENTAMENTO COM PREPARO MANUAL. AF_12/2021 | D89: M2 | E89: 120.65 | F89: 0.0036
A90: Alvenaria de Vedação | B90: 103318 | C90: ALVENARIA DE VEDAÇÃO DE BLOCOS VAZADOS DE CONCRETO DE 14X19X39 CM (ESPESSURA 14 CM) E ARGAMASSA DE ASSENTAMENTO COM PREPARO EM BETONEIRA. AF_12/2021 | D90: M2 | E90: 102.04 | F90: 0.0043
A91: Alvenaria de Vedação | B91: 103319 | C91: ALVENARIA DE VEDAÇÃO DE BLOCOS VAZADOS DE CONCRETO DE 14X19X39 CM (ESPESSURA 14 CM) E ARGAMASSA DE ASSENTAMENTO COM PREPARO MANUAL. AF_12/2021 | D91: M2 | E91: 103.59 | F91: 0.0042
A92: Alvenaria de Vedação | B92: 103320 | C92: ALVENARIA DE VEDAÇÃO DE BLOCOS VAZADOS DE CONCRETO DE 19X19X39 CM (ESPESSURA 19 CM) E ARGAMASSA DE ASSENTAMENTO COM PREPARO EM BETONEIRA. AF_12/2021 | D92: M2 | E92: 122.54 | F92: 0.0036
A93: Alvenaria de Vedação | B93: 103321 | C93: ALVENARIA DE VEDAÇÃO DE BLOCOS VAZADOS DE CONCRETO DE 19X19X39 CM (ESPESSURA 19 CM) E ARGAMASSA DE ASSENTAMENTO COM PREPARO MANUAL. AF_12/2021 | D93: M2 | E93: 124.48 | F93: 0.0035
A94: Alvenaria de Vedação | B94: 103316 | C94: ALVENARIA DE VEDAÇÃO DE BLOCOS VAZADOS DE CONCRETO DE 9X19X39 CM (ESPESSURA 9 CM) E ARGAMASSA DE ASSENTAMENTO COM PREPARO EM BETONEIRA. AF_12/2021 | D94: M2 | E94: 78.69 | F94: 0.0028
A95: Alvenaria de Vedação | B95: 103317 | C95: ALVENARIA DE VEDAÇÃO DE BLOCOS VAZADOS DE CONCRETO DE 9X19X39 CM (ESPESSURA 9 CM) E ARGAMASSA DE ASSENTAMENTO COM PREPARO MANUAL. AF_12/2021 | D95: M2 | E95: 80.01 | F95: 0.0027
A96: Alvenarias Diversas | B96: 101166 | C96: ALVENARIA DE EMBASAMENTO COM BLOCO ESTRUTURAL DE CERÂMICA, DE 14X19X29CM E ARGAMASSA DE ASSENTAMENTO COM PREPARO EM BETONEIRA. AF_05/2020 | D96: M3 | E96: 636.9 | F96: 0
A97: Alvenarias Diversas | B97: 101165 | C97: ALVENARIA DE EMBASAMENTO COM BLOCO ESTRUTURAL DE CONCRETO, DE 14X19X29CM E ARGAMASSA DE ASSENTAMENTO COM PREPARO EM BETONEIRA. AF_05/2020 | D97: M3 | E97: 1019.3 | F97: 0
A98: Alvenarias Diversas | B98: 101163 | C98: ALVENARIA DE VEDAÇÃO COM BLOCO DE VIDRO VAZADO, TIPO VENEZIANA, DE 6X20X20CM E ARGAMASSA DE ASSENTAMENTO COM PREPARO EM BETONEIRA. AF_05/2020 | D98: M2 | E98: 657.11 | F98: 0.7152
A99: Alvenarias Diversas | B99: 101164 | C99: ALVENARIA DE VEDAÇÃO COM BLOCO DE VIDRO, TIPO CANELADO, DE 8X19X19CM E ARGAMASSA DE ASSENTAMENTO COM PREPARO EM BETONEIRA. AF_05/2020 | D99: M2 | E99: 667.7 | F99: 0.7123
A100: Alvenarias Diversas | B100: 101162 | C100: ALVENARIA DE VEDAÇÃO COM ELEMENTO VAZADO DE CERÂMICA (COBOGÓ) DE 7X20X20CM E ARGAMASSA DE ASSENTAMENTO COM PREPARO EM BETONEIRA. AF_05/2020 | D100: M2 | E100: 147.88 | F100: 0
A101: Alvenarias Diversas | B101: 101161 | C101: ALVENARIA DE VEDAÇÃO COM ELEMENTO VAZADO DE CONCRETO (COBOGÓ) DE 7X50X50CM E ARGAMASSA DE ASSENTAMENTO COM PREPARO EM BETONEIRA. AF_05/2020 | D101: M2 | E101: 230.77 | F101: 0
A102: Alvenarias Diversas | B102: 101160 | C102: ALVENARIA DE VEDAÇÃO DE BLOCO DE SOLO-CIMENTO (TIJOLO ECOLÓGICO) DE 7X15X30CM (ESPESSURA 15CM). AF_05/2020 | D102: M2 | E102: 0
A103: Alvenarias Diversas | B103: 101159 | C103: ALVENARIA DE VEDAÇÃO DE BLOCOS CERÂMICOS MACIÇOS DE 5X10X20CM (ESPESSURA 10CM) E ARGAMASSA DE ASSENTAMENTO COM PREPARO EM BETONEIRA. AF_05/2020 | D103: M2 | E103: 133.31 | F103: 0
A104: Alvenarias Diversas | B104: 101154 | C104: ALVENARIA DE VEDAÇÃO DE BLOCOS DE CONCRETO CELULAR DE 10X30X60CM (ESPESSURA 10CM) E ARGAMASSA DE ASSENTAMENTO COM PREPARO EM BETONEIRA. AF_05/2020 | D104: M2 | E104: 141.73 | F104: 0.6756
A105: Alvenarias Diversas | B105: 101155 | C105: ALVENARIA DE VEDAÇÃO DE BLOCOS DE CONCRETO CELULAR DE 15X30X60CM (ESPESSURA 15CM) E ARGAMASSA DE ASSENTAMENTO COM PREPARO EM BETONEIRA. AF_05/2020 | D105: M2 | E105: 198.63 | F105: 0.7081
A106: Alvenarias Diversas | B106: 101156 | C106: ALVENARIA DE VEDAÇÃO DE BLOCOS DE CONCRETO CELULAR DE 20X30X60CM (ESPESSURA 20CM) E ARGAMASSA DE ASSENTAMENTO COM PREPARO EM BETONEIRA. AF_05/2020 | D106: M2 | E106: 290.99 | F106: 0.7404
A107: Alvenarias Diversas | B107: 101158 | C107: ALVENARIA DE VEDAÇÃO DE BLOCOS DE GESSO DE 10X50X66CM (ESPESSURA 10CM). AF_05/2020 | D107: M2 | E107: 77.86 | F107: 0
A108: Alvenarias Diversas | B108: 101157 | C108: ALVENARIA DE VEDAÇÃO DE BLOCOS DE GESSO DE 7X50X66CM (ESPESSURA 7CM). AF_05/2020 | D108: M2 | E108: 59.94 | F108: 0
A109: Argamassas | B109: 87382 | C109: ARGAMASSA INDUSTRIALIZADA MULTIUSO PARA REVESTIMENTOS E ASSENTAMENTO DA ALVENARIA, PREPARO COM MISTURADOR DE EIXO HORIZONTAL DE 160 KG. AF_08/2019 | D109: M3 | E109: 2113.39 | F109: 0
A110: Argamassas | B110: 87383 | C110: ARGAMASSA INDUSTRIALIZADA MULTIUSO PARA REVESTIMENTOS E ASSENTAMENTO DA ALVENARIA, PREPARO COM MISTURADOR DE EIXO HORIZONTAL DE 300 KG. AF_08/2019 | D110: M3 | E110: 2111.72 | F110: 0
A111: Argamassas | B111: 87384 | C111: ARGAMASSA INDUSTRIALIZADA MULTIUSO PARA REVESTIMENTOS E ASSENTAMENTO DA ALVENARIA, PREPARO COM MISTURADOR DE EIXO HORIZONTAL DE 600 KG. AF_08/2019 | D111: M3 | E111: 2106.2 | F111: 0
A112: Argamassas | B112: 87398 | C112: ARGAMASSA INDUSTRIALIZADA MULTIUSO PARA REVESTIMENTOS E ASSENTAMENTO DA ALVENARIA, PREPARO MANUAL. AF_08/2019 | D112: M3 | E112: 2363.26 | F112: 0
A113: Argamassas | B113: 87395 | C113: ARGAMASSA INDUSTRIALIZADA PARA CHAPISCO COLANTE, PREPARO COM MISTURADOR DE EIXO HORIZONTAL DE 160 KG. AF_08/2019 | D113: M3 | E113: 4129.32 | F113: 0
A114: Argamassas | B114: 87396 | C114: ARGAMASSA INDUSTRIALIZADA PARA CHAPISCO COLANTE, PREPARO COM MISTURADOR DE EIXO HORIZONTAL DE 300 KG. AF_08/2019 | D114: M3 | E114: 4157.9 | F114: 0
A115: Argamassas | B115: 87397 | C115: ARGAMASSA INDUSTRIALIZADA PARA CHAPISCO COLANTE, PREPARO COM MISTURADOR DE EIXO HORIZONTAL DE 600 KG. AF_08/2019 | D115: M3 | E115: 4189.01 | F115: 0
A116: Argamassas | B116: 87402 | C116: ARGAMASSA INDUSTRIALIZADA PARA CHAPISCO COLANTE, PREPARO MANUAL. AF_08/2019 | D116: M3 | E116: 4449.78 | F116: 0
A117: Argamassas | B117: 87391 | C117: ARGAMASSA INDUSTRIALIZADA PARA CHAPISCO ROLADO, PREPARO COM MISTURADOR DE EIXO HORIZONTAL DE 160 KG. AF_08/2019 | D117: M3 | E117: 6553.49 | F117: 0
A118: Argamassas | B118: 87393 | C118: ARGAMASSA INDUSTRIALIZADA PARA CHAPISCO ROLADO, PREPARO COM MISTURADOR DE EIXO HORIZONTAL DE 300 KG. AF_08/2019 | D118: M3 | E118: 6614.63 | F118: 0
A119: Argamassas | B119: 87394 | C119: ARGAMASSA INDUSTRIALIZADA PARA CHAPISCO ROLADO, PREPARO COM MISTURADOR DE EIXO HORIZONTAL DE 600 KG. AF_08/2019 | D119: M3 | E119: 6676.83 | F119: 0
A120: Argamassas | B120: 87401 | C120: ARGAMASSA INDUSTRIALIZADA PARA CHAPISCO ROLADO, PREPARO MANUAL. AF_08/2019 | D120: M3 | E120: 6923.58 | F120: 0
A121: Argamassas | B121: 87407 | C121: ARGAMASSA INDUSTRIALIZADA PARA REVESTIMENTOS, MISTURA E PROJEÇÃO DE 1,5 M³/H DE ARGAMASSA. AF_08/2019 | D121: M3 | E121: 2153.5 | F121: 0
A122: Argamassas | B122: 87408 | C122: ARGAMASSA INDUSTRIALIZADA PARA REVESTIMENTOS, MISTURA E PROJEÇÃO DE 2 M³/H DE ARGAMASSA. AF_08/2019 | D122: M3 | E122: 2141.89 | F122: 0
A123: Argamassas | B123: 87404 | C123: ARGAMASSA PARA REVESTIMENTO DECORATIVO MONOCAMADA (MONOCAPA), MISTURA E PROJEÇÃO DE 1,5 M3/H DE ARGAMASSA. AF_08/2019 | D123: M3 | E123: 6116.25 | F123: 0
A124: Argamassas | B124: 87405 | C124: ARGAMASSA PARA REVESTIMENTO DECORATIVO MONOCAMADA (MONOCAPA), MISTURA E PROJEÇÃO DE 2 M3/H DE ARGAMASSA. AF_08/2019 | D124: M3 | E124: 6134.7 | F124: 0
A125: Argamassas | B125: 87388 | C125: ARGAMASSA PARA REVESTIMENTO DECORATIVO MONOCAMADA (MONOCAPA), PREPARO COM MISTURADOR DE EIXO HORIZONTAL DE 160 KG. AF_08/2019 | D125: M3 | E125: 5894.59 | F125: 0
A126: Argamassas | B126: 87389 | C126: ARGAMASSA PARA REVESTIMENTO DECORATIVO MONOCAMADA (MONOCAPA), PREPARO COM MISTURADOR DE EIXO HORIZONTAL DE 300 KG. AF_08/2019 | D126: M3 | E126: 5919.98 | F126: 0
A127: Argamassas | B127: 87390 | C127: ARGAMASSA PARA REVESTIMENTO DECORATIVO MONOCAMADA (MONOCAPA), PREPARO COM MISTURADOR DE EIXO HORIZONTAL DE 600 KG. AF_08/2019 | D127: M3 | E127: 5953.44 | F127: 0
A128: Argamassas | B128: 87385 | C128: ARGAMASSA PRONTA PARA CONTRAPISO, PREPARO COM MISTURADOR DE EIXO HORIZONTAL DE 160 KG. AF_08/2019 | D128: M3 | E128: 2449.84 | F128: 0
A129: Argamassas | B129: 87386 | C129: ARGAMASSA PRONTA PARA CONTRAPISO, PREPARO COM MISTURADOR DE EIXO HORIZONTAL DE 300 KG. AF_08/2019 | D129: M3 | E129: 2443.26 | F129: 0
A130: Argamassas | B130: 87387 | C130: ARGAMASSA PRONTA PARA CONTRAPISO, PREPARO COM MISTURADOR DE EIXO HORIZONTAL DE 600 KG. AF_08/2019 | D130: M3 | E130: 2440.7 | F130: 0
A131: Argamassas | B131: 87399 | C131: ARGAMASSA PRONTA PARA CONTRAPISO, PREPARO MANUAL. AF_08/2019 | D131: M3 | E131: 2705.1 | F131: 0
A132: Argamassas | B132: 88627 | C132: ARGAMASSA TRAÇO 1:0,5:4,5 (EM VOLUME DE CIMENTO, CAL E AREIA MÉDIA ÚMIDA) PARA ASSENTAMENTO DE ALVENARIA, PREPARO MANUAL. AF_08/2019 | D132: M3 | E132: 736.03 | F132: 0
A133: Argamassas | B133: 100463 | C133: ARGAMASSA TRAÇO 1:0,5:4,5 (EM VOLUME DE CIMENTO, CAL E AREIA MÉDIA ÚMIDA), PREPARO MECÂNICO COM BETONEIRA 250 L. AF_08/2019 | D133: M3 | E133: 0
A134: Argamassas | B134: 88626 | C134: ARGAMASSA TRAÇO 1:0,5:4,5 (EM VOLUME DE CIMENTO, CAL E AREIA MÉDIA ÚMIDA), PREPARO MECÂNICO COM BETONEIRA 400 L. AF_08/2019 | D134: M3 | E134: 615.23 | F134: 0
A135: Argamassas | B135: 100488 | C135: ARGAMASSA TRAÇO 1:0,5:4,5 (EM VOLUME DE CIMENTO, CAL E AREIA MÉDIA ÚMIDA), PREPARO MECÂNICO COM BETONEIRA 600 L. AF_08/2019 | D135: M3 | E135: 608.37 | F135: 0
A136: Argamassas | B136: 100464 | C136: ARGAMASSA TRAÇO 1:0,5:4,5 (EM VOLUME DE CIMENTO, CAL E AREIA MÉDIA ÚMIDA), PREPARO MECÂNICO COM MISTURADOR DE EIXO HORIZONTAL DE 160 KG. AF_08/2019 | D136: M3 | E136: 639.99 | F136: 0
A137: Argamassas | B137: 100465 | C137: ARGAMASSA TRAÇO 1:0,5:4,5 (EM VOLUME DE CIMENTO, CAL E AREIA MÉDIA ÚMIDA), PREPARO MECÂNICO COM MISTURADOR DE EIXO HORIZONTAL DE 300 KG. AF_08/2019 | D137: M3 | E137: 601.28 | F137: 0
A138: Argamassas | B138: 100466 | C138: ARGAMASSA TRAÇO 1:0,5:4,5 (EM VOLUME DE CIMENTO, CAL E AREIA MÉDIA ÚMIDA), PREPARO MECÂNICO COM MISTURADOR DE EIXO HORIZONTAL DE 600 KG. AF_08/2019 | D138: M3 | E138: 583.39 | F138: 0
A139: Argamassas | B139: 87368 | C139: ARGAMASSA TRAÇO 1:1,5:7,5 (EM VOLUME DE CIMENTO, CAL E AREIA MÉDIA ÚMIDA) PARA EMBOÇO/MASSA ÚNICA/ASSENTAMENTO DE ALVENARIA DE VEDAÇÃO, PREPARO MANUAL. AF_08/2019 | D139: M3 | E139: 819.77 | F139: 0
A140: Argamassas | B140: 100450 | C140: ARGAMASSA TRAÇO 1:1,5:7,5 (EM VOLUME DE CIMENTO, CAL E AREIA MÉDIA ÚMIDA) PARA EMBOÇO/MASSA ÚNICA/ASSENTAMENTO DE ALVENARIA DE VEDAÇÃO, PREPARO MECÂNICO COM BETONEIRA 250 L. AF_08/2019 | D140: M3 | E140: 0
A141: Argamassas | B141: 87289 | C141: ARGAMASSA TRAÇO 1:1,5:7,5 (EM VOLUME DE CIMENTO, CAL E AREIA MÉDIA ÚMIDA) PARA EMBOÇO/MASSA ÚNICA/ASSENTAMENTO DE ALVENARIA DE VEDAÇÃO, PREPARO MECÂNICO COM BETONEIRA 400 L. AF_08/2019 | D141: M3 | E141: 670.42 | F141: 0
A142: Argamassas | B142: 87290 | C142: ARGAMASSA TRAÇO 1:1,5:7,5 (EM VOLUME DE CIMENTO, CAL E AREIA MÉDIA ÚMIDA) PARA EMBOÇO/MASSA ÚNICA/ASSENTAMENTO DE ALVENARIA DE VEDAÇÃO, PREPARO MECÂNICO COM BETONEIRA 600 L. AF_08/2019 | D142: M3 | E142: 662.23 | F142: 0
A143: Argamassas | B143: 87333 | C143: ARGAMASSA TRAÇO 1:1,5:7,5 (EM VOLUME DE CIMENTO, CAL E AREIA MÉDIA ÚMIDA) PARA EMBOÇO/MASSA ÚNICA/ASSENTAMENTO DE ALVENARIA DE VEDAÇÃO, PREPARO MECÂNICO COM MISTURADOR DE EIXO HORIZONTAL DE 300 KG. AF_08/2019 | D143: M3 | E143: 671.82 | F143: 0
A144: Argamassas | B144: 87334 | C144: ARGAMASSA TRAÇO 1:1,5:7,5 (EM VOLUME DE CIMENTO, CAL E AREIA MÉDIA ÚMIDA) PARA EMBOÇO/MASSA ÚNICA/ASSENTAMENTO DE ALVENARIA DE VEDAÇÃO, PREPARO MECÂNICO COM MISTURADOR DE EIXO HORIZONTAL DE 600 KG. AF_08/2019 | D144: M3 | E144: 635.52 | F144: 0
A145: Argamassas | B145: 105515 | C145: ARGAMASSA TRAÇO 1:1,93 (EM VOLUME DE CIMENTO E AREIA MÉDIA ÚMIDA), FCK 20MPA, PREPARO MECÂNICO COM MISTURADOR DUPLO HORIZONTAL DE ALTA TURBULÊNCIA. AF_03/2020 | D145: M3 | E145: 825.47 | F145: 0
A146: Argamassas | B146: 87367 | C146: ARGAMASSA TRAÇO 1:1:6 (EM VOLUME DE CIMENTO, CAL E AREIA MÉDIA ÚMIDA) PARA EMBOÇO/MASSA ÚNICA/ASSENTAMENTO DE ALVENARIA DE VEDAÇÃO, PREPARO MANUAL. AF_08/2019 | D146: M3 | E146: 816.35 | F146: 0
A147: Argamassas | B147: 100449 | C147: ARGAMASSA TRAÇO 1:1:6 (EM VOLUME DE CIMENTO, CAL E AREIA MÉDIA ÚMIDA) PARA EMBOÇO/MASSA ÚNICA/ASSENTAMENTO DE ALVENARIA DE VEDAÇÃO, PREPARO MECÂNICO COM BETONEIRA 250 L. AF_08/2019 | D147: M3 | E147: 0
A148: Argamassas | B148: 87286 | C148: ARGAMASSA TRAÇO 1:1:6 (EM VOLUME DE CIMENTO, CAL E AREIA MÉDIA ÚMIDA) PARA EMBOÇO/MASSA ÚNICA/ASSENTAMENTO DE ALVENARIA DE VEDAÇÃO, PREPARO MECÂNICO COM BETONEIRA 400 L. AF_08/2019 | D148: M3 | E148: 670.58 | F148: 0
A149: Argamassas | B149: 87287 | C149: ARGAMASSA TRAÇO 1:1:6 (EM VOLUME DE CIMENTO, CAL E AREIA MÉDIA ÚMIDA) PARA EMBOÇO/MASSA ÚNICA/ASSENTAMENTO DE ALVENARIA DE VEDAÇÃO, PREPARO MECÂNICO COM BETONEIRA 600 L. AF_08/2019 | D149: M3 | E149: 654.71 | F149: 0
A150: Argamassas | B150: 87331 | C150: ARGAMASSA TRAÇO 1:1:6 (EM VOLUME DE CIMENTO, CAL E AREIA MÉDIA ÚMIDA) PARA EMBOÇO/MASSA ÚNICA/ASSENTAMENTO DE ALVENARIA DE VEDAÇÃO, PREPARO MECÂNICO COM MISTURADOR DE EIXO HORIZONTAL DE 300 KG. AF_08/2019 | D150: M3 | E150: 691.53 | F150: 0
A151: Argamassas | B151: 87332 | C151: ARGAMASSA TRAÇO 1:1:6 (EM VOLUME DE CIMENTO, CAL E AREIA MÉDIA ÚMIDA) PARA EMBOÇO/MASSA ÚNICA/ASSENTAMENTO DE ALVENARIA DE VEDAÇÃO, PREPARO MECÂNICO COM MISTURADOR DE EIXO HORIZONTAL DE 600 KG. AF_08/2019 | D151: M3 | E151: 630.89 | F151: 0
A152: Argamassas | B152: 87369 | C152: ARGAMASSA TRAÇO 1:2:8 (EM VOLUME DE CIMENTO, CAL E AREIA MÉDIA ÚMIDA) PARA EMBOÇO/MASSA ÚNICA/ASSENTAMENTO DE ALVENARIA DE VEDAÇÃO, PREPARO MANUAL. AF_08/2019 | D152: M3 | E152: 857.69 | F152: 0
A153: Argamassas | B153: 100451 | C153: ARGAMASSA TRAÇO 1:2:8 (EM VOLUME DE CIMENTO, CAL E AREIA MÉDIA ÚMIDA) PARA EMBOÇO/MASSA ÚNICA/ASSENTAMENTO DE ALVENARIA DE VEDAÇÃO, PREPARO MECÂNICO COM BETONEIRA 250 L. AF_08/2019 | D153: M3 | E153: 0
A154: Argamassas | B154: 87292 | C154: ARGAMASSA TRAÇO 1:2:8 (EM VOLUME DE CIMENTO, CAL E AREIA MÉDIA ÚMIDA) PARA EMBOÇO/MASSA ÚNICA/ASSENTAMENTO DE ALVENARIA DE VEDAÇÃO, PREPARO MECÂNICO COM BETONEIRA 400 L. AF_08/2019 | D154: M3 | E154: 705.83 | F154: 0
A155: Argamassas | B155: 87335 | C155: ARGAMASSA TRAÇO 1:2:8 (EM VOLUME DE CIMENTO, CAL E AREIA MÉDIA ÚMIDA) PARA EMBOÇO/MASSA ÚNICA/ASSENTAMENTO DE ALVENARIA DE VEDAÇÃO, PREPARO MECÂNICO COM MISTURADOR DE EIXO HORIZONTAL DE 300 KG. AF_08/2019 | D155: M3 | E155: 664.98 | F155: 0
A156: Argamassas | B156: 87336 | C156: ARGAMASSA TRAÇO 1:2:8 (EM VOLUME DE CIMENTO, CAL E AREIA MÉDIA ÚMIDA) PARA EMBOÇO/MASSA ÚNICA/ASSENTAMENTO DE ALVENARIA DE VEDAÇÃO, PREPARO MECÂNICO COM MISTURADOR DE EIXO HORIZONTAL DE 600 KG. AF_08/2019 | D156: M3 | E156: 675.2 | F156: 0
A157: Argamassas | B157: 87370 | C157: ARGAMASSA TRAÇO 1:2:9 (EM VOLUME DE CIMENTO, CAL E AREIA MÉDIA ÚMIDA) PARA EMBOÇO/MASSA ÚNICA/ASSENTAMENTO DE ALVENARIA DE VEDAÇÃO, PREPARO MANUAL. AF_08/2019 | D157: M3 | E157: 824.74 | F157: 0
A158: Argamassas | B158: 100452 | C158: ARGAMASSA TRAÇO 1:2:9 (EM VOLUME DE CIMENTO, CAL E AREIA MÉDIA ÚMIDA) PARA EMBOÇO/MASSA ÚNICA/ASSENTAMENTO DE ALVENARIA DE VEDAÇÃO, PREPARO MECÂNICO COM BETONEIRA 250 L. AF_08/2019 | D158: M3 | E158: 0
A159: Argamassas | B159: 88715 | C159: ARGAMASSA TRAÇO 1:2:9 (EM VOLUME DE CIMENTO, CAL E AREIA MÉDIA ÚMIDA) PARA EMBOÇO/MASSA ÚNICA/ASSENTAMENTO DE ALVENARIA DE VEDAÇÃO, PREPARO MECÂNICO COM BETONEIRA 400 L. AF_08/2019 | D159: M3 | E159: 665.87 | F159: 0
A160: Argamassas | B160: 87294 | C160: ARGAMASSA TRAÇO 1:2:9 (EM VOLUME DE CIMENTO, CAL E AREIA MÉDIA ÚMIDA) PARA EMBOÇO/MASSA ÚNICA/ASSENTAMENTO DE ALVENARIA DE VEDAÇÃO, PREPARO MECÂNICO COM BETONEIRA 600 L. AF_08/2019 | D160: M3 | E160: 672.06 | F160: 0
A161: Argamassas | B161: 87337 | C161: ARGAMASSA TRAÇO 1:2:9 (EM VOLUME DE CIMENTO, CAL E AREIA MÉDIA ÚMIDA) PARA EMBOÇO/MASSA ÚNICA/ASSENTAMENTO DE ALVENARIA DE VEDAÇÃO, PREPARO MECÂNICO COM MISTURADOR DE EIXO HORIZONTAL DE 300 KG. AF_08/2019 | D161: M3 | E161: 671 | F161: 0
A162: Argamassas | B162: 100487 | C162: ARGAMASSA TRAÇO 1:2:9 (EM VOLUME DE CIMENTO, CAL E AREIA MÉDIA ÚMIDA) PARA EMBOÇO/MASSA ÚNICA/ASSENTAMENTO DE ALVENARIA DE VEDAÇÃO, PREPARO MECÂNICO COM MISTURADOR DE EIXO HORIZONTAL DE 600 KG. AF_08/2019 | D162: M3 | E162: 638.33 | F162: 0
A163: Argamassas | B163: 87380 | C163: ARGAMASSA TRAÇO 1:3 (EM VOLUME DE CIMENTO E AREIA GROSSA ÚMIDA) COM ADIÇÃO DE EMULSÃO POLIMÉRICA PARA CHAPISCO ROLADO, PREPARO MANUAL. AF_08/2019 | D163: M3 | E163: 3789.06 | F163: 0
A164: Argamassas | B164: 100461 | C164: ARGAMASSA TRAÇO 1:3 (EM VOLUME DE CIMENTO E AREIA GROSSA ÚMIDA) COM ADIÇÃO DE EMULSÃO POLIMÉRICA PARA CHAPISCO ROLADO, PREPARO MECÂNICO COM BETONEIRA 250 L. AF_08/2019 | D164: M3 | E164: 0
A165: Argamassas | B165: 87322 | C165: ARGAMASSA TRAÇO 1:3 (EM VOLUME DE CIMENTO E AREIA GROSSA ÚMIDA) COM ADIÇÃO DE EMULSÃO POLIMÉRICA PARA CHAPISCO ROLADO, PREPARO MECÂNICO COM BETONEIRA 400 L. AF_08/2019 | D165: M3 | E165: 3670.82 | F165: 0
A166: Argamassas | B166: 87323 | C166: ARGAMASSA TRAÇO 1:3 (EM VOLUME DE CIMENTO E AREIA GROSSA ÚMIDA) COM ADIÇÃO DE EMULSÃO POLIMÉRICA PARA CHAPISCO ROLADO, PREPARO MECÂNICO COM BETONEIRA 600 L. AF_08/2019 | D166: M3 | E166: 3670.29 | F166: 0
A167: Argamassas | B167: 87360 | C167: ARGAMASSA TRAÇO 1:3 (EM VOLUME DE CIMENTO E AREIA GROSSA ÚMIDA) COM ADIÇÃO DE EMULSÃO POLIMÉRICA PARA CHAPISCO ROLADO, PREPARO MECÂNICO COM MISTURADOR DE EIXO HORIZONTAL DE 160 KG. AF_08/2019 | D167: M3 | E167: 3628.67 | F167: 0
A168: Argamassas | B168: 87361 | C168: ARGAMASSA TRAÇO 1:3 (EM VOLUME DE CIMENTO E AREIA GROSSA ÚMIDA) COM ADIÇÃO DE EMULSÃO POLIMÉRICA PARA CHAPISCO ROLADO, PREPARO MECÂNICO COM MISTURADOR DE EIXO HORIZONTAL DE 300 KG. AF_08/2019 | D168: M3 | E168: 3584.02 | F168: 0
A169: Argamassas | B169: 87362 | C169: ARGAMASSA TRAÇO 1:3 (EM VOLUME DE CIMENTO E AREIA GROSSA ÚMIDA) COM ADIÇÃO DE EMULSÃO POLIMÉRICA PARA CHAPISCO ROLADO, PREPARO MECÂNICO COM MISTURADOR DE EIXO HORIZONTAL DE 600 KG. AF_08/2019 | D169: M3 | E169: 3583.68 | F169: 0
A170: Argamassas | B170: 87377 | C170: ARGAMASSA TRAÇO 1:3 (EM VOLUME DE CIMENTO E AREIA GROSSA ÚMIDA) PARA CHAPISCO CONVENCIONAL, PREPARO MANUAL. AF_08/2019 | D170: M3 | E170: 691.66 | F170: 0
A171: Argamassas | B171: 100458 | C171: ARGAMASSA TRAÇO 1:3 (EM VOLUME DE CIMENTO E AREIA GROSSA ÚMIDA) PARA CHAPISCO CONVENCIONAL, PREPARO MECÂNICO COM BETONEIRA 250 L. AF_08/2019 | D171: M3 | E171: 0
A172: Argamassas | B172: 87313 | C172: ARGAMASSA TRAÇO 1:3 (EM VOLUME DE CIMENTO E AREIA GROSSA ÚMIDA) PARA CHAPISCO CONVENCIONAL, PREPARO MECÂNICO COM BETONEIRA 400 L. AF_08/2019 | D172: M3 | E172: 531.32 | F172: 0
A173: Argamassas | B173: 87314 | C173: ARGAMASSA TRAÇO 1:3 (EM VOLUME DE CIMENTO E AREIA GROSSA ÚMIDA) PARA CHAPISCO CONVENCIONAL, PREPARO MECÂNICO COM BETONEIRA 600 L. AF_08/2019 | D173: M3 | E173: 523.95 | F173: 0
A174: Argamassas | B174: 87352 | C174: ARGAMASSA TRAÇO 1:3 (EM VOLUME DE CIMENTO E AREIA GROSSA ÚMIDA) PARA CHAPISCO CONVENCIONAL, PREPARO MECÂNICO COM MISTURADOR DE EIXO HORIZONTAL DE 160 KG. AF_08/2019 | D174: M3 | E174: 614.57 | F174: 0
A175: Argamassas | B175: 87353 | C175: ARGAMASSA TRAÇO 1:3 (EM VOLUME DE CIMENTO E AREIA GROSSA ÚMIDA) PARA CHAPISCO CONVENCIONAL, PREPARO MECÂNICO COM MISTURADOR DE EIXO HORIZONTAL DE 300 KG. AF_08/2019 | D175: M3 | E175: 535.86 | F175: 0
A176: Argamassas | B176: 87354 | C176: ARGAMASSA TRAÇO 1:3 (EM VOLUME DE CIMENTO E AREIA GROSSA ÚMIDA) PARA CHAPISCO CONVENCIONAL, PREPARO MECÂNICO COM MISTURADOR DE EIXO HORIZONTAL DE 600 KG. AF_08/2019 | D176: M3 | E176: 501.66 | F176: 0
A177: Argamassas | B177: 100480 | C177: ARGAMASSA TRAÇO 1:3 (EM VOLUME DE CIMENTO E AREIA MÉDIA ÚMIDA) COM ADIÇÃO DE IMPERMEABILIZANTE, PREPARO MANUAL. AF_08/2019 | D177: M3 | E177: 846.56 | F177: 0
A178: Argamassas | B178: 100476 | C178: ARGAMASSA TRAÇO 1:3 (EM VOLUME DE CIMENTO E AREIA MÉDIA ÚMIDA) COM ADIÇÃO DE IMPERMEABILIZANTE, PREPARO MECÂNICO COM BETONEIRA 250 L. AF_08/2019 | D178: M3 | E178: 0
A179: Argamassas | B179: 100475 | C179: ARGAMASSA TRAÇO 1:3 (EM VOLUME DE CIMENTO E AREIA MÉDIA ÚMIDA) COM ADIÇÃO DE IMPERMEABILIZANTE, PREPARO MECÂNICO COM BETONEIRA 400 L. AF_08/2019 | D179: M3 | E179: 721.17 | F179: 0
A180: Argamassas | B180: 100491 | C180: ARGAMASSA TRAÇO 1:3 (EM VOLUME DE CIMENTO E AREIA MÉDIA ÚMIDA) COM ADIÇÃO DE IMPERMEABILIZANTE, PREPARO MECÂNICO COM BETONEIRA 600 L. AF_08/2019 | D180: M3 | E180: 722.2 | F180: 0
A181: Argamassas | B181: 100477 | C181: ARGAMASSA TRAÇO 1:3 (EM VOLUME DE CIMENTO E AREIA MÉDIA ÚMIDA) COM ADIÇÃO DE IMPERMEABILIZANTE, PREPARO MECÂNICO COM MISTURADOR DE EIXO HORIZONTAL DE 160 KG. AF_08/2019 | D181: M3 | E181: 784.63 | F181: 0
A182: Argamassas | B182: 100478 | C182: ARGAMASSA TRAÇO 1:3 (EM VOLUME DE CIMENTO E AREIA MÉDIA ÚMIDA) COM ADIÇÃO DE IMPERMEABILIZANTE, PREPARO MECÂNICO COM MISTURADOR DE EIXO HORIZONTAL DE 300 KG. AF_08/2019 | D182: M3 | E182: 707.79 | F182: 0
A183: Argamassas | B183: 100479 | C183: ARGAMASSA TRAÇO 1:3 (EM VOLUME DE CIMENTO E AREIA MÉDIA ÚMIDA) COM ADIÇÃO DE IMPERMEABILIZANTE, PREPARO MECÂNICO COM MISTURADOR DE EIXO HORIZONTAL DE 600 KG. AF_08/2019 | D183: M3 | E183: 692.49 | F183: 0
A184: Argamassas | B184: 87372 | C184: ARGAMASSA TRAÇO 1:3 (EM VOLUME DE CIMENTO E AREIA MÉDIA ÚMIDA) PARA CONTRAPISO, PREPARO MANUAL. AF_08/2019 | D184: M3 | E184: 846.29 | F184: 0
A185: Argamassas | B185: 100453 | C185: ARGAMASSA TRAÇO 1:3 (EM VOLUME DE CIMENTO E AREIA MÉDIA ÚMIDA) PARA CONTRAPISO, PREPARO MECÂNICO COM BETONEIRA 250 L. AF_08/2019 | D185: M3 | E185: 0
A186: Argamassas | B186: 87298 | C186: ARGAMASSA TRAÇO 1:3 (EM VOLUME DE CIMENTO E AREIA MÉDIA ÚMIDA) PARA CONTRAPISO, PREPARO MECÂNICO COM BETONEIRA 400 L. AF_08/2019 | D186: M3 | E186: 678.77 | F186: 0
A187: Argamassas | B187: 87299 | C187: ARGAMASSA TRAÇO 1:3 (EM VOLUME DE CIMENTO E AREIA MÉDIA ÚMIDA) PARA CONTRAPISO, PREPARO MECÂNICO COM BETONEIRA 600 L. AF_08/2019 | D187: M3 | E187: 467.48 | F187: 0
A188: Argamassas | B188: 87339 | C188: ARGAMASSA TRAÇO 1:3 (EM VOLUME DE CIMENTO E AREIA MÉDIA ÚMIDA) PARA CONTRAPISO, PREPARO MECÂNICO COM MISTURADOR DE EIXO HORIZONTAL DE 160 KG. AF_08/2019 | D188: M3 | E188: 803.99 | F188: 0
A189: Argamassas | B189: 87340 | C189: ARGAMASSA TRAÇO 1:3 (EM VOLUME DE CIMENTO E AREIA MÉDIA ÚMIDA) PARA CONTRAPISO, PREPARO MECÂNICO COM MISTURADOR DE EIXO HORIZONTAL DE 300 KG. AF_08/2019 | D189: M3 | E189: 677.28 | F189: 0
A190: Argamassas | B190: 87341 | C190: ARGAMASSA TRAÇO 1:3 (EM VOLUME DE CIMENTO E AREIA MÉDIA ÚMIDA) PARA CONTRAPISO, PREPARO MECÂNICO COM MISTURADOR DE EIXO HORIZONTAL DE 600 KG. AF_08/2019 | D190: M3 | E190: 646.18 | F190: 0
A191: Argamassas | B191: 88629 | C191: ARGAMASSA TRAÇO 1:3 (EM VOLUME DE CIMENTO E AREIA MÉDIA ÚMIDA), PREPARO MANUAL. AF_08/2019 | D191: M3 | E191: 691.02 | F191: 0
A192: Argamassas | B192: 100467 | C192: ARGAMASSA TRAÇO 1:3 (EM VOLUME DE CIMENTO E AREIA MÉDIA ÚMIDA), PREPARO MECÂNICO COM BETONEIRA 250 L. AF_08/2019 | D192: M3 | E192: 0
A193: Argamassas | B193: 88628 | C193: ARGAMASSA TRAÇO 1:3 (EM VOLUME DE CIMENTO E AREIA MÉDIA ÚMIDA), PREPARO MECÂNICO COM BETONEIRA 400 L. AF_08/2019 | D193: M3 | E193: 565.07 | F193: 0
A194: Argamassas | B194: 100489 | C194: ARGAMASSA TRAÇO 1:3 (EM VOLUME DE CIMENTO E AREIA MÉDIA ÚMIDA), PREPARO MECÂNICO COM BETONEIRA 600 L. AF_08/2019 | D194: M3 | E194: 564.67 | F194: 0
A195: Argamassas | B195: 100468 | C195: ARGAMASSA TRAÇO 1:3 (EM VOLUME DE CIMENTO E AREIA MÉDIA ÚMIDA), PREPARO MECÂNICO COM MISTURADOR DE EIXO HORIZONTAL DE 160 KG. AF_08/2019 | D195: M3 | E195: 683.58 | F195: 0
A196: Argamassas | B196: 100469 | C196: ARGAMASSA TRAÇO 1:3 (EM VOLUME DE CIMENTO E AREIA MÉDIA ÚMIDA), PREPARO MECÂNICO COM MISTURADOR DE EIXO HORIZONTAL DE 300 KG. AF_08/2019 | D196: M3 | E196: 555.31 | F196: 0
A197: Argamassas | B197: 100470 | C197: ARGAMASSA TRAÇO 1:3 (EM VOLUME DE CIMENTO E AREIA MÉDIA ÚMIDA), PREPARO MECÂNICO COM MISTURADOR DE EIXO HORIZONTAL DE 600 KG. AF_08/2019 | D197: M3 | E197: 511.86 | F197: 0
A198: Argamassas | B198: 87371 | C198: ARGAMASSA TRAÇO 1:3:12 (EM VOLUME DE CIMENTO, CAL E AREIA MÉDIA ÚMIDA) PARA EMBOÇO/MASSA ÚNICA/ASSENTAMENTO DE ALVENARIA DE VEDAÇÃO, PREPARO MANUAL. AF_08/2019 | D198: M3 | E198: 829.78 | F198: 0
A199: Argamassas | B199: 87295 | C199: ARGAMASSA TRAÇO 1:3:12 (EM VOLUME DE CIMENTO, CAL E AREIA MÉDIA ÚMIDA) PARA EMBOÇO/MASSA ÚNICA/ASSENTAMENTO DE ALVENARIA DE VEDAÇÃO, PREPARO MECÂNICO COM BETONEIRA 400 L. AF_08/2019 | D199: M3 | E199: 702.38 | F199: 0
A200: Argamassas | B200: 87296 | C200: ARGAMASSA TRAÇO 1:3:12 (EM VOLUME DE CIMENTO, CAL E AREIA MÉDIA ÚMIDA) PARA EMBOÇO/MASSA ÚNICA/ASSENTAMENTO DE ALVENARIA DE VEDAÇÃO, PREPARO MECÂNICO COM BETONEIRA 600 L. AF_08/2019 | D200: M3 | E200: 676.08 | F200: 0
... 9533 more rows
